Workbook

Sheet readme (hidden)
A1: Date: | B1: 2015-07-28
A2: Prepared by: | B2: ARB/D. Ghosh
A4: Background: | B4: TRU Calculator for estimating emission reductions and cost-effectiveness for Prop. 1B Year 5 TRU projects
A6: References: | B6: See "tru_bins" and "emission_factors" tabs for information relating to the methodology of this calculator.

Sheet tru_bins (hidden)
A1: TRU Categories and Bins
A3: Category | B3: Horsepower Bin | C3: Principal Application or Use | D3: California Share
A4: California- based TRU | B4: Under11 | C4: Refrigerated trucks and vans used in California | D4: 1
A5: California- based TRU | B5: Mid1125 | C5: Refrigerated trucks used in California | D5: 1
A6: California- based TRU | B6: Over 25 | C6: Trailers based in California. | D6: 0.780720668
A8: References:
A9: 1. Categories and Bins obtained from:
A10: ARB; "Staff Report: Initial Statement of Reasons for Proposed Rulemaking,
A11: 2011 Amendments for the Airborne Toxic Control Measure for
A12: In-Use Diesel-Fueled Transport Refrigeration Units (TRU) and TRU Generator Sets,
A13: and Facilities Where TRUs Operate"; August 2011; Table 2
A15: http://www.arb.ca.gov/regact/2011/tru2011/truisor.pdf
A17: 2. California Share obtained from:
A18: 2011 Transport Refrigeration Unit (TRU) Regulation - Background Materials on Air Emissions
A19: 2011 Emissions Inventory (zip file)
A20: "California Share" table
A22: http://www.arb.ca.gov/msei/categories.htm#tru_category

Sheet emission_factors (hidden)
A1: Emission Factors for TRUs at Distribution Centers
A2: [Emission Factor, g/hr] = [Emissions, tons/day]*[2000 lbs/ton]*[454 g/lb]*[365 days/yr]/[Activity in CA, hrs/yr]
A3: [Activity in CA, hrs/yr] = [Activity by Category, hrs/yr]*[CA Share from "TRU bins" tab]
I4: Use for Equipment
A5: Sum of TotalActivity (hrs) | F5: CA Share | I5: Under11 | L5: Emission Factors
A6: CY | B6: Under11 | C6: Mid1125 | D6: Over 25 | F6: Under11 | G6: 1 | I6: Sum of Total Activity (hrs/yr) | J6: Sum of NOx Emissions (tons/day) | K6: Sum of PM Emissions (tons/day) | L6: CY | M6: NOX (g/hr) | N6: PM (g/hr)
A7: 2015 | B7: 337731.5263 | C7: 9311740.654 | D7: 44321248.91 | F7: Mid1125 | G7: 1 | I7: =B7 -> 337731.5263 | J7: =B22 -> 0.02111482402 | K7: =B37 -> 0.0008179892106 | L7: 2015 | M7: =(J7*2000*454*365)/I7 -> 20.72023022 | N7: =(K7*2000*454*365)/I7 -> 0.8027026293
A8: 2016 | B8: 341650.4383 | C8: 9419790.655 | D8: 44837201.93 | F8: Over 25 | G8: 0.780720668 | I8: =B8 -> 341650.4383 | J8: =B23 -> 0.02038770988 | K8: =B38 -> 0.0007775271813 | L8: 2016 | M8: =(J8*2000*454*365)/I8 -> 19.77721686 | N8: =(K8*2000*454*365)/I8 -> 0.7542447764
A9: 2017 | B9: 346528.9521 | C9: 9554298.251 | D9: 45479138.52 | I9: 346528.9521 | J9: 0.02053345277 | K9: 0.000776450459 | L9: 2017 | M9: 19.63817705 | N9: 0.7425965696
A10: 2018 | B10: 352492.2935 | C10: 9718716.091 | D10: 46260055.22 | I10: 352492.2935 | J10: 0.02078990219 | K10: 0.0007824547385 | L10: 2018 | M10: 19.5470639 | N10: 0.7356789191
A11: 2019 | B11: 358947.7365 | C11: 9896701.877 | D11: 47107248.63 | I11: 358947.7365 | J11: 0.02109260199 | K11: 0.0007842470013 | L11: 2019 | M11: 19.47500832 | N11: 0.7241030232
A12: 2020 | B12: 365899.6569 | C12: 10088376.25 | D12: 48019598.29 | I12: 365899.6569 | J12: 0.02112241014 | K12: 0.0007624735356 | L12: 2020 | M12: 19.13199162 | N12: 0.6906237118
A13: 2021 | B13: 373238.2485 | C13: 10290711.71 | D13: 48982693.54 | I13: 373238.2485 | J13: 0.02155456387 | K13: 0.0007735263603 | L13: 2021 | M13: 19.13955386 | N13: 0.6868591506
A14: 2022 | B14: 380843.3017 | C14: 10500393.89 | D14: 49980758.42 | I14: 380843.3017 | J14: 0.02200343363 | K14: 0.0007858104361 | L14: 2022 | M14: 19.14797488 | N14: 0.6838332028
A15: 2023 | B15: 388839.9926 | C15: 10720874.08 | D15: 51030220.69 | I15: 388839.9926 | J15: 0.0223131925 | K15: 0.0007861418756 | L15: 2023 | M15: 19.01820389 | N15: 0.6700523233
A16: 2024 | B16: 397167.4891 | C16: 10950475.06 | D16: 52123096.92 | I16: 397167.4891 | J16: 0.02284598203 | K16: 0.0008044520833 | L16: 2024 | M16: 19.06403614 | N16: 0.6712823097
A17: 2025 | B17: 405776.6906 | C17: 11187843.04 | D17: 53252943.29 | I17: 405776.6906 | J17: 0.02339608732 | K17: 0.0008239723459 | L17: 2025 | M17: 19.10886317 | N17: 0.6729832471
A18: 2026 | B18: 414664.6908 | C18: 11432897.9 | D18: 54419378.38 | I18: 414664.6908 | J18: 0.02395079337 | K18: 0.0008437251102 | L18: 2026 | M18: 19.14262804 | N18: 0.6743457599
A20: Sum of NOx_Emissions (tons/day) | I20: Mid1125 | L20: Emission Factors
A21: CY | B21: Under11 | C21: Mid1125 | D21: Over 25 | I21: Sum of Total Activity (hrs/yr) | J21: Sum of NOx Emissions (tons/day) | K21: Sum of PM Emissions (tons/day) | L21: CY | M21: NOX (g/hr) | N21: PM (g/hr)
A22: 2015 | B22: 0.02111482402 | C22: 0.9120598511 | D22: 6.900110134 | I22: =C7 -> 9311740.654 | J22: =C22 -> 0.9120598511 | K22: =C37 -> 0.03533323839 | L22: 2015 | M22: =(J22*2000*454*365)/I22 -> 32.46169401 | N22: =(K22*2000*454*365)/I22 -> 1.257567441
A23: 2016 | B23: 0.02038770988 | C23: 0.8806524316 | D23: 6.585843854 | I23: =C8 -> 9419790.655 | J23: =C23 -> 0.8806524316 | K23: =C38 -> 0.03358550304 | L23: 2016 | M23: =(J23*2000*454*365)/I23 -> 30.98432222 | N23: =(K23*2000*454*365)/I23 -> 1.181651251
A24: 2017 | B24: 0.02053345277 | C24: 0.8869475036 | D24: 6.158914781 | I24: 9554298.251 | J24: 0.8869475036 | K24: 0.03353897061 | L24: 2017 | M24: 30.76648163 | N24: 1.163401576
A25: 2018 | B25: 0.02078990219 | C25: 0.8980247483 | D25: 6.11144694 | I25: 9718716.091 | J25: 0.8980247483 | K25: 0.03379831625 | L25: 2018 | M25: 30.62373253 | N25: 1.152563555
A26: 2019 | B26: 0.02109260199 | C26: 0.9110999263 | D26: 5.847566073 | I26: 9896701.877 | J26: 0.9110999263 | K26: 0.03387573261 | L26: 2019 | M26: 30.51084506 | N26: 1.134427958
A27: 2020 | B27: 0.02112241014 | C27: 0.9123874979 | D27: 5.850645953 | I27: 10088376.25 | J27: 0.9123874979 | K27: 0.0329352227 | L27: 2020 | M27: 29.97345231 | N27: 1.081977043
A28: 2021 | B28: 0.02155456387 | C28: 0.9310544835 | D28: 6.022997747 | I28: 10290711.71 | J28: 0.9310544835 | K28: 0.03341265227 | L28: 2021 | M28: 29.98529991 | N28: 1.076079238
A29: 2022 | B29: 0.02200343363 | C29: 0.9504435221 | D29: 6.188552747 | I29: 10500393.89 | J29: 0.9504435221 | K29: 0.03394326608 | L29: 2022 | M29: 29.99849295 | N29: 1.071338596
A30: 2023 | B30: 0.0223131925 | C30: 0.9638238052 | D30: 6.351118659 | I30: 10720874.08 | J30: 0.9638238052 | K30: 0.03395759714 | L30: 2023 | M30: 29.7951905 | N30: 1.049749
A31: 2024 | B31: 0.02284598203 | C31: 0.9868376454 | D31: 6.510764884 | I31: 10950475.06 | J31: 0.9868376454 | K31: 0.03474850013 | L31: 2024 | M31: 29.86699031 | N31: 1.051675645
A32: 2025 | B32: 0.02339608732 | C32: 1.01059952 | D32: 6.66681049 | I32: 11187843.04 | J32: 1.01059952 | K32: 0.03559167801 | L32: 2025 | M32: 29.93721771 | N32: 1.054340312
A33: 2026 | B33: 0.02395079337 | C33: 1.03456018 | D33: 6.818143801 | I33: 11432897.9 | J33: 1.03456018 | K33: 0.03644490341 | L33: 2026 | M33: 29.99011604 | N33: 1.056474919
A35: Sum of PM_Emissions (tons/day) | I35: Over 25 | L35: Emission Factors
A36: CY | B36: Under11 | C36: Mid1125 | D36: Over 25 | I36: Sum of Total Activity (hrs/yr) | J36: Sum of NOx Emissions (tons/day) | K36: Sum of PM Emissions (tons/day) | L36: CY | M36: NOX (g/hr) | N36: PM (g/hr)
A37: 2015 | B37: 0.0008179892106 | C37: 0.03533323839 | D37: 0.2661367445 | I37: =D7 -> 44321248.91 | J37: =D22*$G$8 -> 5.387058593 | K37: =D37*$G$8 -> 0.2077784569 | L37: 2015 | M37: =(J37*2000*454*365)/I37 -> 40.28268613 | N37: =(K37*2000*454*365)/I37 -> 1.553700265
A38: 2016 | B38: 0.0007775271813 | C38: 0.03358550304 | D38: 0.2249527296 | I38: =D8 -> 44837201.93 | J38: =D23*$G$8 -> 5.141704413 | K38: =D38*$G$8 -> 0.1756252453 | L38: 2016 | M38: =(J38*2000*454*365)/I38 -> 38.0055758 | N38: =(K38*2000*454*365)/I38 -> 1.298156805
A39: 2017 | B39: 0.000776450459 | C39: 0.03353897061 | D39: 0.165547932 | I39: 45479138.52 | J39: 4.808392062 | K39: 0.1292466921 | L39: 2017 | M39: 35.04018214 | N39: 0.9418590606
A40: 2018 | B40: 0.0007824547385 | C40: 0.03379831625 | D40: 0.1470743486 | I40: 46260055.22 | J40: 4.771332938 | K40: 0.1148239837 | L40: 2018 | M40: 34.18316634 | N40: 0.8226311989
A41: 2019 | B41: 0.0007842470013 | C41: 0.03387573261 | D41: 0.1067751628 | I41: 47107248.63 | J41: 4.56531569 | K41: 0.08336157645 | L41: 2019 | M41: 32.11898317 | N41: 0.5864849777
A42: 2020 | B42: 0.0007624735356 | C42: 0.0329352227 | D42: 0.03663291011 | I42: 48019598.29 | J42: 4.567720216 | K42: 0.02860007006 | L42: 2020 | M42: 31.52533316 | N42: 0.1973909728
A43: 2021 | B43: 0.0007735263603 | C43: 0.03341265227 | D43: 0.03767305834 | I43: 48982693.54 | J43: 4.702278825 | K43: 0.02941213527 | L43: 2021 | M43: 31.81591569 | N43: 0.199004366
A44: 2022 | B44: 0.0007858104361 | C44: 0.03394326608 | D44: 0.03858377239 | I44: 49980758.42 | J44: 4.831531034 | K44: 0.03012314855 | L44: 2022 | M44: 32.03764941 | N44: 0.1997451461
A45: 2023 | B45: 0.0007861418756 | C45: 0.03395759714 | D45: 0.03942231821 | I45: 51030220.69 | J45: 4.958449602 | K45: 0.03077781861 | L45: 2023 | M45: 32.20306213 | N45: 0.1998890952
A46: 2024 | B46: 0.0008044520833 | C46: 0.03474850013 | D46: 0.04022052957 | I46: 52123096.92 | J46: 5.083088709 | K46: 0.03140099871 | L46: 2024 | M46: 32.32036006 | N46: 0.1996604118
A47: 2025 | B47: 0.0008239723459 | C47: 0.03559167801 | D47: 0.04096277808 | I47: 53252943.29 | J47: 5.204916739 | K47: 0.03198048747 | L47: 2025 | M47: 32.39282937 | N47: 0.1990307484
A48: 2026 | B48: 0.0008437251102 | C48: 0.03644490341 | D48: 0.04160321338 | I48: 54419378.38 | J48: 5.323065783 | K48: 0.03248048854 | L48: 2026 | M48: 32.41805611 | N48: =(K48*2000*454*365)/I48 -> 0.1978097478
I50: Use for Infrastructure
A51: NOTES: | I51: Average - All HP Tiers | L51: Emission Factors
A52: 1. These emission factors already include horsepower and load factor (LF) | I52: Sum of Total Activity (hrs/yr) | J52: Sum of NOx Emissions (tons/day) | K52: Sum of PM Emissions (tons/day) | L52: CY | M52: NOX (g/hr) | N52: PM (g/hr)
A53: so these factors shouldn't be applied again to calculated emissions. | I53: =((SUM(I7,I22,I37))/3) -> 17990240.36 | J53: 2.106744423 | K53: 0.08130989484 | L53: 2015 | M53: =(J53*2000*454*365)/I53 -> 38.81088982 | N53: =(K53*2000*454*365)/I53 -> 1.497908021
A54: Only activity needs to be applied to calculate emissions. | I54: 18199547.67 | J54: 2.014248185 | K54: 0.06999609185 | L54: 2016 | M54: =(J54*2000*454*365)/I54 -> 36.68014972 | N54: =(K54*2000*454*365)/I54 -> 1.27465282
I55: 18459988.57 | J55: 1.905291006 | K55: 0.05452070438 | L55: 2017 | M55: 34.20649708 | N55: 0.9788333168
A56: 2. Data obtained from: | I56: 18777087.87 | J56: 1.896715863 | K56: 0.0498015849 | L56: 2018 | M56: 33.47747934 | N56: 0.8790096412
A57: Model: 2011 Transport Refrigeration Unit (TRU) Regulation - Background | I57: 19120966.08 | J57: 1.83250274 | K57: 0.03934051869 | L57: 2019 | M57: 31.7624149 | N57: 0.6818815873
A58: Materials on Air Emissions | I58: 19491291.4 | J58: 1.833743375 | K58: 0.0207659221 | L58: 2020 | M58: 31.18003917 | N58: 0.3530931718
A59: 2011 Emissions Inventory (zip file) | I59: 19882214.5 | J59: 1.884962624 | K59: 0.02119943797 | L59: 2021 | M59: 31.42076115 | N59: 0.3533770211
A60: Link: http://www.arb.ca.gov/msei/categories.htm#tru_category | I60: 20287331.87 | J60: 1.93465933 | K60: 0.02161740836 | L60: 2022 | M60: 31.60518097 | N60: 0.3531485325
A61: Scenario: Statewide by Equipment Type, Proposed Amendments | I61: 20713311.59 | J61: 1.981528867 | K61: 0.02184051921 | L61: 2023 | M61: 31.70513291 | N61: 0.3494557037
A62: Date: 06/22/15 | I62: 21156913.16 | J62: 2.030924112 | K62: 0.02231798364 | L62: 2024 | M62: 31.81413396 | N62: 0.3496080021
I63: 21615521.01 | J63: 2.079637449 | K63: 0.02279871261 | L63: 2025 | M63: 31.88604351 | N63: 0.3495612866
A64: 3. For TRUs at Distribution Centers, the emission factors above include the | I64: 22088980.32 | J64: 2.127192252 | K64: 0.02325637235 | L64: 2026 | M64: 31.91609779 | N64: 0.3489353883
A65: following categories/bins:
A66: > California-based TRU (hp bin <11)-Refrigerated trucks and vans used in California
A67: > California-based TRU (hp bin 11-25)–Refrigerated trucks used in California
A68: > California-based TRU (hp bin 25-50)–Trailers based in California

Sheet drop data (hidden)
A1: CY | B1: Scenario | C1: Bin | D1: TotalActivity | E1: NOx_Emissions | F1: PM_Emissions
A2: 2015 | B2: Proposal | C2: Under11 | D2: 337731.5263 | E2: 0.02111482402 | F2: 0.0008179892106
A3: 2016 | B3: Proposal | C3: Under11 | D3: 341650.4383 | E3: 0.02038770988 | F3: 0.0007775271813
A4: 2017 | B4: Proposal | C4: Under11 | D4: 346528.9521 | E4: 0.02053345277 | F4: 0.000776450459
A5: 2018 | B5: Proposal | C5: Under11 | D5: 352492.2935 | E5: 0.02078990219 | F5: 0.0007824547385
A6: 2019 | B6: Proposal | C6: Under11 | D6: 358947.7365 | E6: 0.02109260199 | F6: 0.0007842470013
A7: 2020 | B7: Proposal | C7: Under11 | D7: 365899.6569 | E7: 0.02112241014 | F7: 0.0007624735356
A8: 2021 | B8: Proposal | C8: Under11 | D8: 373238.2485 | E8: 0.02155456387 | F8: 0.0007735263603
A9: 2022 | B9: Proposal | C9: Under11 | D9: 380843.3017 | E9: 0.02200343363 | F9: 0.0007858104361
A10: 2023 | B10: Proposal | C10: Under11 | D10: 388839.9926 | E10: 0.0223131925 | F10: 0.0007861418756
A11: 2024 | B11: Proposal | C11: Under11 | D11: 397167.4891 | E11: 0.02284598203 | F11: 0.0008044520833
A12: 2025 | B12: Proposal | C12: Under11 | D12: 405776.6906 | E12: 0.02339608732 | F12: 0.0008239723459
A13: 2026 | B13: Proposal | C13: Under11 | D13: 414664.6908 | E13: 0.02395079337 | F13: 0.0008437251102
A14: 2015 | B14: Proposal | C14: Mid1125 | D14: 9311740.654 | E14: 0.9120598511 | F14: 0.03533323839
A15: 2016 | B15: Proposal | C15: Mid1125 | D15: 9419790.655 | E15: 0.8806524316 | F15: 0.03358550304
A16: 2017 | B16: Proposal | C16: Mid1125 | D16: 9554298.251 | E16: 0.8869475036 | F16: 0.03353897061
A17: 2018 | B17: Proposal | C17: Mid1125 | D17: 9718716.091 | E17: 0.8980247483 | F17: 0.03379831625
A18: 2019 | B18: Proposal | C18: Mid1125 | D18: 9896701.877 | E18: 0.9110999263 | F18: 0.03387573261
A19: 2020 | B19: Proposal | C19: Mid1125 | D19: 10088376.25 | E19: 0.9123874979 | F19: 0.0329352227
A20: 2021 | B20: Proposal | C20: Mid1125 | D20: 10290711.71 | E20: 0.9310544835 | F20: 0.03341265227
A21: 2022 | B21: Proposal | C21: Mid1125 | D21: 10500393.89 | E21: 0.9504435221 | F21: 0.03394326608
A22: 2023 | B22: Proposal | C22: Mid1125 | D22: 10720874.08 | E22: 0.9638238052 | F22: 0.03395759714
A23: 2024 | B23: Proposal | C23: Mid1125 | D23: 10950475.06 | E23: 0.9868376454 | F23: 0.03474850013
A24: 2025 | B24: Proposal | C24: Mid1125 | D24: 11187843.04 | E24: 1.01059952 | F24: 0.03559167801
A25: 2026 | B25: Proposal | C25: Mid1125 | D25: 11432897.9 | E25: 1.03456018 | F25: 0.03644490341
A26: 2015 | B26: Proposal | C26: Over 25 | D26: 44321248.91 | E26: 6.900110134 | F26: 0.2661367445
A27: 2016 | B27: Proposal | C27: Over 25 | D27: 44837201.93 | E27: 6.585843854 | F27: 0.2249527296
A28: 2017 | B28: Proposal | C28: Over 25 | D28: 45479138.52 | E28: 6.158914781 | F28: 0.165547932
A29: 2018 | B29: Proposal | C29: Over 25 | D29: 46260055.22 | E29: 6.11144694 | F29: 0.1470743486
A30: 2019 | B30: Proposal | C30: Over 25 | D30: 47107248.63 | E30: 5.847566073 | F30: 0.1067751628
A31: 2020 | B31: Proposal | C31: Over 25 | D31: 48019598.29 | E31: 5.850645953 | F31: 0.03663291011
A32: 2021 | B32: Proposal | C32: Over 25 | D32: 48982693.54 | E32: 6.022997747 | F32: 0.03767305834
A33: 2022 | B33: Proposal | C33: Over 25 | D33: 49980758.42 | E33: 6.188552747 | F33: 0.03858377239
A34: 2023 | B34: Proposal | C34: Over 25 | D34: 51030220.69 | E34: 6.351118659 | F34: 0.03942231821
A35: 2024 | B35: Proposal | C35: Over 25 | D35: 52123096.92 | E35: 6.510764884 | F35: 0.04022052957
A36: 2025 | B36: Proposal | C36: Over 25 | D36: 53252943.29 | E36: 6.66681049 | F36: 0.04096277808
A37: 2026 | B37: Proposal | C37: Over 25 | D37: 54419378.38 | E37: 6.818143801 | F37: 0.04160321338
C41: Install Electric Infrastructure and Equipment | D41: Replacement with Zero Emission TR | E41: 10 | F41: YES | G41: All-electric | I41: Under 11hp | J41: 1 | K41: 5 | L41: Cryogenic | M41: 1 | N41: 1
A42: 2016 | C42: Install Cryogenic Infrastructure and Equipment | D42: Replacement with Cryogenic TR | E42: 11 | F42: NO | G42: Fuel cell | I42: 11-25hp | J42: 2 | K42: 6 | M42: 2 | N42: 2
A43: 2017 | E43: 12 | I43: Over 25hp | J43: 3 | K43: 7 | M43: 3 | N43: 3
A44: 2018 | E44: 13 | J44: 4 | K44: 8 | M44: 4 | N44: 4
A45: 2019 | E45: 14 | J45: 5 | K45: 9 | M45: 5 | N45: 5
A46: 2020 | E46: 15 | J46: 6 | K46: 10 | N46: 6
E47: 16 | J47: 7 | K47: 11 | N47: 7
E48: 17 | J48: 8 | K48: 12 | N48: 8
E49: 18 | J49: 9 | K49: 13 | N49: 9
E50: 19 | J50: 10 | K50: 14 | N50: 10
E51: 20 | J51: 11 | K51: 15 | N51: 11
E52: 21 | J52: 12 | N52: 12
E53: 22 | J53: 13 | N53: 13
E54: 23 | J54: 14 | N54: 14
E55: 24 | J55: 15 | N55: 15
E56: 25 | N56: 16
E57: 26 | N57: 17
E58: 27 | N58: 18
E59: 28 | N59: 19
E60: 29 | N60: 20
E61: 30 | N61: 21
E62: 31 | N62: 22
E63: 32 | N63: 23
E64: 33 | N64: 24
E65: 34 | N65: 25
E66: 35 | N66: 26
E67: 36 | N67: 27
E68: 37 | N68: 28
E69: 38 | N69: 29
E70: 39 | N70: 30
E71: 40 | N71: 31
E72: 41 | N72: 32
E73: 42 | N73: 33
E74: 43 | N74: 34
E75: 44 | N75: 35
E76: 45 | N76: 36
E77: 46 | N77: 37
E78: 47 | N78: 38
E79: 48 | N79: 39
E80: 49 | N80: 40
E81: 50 | N81: 41
E82: 51 | N82: 42
E83: 52 | N83: 43
E84: 53 | N84: 44
E85: 54 | N85: 45
E86: 55 | N86: 46
E87: 56 | N87: 47
E88: 57 | N88: 48
E89: 58 | N89: 49
E90: 59 | N90: 50
E91: 60 | N91: 51
E92: 61 | N92: 52
E93: 62 | N93: 53
E94: 63 | N94: 54
E95: 64 | N95: 55
E96: 65 | N96: 56
E97: 66 | N97: 57
E98: 67 | N98: 58
E99: 68 | N99: 59
E100: 69 | N100: 60
E101: 70 | N101: 61
E102: 71 | N102: 62
E103: 72 | N103: 63
E104: 73 | N104: 64
E105: 74 | N105: 65
E106: 75 | N106: 66
E107: 76 | N107: 67
E108: 77 | N108: 68
E109: 78 | N109: 69
E110: 79 | N110: 70
E111: 80 | N111: 71
E112: 81 | N112: 72
E113: 82 | N113: 73
E114: 83 | N114: 74
E115: 84 | N115: 75
E116: 85 | N116: 76
E117: 86 | N117: 77
E118: 87 | N118: 78
E119: 88 | N119: 79
E120: 89 | N120: 80
E121: 90 | N121: 81
E122: 91 | N122: 82
E123: 92 | N123: 83
E124: 93 | N124: 84
E125: 94 | N125: 85
E126: 95 | N126: 86
E127: 96 | N127: 87
E128: 97 | N128: 88
E129: 98 | N129: 89
E130: 99 | N130: 90
N131: 91
N132: 92
N133: 93
N134: 94
N135: 95
N136: 96
N137: 97
N138: 98
N139: 99

Sheet Directions (hidden)

Sheet user_input_equipment
A1: Replace with Zero Emission TR - User Input Data
A3: PROJECT INFORMATION | F3: EXISTING EQUIPMENT | I3: PROPOSED NEW PROJECT | J3: PROJECT COST | M3: ENTRY COMPLETE?
A5: Company name | B5: Project ID | C5: Calendar Year when operational | D5: Type of project | E5: Applying for Prop 1B infrastructure funding? | F5: Existing TRU | I5: New Fuel Type | J5: Total Project Cost | K5: Program Funds Requested | L5: Other State Funds
F7: Existing TRU Horsepower | G7: Average on-road operation (hours/day) | H7: Average stationary operation (hours/day)
J8: ($) | K8: ($) | L8: ($)
M9: =IF(AND(A9<>"",B9<>"",C9<>"",D9<>"",E9<>"",F9<>"",((G9+H9)>0),I9<>"",K9<>""),"YES","NO") -> NO
M10: =IF(AND(A10<>"",B10<>"",C10<>"",D10<>"",E10<>"",F10<>"",((G10+H10)>0),I10<>"",K10<>""),"YES","NO") -> NO
M11: NO
M12: NO
M13: NO
M14: NO
M15: NO
M16: NO
M17: NO
M18: NO
M19: NO
M20: NO
M21: NO
M22: NO
M23: NO
M24: NO
M25: NO
M26: NO
M27: NO
M28: NO
M29: NO
M30: NO
M31: NO
M32: NO
M33: NO
M34: NO
M35: NO
M36: NO
M37: NO
M38: NO
M39: NO
M40: NO
M41: NO
M42: NO
M43: NO
M44: NO
M45: NO
M46: NO
M47: NO
M48: NO
M49: NO
M50: NO
M51: NO
M52: NO
M53: NO
M54: NO
M55: NO
M56: NO
M57: NO
M58: NO
M59: NO
M60: NO
M61: NO
M62: NO
M63: NO
M64: NO
M65: NO
M66: NO
M67: NO
M68: NO
M69: NO
M70: NO
M71: NO
M72: NO
M73: NO
M74: =IF(AND(A74<>"",B74<>"",C74<>"",D74<>"",E74<>"",F74<>"",((G74+H74)>0),I74<>"",K74<>""),"YES","NO") -> NO
M75: NO
M76: NO
M77: NO
M78: NO
M79: NO
M80: NO
M81: NO
M82: NO
M83: NO
M84: NO
M85: NO
M86: NO
M87: NO
M88: NO
M89: NO
M90: NO
M91: NO
M92: NO
M93: NO
M94: NO
M95: NO
M96: NO
M97: NO
M98: NO
M99: NO
M100: NO
M101: NO
M102: NO
M103: NO
M104: NO
M105: NO
M106: NO
M107: NO
M108: NO
M109: NO
M110: NO
M111: NO
M112: NO
M113: NO
M114: NO
M115: NO
M116: NO
M117: NO
M118: NO
M119: NO
M120: NO
M121: NO
M122: NO
M123: NO
M124: NO
M125: NO
M126: NO
M127: NO
M128: NO
M129: NO
M130: NO
M131: NO
M132: NO
M133: NO
M134: NO
M135: NO
M136: NO
M137: NO
M138: =IF(AND(A138<>"",B138<>"",C138<>"",D138<>"",E138<>"",F138<>"",((G138+H138)>0),I138<>"",K138<>""),"YES","NO") -> NO
M139: NO
M140: NO
M141: NO
M142: NO
M143: NO
M144: NO
M145: NO
M146: NO
M147: NO
M148: NO
M149: NO
M150: NO
M151: NO
M152: NO
M153: NO
M154: NO
M155: NO
M156: NO
M157: NO
M158: NO
M159: NO
M160: NO
M161: NO
M162: NO
M163: NO
M164: NO
M165: NO
M166: NO
M167: NO
M168: NO
M169: NO
M170: NO
M171: NO
M172: NO
M173: NO
M174: NO
M175: NO
M176: NO
M177: NO
M178: NO
M179: NO
M180: NO
M181: NO
M182: NO
M183: NO
M184: NO
M185: NO
M186: NO
M187: NO
M188: NO
M189: NO
M190: NO
M191: NO
M192: NO
M193: NO
M194: NO
M195: NO
M196: NO
M197: NO
M198: NO
M199: NO
M200: NO
M201: NO
M202: =IF(AND(A202<>"",B202<>"",C202<>"",D202<>"",E202<>"",F202<>"",((G202+H202)>0),I202<>"",K202<>""),"YES","NO") -> NO
M203: NO
... 922 more rows

Sheet user_input_infrastructure
A1: Infrastructure and Equipment - User Input Data
A3: PROJECT INFORMATION | E3: EXISTING CONDITIONS | I3: PROPOSED NEW PROJECT INFORMATION | M3: PROJECT COST | P3: ENTRY COMPLETE?
A5: Company name | B5: Project ID | C5: Calendar Year when operational | D5: Type of project | E5: Number of Existing Loading Docks | F5: Average daily time a TRU operates while parked at loading dock (hours) | G5: Number of Existing Parking Spaces | H5: Average daily time a TRU operates while parked at parking spot (hours) | I5: Electric Infrastructure | K5: Cryogenic Infrastructure | M5: Total Project Cost ($) | N5: Program Funds Requested ($) | O5: Other State Funds ($)
I7: Number of electric plugs to be installed at loading docks | J7: Number of electric plugs to be installed at parking spots | K7: Number of diesel TRUs to be replaced with cryogenic system at loading docks | L7: Number of diesel TRUs to be replaced with cryogenic system at parking spots
A9: a | B9: 1 | C9: 2016 | M9: 180000 | N9: 90000 | O9: 0 | P9: =IF(AND(A9<>"",B9<>"",C9<>"",D9<>"",(E9+G9)>0,(F9+H9)>0,(I9+J9+K9+L9)>0,N9<>""),"YES","NO") -> NO
P10: =IF(AND(A10<>"",B10<>"",C10<>"",D10<>"",(E10+G10)>0,(F10+H10)>0,(I10+J10+K10+L10)>0,N10<>""),"YES","NO") -> NO
P11: NO
P12: NO
P13: NO
P14: NO
P15: NO
P16: NO
P17: NO
P18: NO
P19: NO
P20: NO
P21: NO
P22: NO
P23: NO
P24: NO
P25: NO
P26: NO
P27: NO
P28: NO
P29: NO
P30: NO
P31: NO
P32: NO
P33: NO
P34: NO
P35: NO
P36: NO
P37: NO
P38: NO
P39: NO
P40: NO
P41: NO
P42: NO
P43: NO
P44: NO
P45: NO
P46: NO
P47: NO
P48: NO
P49: NO
P50: NO
P51: NO
P52: NO
P53: NO
P54: NO
P55: NO
P56: NO
P57: NO
P58: NO
P59: NO
P60: NO
P61: NO
P62: NO
P63: NO
P64: NO
P65: NO
P66: NO
P67: NO
P68: NO
P69: NO
P70: NO
P71: NO
P72: NO
P73: NO
P74: =IF(AND(A74<>"",B74<>"",C74<>"",D74<>"",(E74+G74)>0,(F74+H74)>0,(I74+J74+K74+L74)>0,N74<>""),"YES","NO") -> NO
P75: NO
P76: NO
P77: NO
P78: NO
P79: NO
P80: NO
P81: NO
P82: NO
P83: NO
P84: NO
P85: NO
P86: NO
P87: NO
P88: NO
P89: NO
P90: NO
P91: NO
P92: NO
P93: NO
P94: NO
P95: NO
P96: NO
P97: NO
P98: NO
P99: NO
P100: NO
P101: NO
P102: NO
P103: NO
P104: NO
P105: NO
P106: NO
P107: NO
P108: NO
P109: NO
P110: NO
P111: NO
P112: NO
P113: NO
P114: NO
P115: NO
P116: NO
P117: NO
P118: NO
P119: NO
P120: NO
P121: NO
P122: NO
P123: NO
P124: NO
P125: NO
P126: NO
P127: NO
P128: NO
P129: NO
P130: NO
P131: NO
P132: NO
P133: NO
P134: NO
P135: NO
P136: NO
P137: NO
P138: =IF(AND(A138<>"",B138<>"",C138<>"",D138<>"",(E138+G138)>0,(F138+H138)>0,(I138+J138+K138+L138)>0,N138<>""),"YES","NO") -> NO
P139: NO
P140: NO
P141: NO
P142: NO
P143: NO
P144: NO
P145: NO
P146: NO
P147: NO
P148: NO
P149: NO
P150: NO
P151: NO
P152: NO
P153: NO
P154: NO
P155: NO
P156: NO
P157: NO
P158: NO
P159: NO
P160: NO
P161: NO
P162: NO
P163: NO
P164: NO
P165: NO
P166: NO
P167: NO
P168: NO
P169: NO
P170: NO
P171: NO
P172: NO
P173: NO
P174: NO
P175: NO
P176: NO
P177: NO
P178: NO
P179: NO
P180: NO
P181: NO
P182: NO
P183: NO
P184: NO
P185: NO
P186: NO
P187: NO
P188: NO
P189: NO
P190: NO
P191: NO
P192: NO
P193: NO
P194: NO
P195: NO
P196: NO
P197: NO
P198: NO
P199: NO
P200: NO
P201: NO
P202: =IF(AND(A202<>"",B202<>"",C202<>"",D202<>"",(E202+G202)>0,(F202+H202)>0,(I202+J202+K202+L202)>0,N202<>""),"YES","NO") -> NO
P203: NO
P204: NO
... 921 more rows

Sheet equipment_calcs (hidden)
A1: Equipment Calculations
A3: PROJECT INFORMATION | F3: EXISTING EQUIPMENT | I3: PROPOSED NEW PROJECT | J3: PROJECT COST | M3: EMISSION REDUCTIONS | Y3: PROJECT BENEFITS
A5: Company name | B5: Project ID | C5: Calendar Year when operational | D5: Type of project | E5: Applying for infrastructure funding? | F5: TRU 1 | I5: New Fuel Type | J5: Total Project Cost | K5: Program Funds Requested | L5: Other State Funds | M5: NOx (g/day) | R5: PM2.5 (g/day) | W5: Total NOx (lbs) | X5: Total PM2.5 (lbs) | Y5: Total NOx (lbs) | Z5: Total PM2.5 (lbs) | AA5: Weighted Emission Reductions (PM*20)+NOx | AB5: Cost Effectiveness (lb/State $)
F7: Existing TRU Horsepower | G7: Average on-road operation (hours/day) | H7: Average stationary operation (hours/day)
J8: ($) | K8: ($) | L8: ($) | M8: Year 1 | N8: Year 2 | O8: Year 3 | P8: Year 4 | Q8: Year 5 | R8: Year 1 | S8: Year 2 | T8: Year 3 | U8: Year 4 | V8: Year 5
A9: =IF(user_input_equipment!A9<>"",user_input_equipment!A9,"") ->  | B9: =IF(user_input_equipment!B9<>"",user_input_equipment!B9,"") ->  | C9: =IF(user_input_equipment!C9<>"",user_input_equipment!C9,"") ->  | D9: =IF(user_input_equipment!D9<>"",user_input_equipment!D9,"") ->  | E9: =IF(user_input_equipment!E9<>"",user_input_equipment!E9,"") ->  | F9: =IF(user_input_equipment!F9<>"",user_input_equipment!F9,"") ->  | G9: =IF(user_input_equipment!G9<>"",user_input_equipment!G9,"") ->  | H9: =IF(user_input_equipment!H9<>"",user_input_equipment!H9,"") ->  | I9: =IF(user_input_equipment!I9<>"",user_input_equipment!I9,"") ->  | J9: =IF(user_input_equipment!J9<>"",user_input_equipment!J9,"") ->  | K9: =IF(user_input_equipment!K9<>"",user_input_equipment!K9,"") ->  | L9: =IF(user_input_equipment!L9<>"",user_input_equipment!L9,"") ->  | M9: =IF($E9="YES",((IF($F9="Under 11hp",VLOOKUP($C9,emission_factors!$L$5:$N$18,2,),IF($F9="11-25hp",VLOOKUP($C9,emission_factors!$L$22:$N$33,2,),IF($F9="Over 25hp",VLOOKUP($C9,emission_factors!$L$36:$N$48,2,)))))*($G9)),((IF($F9="Under 11hp",VLOOKUP($C9,emission_factors!$L$5:$N$18,2,),IF($F9="11-25hp",VLOOKUP($C9,emission_factors!$L$22:$N$33,2,),IF($F9="Over 25hp",VLOOKUP($C9,emission_factors!$L$36:$N$48,2,)))))*($G9+$H9))) ->  | N9: =IF($E9="YES",((IF($F9="Under 11hp",VLOOKUP($C9+1,emission_factors!$L$5:$N$18,2,),IF($F9="11-25hp",VLOOKUP($C9+1,emission_factors!$L$22:$N$33,2,),IF($F9="Over 25hp",VLOOKUP($C9+1,emission_factors!$L$36:$N$48,2,)))))*($G9)),((IF($F9="Under 11hp",VLOOKUP($C9+1,emission_factors!$L$5:$N$18,2,),IF($F9="11-25hp",VLOOKUP($C9+1,emission_factors!$L$22:$N$33,2,),IF($F9="Over 25hp",VLOOKUP($C9+1,emission_factors!$L$36:$N$48,2,)))))*($G9+$H9))) ->  | O9: =IF($E9="YES",((IF($F9="Under 11hp",VLOOKUP($C9+2,emission_factors!$L$5:$N$18,2,),IF($F9="11-25hp",VLOOKUP($C9+2,emission_factors!$L$22:$N$33,2,),IF($F9="Over 25hp",VLOOKUP($C9+2,emission_factors!$L$36:$N$48,2,)))))*($G9)),((IF($F9="Under 11hp",VLOOKUP($C9+2,emission_factors!$L$5:$N$18,2,),IF($F9="11-25hp",VLOOKUP($C9+2,emission_factors!$L$22:$N$33,2,),IF($F9="Over 25hp",VLOOKUP($C9+2,emission_factors!$L$36:$N$48,2,)))))*($G9+$H9))) ->  | P9: =IF($E9="YES",((IF($F9="Under 11hp",VLOOKUP($C9+3,emission_factors!$L$5:$N$18,2,),IF($F9="11-25hp",VLOOKUP($C9+3,emission_factors!$L$22:$N$33,2,),IF($F9="Over 25hp",VLOOKUP($C9+3,emission_factors!$L$36:$N$48,2,)))))*($G9)),((IF($F9="Under 11hp",VLOOKUP($C9+3,emission_factors!$L$5:$N$18,2,),IF($F9="11-25hp",VLOOKUP($C9+3,emission_factors!$L$22:$N$33,2,),IF($F9="Over 25hp",VLOOKUP($C9+3,emission_factors!$L$36:$N$48,2,)))))*($G9+$H9))) ->  | Q9: =IF($E9="YES",((IF($F9="Under 11hp",VLOOKUP($C9+4,emission_factors!$L$5:$N$18,2,),IF($F9="11-25hp",VLOOKUP($C9+4,emission_factors!$L$22:$N$33,2,),IF($F9="Over 25hp",VLOOKUP($C9+4,emission_factors!$L$36:$N$48,2,)))))*($G9)),((IF($F9="Under 11hp",VLOOKUP($C9+4,emission_factors!$L$5:$N$18,2,),IF($F9="11-25hp",VLOOKUP($C9+4,emission_factors!$L$22:$N$33,2,),IF($F9="Over 25hp",VLOOKUP($C9+4,emission_factors!$L$36:$N$48,2,)))))*($G9+$H9))) ->  | R9: =IF($E9="YES",((IF($F9="Under 11hp",VLOOKUP($C9,emission_factors!$L$5:$N$18,3,),IF($F9="11-25hp",VLOOKUP($C9,emission_factors!$L$22:$N$33,3,),IF($F9="Over 25hp",VLOOKUP($C9,emission_factors!$L$36:$N$48,3,)))))*($G9)),((IF($F9="Under 11hp",VLOOKUP($C9,emission_factors!$L$5:$N$18,3,),IF($F9="11-25hp",VLOOKUP($C9,emission_factors!$L$22:$N$33,3,),IF($F9="Over 25hp",VLOOKUP($C9,emission_factors!$L$36:$N$48,3,)))))*($G9+$H9))) ->  | S9: =IF($E9="YES",((IF($F9="Under 11hp",VLOOKUP($C9+1,emission_factors!$L$5:$N$18,3,),IF($F9="11-25hp",VLOOKUP($C9+1,emission_factors!$L$22:$N$33,3,),IF($F9="Over 25hp",VLOOKUP($C9+1,emission_factors!$L$36:$N$48,3,)))))*($G9)),((IF($F9="Under 11hp",VLOOKUP($C9+1,emission_factors!$L$5:$N$18,3,),IF($F9="11-25hp",VLOOKUP($C9+1,emission_factors!$L$22:$N$33,3,),IF($F9="Over 25hp",VLOOKUP($C9+1,emission_factors!$L$36:$N$48,3,)))))*($G9+$H9))) ->  | T9: =IF($E9="YES",((IF($F9="Under 11hp",VLOOKUP($C9+2,emission_factors!$L$5:$N$18,3,),IF($F9="11-25hp",VLOOKUP($C9+2,emission_factors!$L$22:$N$33,3,),IF($F9="Over 25hp",VLOOKUP($C9+2,emission_factors!$L$36:$N$48,3,)))))*($G9)),((IF($F9="Under 11hp",VLOOKUP($C9+2,emission_factors!$L$5:$N$18,3,),IF($F9="11-25hp",VLOOKUP($C9+2,emission_factors!$L$22:$N$33,3,),IF($F9="Over 25hp",VLOOKUP($C9+2,emission_factors!$L$36:$N$48,3,)))))*($G9+$H9))) ->  | U9: =IF($E9="YES",((IF($F9="Under 11hp",VLOOKUP($C9+3,emission_factors!$L$5:$N$18,3,),IF($F9="11-25hp",VLOOKUP($C9+3,emission_factors!$L$22:$N$33,3,),IF($F9="Over 25hp",VLOOKUP($C9+3,emission_factors!$L$36:$N$48,3,)))))*($G9)),((IF($F9="Under 11hp",VLOOKUP($C9+3,emission_factors!$L$5:$N$18,3,),IF($F9="11-25hp",VLOOKUP($C9+3,emission_factors!$L$22:$N$33,3,),IF($F9="Over 25hp",VLOOKUP($C9+3,emission_factors!$L$36:$N$48,3,)))))*($G9+$H9))) ->  | V9: =IF($E9="YES",((IF($F9="Under 11hp",VLOOKUP($C9+4,emission_factors!$L$5:$N$18,3,),IF($F9="11-25hp",VLOOKUP($C9+4,emission_factors!$L$22:$N$33,3,),IF($F9="Over 25hp",VLOOKUP($C9+4,emission_factors!$L$36:$N$48,3,)))))*($G9)),((IF($F9="Under 11hp",VLOOKUP($C9+4,emission_factors!$L$5:$N$18,3,),IF($F9="11-25hp",VLOOKUP($C9+4,emission_factors!$L$22:$N$33,3,),IF($F9="Over 25hp",VLOOKUP($C9+4,emission_factors!$L$36:$N$48,3,)))))*($G9+$H9))) ->  | W9: =IF(ISERROR(SUM(M9:Q9)*(1/454)*365),"0",(SUM(M9:Q9)*(1/454)*365)) -> 0 | X9: =IF(ISERROR(SUM(R9:V9)*(1/454)*365),"0",(SUM(R9:V9)*(1/454)*365)) -> 0 | Y9: =(W9) -> 0 | Z9: =(X9) -> 0 | AA9: =(Z9*20)+Y9 -> 0 | AB9: =IF(ISERROR(AA9/K9),"0",AA9/K9) -> 0
A10: =IF(user_input_equipment!A10<>"",user_input_equipment!A10,"") ->  | B10: =IF(user_input_equipment!B10<>"",user_input_equipment!B10,"") ->  | C10: =IF(user_input_equipment!C10<>"",user_input_equipment!C10,"") ->  | D10: =IF(user_input_equipment!D10<>"",user_input_equipment!D10,"") ->  | E10: =IF(user_input_equipment!E10<>"",user_input_equipment!E10,"") ->  | F10: =IF(user_input_equipment!F10<>"",user_input_equipment!F10,"") ->  | G10: =IF(user_input_equipment!G10<>"",user_input_equipment!G10,"") ->  | H10: =IF(user_input_equipment!H10<>"",user_input_equipment!H10,"") ->  | I10: =IF(user_input_equipment!I10<>"",user_input_equipment!I10,"") ->  | J10: =IF(user_input_equipment!J10<>"",user_input_equipment!J10,"") ->  | K10: =IF(user_input_equipment!K10<>"",user_input_equipment!K10,"") ->  | L10: =IF(user_input_equipment!L10<>"",user_input_equipment!L10,"") ->  | M10: =IF($E10="YES",((IF($F10="Under 11hp",VLOOKUP($C10,emission_factors!$L$5:$N$18,2,),IF($F10="11-25hp",VLOOKUP($C10,emission_factors!$L$22:$N$33,2,),IF($F10="Over 25hp",VLOOKUP($C10,emission_factors!$L$36:$N$48,2,)))))*($G10)),((IF($F10="Under 11hp",VLOOKUP($C10,emission_factors!$L$5:$N$18,2,),IF($F10="11-25hp",VLOOKUP($C10,emission_factors!$L$22:$N$33,2,),IF($F10="Over 25hp",VLOOKUP($C10,emission_factors!$L$36:$N$48,2,)))))*($G10+$H10))) ->  | N10: =IF($E10="YES",((IF($F10="Under 11hp",VLOOKUP($C10+1,emission_factors!$L$5:$N$18,2,),IF($F10="11-25hp",VLOOKUP($C10+1,emission_factors!$L$22:$N$33,2,),IF($F10="Over 25hp",VLOOKUP($C10+1,emission_factors!$L$36:$N$48,2,)))))*($G10)),((IF($F10="Under 11hp",VLOOKUP($C10+1,emission_factors!$L$5:$N$18,2,),IF($F10="11-25hp",VLOOKUP($C10+1,emission_factors!$L$22:$N$33,2,),IF($F10="Over 25hp",VLOOKUP($C10+1,emission_factors!$L$36:$N$48,2,)))))*($G10+$H10))) ->  | O10: =IF($E10="YES",((IF($F10="Under 11hp",VLOOKUP($C10+2,emission_factors!$L$5:$N$18,2,),IF($F10="11-25hp",VLOOKUP($C10+2,emission_factors!$L$22:$N$33,2,),IF($F10="Over 25hp",VLOOKUP($C10+2,emission_factors!$L$36:$N$48,2,)))))*($G10)),((IF($F10="Under 11hp",VLOOKUP($C10+2,emission_factors!$L$5:$N$18,2,),IF($F10="11-25hp",VLOOKUP($C10+2,emission_factors!$L$22:$N$33,2,),IF($F10="Over 25hp",VLOOKUP($C10+2,emission_factors!$L$36:$N$48,2,)))))*($G10+$H10))) ->  | P10: =IF($E10="YES",((IF($F10="Under 11hp",VLOOKUP($C10+3,emission_factors!$L$5:$N$18,2,),IF($F10="11-25hp",VLOOKUP($C10+3,emission_factors!$L$22:$N$33,2,),IF($F10="Over 25hp",VLOOKUP($C10+3,emission_factors!$L$36:$N$48,2,)))))*($G10)),((IF($F10="Under 11hp",VLOOKUP($C10+3,emission_factors!$L$5:$N$18,2,),IF($F10="11-25hp",VLOOKUP($C10+3,emission_factors!$L$22:$N$33,2,),IF($F10="Over 25hp",VLOOKUP($C10+3,emission_factors!$L$36:$N$48,2,)))))*($G10+$H10))) ->  | Q10: =IF($E10="YES",((IF($F10="Under 11hp",VLOOKUP($C10+4,emission_factors!$L$5:$N$18,2,),IF($F10="11-25hp",VLOOKUP($C10+4,emission_factors!$L$22:$N$33,2,),IF($F10="Over 25hp",VLOOKUP($C10+4,emission_factors!$L$36:$N$48,2,)))))*($G10)),((IF($F10="Under 11hp",VLOOKUP($C10+4,emission_factors!$L$5:$N$18,2,),IF($F10="11-25hp",VLOOKUP($C10+4,emission_factors!$L$22:$N$33,2,),IF($F10="Over 25hp",VLOOKUP($C10+4,emission_factors!$L$36:$N$48,2,)))))*($G10+$H10))) ->  | R10: =IF($E10="YES",((IF($F10="Under 11hp",VLOOKUP($C10,emission_factors!$L$5:$N$18,3,),IF($F10="11-25hp",VLOOKUP($C10,emission_factors!$L$22:$N$33,3,),IF($F10="Over 25hp",VLOOKUP($C10,emission_factors!$L$36:$N$48,3,)))))*($G10)),((IF($F10="Under 11hp",VLOOKUP($C10,emission_factors!$L$5:$N$18,3,),IF($F10="11-25hp",VLOOKUP($C10,emission_factors!$L$22:$N$33,3,),IF($F10="Over 25hp",VLOOKUP($C10,emission_factors!$L$36:$N$48,3,)))))*($G10+$H10))) ->  | S10: =IF($E10="YES",((IF($F10="Under 11hp",VLOOKUP($C10+1,emission_factors!$L$5:$N$18,3,),IF($F10="11-25hp",VLOOKUP($C10+1,emission_factors!$L$22:$N$33,3,),IF($F10="Over 25hp",VLOOKUP($C10+1,emission_factors!$L$36:$N$48,3,)))))*($G10)),((IF($F10="Under 11hp",VLOOKUP($C10+1,emission_factors!$L$5:$N$18,3,),IF($F10="11-25hp",VLOOKUP($C10+1,emission_factors!$L$22:$N$33,3,),IF($F10="Over 25hp",VLOOKUP($C10+1,emission_factors!$L$36:$N$48,3,)))))*($G10+$H10))) ->  | T10: =IF($E10="YES",((IF($F10="Under 11hp",VLOOKUP($C10+2,emission_factors!$L$5:$N$18,3,),IF($F10="11-25hp",VLOOKUP($C10+2,emission_factors!$L$22:$N$33,3,),IF($F10="Over 25hp",VLOOKUP($C10+2,emission_factors!$L$36:$N$48,3,)))))*($G10)),((IF($F10="Under 11hp",VLOOKUP($C10+2,emission_factors!$L$5:$N$18,3,),IF($F10="11-25hp",VLOOKUP($C10+2,emission_factors!$L$22:$N$33,3,),IF($F10="Over 25hp",VLOOKUP($C10+2,emission_factors!$L$36:$N$48,3,)))))*($G10+$H10))) ->  | U10: =IF($E10="YES",((IF($F10="Under 11hp",VLOOKUP($C10+3,emission_factors!$L$5:$N$18,3,),IF($F10="11-25hp",VLOOKUP($C10+3,emission_factors!$L$22:$N$33,3,),IF($F10="Over 25hp",VLOOKUP($C10+3,emission_factors!$L$36:$N$48,3,)))))*($G10)),((IF($F10="Under 11hp",VLOOKUP($C10+3,emission_factors!$L$5:$N$18,3,),IF($F10="11-25hp",VLOOKUP($C10+3,emission_factors!$L$22:$N$33,3,),IF($F10="Over 25hp",VLOOKUP($C10+3,emission_factors!$L$36:$N$48,3,)))))*($G10+$H10))) ->  | V10: =IF($E10="YES",((IF($F10="Under 11hp",VLOOKUP($C10+4,emission_factors!$L$5:$N$18,3,),IF($F10="11-25hp",VLOOKUP($C10+4,emission_factors!$L$22:$N$33,3,),IF($F10="Over 25hp",VLOOKUP($C10+4,emission_factors!$L$36:$N$48,3,)))))*($G10)),((IF($F10="Under 11hp",VLOOKUP($C10+4,emission_factors!$L$5:$N$18,3,),IF($F10="11-25hp",VLOOKUP($C10+4,emission_factors!$L$22:$N$33,3,),IF($F10="Over 25hp",VLOOKUP($C10+4,emission_factors!$L$36:$N$48,3,)))))*($G10+$H10))) ->  | W10: =IF(ISERROR(SUM(M10:Q10)*(1/454)*365),"0",(SUM(M10:Q10)*(1/454)*365)) -> 0 | X10: =IF(ISERROR(SUM(R10:V10)*(1/454)*365),"0",(SUM(R10:V10)*(1/454)*365)) -> 0 | Y10: =(W10) -> 0 | Z10: =(X10) -> 0 | AA10: =(Z10*20)+Y10 -> 0 | AB10: 0
A11: =IF(user_input_equipment!A11<>"",user_input_equipment!A11,"") ->  | B11: =IF(user_input_equipment!B11<>"",user_input_equipment!B11,"") ->  | C11: =IF(user_input_equipment!C11<>"",user_input_equipment!C11,"") ->  | D11: =IF(user_input_equipment!D11<>"",user_input_equipment!D11,"") ->  | E11: =IF(user_input_equipment!E11<>"",user_input_equipment!E11,"") ->  | F11: =IF(user_input_equipment!F11<>"",user_input_equipment!F11,"") ->  | G11: =IF(user_input_equipment!G11<>"",user_input_equipment!G11,"") ->  | H11: =IF(user_input_equipment!H11<>"",user_input_equipment!H11,"") ->  | I11: =IF(user_input_equipment!I11<>"",user_input_equipment!I11,"") ->  | J11: =IF(user_input_equipment!J11<>"",user_input_equipment!J11,"") ->  | K11: =IF(user_input_equipment!K11<>"",user_input_equipment!K11,"") ->  | L11: =IF(user_input_equipment!L11<>"",user_input_equipment!L11,"") ->  | M11: =IF($E11="YES",((IF($F11="Under 11hp",VLOOKUP($C11,emission_factors!$L$5:$N$18,2,),IF($F11="11-25hp",VLOOKUP($C11,emission_factors!$L$22:$N$33,2,),IF($F11="Over 25hp",VLOOKUP($C11,emission_factors!$L$36:$N$48,2,)))))*($G11)),((IF($F11="Under 11hp",VLOOKUP($C11,emission_factors!$L$5:$N$18,2,),IF($F11="11-25hp",VLOOKUP($C11,emission_factors!$L$22:$N$33,2,),IF($F11="Over 25hp",VLOOKUP($C11,emission_factors!$L$36:$N$48,2,)))))*($G11+$H11))) ->  | N11: =IF($E11="YES",((IF($F11="Under 11hp",VLOOKUP($C11+1,emission_factors!$L$5:$N$18,2,),IF($F11="11-25hp",VLOOKUP($C11+1,emission_factors!$L$22:$N$33,2,),IF($F11="Over 25hp",VLOOKUP($C11+1,emission_factors!$L$36:$N$48,2,)))))*($G11)),((IF($F11="Under 11hp",VLOOKUP($C11+1,emission_factors!$L$5:$N$18,2,),IF($F11="11-25hp",VLOOKUP($C11+1,emission_factors!$L$22:$N$33,2,),IF($F11="Over 25hp",VLOOKUP($C11+1,emission_factors!$L$36:$N$48,2,)))))*($G11+$H11))) ->  | O11: =IF($E11="YES",((IF($F11="Under 11hp",VLOOKUP($C11+2,emission_factors!$L$5:$N$18,2,),IF($F11="11-25hp",VLOOKUP($C11+2,emission_factors!$L$22:$N$33,2,),IF($F11="Over 25hp",VLOOKUP($C11+2,emission_factors!$L$36:$N$48,2,)))))*($G11)),((IF($F11="Under 11hp",VLOOKUP($C11+2,emission_factors!$L$5:$N$18,2,),IF($F11="11-25hp",VLOOKUP($C11+2,emission_factors!$L$22:$N$33,2,),IF($F11="Over 25hp",VLOOKUP($C11+2,emission_factors!$L$36:$N$48,2,)))))*($G11+$H11))) ->  | P11: =IF($E11="YES",((IF($F11="Under 11hp",VLOOKUP($C11+3,emission_factors!$L$5:$N$18,2,),IF($F11="11-25hp",VLOOKUP($C11+3,emission_factors!$L$22:$N$33,2,),IF($F11="Over 25hp",VLOOKUP($C11+3,emission_factors!$L$36:$N$48,2,)))))*($G11)),((IF($F11="Under 11hp",VLOOKUP($C11+3,emission_factors!$L$5:$N$18,2,),IF($F11="11-25hp",VLOOKUP($C11+3,emission_factors!$L$22:$N$33,2,),IF($F11="Over 25hp",VLOOKUP($C11+3,emission_factors!$L$36:$N$48,2,)))))*($G11+$H11))) ->  | Q11: =IF($E11="YES",((IF($F11="Under 11hp",VLOOKUP($C11+4,emission_factors!$L$5:$N$18,2,),IF($F11="11-25hp",VLOOKUP($C11+4,emission_factors!$L$22:$N$33,2,),IF($F11="Over 25hp",VLOOKUP($C11+4,emission_factors!$L$36:$N$48,2,)))))*($G11)),((IF($F11="Under 11hp",VLOOKUP($C11+4,emission_factors!$L$5:$N$18,2,),IF($F11="11-25hp",VLOOKUP($C11+4,emission_factors!$L$22:$N$33,2,),IF($F11="Over 25hp",VLOOKUP($C11+4,emission_factors!$L$36:$N$48,2,)))))*($G11+$H11))) ->  | R11: =IF($E11="YES",((IF($F11="Under 11hp",VLOOKUP($C11,emission_factors!$L$5:$N$18,3,),IF($F11="11-25hp",VLOOKUP($C11,emission_factors!$L$22:$N$33,3,),IF($F11="Over 25hp",VLOOKUP($C11,emission_factors!$L$36:$N$48,3,)))))*($G11)),((IF($F11="Under 11hp",VLOOKUP($C11,emission_factors!$L$5:$N$18,3,),IF($F11="11-25hp",VLOOKUP($C11,emission_factors!$L$22:$N$33,3,),IF($F11="Over 25hp",VLOOKUP($C11,emission_factors!$L$36:$N$48,3,)))))*($G11+$H11))) ->  | S11: =IF($E11="YES",((IF($F11="Under 11hp",VLOOKUP($C11+1,emission_factors!$L$5:$N$18,3,),IF($F11="11-25hp",VLOOKUP($C11+1,emission_factors!$L$22:$N$33,3,),IF($F11="Over 25hp",VLOOKUP($C11+1,emission_factors!$L$36:$N$48,3,)))))*($G11)),((IF($F11="Under 11hp",VLOOKUP($C11+1,emission_factors!$L$5:$N$18,3,),IF($F11="11-25hp",VLOOKUP($C11+1,emission_factors!$L$22:$N$33,3,),IF($F11="Over 25hp",VLOOKUP($C11+1,emission_factors!$L$36:$N$48,3,)))))*($G11+$H11))) ->  | T11: =IF($E11="YES",((IF($F11="Under 11hp",VLOOKUP($C11+2,emission_factors!$L$5:$N$18,3,),IF($F11="11-25hp",VLOOKUP($C11+2,emission_factors!$L$22:$N$33,3,),IF($F11="Over 25hp",VLOOKUP($C11+2,emission_factors!$L$36:$N$48,3,)))))*($G11)),((IF($F11="Under 11hp",VLOOKUP($C11+2,emission_factors!$L$5:$N$18,3,),IF($F11="11-25hp",VLOOKUP($C11+2,emission_factors!$L$22:$N$33,3,),IF($F11="Over 25hp",VLOOKUP($C11+2,emission_factors!$L$36:$N$48,3,)))))*($G11+$H11))) ->  | U11: =IF($E11="YES",((IF($F11="Under 11hp",VLOOKUP($C11+3,emission_factors!$L$5:$N$18,3,),IF($F11="11-25hp",VLOOKUP($C11+3,emission_factors!$L$22:$N$33,3,),IF($F11="Over 25hp",VLOOKUP($C11+3,emission_factors!$L$36:$N$48,3,)))))*($G11)),((IF($F11="Under 11hp",VLOOKUP($C11+3,emission_factors!$L$5:$N$18,3,),IF($F11="11-25hp",VLOOKUP($C11+3,emission_factors!$L$22:$N$33,3,),IF($F11="Over 25hp",VLOOKUP($C11+3,emission_factors!$L$36:$N$48,3,)))))*($G11+$H11))) ->  | V11: =IF($E11="YES",((IF($F11="Under 11hp",VLOOKUP($C11+4,emission_factors!$L$5:$N$18,3,),IF($F11="11-25hp",VLOOKUP($C11+4,emission_factors!$L$22:$N$33,3,),IF($F11="Over 25hp",VLOOKUP($C11+4,emission_factors!$L$36:$N$48,3,)))))*($G11)),((IF($F11="Under 11hp",VLOOKUP($C11+4,emission_factors!$L$5:$N$18,3,),IF($F11="11-25hp",VLOOKUP($C11+4,emission_factors!$L$22:$N$33,3,),IF($F11="Over 25hp",VLOOKUP($C11+4,emission_factors!$L$36:$N$48,3,)))))*($G11+$H11))) ->  | W11: 0 | X11: 0 | Y11: 0 | Z11: 0 | AA11: 0 | AB11: 0
A12: =IF(user_input_equipment!A12<>"",user_input_equipment!A12,"") ->  | B12: =IF(user_input_equipment!B12<>"",user_input_equipment!B12,"") ->  | C12: =IF(user_input_equipment!C12<>"",user_input_equipment!C12,"") ->  | D12: =IF(user_input_equipment!D12<>"",user_input_equipment!D12,"") ->  | E12: =IF(user_input_equipment!E12<>"",user_input_equipment!E12,"") ->  | F12: =IF(user_input_equipment!F12<>"",user_input_equipment!F12,"") ->  | G12: =IF(user_input_equipment!G12<>"",user_input_equipment!G12,"") ->  | H12: =IF(user_input_equipment!H12<>"",user_input_equipment!H12,"") ->  | I12: =IF(user_input_equipment!I12<>"",user_input_equipment!I12,"") ->  | J12: =IF(user_input_equipment!J12<>"",user_input_equipment!J12,"") ->  | K12: =IF(user_input_equipment!K12<>"",user_input_equipment!K12,"") ->  | L12: =IF(user_input_equipment!L12<>"",user_input_equipment!L12,"") ->  | M12: =IF($E12="YES",((IF($F12="Under 11hp",VLOOKUP($C12,emission_factors!$L$5:$N$18,2,),IF($F12="11-25hp",VLOOKUP($C12,emission_factors!$L$22:$N$33,2,),IF($F12="Over 25hp",VLOOKUP($C12,emission_factors!$L$36:$N$48,2,)))))*($G12)),((IF($F12="Under 11hp",VLOOKUP($C12,emission_factors!$L$5:$N$18,2,),IF($F12="11-25hp",VLOOKUP($C12,emission_factors!$L$22:$N$33,2,),IF($F12="Over 25hp",VLOOKUP($C12,emission_factors!$L$36:$N$48,2,)))))*($G12+$H12))) ->  | N12: =IF($E12="YES",((IF($F12="Under 11hp",VLOOKUP($C12+1,emission_factors!$L$5:$N$18,2,),IF($F12="11-25hp",VLOOKUP($C12+1,emission_factors!$L$22:$N$33,2,),IF($F12="Over 25hp",VLOOKUP($C12+1,emission_factors!$L$36:$N$48,2,)))))*($G12)),((IF($F12="Under 11hp",VLOOKUP($C12+1,emission_factors!$L$5:$N$18,2,),IF($F12="11-25hp",VLOOKUP($C12+1,emission_factors!$L$22:$N$33,2,),IF($F12="Over 25hp",VLOOKUP($C12+1,emission_factors!$L$36:$N$48,2,)))))*($G12+$H12))) ->  | O12: =IF($E12="YES",((IF($F12="Under 11hp",VLOOKUP($C12+2,emission_factors!$L$5:$N$18,2,),IF($F12="11-25hp",VLOOKUP($C12+2,emission_factors!$L$22:$N$33,2,),IF($F12="Over 25hp",VLOOKUP($C12+2,emission_factors!$L$36:$N$48,2,)))))*($G12)),((IF($F12="Under 11hp",VLOOKUP($C12+2,emission_factors!$L$5:$N$18,2,),IF($F12="11-25hp",VLOOKUP($C12+2,emission_factors!$L$22:$N$33,2,),IF($F12="Over 25hp",VLOOKUP($C12+2,emission_factors!$L$36:$N$48,2,)))))*($G12+$H12))) ->  | P12: =IF($E12="YES",((IF($F12="Under 11hp",VLOOKUP($C12+3,emission_factors!$L$5:$N$18,2,),IF($F12="11-25hp",VLOOKUP($C12+3,emission_factors!$L$22:$N$33,2,),IF($F12="Over 25hp",VLOOKUP($C12+3,emission_factors!$L$36:$N$48,2,)))))*($G12)),((IF($F12="Under 11hp",VLOOKUP($C12+3,emission_factors!$L$5:$N$18,2,),IF($F12="11-25hp",VLOOKUP($C12+3,emission_factors!$L$22:$N$33,2,),IF($F12="Over 25hp",VLOOKUP($C12+3,emission_factors!$L$36:$N$48,2,)))))*($G12+$H12))) ->  | Q12: =IF($E12="YES",((IF($F12="Under 11hp",VLOOKUP($C12+4,emission_factors!$L$5:$N$18,2,),IF($F12="11-25hp",VLOOKUP($C12+4,emission_factors!$L$22:$N$33,2,),IF($F12="Over 25hp",VLOOKUP($C12+4,emission_factors!$L$36:$N$48,2,)))))*($G12)),((IF($F12="Under 11hp",VLOOKUP($C12+4,emission_factors!$L$5:$N$18,2,),IF($F12="11-25hp",VLOOKUP($C12+4,emission_factors!$L$22:$N$33,2,),IF($F12="Over 25hp",VLOOKUP($C12+4,emission_factors!$L$36:$N$48,2,)))))*($G12+$H12))) ->  | R12: =IF($E12="YES",((IF($F12="Under 11hp",VLOOKUP($C12,emission_factors!$L$5:$N$18,3,),IF($F12="11-25hp",VLOOKUP($C12,emission_factors!$L$22:$N$33,3,),IF($F12="Over 25hp",VLOOKUP($C12,emission_factors!$L$36:$N$48,3,)))))*($G12)),((IF($F12="Under 11hp",VLOOKUP($C12,emission_factors!$L$5:$N$18,3,),IF($F12="11-25hp",VLOOKUP($C12,emission_factors!$L$22:$N$33,3,),IF($F12="Over 25hp",VLOOKUP($C12,emission_factors!$L$36:$N$48,3,)))))*($G12+$H12))) ->  | S12: =IF($E12="YES",((IF($F12="Under 11hp",VLOOKUP($C12+1,emission_factors!$L$5:$N$18,3,),IF($F12="11-25hp",VLOOKUP($C12+1,emission_factors!$L$22:$N$33,3,),IF($F12="Over 25hp",VLOOKUP($C12+1,emission_factors!$L$36:$N$48,3,)))))*($G12)),((IF($F12="Under 11hp",VLOOKUP($C12+1,emission_factors!$L$5:$N$18,3,),IF($F12="11-25hp",VLOOKUP($C12+1,emission_factors!$L$22:$N$33,3,),IF($F12="Over 25hp",VLOOKUP($C12+1,emission_factors!$L$36:$N$48,3,)))))*($G12+$H12))) ->  | T12: =IF($E12="YES",((IF($F12="Under 11hp",VLOOKUP($C12+2,emission_factors!$L$5:$N$18,3,),IF($F12="11-25hp",VLOOKUP($C12+2,emission_factors!$L$22:$N$33,3,),IF($F12="Over 25hp",VLOOKUP($C12+2,emission_factors!$L$36:$N$48,3,)))))*($G12)),((IF($F12="Under 11hp",VLOOKUP($C12+2,emission_factors!$L$5:$N$18,3,),IF($F12="11-25hp",VLOOKUP($C12+2,emission_factors!$L$22:$N$33,3,),IF($F12="Over 25hp",VLOOKUP($C12+2,emission_factors!$L$36:$N$48,3,)))))*($G12+$H12))) ->  | U12: =IF($E12="YES",((IF($F12="Under 11hp",VLOOKUP($C12+3,emission_factors!$L$5:$N$18,3,),IF($F12="11-25hp",VLOOKUP($C12+3,emission_factors!$L$22:$N$33,3,),IF($F12="Over 25hp",VLOOKUP($C12+3,emission_factors!$L$36:$N$48,3,)))))*($G12)),((IF($F12="Under 11hp",VLOOKUP($C12+3,emission_factors!$L$5:$N$18,3,),IF($F12="11-25hp",VLOOKUP($C12+3,emission_factors!$L$22:$N$33,3,),IF($F12="Over 25hp",VLOOKUP($C12+3,emission_factors!$L$36:$N$48,3,)))))*($G12+$H12))) ->  | V12: =IF($E12="YES",((IF($F12="Under 11hp",VLOOKUP($C12+4,emission_factors!$L$5:$N$18,3,),IF($F12="11-25hp",VLOOKUP($C12+4,emission_factors!$L$22:$N$33,3,),IF($F12="Over 25hp",VLOOKUP($C12+4,emission_factors!$L$36:$N$48,3,)))))*($G12)),((IF($F12="Under 11hp",VLOOKUP($C12+4,emission_factors!$L$5:$N$18,3,),IF($F12="11-25hp",VLOOKUP($C12+4,emission_factors!$L$22:$N$33,3,),IF($F12="Over 25hp",VLOOKUP($C12+4,emission_factors!$L$36:$N$48,3,)))))*($G12+$H12))) ->  | W12: 0 | X12: 0 | Y12: 0 | Z12: 0 | AA12: 0 | AB12: 0
A13: =IF(user_input_equipment!A13<>"",user_input_equipment!A13,"") ->  | B13: =IF(user_input_equipment!B13<>"",user_input_equipment!B13,"") ->  | C13: =IF(user_input_equipment!C13<>"",user_input_equipment!C13,"") ->  | D13: =IF(user_input_equipment!D13<>"",user_input_equipment!D13,"") ->  | E13: =IF(user_input_equipment!E13<>"",user_input_equipment!E13,"") ->  | F13: =IF(user_input_equipment!F13<>"",user_input_equipment!F13,"") ->  | G13: =IF(user_input_equipment!G13<>"",user_input_equipment!G13,"") ->  | H13: =IF(user_input_equipment!H13<>"",user_input_equipment!H13,"") ->  | I13: =IF(user_input_equipment!I13<>"",user_input_equipment!I13,"") ->  | J13: =IF(user_input_equipment!J13<>"",user_input_equipment!J13,"") ->  | K13: =IF(user_input_equipment!K13<>"",user_input_equipment!K13,"") ->  | L13: =IF(user_input_equipment!L13<>"",user_input_equipment!L13,"") ->  | M13: =IF($E13="YES",((IF($F13="Under 11hp",VLOOKUP($C13,emission_factors!$L$5:$N$18,2,),IF($F13="11-25hp",VLOOKUP($C13,emission_factors!$L$22:$N$33,2,),IF($F13="Over 25hp",VLOOKUP($C13,emission_factors!$L$36:$N$48,2,)))))*($G13)),((IF($F13="Under 11hp",VLOOKUP($C13,emission_factors!$L$5:$N$18,2,),IF($F13="11-25hp",VLOOKUP($C13,emission_factors!$L$22:$N$33,2,),IF($F13="Over 25hp",VLOOKUP($C13,emission_factors!$L$36:$N$48,2,)))))*($G13+$H13))) ->  | N13: =IF($E13="YES",((IF($F13="Under 11hp",VLOOKUP($C13+1,emission_factors!$L$5:$N$18,2,),IF($F13="11-25hp",VLOOKUP($C13+1,emission_factors!$L$22:$N$33,2,),IF($F13="Over 25hp",VLOOKUP($C13+1,emission_factors!$L$36:$N$48,2,)))))*($G13)),((IF($F13="Under 11hp",VLOOKUP($C13+1,emission_factors!$L$5:$N$18,2,),IF($F13="11-25hp",VLOOKUP($C13+1,emission_factors!$L$22:$N$33,2,),IF($F13="Over 25hp",VLOOKUP($C13+1,emission_factors!$L$36:$N$48,2,)))))*($G13+$H13))) ->  | O13: =IF($E13="YES",((IF($F13="Under 11hp",VLOOKUP($C13+2,emission_factors!$L$5:$N$18,2,),IF($F13="11-25hp",VLOOKUP($C13+2,emission_factors!$L$22:$N$33,2,),IF($F13="Over 25hp",VLOOKUP($C13+2,emission_factors!$L$36:$N$48,2,)))))*($G13)),((IF($F13="Under 11hp",VLOOKUP($C13+2,emission_factors!$L$5:$N$18,2,),IF($F13="11-25hp",VLOOKUP($C13+2,emission_factors!$L$22:$N$33,2,),IF($F13="Over 25hp",VLOOKUP($C13+2,emission_factors!$L$36:$N$48,2,)))))*($G13+$H13))) ->  | P13: =IF($E13="YES",((IF($F13="Under 11hp",VLOOKUP($C13+3,emission_factors!$L$5:$N$18,2,),IF($F13="11-25hp",VLOOKUP($C13+3,emission_factors!$L$22:$N$33,2,),IF($F13="Over 25hp",VLOOKUP($C13+3,emission_factors!$L$36:$N$48,2,)))))*($G13)),((IF($F13="Under 11hp",VLOOKUP($C13+3,emission_factors!$L$5:$N$18,2,),IF($F13="11-25hp",VLOOKUP($C13+3,emission_factors!$L$22:$N$33,2,),IF($F13="Over 25hp",VLOOKUP($C13+3,emission_factors!$L$36:$N$48,2,)))))*($G13+$H13))) ->  | Q13: =IF($E13="YES",((IF($F13="Under 11hp",VLOOKUP($C13+4,emission_factors!$L$5:$N$18,2,),IF($F13="11-25hp",VLOOKUP($C13+4,emission_factors!$L$22:$N$33,2,),IF($F13="Over 25hp",VLOOKUP($C13+4,emission_factors!$L$36:$N$48,2,)))))*($G13)),((IF($F13="Under 11hp",VLOOKUP($C13+4,emission_factors!$L$5:$N$18,2,),IF($F13="11-25hp",VLOOKUP($C13+4,emission_factors!$L$22:$N$33,2,),IF($F13="Over 25hp",VLOOKUP($C13+4,emission_factors!$L$36:$N$48,2,)))))*($G13+$H13))) ->  | R13: =IF($E13="YES",((IF($F13="Under 11hp",VLOOKUP($C13,emission_factors!$L$5:$N$18,3,),IF($F13="11-25hp",VLOOKUP($C13,emission_factors!$L$22:$N$33,3,),IF($F13="Over 25hp",VLOOKUP($C13,emission_factors!$L$36:$N$48,3,)))))*($G13)),((IF($F13="Under 11hp",VLOOKUP($C13,emission_factors!$L$5:$N$18,3,),IF($F13="11-25hp",VLOOKUP($C13,emission_factors!$L$22:$N$33,3,),IF($F13="Over 25hp",VLOOKUP($C13,emission_factors!$L$36:$N$48,3,)))))*($G13+$H13))) ->  | S13: =IF($E13="YES",((IF($F13="Under 11hp",VLOOKUP($C13+1,emission_factors!$L$5:$N$18,3,),IF($F13="11-25hp",VLOOKUP($C13+1,emission_factors!$L$22:$N$33,3,),IF($F13="Over 25hp",VLOOKUP($C13+1,emission_factors!$L$36:$N$48,3,)))))*($G13)),((IF($F13="Under 11hp",VLOOKUP($C13+1,emission_factors!$L$5:$N$18,3,),IF($F13="11-25hp",VLOOKUP($C13+1,emission_factors!$L$22:$N$33,3,),IF($F13="Over 25hp",VLOOKUP($C13+1,emission_factors!$L$36:$N$48,3,)))))*($G13+$H13))) ->  | T13: =IF($E13="YES",((IF($F13="Under 11hp",VLOOKUP($C13+2,emission_factors!$L$5:$N$18,3,),IF($F13="11-25hp",VLOOKUP($C13+2,emission_factors!$L$22:$N$33,3,),IF($F13="Over 25hp",VLOOKUP($C13+2,emission_factors!$L$36:$N$48,3,)))))*($G13)),((IF($F13="Under 11hp",VLOOKUP($C13+2,emission_factors!$L$5:$N$18,3,),IF($F13="11-25hp",VLOOKUP($C13+2,emission_factors!$L$22:$N$33,3,),IF($F13="Over 25hp",VLOOKUP($C13+2,emission_factors!$L$36:$N$48,3,)))))*($G13+$H13))) ->  | U13: =IF($E13="YES",((IF($F13="Under 11hp",VLOOKUP($C13+3,emission_factors!$L$5:$N$18,3,),IF($F13="11-25hp",VLOOKUP($C13+3,emission_factors!$L$22:$N$33,3,),IF($F13="Over 25hp",VLOOKUP($C13+3,emission_factors!$L$36:$N$48,3,)))))*($G13)),((IF($F13="Under 11hp",VLOOKUP($C13+3,emission_factors!$L$5:$N$18,3,),IF($F13="11-25hp",VLOOKUP($C13+3,emission_factors!$L$22:$N$33,3,),IF($F13="Over 25hp",VLOOKUP($C13+3,emission_factors!$L$36:$N$48,3,)))))*($G13+$H13))) ->  | V13: =IF($E13="YES",((IF($F13="Under 11hp",VLOOKUP($C13+4,emission_factors!$L$5:$N$18,3,),IF($F13="11-25hp",VLOOKUP($C13+4,emission_factors!$L$22:$N$33,3,),IF($F13="Over 25hp",VLOOKUP($C13+4,emission_factors!$L$36:$N$48,3,)))))*($G13)),((IF($F13="Under 11hp",VLOOKUP($C13+4,emission_factors!$L$5:$N$18,3,),IF($F13="11-25hp",VLOOKUP($C13+4,emission_factors!$L$22:$N$33,3,),IF($F13="Over 25hp",VLOOKUP($C13+4,emission_factors!$L$36:$N$48,3,)))))*($G13+$H13))) ->  | W13: 0 | X13: 0 | Y13: 0 | Z13: 0 | AA13: 0 | AB13: 0
A14: =IF(user_input_equipment!A14<>"",user_input_equipment!A14,"") ->  | B14: =IF(user_input_equipment!B14<>"",user_input_equipment!B14,"") ->  | C14: =IF(user_input_equipment!C14<>"",user_input_equipment!C14,"") ->  | D14: =IF(user_input_equipment!D14<>"",user_input_equipment!D14,"") ->  | E14: =IF(user_input_equipment!E14<>"",user_input_equipment!E14,"") ->  | F14: =IF(user_input_equipment!F14<>"",user_input_equipment!F14,"") ->  | G14: =IF(user_input_equipment!G14<>"",user_input_equipment!G14,"") ->  | H14: =IF(user_input_equipment!H14<>"",user_input_equipment!H14,"") ->  | I14: =IF(user_input_equipment!I14<>"",user_input_equipment!I14,"") ->  | J14: =IF(user_input_equipment!J14<>"",user_input_equipment!J14,"") ->  | K14: =IF(user_input_equipment!K14<>"",user_input_equipment!K14,"") ->  | L14: =IF(user_input_equipment!L14<>"",user_input_equipment!L14,"") ->  | M14: =IF($E14="YES",((IF($F14="Under 11hp",VLOOKUP($C14,emission_factors!$L$5:$N$18,2,),IF($F14="11-25hp",VLOOKUP($C14,emission_factors!$L$22:$N$33,2,),IF($F14="Over 25hp",VLOOKUP($C14,emission_factors!$L$36:$N$48,2,)))))*($G14)),((IF($F14="Under 11hp",VLOOKUP($C14,emission_factors!$L$5:$N$18,2,),IF($F14="11-25hp",VLOOKUP($C14,emission_factors!$L$22:$N$33,2,),IF($F14="Over 25hp",VLOOKUP($C14,emission_factors!$L$36:$N$48,2,)))))*($G14+$H14))) ->  | N14: =IF($E14="YES",((IF($F14="Under 11hp",VLOOKUP($C14+1,emission_factors!$L$5:$N$18,2,),IF($F14="11-25hp",VLOOKUP($C14+1,emission_factors!$L$22:$N$33,2,),IF($F14="Over 25hp",VLOOKUP($C14+1,emission_factors!$L$36:$N$48,2,)))))*($G14)),((IF($F14="Under 11hp",VLOOKUP($C14+1,emission_factors!$L$5:$N$18,2,),IF($F14="11-25hp",VLOOKUP($C14+1,emission_factors!$L$22:$N$33,2,),IF($F14="Over 25hp",VLOOKUP($C14+1,emission_factors!$L$36:$N$48,2,)))))*($G14+$H14))) ->  | O14: =IF($E14="YES",((IF($F14="Under 11hp",VLOOKUP($C14+2,emission_factors!$L$5:$N$18,2,),IF($F14="11-25hp",VLOOKUP($C14+2,emission_factors!$L$22:$N$33,2,),IF($F14="Over 25hp",VLOOKUP($C14+2,emission_factors!$L$36:$N$48,2,)))))*($G14)),((IF($F14="Under 11hp",VLOOKUP($C14+2,emission_factors!$L$5:$N$18,2,),IF($F14="11-25hp",VLOOKUP($C14+2,emission_factors!$L$22:$N$33,2,),IF($F14="Over 25hp",VLOOKUP($C14+2,emission_factors!$L$36:$N$48,2,)))))*($G14+$H14))) ->  | P14: =IF($E14="YES",((IF($F14="Under 11hp",VLOOKUP($C14+3,emission_factors!$L$5:$N$18,2,),IF($F14="11-25hp",VLOOKUP($C14+3,emission_factors!$L$22:$N$33,2,),IF($F14="Over 25hp",VLOOKUP($C14+3,emission_factors!$L$36:$N$48,2,)))))*($G14)),((IF($F14="Under 11hp",VLOOKUP($C14+3,emission_factors!$L$5:$N$18,2,),IF($F14="11-25hp",VLOOKUP($C14+3,emission_factors!$L$22:$N$33,2,),IF($F14="Over 25hp",VLOOKUP($C14+3,emission_factors!$L$36:$N$48,2,)))))*($G14+$H14))) ->  | Q14: =IF($E14="YES",((IF($F14="Under 11hp",VLOOKUP($C14+4,emission_factors!$L$5:$N$18,2,),IF($F14="11-25hp",VLOOKUP($C14+4,emission_factors!$L$22:$N$33,2,),IF($F14="Over 25hp",VLOOKUP($C14+4,emission_factors!$L$36:$N$48,2,)))))*($G14)),((IF($F14="Under 11hp",VLOOKUP($C14+4,emission_factors!$L$5:$N$18,2,),IF($F14="11-25hp",VLOOKUP($C14+4,emission_factors!$L$22:$N$33,2,),IF($F14="Over 25hp",VLOOKUP($C14+4,emission_factors!$L$36:$N$48,2,)))))*($G14+$H14))) ->  | R14: =IF($E14="YES",((IF($F14="Under 11hp",VLOOKUP($C14,emission_factors!$L$5:$N$18,3,),IF($F14="11-25hp",VLOOKUP($C14,emission_factors!$L$22:$N$33,3,),IF($F14="Over 25hp",VLOOKUP($C14,emission_factors!$L$36:$N$48,3,)))))*($G14)),((IF($F14="Under 11hp",VLOOKUP($C14,emission_factors!$L$5:$N$18,3,),IF($F14="11-25hp",VLOOKUP($C14,emission_factors!$L$22:$N$33,3,),IF($F14="Over 25hp",VLOOKUP($C14,emission_factors!$L$36:$N$48,3,)))))*($G14+$H14))) ->  | S14: =IF($E14="YES",((IF($F14="Under 11hp",VLOOKUP($C14+1,emission_factors!$L$5:$N$18,3,),IF($F14="11-25hp",VLOOKUP($C14+1,emission_factors!$L$22:$N$33,3,),IF($F14="Over 25hp",VLOOKUP($C14+1,emission_factors!$L$36:$N$48,3,)))))*($G14)),((IF($F14="Under 11hp",VLOOKUP($C14+1,emission_factors!$L$5:$N$18,3,),IF($F14="11-25hp",VLOOKUP($C14+1,emission_factors!$L$22:$N$33,3,),IF($F14="Over 25hp",VLOOKUP($C14+1,emission_factors!$L$36:$N$48,3,)))))*($G14+$H14))) ->  | T14: =IF($E14="YES",((IF($F14="Under 11hp",VLOOKUP($C14+2,emission_factors!$L$5:$N$18,3,),IF($F14="11-25hp",VLOOKUP($C14+2,emission_factors!$L$22:$N$33,3,),IF($F14="Over 25hp",VLOOKUP($C14+2,emission_factors!$L$36:$N$48,3,)))))*($G14)),((IF($F14="Under 11hp",VLOOKUP($C14+2,emission_factors!$L$5:$N$18,3,),IF($F14="11-25hp",VLOOKUP($C14+2,emission_factors!$L$22:$N$33,3,),IF($F14="Over 25hp",VLOOKUP($C14+2,emission_factors!$L$36:$N$48,3,)))))*($G14+$H14))) ->  | U14: =IF($E14="YES",((IF($F14="Under 11hp",VLOOKUP($C14+3,emission_factors!$L$5:$N$18,3,),IF($F14="11-25hp",VLOOKUP($C14+3,emission_factors!$L$22:$N$33,3,),IF($F14="Over 25hp",VLOOKUP($C14+3,emission_factors!$L$36:$N$48,3,)))))*($G14)),((IF($F14="Under 11hp",VLOOKUP($C14+3,emission_factors!$L$5:$N$18,3,),IF($F14="11-25hp",VLOOKUP($C14+3,emission_factors!$L$22:$N$33,3,),IF($F14="Over 25hp",VLOOKUP($C14+3,emission_factors!$L$36:$N$48,3,)))))*($G14+$H14))) ->  | V14: =IF($E14="YES",((IF($F14="Under 11hp",VLOOKUP($C14+4,emission_factors!$L$5:$N$18,3,),IF($F14="11-25hp",VLOOKUP($C14+4,emission_factors!$L$22:$N$33,3,),IF($F14="Over 25hp",VLOOKUP($C14+4,emission_factors!$L$36:$N$48,3,)))))*($G14)),((IF($F14="Under 11hp",VLOOKUP($C14+4,emission_factors!$L$5:$N$18,3,),IF($F14="11-25hp",VLOOKUP($C14+4,emission_factors!$L$22:$N$33,3,),IF($F14="Over 25hp",VLOOKUP($C14+4,emission_factors!$L$36:$N$48,3,)))))*($G14+$H14))) ->  | W14: 0 | X14: 0 | Y14: 0 | Z14: 0 | AA14: 0 | AB14: 0
A15: =IF(user_input_equipment!A15<>"",user_input_equipment!A15,"") ->  | B15: =IF(user_input_equipment!B15<>"",user_input_equipment!B15,"") ->  | C15: =IF(user_input_equipment!C15<>"",user_input_equipment!C15,"") ->  | D15: =IF(user_input_equipment!D15<>"",user_input_equipment!D15,"") ->  | E15: =IF(user_input_equipment!E15<>"",user_input_equipment!E15,"") ->  | F15: =IF(user_input_equipment!F15<>"",user_input_equipment!F15,"") ->  | G15: =IF(user_input_equipment!G15<>"",user_input_equipment!G15,"") ->  | H15: =IF(user_input_equipment!H15<>"",user_input_equipment!H15,"") ->  | I15: =IF(user_input_equipment!I15<>"",user_input_equipment!I15,"") ->  | J15: =IF(user_input_equipment!J15<>"",user_input_equipment!J15,"") ->  | K15: =IF(user_input_equipment!K15<>"",user_input_equipment!K15,"") ->  | L15: =IF(user_input_equipment!L15<>"",user_input_equipment!L15,"") ->  | M15: =IF($E15="YES",((IF($F15="Under 11hp",VLOOKUP($C15,emission_factors!$L$5:$N$18,2,),IF($F15="11-25hp",VLOOKUP($C15,emission_factors!$L$22:$N$33,2,),IF($F15="Over 25hp",VLOOKUP($C15,emission_factors!$L$36:$N$48,2,)))))*($G15)),((IF($F15="Under 11hp",VLOOKUP($C15,emission_factors!$L$5:$N$18,2,),IF($F15="11-25hp",VLOOKUP($C15,emission_factors!$L$22:$N$33,2,),IF($F15="Over 25hp",VLOOKUP($C15,emission_factors!$L$36:$N$48,2,)))))*($G15+$H15))) ->  | N15: =IF($E15="YES",((IF($F15="Under 11hp",VLOOKUP($C15+1,emission_factors!$L$5:$N$18,2,),IF($F15="11-25hp",VLOOKUP($C15+1,emission_factors!$L$22:$N$33,2,),IF($F15="Over 25hp",VLOOKUP($C15+1,emission_factors!$L$36:$N$48,2,)))))*($G15)),((IF($F15="Under 11hp",VLOOKUP($C15+1,emission_factors!$L$5:$N$18,2,),IF($F15="11-25hp",VLOOKUP($C15+1,emission_factors!$L$22:$N$33,2,),IF($F15="Over 25hp",VLOOKUP($C15+1,emission_factors!$L$36:$N$48,2,)))))*($G15+$H15))) ->  | O15: =IF($E15="YES",((IF($F15="Under 11hp",VLOOKUP($C15+2,emission_factors!$L$5:$N$18,2,),IF($F15="11-25hp",VLOOKUP($C15+2,emission_factors!$L$22:$N$33,2,),IF($F15="Over 25hp",VLOOKUP($C15+2,emission_factors!$L$36:$N$48,2,)))))*($G15)),((IF($F15="Under 11hp",VLOOKUP($C15+2,emission_factors!$L$5:$N$18,2,),IF($F15="11-25hp",VLOOKUP($C15+2,emission_factors!$L$22:$N$33,2,),IF($F15="Over 25hp",VLOOKUP($C15+2,emission_factors!$L$36:$N$48,2,)))))*($G15+$H15))) ->  | P15: =IF($E15="YES",((IF($F15="Under 11hp",VLOOKUP($C15+3,emission_factors!$L$5:$N$18,2,),IF($F15="11-25hp",VLOOKUP($C15+3,emission_factors!$L$22:$N$33,2,),IF($F15="Over 25hp",VLOOKUP($C15+3,emission_factors!$L$36:$N$48,2,)))))*($G15)),((IF($F15="Under 11hp",VLOOKUP($C15+3,emission_factors!$L$5:$N$18,2,),IF($F15="11-25hp",VLOOKUP($C15+3,emission_factors!$L$22:$N$33,2,),IF($F15="Over 25hp",VLOOKUP($C15+3,emission_factors!$L$36:$N$48,2,)))))*($G15+$H15))) ->  | Q15: =IF($E15="YES",((IF($F15="Under 11hp",VLOOKUP($C15+4,emission_factors!$L$5:$N$18,2,),IF($F15="11-25hp",VLOOKUP($C15+4,emission_factors!$L$22:$N$33,2,),IF($F15="Over 25hp",VLOOKUP($C15+4,emission_factors!$L$36:$N$48,2,)))))*($G15)),((IF($F15="Under 11hp",VLOOKUP($C15+4,emission_factors!$L$5:$N$18,2,),IF($F15="11-25hp",VLOOKUP($C15+4,emission_factors!$L$22:$N$33,2,),IF($F15="Over 25hp",VLOOKUP($C15+4,emission_factors!$L$36:$N$48,2,)))))*($G15+$H15))) ->  | R15: =IF($E15="YES",((IF($F15="Under 11hp",VLOOKUP($C15,emission_factors!$L$5:$N$18,3,),IF($F15="11-25hp",VLOOKUP($C15,emission_factors!$L$22:$N$33,3,),IF($F15="Over 25hp",VLOOKUP($C15,emission_factors!$L$36:$N$48,3,)))))*($G15)),((IF($F15="Under 11hp",VLOOKUP($C15,emission_factors!$L$5:$N$18,3,),IF($F15="11-25hp",VLOOKUP($C15,emission_factors!$L$22:$N$33,3,),IF($F15="Over 25hp",VLOOKUP($C15,emission_factors!$L$36:$N$48,3,)))))*($G15+$H15))) ->  | S15: =IF($E15="YES",((IF($F15="Under 11hp",VLOOKUP($C15+1,emission_factors!$L$5:$N$18,3,),IF($F15="11-25hp",VLOOKUP($C15+1,emission_factors!$L$22:$N$33,3,),IF($F15="Over 25hp",VLOOKUP($C15+1,emission_factors!$L$36:$N$48,3,)))))*($G15)),((IF($F15="Under 11hp",VLOOKUP($C15+1,emission_factors!$L$5:$N$18,3,),IF($F15="11-25hp",VLOOKUP($C15+1,emission_factors!$L$22:$N$33,3,),IF($F15="Over 25hp",VLOOKUP($C15+1,emission_factors!$L$36:$N$48,3,)))))*($G15+$H15))) ->  | T15: =IF($E15="YES",((IF($F15="Under 11hp",VLOOKUP($C15+2,emission_factors!$L$5:$N$18,3,),IF($F15="11-25hp",VLOOKUP($C15+2,emission_factors!$L$22:$N$33,3,),IF($F15="Over 25hp",VLOOKUP($C15+2,emission_factors!$L$36:$N$48,3,)))))*($G15)),((IF($F15="Under 11hp",VLOOKUP($C15+2,emission_factors!$L$5:$N$18,3,),IF($F15="11-25hp",VLOOKUP($C15+2,emission_factors!$L$22:$N$33,3,),IF($F15="Over 25hp",VLOOKUP($C15+2,emission_factors!$L$36:$N$48,3,)))))*($G15+$H15))) ->  | U15: =IF($E15="YES",((IF($F15="Under 11hp",VLOOKUP($C15+3,emission_factors!$L$5:$N$18,3,),IF($F15="11-25hp",VLOOKUP($C15+3,emission_factors!$L$22:$N$33,3,),IF($F15="Over 25hp",VLOOKUP($C15+3,emission_factors!$L$36:$N$48,3,)))))*($G15)),((IF($F15="Under 11hp",VLOOKUP($C15+3,emission_factors!$L$5:$N$18,3,),IF($F15="11-25hp",VLOOKUP($C15+3,emission_factors!$L$22:$N$33,3,),IF($F15="Over 25hp",VLOOKUP($C15+3,emission_factors!$L$36:$N$48,3,)))))*($G15+$H15))) ->  | V15: =IF($E15="YES",((IF($F15="Under 11hp",VLOOKUP($C15+4,emission_factors!$L$5:$N$18,3,),IF($F15="11-25hp",VLOOKUP($C15+4,emission_factors!$L$22:$N$33,3,),IF($F15="Over 25hp",VLOOKUP($C15+4,emission_factors!$L$36:$N$48,3,)))))*($G15)),((IF($F15="Under 11hp",VLOOKUP($C15+4,emission_factors!$L$5:$N$18,3,),IF($F15="11-25hp",VLOOKUP($C15+4,emission_factors!$L$22:$N$33,3,),IF($F15="Over 25hp",VLOOKUP($C15+4,emission_factors!$L$36:$N$48,3,)))))*($G15+$H15))) ->  | W15: 0 | X15: 0 | Y15: 0 | Z15: 0 | AA15: 0 | AB15: 0
A16: =IF(user_input_equipment!A16<>"",user_input_equipment!A16,"") ->  | B16: =IF(user_input_equipment!B16<>"",user_input_equipment!B16,"") ->  | C16: =IF(user_input_equipment!C16<>"",user_input_equipment!C16,"") ->  | D16: =IF(user_input_equipment!D16<>"",user_input_equipment!D16,"") ->  | E16: =IF(user_input_equipment!E16<>"",user_input_equipment!E16,"") ->  | F16: =IF(user_input_equipment!F16<>"",user_input_equipment!F16,"") ->  | G16: =IF(user_input_equipment!G16<>"",user_input_equipment!G16,"") ->  | H16: =IF(user_input_equipment!H16<>"",user_input_equipment!H16,"") ->  | I16: =IF(user_input_equipment!I16<>"",user_input_equipment!I16,"") ->  | J16: =IF(user_input_equipment!J16<>"",user_input_equipment!J16,"") ->  | K16: =IF(user_input_equipment!K16<>"",user_input_equipment!K16,"") ->  | L16: =IF(user_input_equipment!L16<>"",user_input_equipment!L16,"") ->  | M16: =IF($E16="YES",((IF($F16="Under 11hp",VLOOKUP($C16,emission_factors!$L$5:$N$18,2,),IF($F16="11-25hp",VLOOKUP($C16,emission_factors!$L$22:$N$33,2,),IF($F16="Over 25hp",VLOOKUP($C16,emission_factors!$L$36:$N$48,2,)))))*($G16)),((IF($F16="Under 11hp",VLOOKUP($C16,emission_factors!$L$5:$N$18,2,),IF($F16="11-25hp",VLOOKUP($C16,emission_factors!$L$22:$N$33,2,),IF($F16="Over 25hp",VLOOKUP($C16,emission_factors!$L$36:$N$48,2,)))))*($G16+$H16))) ->  | N16: =IF($E16="YES",((IF($F16="Under 11hp",VLOOKUP($C16+1,emission_factors!$L$5:$N$18,2,),IF($F16="11-25hp",VLOOKUP($C16+1,emission_factors!$L$22:$N$33,2,),IF($F16="Over 25hp",VLOOKUP($C16+1,emission_factors!$L$36:$N$48,2,)))))*($G16)),((IF($F16="Under 11hp",VLOOKUP($C16+1,emission_factors!$L$5:$N$18,2,),IF($F16="11-25hp",VLOOKUP($C16+1,emission_factors!$L$22:$N$33,2,),IF($F16="Over 25hp",VLOOKUP($C16+1,emission_factors!$L$36:$N$48,2,)))))*($G16+$H16))) ->  | O16: =IF($E16="YES",((IF($F16="Under 11hp",VLOOKUP($C16+2,emission_factors!$L$5:$N$18,2,),IF($F16="11-25hp",VLOOKUP($C16+2,emission_factors!$L$22:$N$33,2,),IF($F16="Over 25hp",VLOOKUP($C16+2,emission_factors!$L$36:$N$48,2,)))))*($G16)),((IF($F16="Under 11hp",VLOOKUP($C16+2,emission_factors!$L$5:$N$18,2,),IF($F16="11-25hp",VLOOKUP($C16+2,emission_factors!$L$22:$N$33,2,),IF($F16="Over 25hp",VLOOKUP($C16+2,emission_factors!$L$36:$N$48,2,)))))*($G16+$H16))) ->  | P16: =IF($E16="YES",((IF($F16="Under 11hp",VLOOKUP($C16+3,emission_factors!$L$5:$N$18,2,),IF($F16="11-25hp",VLOOKUP($C16+3,emission_factors!$L$22:$N$33,2,),IF($F16="Over 25hp",VLOOKUP($C16+3,emission_factors!$L$36:$N$48,2,)))))*($G16)),((IF($F16="Under 11hp",VLOOKUP($C16+3,emission_factors!$L$5:$N$18,2,),IF($F16="11-25hp",VLOOKUP($C16+3,emission_factors!$L$22:$N$33,2,),IF($F16="Over 25hp",VLOOKUP($C16+3,emission_factors!$L$36:$N$48,2,)))))*($G16+$H16))) ->  | Q16: =IF($E16="YES",((IF($F16="Under 11hp",VLOOKUP($C16+4,emission_factors!$L$5:$N$18,2,),IF($F16="11-25hp",VLOOKUP($C16+4,emission_factors!$L$22:$N$33,2,),IF($F16="Over 25hp",VLOOKUP($C16+4,emission_factors!$L$36:$N$48,2,)))))*($G16)),((IF($F16="Under 11hp",VLOOKUP($C16+4,emission_factors!$L$5:$N$18,2,),IF($F16="11-25hp",VLOOKUP($C16+4,emission_factors!$L$22:$N$33,2,),IF($F16="Over 25hp",VLOOKUP($C16+4,emission_factors!$L$36:$N$48,2,)))))*($G16+$H16))) ->  | R16: =IF($E16="YES",((IF($F16="Under 11hp",VLOOKUP($C16,emission_factors!$L$5:$N$18,3,),IF($F16="11-25hp",VLOOKUP($C16,emission_factors!$L$22:$N$33,3,),IF($F16="Over 25hp",VLOOKUP($C16,emission_factors!$L$36:$N$48,3,)))))*($G16)),((IF($F16="Under 11hp",VLOOKUP($C16,emission_factors!$L$5:$N$18,3,),IF($F16="11-25hp",VLOOKUP($C16,emission_factors!$L$22:$N$33,3,),IF($F16="Over 25hp",VLOOKUP($C16,emission_factors!$L$36:$N$48,3,)))))*($G16+$H16))) ->  | S16: =IF($E16="YES",((IF($F16="Under 11hp",VLOOKUP($C16+1,emission_factors!$L$5:$N$18,3,),IF($F16="11-25hp",VLOOKUP($C16+1,emission_factors!$L$22:$N$33,3,),IF($F16="Over 25hp",VLOOKUP($C16+1,emission_factors!$L$36:$N$48,3,)))))*($G16)),((IF($F16="Under 11hp",VLOOKUP($C16+1,emission_factors!$L$5:$N$18,3,),IF($F16="11-25hp",VLOOKUP($C16+1,emission_factors!$L$22:$N$33,3,),IF($F16="Over 25hp",VLOOKUP($C16+1,emission_factors!$L$36:$N$48,3,)))))*($G16+$H16))) ->  | T16: =IF($E16="YES",((IF($F16="Under 11hp",VLOOKUP($C16+2,emission_factors!$L$5:$N$18,3,),IF($F16="11-25hp",VLOOKUP($C16+2,emission_factors!$L$22:$N$33,3,),IF($F16="Over 25hp",VLOOKUP($C16+2,emission_factors!$L$36:$N$48,3,)))))*($G16)),((IF($F16="Under 11hp",VLOOKUP($C16+2,emission_factors!$L$5:$N$18,3,),IF($F16="11-25hp",VLOOKUP($C16+2,emission_factors!$L$22:$N$33,3,),IF($F16="Over 25hp",VLOOKUP($C16+2,emission_factors!$L$36:$N$48,3,)))))*($G16+$H16))) ->  | U16: =IF($E16="YES",((IF($F16="Under 11hp",VLOOKUP($C16+3,emission_factors!$L$5:$N$18,3,),IF($F16="11-25hp",VLOOKUP($C16+3,emission_factors!$L$22:$N$33,3,),IF($F16="Over 25hp",VLOOKUP($C16+3,emission_factors!$L$36:$N$48,3,)))))*($G16)),((IF($F16="Under 11hp",VLOOKUP($C16+3,emission_factors!$L$5:$N$18,3,),IF($F16="11-25hp",VLOOKUP($C16+3,emission_factors!$L$22:$N$33,3,),IF($F16="Over 25hp",VLOOKUP($C16+3,emission_factors!$L$36:$N$48,3,)))))*($G16+$H16))) ->  | V16: =IF($E16="YES",((IF($F16="Under 11hp",VLOOKUP($C16+4,emission_factors!$L$5:$N$18,3,),IF($F16="11-25hp",VLOOKUP($C16+4,emission_factors!$L$22:$N$33,3,),IF($F16="Over 25hp",VLOOKUP($C16+4,emission_factors!$L$36:$N$48,3,)))))*($G16)),((IF($F16="Under 11hp",VLOOKUP($C16+4,emission_factors!$L$5:$N$18,3,),IF($F16="11-25hp",VLOOKUP($C16+4,emission_factors!$L$22:$N$33,3,),IF($F16="Over 25hp",VLOOKUP($C16+4,emission_factors!$L$36:$N$48,3,)))))*($G16+$H16))) ->  | W16: 0 | X16: 0 | Y16: 0 | Z16: 0 | AA16: 0 | AB16: 0
A17: =IF(user_input_equipment!A17<>"",user_input_equipment!A17,"") ->  | B17: =IF(user_input_equipment!B17<>"",user_input_equipment!B17,"") ->  | C17: =IF(user_input_equipment!C17<>"",user_input_equipment!C17,"") ->  | D17: =IF(user_input_equipment!D17<>"",user_input_equipment!D17,"") ->  | E17: =IF(user_input_equipment!E17<>"",user_input_equipment!E17,"") ->  | F17: =IF(user_input_equipment!F17<>"",user_input_equipment!F17,"") ->  | G17: =IF(user_input_equipment!G17<>"",user_input_equipment!G17,"") ->  | H17: =IF(user_input_equipment!H17<>"",user_input_equipment!H17,"") ->  | I17: =IF(user_input_equipment!I17<>"",user_input_equipment!I17,"") ->  | J17: =IF(user_input_equipment!J17<>"",user_input_equipment!J17,"") ->  | K17: =IF(user_input_equipment!K17<>"",user_input_equipment!K17,"") ->  | L17: =IF(user_input_equipment!L17<>"",user_input_equipment!L17,"") ->  | M17: =IF($E17="YES",((IF($F17="Under 11hp",VLOOKUP($C17,emission_factors!$L$5:$N$18,2,),IF($F17="11-25hp",VLOOKUP($C17,emission_factors!$L$22:$N$33,2,),IF($F17="Over 25hp",VLOOKUP($C17,emission_factors!$L$36:$N$48,2,)))))*($G17)),((IF($F17="Under 11hp",VLOOKUP($C17,emission_factors!$L$5:$N$18,2,),IF($F17="11-25hp",VLOOKUP($C17,emission_factors!$L$22:$N$33,2,),IF($F17="Over 25hp",VLOOKUP($C17,emission_factors!$L$36:$N$48,2,)))))*($G17+$H17))) ->  | N17: =IF($E17="YES",((IF($F17="Under 11hp",VLOOKUP($C17+1,emission_factors!$L$5:$N$18,2,),IF($F17="11-25hp",VLOOKUP($C17+1,emission_factors!$L$22:$N$33,2,),IF($F17="Over 25hp",VLOOKUP($C17+1,emission_factors!$L$36:$N$48,2,)))))*($G17)),((IF($F17="Under 11hp",VLOOKUP($C17+1,emission_factors!$L$5:$N$18,2,),IF($F17="11-25hp",VLOOKUP($C17+1,emission_factors!$L$22:$N$33,2,),IF($F17="Over 25hp",VLOOKUP($C17+1,emission_factors!$L$36:$N$48,2,)))))*($G17+$H17))) ->  | O17: =IF($E17="YES",((IF($F17="Under 11hp",VLOOKUP($C17+2,emission_factors!$L$5:$N$18,2,),IF($F17="11-25hp",VLOOKUP($C17+2,emission_factors!$L$22:$N$33,2,),IF($F17="Over 25hp",VLOOKUP($C17+2,emission_factors!$L$36:$N$48,2,)))))*($G17)),((IF($F17="Under 11hp",VLOOKUP($C17+2,emission_factors!$L$5:$N$18,2,),IF($F17="11-25hp",VLOOKUP($C17+2,emission_factors!$L$22:$N$33,2,),IF($F17="Over 25hp",VLOOKUP($C17+2,emission_factors!$L$36:$N$48,2,)))))*($G17+$H17))) ->  | P17: =IF($E17="YES",((IF($F17="Under 11hp",VLOOKUP($C17+3,emission_factors!$L$5:$N$18,2,),IF($F17="11-25hp",VLOOKUP($C17+3,emission_factors!$L$22:$N$33,2,),IF($F17="Over 25hp",VLOOKUP($C17+3,emission_factors!$L$36:$N$48,2,)))))*($G17)),((IF($F17="Under 11hp",VLOOKUP($C17+3,emission_factors!$L$5:$N$18,2,),IF($F17="11-25hp",VLOOKUP($C17+3,emission_factors!$L$22:$N$33,2,),IF($F17="Over 25hp",VLOOKUP($C17+3,emission_factors!$L$36:$N$48,2,)))))*($G17+$H17))) ->  | Q17: =IF($E17="YES",((IF($F17="Under 11hp",VLOOKUP($C17+4,emission_factors!$L$5:$N$18,2,),IF($F17="11-25hp",VLOOKUP($C17+4,emission_factors!$L$22:$N$33,2,),IF($F17="Over 25hp",VLOOKUP($C17+4,emission_factors!$L$36:$N$48,2,)))))*($G17)),((IF($F17="Under 11hp",VLOOKUP($C17+4,emission_factors!$L$5:$N$18,2,),IF($F17="11-25hp",VLOOKUP($C17+4,emission_factors!$L$22:$N$33,2,),IF($F17="Over 25hp",VLOOKUP($C17+4,emission_factors!$L$36:$N$48,2,)))))*($G17+$H17))) ->  | R17: =IF($E17="YES",((IF($F17="Under 11hp",VLOOKUP($C17,emission_factors!$L$5:$N$18,3,),IF($F17="11-25hp",VLOOKUP($C17,emission_factors!$L$22:$N$33,3,),IF($F17="Over 25hp",VLOOKUP($C17,emission_factors!$L$36:$N$48,3,)))))*($G17)),((IF($F17="Under 11hp",VLOOKUP($C17,emission_factors!$L$5:$N$18,3,),IF($F17="11-25hp",VLOOKUP($C17,emission_factors!$L$22:$N$33,3,),IF($F17="Over 25hp",VLOOKUP($C17,emission_factors!$L$36:$N$48,3,)))))*($G17+$H17))) ->  | S17: =IF($E17="YES",((IF($F17="Under 11hp",VLOOKUP($C17+1,emission_factors!$L$5:$N$18,3,),IF($F17="11-25hp",VLOOKUP($C17+1,emission_factors!$L$22:$N$33,3,),IF($F17="Over 25hp",VLOOKUP($C17+1,emission_factors!$L$36:$N$48,3,)))))*($G17)),((IF($F17="Under 11hp",VLOOKUP($C17+1,emission_factors!$L$5:$N$18,3,),IF($F17="11-25hp",VLOOKUP($C17+1,emission_factors!$L$22:$N$33,3,),IF($F17="Over 25hp",VLOOKUP($C17+1,emission_factors!$L$36:$N$48,3,)))))*($G17+$H17))) ->  | T17: =IF($E17="YES",((IF($F17="Under 11hp",VLOOKUP($C17+2,emission_factors!$L$5:$N$18,3,),IF($F17="11-25hp",VLOOKUP($C17+2,emission_factors!$L$22:$N$33,3,),IF($F17="Over 25hp",VLOOKUP($C17+2,emission_factors!$L$36:$N$48,3,)))))*($G17)),((IF($F17="Under 11hp",VLOOKUP($C17+2,emission_factors!$L$5:$N$18,3,),IF($F17="11-25hp",VLOOKUP($C17+2,emission_factors!$L$22:$N$33,3,),IF($F17="Over 25hp",VLOOKUP($C17+2,emission_factors!$L$36:$N$48,3,)))))*($G17+$H17))) ->  | U17: =IF($E17="YES",((IF($F17="Under 11hp",VLOOKUP($C17+3,emission_factors!$L$5:$N$18,3,),IF($F17="11-25hp",VLOOKUP($C17+3,emission_factors!$L$22:$N$33,3,),IF($F17="Over 25hp",VLOOKUP($C17+3,emission_factors!$L$36:$N$48,3,)))))*($G17)),((IF($F17="Under 11hp",VLOOKUP($C17+3,emission_factors!$L$5:$N$18,3,),IF($F17="11-25hp",VLOOKUP($C17+3,emission_factors!$L$22:$N$33,3,),IF($F17="Over 25hp",VLOOKUP($C17+3,emission_factors!$L$36:$N$48,3,)))))*($G17+$H17))) ->  | V17: =IF($E17="YES",((IF($F17="Under 11hp",VLOOKUP($C17+4,emission_factors!$L$5:$N$18,3,),IF($F17="11-25hp",VLOOKUP($C17+4,emission_factors!$L$22:$N$33,3,),IF($F17="Over 25hp",VLOOKUP($C17+4,emission_factors!$L$36:$N$48,3,)))))*($G17)),((IF($F17="Under 11hp",VLOOKUP($C17+4,emission_factors!$L$5:$N$18,3,),IF($F17="11-25hp",VLOOKUP($C17+4,emission_factors!$L$22:$N$33,3,),IF($F17="Over 25hp",VLOOKUP($C17+4,emission_factors!$L$36:$N$48,3,)))))*($G17+$H17))) ->  | W17: 0 | X17: 0 | Y17: 0 | Z17: 0 | AA17: 0 | AB17: 0
A18: =IF(user_input_equipment!A18<>"",user_input_equipment!A18,"") ->  | B18: =IF(user_input_equipment!B18<>"",user_input_equipment!B18,"") ->  | C18: =IF(user_input_equipment!C18<>"",user_input_equipment!C18,"") ->  | D18: =IF(user_input_equipment!D18<>"",user_input_equipment!D18,"") ->  | E18: =IF(user_input_equipment!E18<>"",user_input_equipment!E18,"") ->  | F18: =IF(user_input_equipment!F18<>"",user_input_equipment!F18,"") ->  | G18: =IF(user_input_equipment!G18<>"",user_input_equipment!G18,"") ->  | H18: =IF(user_input_equipment!H18<>"",user_input_equipment!H18,"") ->  | I18: =IF(user_input_equipment!I18<>"",user_input_equipment!I18,"") ->  | J18: =IF(user_input_equipment!J18<>"",user_input_equipment!J18,"") ->  | K18: =IF(user_input_equipment!K18<>"",user_input_equipment!K18,"") ->  | L18: =IF(user_input_equipment!L18<>"",user_input_equipment!L18,"") ->  | M18: =IF($E18="YES",((IF($F18="Under 11hp",VLOOKUP($C18,emission_factors!$L$5:$N$18,2,),IF($F18="11-25hp",VLOOKUP($C18,emission_factors!$L$22:$N$33,2,),IF($F18="Over 25hp",VLOOKUP($C18,emission_factors!$L$36:$N$48,2,)))))*($G18)),((IF($F18="Under 11hp",VLOOKUP($C18,emission_factors!$L$5:$N$18,2,),IF($F18="11-25hp",VLOOKUP($C18,emission_factors!$L$22:$N$33,2,),IF($F18="Over 25hp",VLOOKUP($C18,emission_factors!$L$36:$N$48,2,)))))*($G18+$H18))) ->  | N18: =IF($E18="YES",((IF($F18="Under 11hp",VLOOKUP($C18+1,emission_factors!$L$5:$N$18,2,),IF($F18="11-25hp",VLOOKUP($C18+1,emission_factors!$L$22:$N$33,2,),IF($F18="Over 25hp",VLOOKUP($C18+1,emission_factors!$L$36:$N$48,2,)))))*($G18)),((IF($F18="Under 11hp",VLOOKUP($C18+1,emission_factors!$L$5:$N$18,2,),IF($F18="11-25hp",VLOOKUP($C18+1,emission_factors!$L$22:$N$33,2,),IF($F18="Over 25hp",VLOOKUP($C18+1,emission_factors!$L$36:$N$48,2,)))))*($G18+$H18))) ->  | O18: =IF($E18="YES",((IF($F18="Under 11hp",VLOOKUP($C18+2,emission_factors!$L$5:$N$18,2,),IF($F18="11-25hp",VLOOKUP($C18+2,emission_factors!$L$22:$N$33,2,),IF($F18="Over 25hp",VLOOKUP($C18+2,emission_factors!$L$36:$N$48,2,)))))*($G18)),((IF($F18="Under 11hp",VLOOKUP($C18+2,emission_factors!$L$5:$N$18,2,),IF($F18="11-25hp",VLOOKUP($C18+2,emission_factors!$L$22:$N$33,2,),IF($F18="Over 25hp",VLOOKUP($C18+2,emission_factors!$L$36:$N$48,2,)))))*($G18+$H18))) ->  | P18: =IF($E18="YES",((IF($F18="Under 11hp",VLOOKUP($C18+3,emission_factors!$L$5:$N$18,2,),IF($F18="11-25hp",VLOOKUP($C18+3,emission_factors!$L$22:$N$33,2,),IF($F18="Over 25hp",VLOOKUP($C18+3,emission_factors!$L$36:$N$48,2,)))))*($G18)),((IF($F18="Under 11hp",VLOOKUP($C18+3,emission_factors!$L$5:$N$18,2,),IF($F18="11-25hp",VLOOKUP($C18+3,emission_factors!$L$22:$N$33,2,),IF($F18="Over 25hp",VLOOKUP($C18+3,emission_factors!$L$36:$N$48,2,)))))*($G18+$H18))) ->  | Q18: =IF($E18="YES",((IF($F18="Under 11hp",VLOOKUP($C18+4,emission_factors!$L$5:$N$18,2,),IF($F18="11-25hp",VLOOKUP($C18+4,emission_factors!$L$22:$N$33,2,),IF($F18="Over 25hp",VLOOKUP($C18+4,emission_factors!$L$36:$N$48,2,)))))*($G18)),((IF($F18="Under 11hp",VLOOKUP($C18+4,emission_factors!$L$5:$N$18,2,),IF($F18="11-25hp",VLOOKUP($C18+4,emission_factors!$L$22:$N$33,2,),IF($F18="Over 25hp",VLOOKUP($C18+4,emission_factors!$L$36:$N$48,2,)))))*($G18+$H18))) ->  | R18: =IF($E18="YES",((IF($F18="Under 11hp",VLOOKUP($C18,emission_factors!$L$5:$N$18,3,),IF($F18="11-25hp",VLOOKUP($C18,emission_factors!$L$22:$N$33,3,),IF($F18="Over 25hp",VLOOKUP($C18,emission_factors!$L$36:$N$48,3,)))))*($G18)),((IF($F18="Under 11hp",VLOOKUP($C18,emission_factors!$L$5:$N$18,3,),IF($F18="11-25hp",VLOOKUP($C18,emission_factors!$L$22:$N$33,3,),IF($F18="Over 25hp",VLOOKUP($C18,emission_factors!$L$36:$N$48,3,)))))*($G18+$H18))) ->  | S18: =IF($E18="YES",((IF($F18="Under 11hp",VLOOKUP($C18+1,emission_factors!$L$5:$N$18,3,),IF($F18="11-25hp",VLOOKUP($C18+1,emission_factors!$L$22:$N$33,3,),IF($F18="Over 25hp",VLOOKUP($C18+1,emission_factors!$L$36:$N$48,3,)))))*($G18)),((IF($F18="Under 11hp",VLOOKUP($C18+1,emission_factors!$L$5:$N$18,3,),IF($F18="11-25hp",VLOOKUP($C18+1,emission_factors!$L$22:$N$33,3,),IF($F18="Over 25hp",VLOOKUP($C18+1,emission_factors!$L$36:$N$48,3,)))))*($G18+$H18))) ->  | T18: =IF($E18="YES",((IF($F18="Under 11hp",VLOOKUP($C18+2,emission_factors!$L$5:$N$18,3,),IF($F18="11-25hp",VLOOKUP($C18+2,emission_factors!$L$22:$N$33,3,),IF($F18="Over 25hp",VLOOKUP($C18+2,emission_factors!$L$36:$N$48,3,)))))*($G18)),((IF($F18="Under 11hp",VLOOKUP($C18+2,emission_factors!$L$5:$N$18,3,),IF($F18="11-25hp",VLOOKUP($C18+2,emission_factors!$L$22:$N$33,3,),IF($F18="Over 25hp",VLOOKUP($C18+2,emission_factors!$L$36:$N$48,3,)))))*($G18+$H18))) ->  | U18: =IF($E18="YES",((IF($F18="Under 11hp",VLOOKUP($C18+3,emission_factors!$L$5:$N$18,3,),IF($F18="11-25hp",VLOOKUP($C18+3,emission_factors!$L$22:$N$33,3,),IF($F18="Over 25hp",VLOOKUP($C18+3,emission_factors!$L$36:$N$48,3,)))))*($G18)),((IF($F18="Under 11hp",VLOOKUP($C18+3,emission_factors!$L$5:$N$18,3,),IF($F18="11-25hp",VLOOKUP($C18+3,emission_factors!$L$22:$N$33,3,),IF($F18="Over 25hp",VLOOKUP($C18+3,emission_factors!$L$36:$N$48,3,)))))*($G18+$H18))) ->  | V18: =IF($E18="YES",((IF($F18="Under 11hp",VLOOKUP($C18+4,emission_factors!$L$5:$N$18,3,),IF($F18="11-25hp",VLOOKUP($C18+4,emission_factors!$L$22:$N$33,3,),IF($F18="Over 25hp",VLOOKUP($C18+4,emission_factors!$L$36:$N$48,3,)))))*($G18)),((IF($F18="Under 11hp",VLOOKUP($C18+4,emission_factors!$L$5:$N$18,3,),IF($F18="11-25hp",VLOOKUP($C18+4,emission_factors!$L$22:$N$33,3,),IF($F18="Over 25hp",VLOOKUP($C18+4,emission_factors!$L$36:$N$48,3,)))))*($G18+$H18))) ->  | W18: 0 | X18: 0 | Y18: 0 | Z18: 0 | AA18: 0 | AB18: 0
A19: =IF(user_input_equipment!A19<>"",user_input_equipment!A19,"") ->  | B19: =IF(user_input_equipment!B19<>"",user_input_equipment!B19,"") ->  | C19: =IF(user_input_equipment!C19<>"",user_input_equipment!C19,"") ->  | D19: =IF(user_input_equipment!D19<>"",user_input_equipment!D19,"") ->  | E19: =IF(user_input_equipment!E19<>"",user_input_equipment!E19,"") ->  | F19: =IF(user_input_equipment!F19<>"",user_input_equipment!F19,"") ->  | G19: =IF(user_input_equipment!G19<>"",user_input_equipment!G19,"") ->  | H19: =IF(user_input_equipment!H19<>"",user_input_equipment!H19,"") ->  | I19: =IF(user_input_equipment!I19<>"",user_input_equipment!I19,"") ->  | J19: =IF(user_input_equipment!J19<>"",user_input_equipment!J19,"") ->  | K19: =IF(user_input_equipment!K19<>"",user_input_equipment!K19,"") ->  | L19: =IF(user_input_equipment!L19<>"",user_input_equipment!L19,"") ->  | M19: =IF($E19="YES",((IF($F19="Under 11hp",VLOOKUP($C19,emission_factors!$L$5:$N$18,2,),IF($F19="11-25hp",VLOOKUP($C19,emission_factors!$L$22:$N$33,2,),IF($F19="Over 25hp",VLOOKUP($C19,emission_factors!$L$36:$N$48,2,)))))*($G19)),((IF($F19="Under 11hp",VLOOKUP($C19,emission_factors!$L$5:$N$18,2,),IF($F19="11-25hp",VLOOKUP($C19,emission_factors!$L$22:$N$33,2,),IF($F19="Over 25hp",VLOOKUP($C19,emission_factors!$L$36:$N$48,2,)))))*($G19+$H19))) ->  | N19: =IF($E19="YES",((IF($F19="Under 11hp",VLOOKUP($C19+1,emission_factors!$L$5:$N$18,2,),IF($F19="11-25hp",VLOOKUP($C19+1,emission_factors!$L$22:$N$33,2,),IF($F19="Over 25hp",VLOOKUP($C19+1,emission_factors!$L$36:$N$48,2,)))))*($G19)),((IF($F19="Under 11hp",VLOOKUP($C19+1,emission_factors!$L$5:$N$18,2,),IF($F19="11-25hp",VLOOKUP($C19+1,emission_factors!$L$22:$N$33,2,),IF($F19="Over 25hp",VLOOKUP($C19+1,emission_factors!$L$36:$N$48,2,)))))*($G19+$H19))) ->  | O19: =IF($E19="YES",((IF($F19="Under 11hp",VLOOKUP($C19+2,emission_factors!$L$5:$N$18,2,),IF($F19="11-25hp",VLOOKUP($C19+2,emission_factors!$L$22:$N$33,2,),IF($F19="Over 25hp",VLOOKUP($C19+2,emission_factors!$L$36:$N$48,2,)))))*($G19)),((IF($F19="Under 11hp",VLOOKUP($C19+2,emission_factors!$L$5:$N$18,2,),IF($F19="11-25hp",VLOOKUP($C19+2,emission_factors!$L$22:$N$33,2,),IF($F19="Over 25hp",VLOOKUP($C19+2,emission_factors!$L$36:$N$48,2,)))))*($G19+$H19))) ->  | P19: =IF($E19="YES",((IF($F19="Under 11hp",VLOOKUP($C19+3,emission_factors!$L$5:$N$18,2,),IF($F19="11-25hp",VLOOKUP($C19+3,emission_factors!$L$22:$N$33,2,),IF($F19="Over 25hp",VLOOKUP($C19+3,emission_factors!$L$36:$N$48,2,)))))*($G19)),((IF($F19="Under 11hp",VLOOKUP($C19+3,emission_factors!$L$5:$N$18,2,),IF($F19="11-25hp",VLOOKUP($C19+3,emission_factors!$L$22:$N$33,2,),IF($F19="Over 25hp",VLOOKUP($C19+3,emission_factors!$L$36:$N$48,2,)))))*($G19+$H19))) ->  | Q19: =IF($E19="YES",((IF($F19="Under 11hp",VLOOKUP($C19+4,emission_factors!$L$5:$N$18,2,),IF($F19="11-25hp",VLOOKUP($C19+4,emission_factors!$L$22:$N$33,2,),IF($F19="Over 25hp",VLOOKUP($C19+4,emission_factors!$L$36:$N$48,2,)))))*($G19)),((IF($F19="Under 11hp",VLOOKUP($C19+4,emission_factors!$L$5:$N$18,2,),IF($F19="11-25hp",VLOOKUP($C19+4,emission_factors!$L$22:$N$33,2,),IF($F19="Over 25hp",VLOOKUP($C19+4,emission_factors!$L$36:$N$48,2,)))))*($G19+$H19))) ->  | R19: =IF($E19="YES",((IF($F19="Under 11hp",VLOOKUP($C19,emission_factors!$L$5:$N$18,3,),IF($F19="11-25hp",VLOOKUP($C19,emission_factors!$L$22:$N$33,3,),IF($F19="Over 25hp",VLOOKUP($C19,emission_factors!$L$36:$N$48,3,)))))*($G19)),((IF($F19="Under 11hp",VLOOKUP($C19,emission_factors!$L$5:$N$18,3,),IF($F19="11-25hp",VLOOKUP($C19,emission_factors!$L$22:$N$33,3,),IF($F19="Over 25hp",VLOOKUP($C19,emission_factors!$L$36:$N$48,3,)))))*($G19+$H19))) ->  | S19: =IF($E19="YES",((IF($F19="Under 11hp",VLOOKUP($C19+1,emission_factors!$L$5:$N$18,3,),IF($F19="11-25hp",VLOOKUP($C19+1,emission_factors!$L$22:$N$33,3,),IF($F19="Over 25hp",VLOOKUP($C19+1,emission_factors!$L$36:$N$48,3,)))))*($G19)),((IF($F19="Under 11hp",VLOOKUP($C19+1,emission_factors!$L$5:$N$18,3,),IF($F19="11-25hp",VLOOKUP($C19+1,emission_factors!$L$22:$N$33,3,),IF($F19="Over 25hp",VLOOKUP($C19+1,emission_factors!$L$36:$N$48,3,)))))*($G19+$H19))) ->  | T19: =IF($E19="YES",((IF($F19="Under 11hp",VLOOKUP($C19+2,emission_factors!$L$5:$N$18,3,),IF($F19="11-25hp",VLOOKUP($C19+2,emission_factors!$L$22:$N$33,3,),IF($F19="Over 25hp",VLOOKUP($C19+2,emission_factors!$L$36:$N$48,3,)))))*($G19)),((IF($F19="Under 11hp",VLOOKUP($C19+2,emission_factors!$L$5:$N$18,3,),IF($F19="11-25hp",VLOOKUP($C19+2,emission_factors!$L$22:$N$33,3,),IF($F19="Over 25hp",VLOOKUP($C19+2,emission_factors!$L$36:$N$48,3,)))))*($G19+$H19))) ->  | U19: =IF($E19="YES",((IF($F19="Under 11hp",VLOOKUP($C19+3,emission_factors!$L$5:$N$18,3,),IF($F19="11-25hp",VLOOKUP($C19+3,emission_factors!$L$22:$N$33,3,),IF($F19="Over 25hp",VLOOKUP($C19+3,emission_factors!$L$36:$N$48,3,)))))*($G19)),((IF($F19="Under 11hp",VLOOKUP($C19+3,emission_factors!$L$5:$N$18,3,),IF($F19="11-25hp",VLOOKUP($C19+3,emission_factors!$L$22:$N$33,3,),IF($F19="Over 25hp",VLOOKUP($C19+3,emission_factors!$L$36:$N$48,3,)))))*($G19+$H19))) ->  | V19: =IF($E19="YES",((IF($F19="Under 11hp",VLOOKUP($C19+4,emission_factors!$L$5:$N$18,3,),IF($F19="11-25hp",VLOOKUP($C19+4,emission_factors!$L$22:$N$33,3,),IF($F19="Over 25hp",VLOOKUP($C19+4,emission_factors!$L$36:$N$48,3,)))))*($G19)),((IF($F19="Under 11hp",VLOOKUP($C19+4,emission_factors!$L$5:$N$18,3,),IF($F19="11-25hp",VLOOKUP($C19+4,emission_factors!$L$22:$N$33,3,),IF($F19="Over 25hp",VLOOKUP($C19+4,emission_factors!$L$36:$N$48,3,)))))*($G19+$H19))) ->  | W19: 0 | X19: 0 | Y19: 0 | Z19: 0 | AA19: 0 | AB19: 0
A20: =IF(user_input_equipment!A20<>"",user_input_equipment!A20,"") ->  | B20: =IF(user_input_equipment!B20<>"",user_input_equipment!B20,"") ->  | C20: =IF(user_input_equipment!C20<>"",user_input_equipment!C20,"") ->  | D20: =IF(user_input_equipment!D20<>"",user_input_equipment!D20,"") ->  | E20: =IF(user_input_equipment!E20<>"",user_input_equipment!E20,"") ->  | F20: =IF(user_input_equipment!F20<>"",user_input_equipment!F20,"") ->  | G20: =IF(user_input_equipment!G20<>"",user_input_equipment!G20,"") ->  | H20: =IF(user_input_equipment!H20<>"",user_input_equipment!H20,"") ->  | I20: =IF(user_input_equipment!I20<>"",user_input_equipment!I20,"") ->  | J20: =IF(user_input_equipment!J20<>"",user_input_equipment!J20,"") ->  | K20: =IF(user_input_equipment!K20<>"",user_input_equipment!K20,"") ->  | L20: =IF(user_input_equipment!L20<>"",user_input_equipment!L20,"") ->  | M20: =IF($E20="YES",((IF($F20="Under 11hp",VLOOKUP($C20,emission_factors!$L$5:$N$18,2,),IF($F20="11-25hp",VLOOKUP($C20,emission_factors!$L$22:$N$33,2,),IF($F20="Over 25hp",VLOOKUP($C20,emission_factors!$L$36:$N$48,2,)))))*($G20)),((IF($F20="Under 11hp",VLOOKUP($C20,emission_factors!$L$5:$N$18,2,),IF($F20="11-25hp",VLOOKUP($C20,emission_factors!$L$22:$N$33,2,),IF($F20="Over 25hp",VLOOKUP($C20,emission_factors!$L$36:$N$48,2,)))))*($G20+$H20))) ->  | N20: =IF($E20="YES",((IF($F20="Under 11hp",VLOOKUP($C20+1,emission_factors!$L$5:$N$18,2,),IF($F20="11-25hp",VLOOKUP($C20+1,emission_factors!$L$22:$N$33,2,),IF($F20="Over 25hp",VLOOKUP($C20+1,emission_factors!$L$36:$N$48,2,)))))*($G20)),((IF($F20="Under 11hp",VLOOKUP($C20+1,emission_factors!$L$5:$N$18,2,),IF($F20="11-25hp",VLOOKUP($C20+1,emission_factors!$L$22:$N$33,2,),IF($F20="Over 25hp",VLOOKUP($C20+1,emission_factors!$L$36:$N$48,2,)))))*($G20+$H20))) ->  | O20: =IF($E20="YES",((IF($F20="Under 11hp",VLOOKUP($C20+2,emission_factors!$L$5:$N$18,2,),IF($F20="11-25hp",VLOOKUP($C20+2,emission_factors!$L$22:$N$33,2,),IF($F20="Over 25hp",VLOOKUP($C20+2,emission_factors!$L$36:$N$48,2,)))))*($G20)),((IF($F20="Under 11hp",VLOOKUP($C20+2,emission_factors!$L$5:$N$18,2,),IF($F20="11-25hp",VLOOKUP($C20+2,emission_factors!$L$22:$N$33,2,),IF($F20="Over 25hp",VLOOKUP($C20+2,emission_factors!$L$36:$N$48,2,)))))*($G20+$H20))) ->  | P20: =IF($E20="YES",((IF($F20="Under 11hp",VLOOKUP($C20+3,emission_factors!$L$5:$N$18,2,),IF($F20="11-25hp",VLOOKUP($C20+3,emission_factors!$L$22:$N$33,2,),IF($F20="Over 25hp",VLOOKUP($C20+3,emission_factors!$L$36:$N$48,2,)))))*($G20)),((IF($F20="Under 11hp",VLOOKUP($C20+3,emission_factors!$L$5:$N$18,2,),IF($F20="11-25hp",VLOOKUP($C20+3,emission_factors!$L$22:$N$33,2,),IF($F20="Over 25hp",VLOOKUP($C20+3,emission_factors!$L$36:$N$48,2,)))))*($G20+$H20))) ->  | Q20: =IF($E20="YES",((IF($F20="Under 11hp",VLOOKUP($C20+4,emission_factors!$L$5:$N$18,2,),IF($F20="11-25hp",VLOOKUP($C20+4,emission_factors!$L$22:$N$33,2,),IF($F20="Over 25hp",VLOOKUP($C20+4,emission_factors!$L$36:$N$48,2,)))))*($G20)),((IF($F20="Under 11hp",VLOOKUP($C20+4,emission_factors!$L$5:$N$18,2,),IF($F20="11-25hp",VLOOKUP($C20+4,emission_factors!$L$22:$N$33,2,),IF($F20="Over 25hp",VLOOKUP($C20+4,emission_factors!$L$36:$N$48,2,)))))*($G20+$H20))) ->  | R20: =IF($E20="YES",((IF($F20="Under 11hp",VLOOKUP($C20,emission_factors!$L$5:$N$18,3,),IF($F20="11-25hp",VLOOKUP($C20,emission_factors!$L$22:$N$33,3,),IF($F20="Over 25hp",VLOOKUP($C20,emission_factors!$L$36:$N$48,3,)))))*($G20)),((IF($F20="Under 11hp",VLOOKUP($C20,emission_factors!$L$5:$N$18,3,),IF($F20="11-25hp",VLOOKUP($C20,emission_factors!$L$22:$N$33,3,),IF($F20="Over 25hp",VLOOKUP($C20,emission_factors!$L$36:$N$48,3,)))))*($G20+$H20))) ->  | S20: =IF($E20="YES",((IF($F20="Under 11hp",VLOOKUP($C20+1,emission_factors!$L$5:$N$18,3,),IF($F20="11-25hp",VLOOKUP($C20+1,emission_factors!$L$22:$N$33,3,),IF($F20="Over 25hp",VLOOKUP($C20+1,emission_factors!$L$36:$N$48,3,)))))*($G20)),((IF($F20="Under 11hp",VLOOKUP($C20+1,emission_factors!$L$5:$N$18,3,),IF($F20="11-25hp",VLOOKUP($C20+1,emission_factors!$L$22:$N$33,3,),IF($F20="Over 25hp",VLOOKUP($C20+1,emission_factors!$L$36:$N$48,3,)))))*($G20+$H20))) ->  | T20: =IF($E20="YES",((IF($F20="Under 11hp",VLOOKUP($C20+2,emission_factors!$L$5:$N$18,3,),IF($F20="11-25hp",VLOOKUP($C20+2,emission_factors!$L$22:$N$33,3,),IF($F20="Over 25hp",VLOOKUP($C20+2,emission_factors!$L$36:$N$48,3,)))))*($G20)),((IF($F20="Under 11hp",VLOOKUP($C20+2,emission_factors!$L$5:$N$18,3,),IF($F20="11-25hp",VLOOKUP($C20+2,emission_factors!$L$22:$N$33,3,),IF($F20="Over 25hp",VLOOKUP($C20+2,emission_factors!$L$36:$N$48,3,)))))*($G20+$H20))) ->  | U20: =IF($E20="YES",((IF($F20="Under 11hp",VLOOKUP($C20+3,emission_factors!$L$5:$N$18,3,),IF($F20="11-25hp",VLOOKUP($C20+3,emission_factors!$L$22:$N$33,3,),IF($F20="Over 25hp",VLOOKUP($C20+3,emission_factors!$L$36:$N$48,3,)))))*($G20)),((IF($F20="Under 11hp",VLOOKUP($C20+3,emission_factors!$L$5:$N$18,3,),IF($F20="11-25hp",VLOOKUP($C20+3,emission_factors!$L$22:$N$33,3,),IF($F20="Over 25hp",VLOOKUP($C20+3,emission_factors!$L$36:$N$48,3,)))))*($G20+$H20))) ->  | V20: =IF($E20="YES",((IF($F20="Under 11hp",VLOOKUP($C20+4,emission_factors!$L$5:$N$18,3,),IF($F20="11-25hp",VLOOKUP($C20+4,emission_factors!$L$22:$N$33,3,),IF($F20="Over 25hp",VLOOKUP($C20+4,emission_factors!$L$36:$N$48,3,)))))*($G20)),((IF($F20="Under 11hp",VLOOKUP($C20+4,emission_factors!$L$5:$N$18,3,),IF($F20="11-25hp",VLOOKUP($C20+4,emission_factors!$L$22:$N$33,3,),IF($F20="Over 25hp",VLOOKUP($C20+4,emission_factors!$L$36:$N$48,3,)))))*($G20+$H20))) ->  | W20: 0 | X20: 0 | Y20: 0 | Z20: 0 | AA20: 0 | AB20: 0
A21: =IF(user_input_equipment!A21<>"",user_input_equipment!A21,"") ->  | B21: =IF(user_input_equipment!B21<>"",user_input_equipment!B21,"") ->  | C21: =IF(user_input_equipment!C21<>"",user_input_equipment!C21,"") ->  | D21: =IF(user_input_equipment!D21<>"",user_input_equipment!D21,"") ->  | E21: =IF(user_input_equipment!E21<>"",user_input_equipment!E21,"") ->  | F21: =IF(user_input_equipment!F21<>"",user_input_equipment!F21,"") ->  | G21: =IF(user_input_equipment!G21<>"",user_input_equipment!G21,"") ->  | H21: =IF(user_input_equipment!H21<>"",user_input_equipment!H21,"") ->  | I21: =IF(user_input_equipment!I21<>"",user_input_equipment!I21,"") ->  | J21: =IF(user_input_equipment!J21<>"",user_input_equipment!J21,"") ->  | K21: =IF(user_input_equipment!K21<>"",user_input_equipment!K21,"") ->  | L21: =IF(user_input_equipment!L21<>"",user_input_equipment!L21,"") ->  | M21: =IF($E21="YES",((IF($F21="Under 11hp",VLOOKUP($C21,emission_factors!$L$5:$N$18,2,),IF($F21="11-25hp",VLOOKUP($C21,emission_factors!$L$22:$N$33,2,),IF($F21="Over 25hp",VLOOKUP($C21,emission_factors!$L$36:$N$48,2,)))))*($G21)),((IF($F21="Under 11hp",VLOOKUP($C21,emission_factors!$L$5:$N$18,2,),IF($F21="11-25hp",VLOOKUP($C21,emission_factors!$L$22:$N$33,2,),IF($F21="Over 25hp",VLOOKUP($C21,emission_factors!$L$36:$N$48,2,)))))*($G21+$H21))) ->  | N21: =IF($E21="YES",((IF($F21="Under 11hp",VLOOKUP($C21+1,emission_factors!$L$5:$N$18,2,),IF($F21="11-25hp",VLOOKUP($C21+1,emission_factors!$L$22:$N$33,2,),IF($F21="Over 25hp",VLOOKUP($C21+1,emission_factors!$L$36:$N$48,2,)))))*($G21)),((IF($F21="Under 11hp",VLOOKUP($C21+1,emission_factors!$L$5:$N$18,2,),IF($F21="11-25hp",VLOOKUP($C21+1,emission_factors!$L$22:$N$33,2,),IF($F21="Over 25hp",VLOOKUP($C21+1,emission_factors!$L$36:$N$48,2,)))))*($G21+$H21))) ->  | O21: =IF($E21="YES",((IF($F21="Under 11hp",VLOOKUP($C21+2,emission_factors!$L$5:$N$18,2,),IF($F21="11-25hp",VLOOKUP($C21+2,emission_factors!$L$22:$N$33,2,),IF($F21="Over 25hp",VLOOKUP($C21+2,emission_factors!$L$36:$N$48,2,)))))*($G21)),((IF($F21="Under 11hp",VLOOKUP($C21+2,emission_factors!$L$5:$N$18,2,),IF($F21="11-25hp",VLOOKUP($C21+2,emission_factors!$L$22:$N$33,2,),IF($F21="Over 25hp",VLOOKUP($C21+2,emission_factors!$L$36:$N$48,2,)))))*($G21+$H21))) ->  | P21: =IF($E21="YES",((IF($F21="Under 11hp",VLOOKUP($C21+3,emission_factors!$L$5:$N$18,2,),IF($F21="11-25hp",VLOOKUP($C21+3,emission_factors!$L$22:$N$33,2,),IF($F21="Over 25hp",VLOOKUP($C21+3,emission_factors!$L$36:$N$48,2,)))))*($G21)),((IF($F21="Under 11hp",VLOOKUP($C21+3,emission_factors!$L$5:$N$18,2,),IF($F21="11-25hp",VLOOKUP($C21+3,emission_factors!$L$22:$N$33,2,),IF($F21="Over 25hp",VLOOKUP($C21+3,emission_factors!$L$36:$N$48,2,)))))*($G21+$H21))) ->  | Q21: =IF($E21="YES",((IF($F21="Under 11hp",VLOOKUP($C21+4,emission_factors!$L$5:$N$18,2,),IF($F21="11-25hp",VLOOKUP($C21+4,emission_factors!$L$22:$N$33,2,),IF($F21="Over 25hp",VLOOKUP($C21+4,emission_factors!$L$36:$N$48,2,)))))*($G21)),((IF($F21="Under 11hp",VLOOKUP($C21+4,emission_factors!$L$5:$N$18,2,),IF($F21="11-25hp",VLOOKUP($C21+4,emission_factors!$L$22:$N$33,2,),IF($F21="Over 25hp",VLOOKUP($C21+4,emission_factors!$L$36:$N$48,2,)))))*($G21+$H21))) ->  | R21: =IF($E21="YES",((IF($F21="Under 11hp",VLOOKUP($C21,emission_factors!$L$5:$N$18,3,),IF($F21="11-25hp",VLOOKUP($C21,emission_factors!$L$22:$N$33,3,),IF($F21="Over 25hp",VLOOKUP($C21,emission_factors!$L$36:$N$48,3,)))))*($G21)),((IF($F21="Under 11hp",VLOOKUP($C21,emission_factors!$L$5:$N$18,3,),IF($F21="11-25hp",VLOOKUP($C21,emission_factors!$L$22:$N$33,3,),IF($F21="Over 25hp",VLOOKUP($C21,emission_factors!$L$36:$N$48,3,)))))*($G21+$H21))) ->  | S21: =IF($E21="YES",((IF($F21="Under 11hp",VLOOKUP($C21+1,emission_factors!$L$5:$N$18,3,),IF($F21="11-25hp",VLOOKUP($C21+1,emission_factors!$L$22:$N$33,3,),IF($F21="Over 25hp",VLOOKUP($C21+1,emission_factors!$L$36:$N$48,3,)))))*($G21)),((IF($F21="Under 11hp",VLOOKUP($C21+1,emission_factors!$L$5:$N$18,3,),IF($F21="11-25hp",VLOOKUP($C21+1,emission_factors!$L$22:$N$33,3,),IF($F21="Over 25hp",VLOOKUP($C21+1,emission_factors!$L$36:$N$48,3,)))))*($G21+$H21))) ->  | T21: =IF($E21="YES",((IF($F21="Under 11hp",VLOOKUP($C21+2,emission_factors!$L$5:$N$18,3,),IF($F21="11-25hp",VLOOKUP($C21+2,emission_factors!$L$22:$N$33,3,),IF($F21="Over 25hp",VLOOKUP($C21+2,emission_factors!$L$36:$N$48,3,)))))*($G21)),((IF($F21="Under 11hp",VLOOKUP($C21+2,emission_factors!$L$5:$N$18,3,),IF($F21="11-25hp",VLOOKUP($C21+2,emission_factors!$L$22:$N$33,3,),IF($F21="Over 25hp",VLOOKUP($C21+2,emission_factors!$L$36:$N$48,3,)))))*($G21+$H21))) ->  | U21: =IF($E21="YES",((IF($F21="Under 11hp",VLOOKUP($C21+3,emission_factors!$L$5:$N$18,3,),IF($F21="11-25hp",VLOOKUP($C21+3,emission_factors!$L$22:$N$33,3,),IF($F21="Over 25hp",VLOOKUP($C21+3,emission_factors!$L$36:$N$48,3,)))))*($G21)),((IF($F21="Under 11hp",VLOOKUP($C21+3,emission_factors!$L$5:$N$18,3,),IF($F21="11-25hp",VLOOKUP($C21+3,emission_factors!$L$22:$N$33,3,),IF($F21="Over 25hp",VLOOKUP($C21+3,emission_factors!$L$36:$N$48,3,)))))*($G21+$H21))) ->  | V21: =IF($E21="YES",((IF($F21="Under 11hp",VLOOKUP($C21+4,emission_factors!$L$5:$N$18,3,),IF($F21="11-25hp",VLOOKUP($C21+4,emission_factors!$L$22:$N$33,3,),IF($F21="Over 25hp",VLOOKUP($C21+4,emission_factors!$L$36:$N$48,3,)))))*($G21)),((IF($F21="Under 11hp",VLOOKUP($C21+4,emission_factors!$L$5:$N$18,3,),IF($F21="11-25hp",VLOOKUP($C21+4,emission_factors!$L$22:$N$33,3,),IF($F21="Over 25hp",VLOOKUP($C21+4,emission_factors!$L$36:$N$48,3,)))))*($G21+$H21))) ->  | W21: 0 | X21: 0 | Y21: 0 | Z21: 0 | AA21: 0 | AB21: 0
A22: =IF(user_input_equipment!A22<>"",user_input_equipment!A22,"") ->  | B22: =IF(user_input_equipment!B22<>"",user_input_equipment!B22,"") ->  | C22: =IF(user_input_equipment!C22<>"",user_input_equipment!C22,"") ->  | D22: =IF(user_input_equipment!D22<>"",user_input_equipment!D22,"") ->  | E22: =IF(user_input_equipment!E22<>"",user_input_equipment!E22,"") ->  | F22: =IF(user_input_equipment!F22<>"",user_input_equipment!F22,"") ->  | G22: =IF(user_input_equipment!G22<>"",user_input_equipment!G22,"") ->  | H22: =IF(user_input_equipment!H22<>"",user_input_equipment!H22,"") ->  | I22: =IF(user_input_equipment!I22<>"",user_input_equipment!I22,"") ->  | J22: =IF(user_input_equipment!J22<>"",user_input_equipment!J22,"") ->  | K22: =IF(user_input_equipment!K22<>"",user_input_equipment!K22,"") ->  | L22: =IF(user_input_equipment!L22<>"",user_input_equipment!L22,"") ->  | M22: =IF($E22="YES",((IF($F22="Under 11hp",VLOOKUP($C22,emission_factors!$L$5:$N$18,2,),IF($F22="11-25hp",VLOOKUP($C22,emission_factors!$L$22:$N$33,2,),IF($F22="Over 25hp",VLOOKUP($C22,emission_factors!$L$36:$N$48,2,)))))*($G22)),((IF($F22="Under 11hp",VLOOKUP($C22,emission_factors!$L$5:$N$18,2,),IF($F22="11-25hp",VLOOKUP($C22,emission_factors!$L$22:$N$33,2,),IF($F22="Over 25hp",VLOOKUP($C22,emission_factors!$L$36:$N$48,2,)))))*($G22+$H22))) ->  | N22: =IF($E22="YES",((IF($F22="Under 11hp",VLOOKUP($C22+1,emission_factors!$L$5:$N$18,2,),IF($F22="11-25hp",VLOOKUP($C22+1,emission_factors!$L$22:$N$33,2,),IF($F22="Over 25hp",VLOOKUP($C22+1,emission_factors!$L$36:$N$48,2,)))))*($G22)),((IF($F22="Under 11hp",VLOOKUP($C22+1,emission_factors!$L$5:$N$18,2,),IF($F22="11-25hp",VLOOKUP($C22+1,emission_factors!$L$22:$N$33,2,),IF($F22="Over 25hp",VLOOKUP($C22+1,emission_factors!$L$36:$N$48,2,)))))*($G22+$H22))) ->  | O22: =IF($E22="YES",((IF($F22="Under 11hp",VLOOKUP($C22+2,emission_factors!$L$5:$N$18,2,),IF($F22="11-25hp",VLOOKUP($C22+2,emission_factors!$L$22:$N$33,2,),IF($F22="Over 25hp",VLOOKUP($C22+2,emission_factors!$L$36:$N$48,2,)))))*($G22)),((IF($F22="Under 11hp",VLOOKUP($C22+2,emission_factors!$L$5:$N$18,2,),IF($F22="11-25hp",VLOOKUP($C22+2,emission_factors!$L$22:$N$33,2,),IF($F22="Over 25hp",VLOOKUP($C22+2,emission_factors!$L$36:$N$48,2,)))))*($G22+$H22))) ->  | P22: =IF($E22="YES",((IF($F22="Under 11hp",VLOOKUP($C22+3,emission_factors!$L$5:$N$18,2,),IF($F22="11-25hp",VLOOKUP($C22+3,emission_factors!$L$22:$N$33,2,),IF($F22="Over 25hp",VLOOKUP($C22+3,emission_factors!$L$36:$N$48,2,)))))*($G22)),((IF($F22="Under 11hp",VLOOKUP($C22+3,emission_factors!$L$5:$N$18,2,),IF($F22="11-25hp",VLOOKUP($C22+3,emission_factors!$L$22:$N$33,2,),IF($F22="Over 25hp",VLOOKUP($C22+3,emission_factors!$L$36:$N$48,2,)))))*($G22+$H22))) ->  | Q22: =IF($E22="YES",((IF($F22="Under 11hp",VLOOKUP($C22+4,emission_factors!$L$5:$N$18,2,),IF($F22="11-25hp",VLOOKUP($C22+4,emission_factors!$L$22:$N$33,2,),IF($F22="Over 25hp",VLOOKUP($C22+4,emission_factors!$L$36:$N$48,2,)))))*($G22)),((IF($F22="Under 11hp",VLOOKUP($C22+4,emission_factors!$L$5:$N$18,2,),IF($F22="11-25hp",VLOOKUP($C22+4,emission_factors!$L$22:$N$33,2,),IF($F22="Over 25hp",VLOOKUP($C22+4,emission_factors!$L$36:$N$48,2,)))))*($G22+$H22))) ->  | R22: =IF($E22="YES",((IF($F22="Under 11hp",VLOOKUP($C22,emission_factors!$L$5:$N$18,3,),IF($F22="11-25hp",VLOOKUP($C22,emission_factors!$L$22:$N$33,3,),IF($F22="Over 25hp",VLOOKUP($C22,emission_factors!$L$36:$N$48,3,)))))*($G22)),((IF($F22="Under 11hp",VLOOKUP($C22,emission_factors!$L$5:$N$18,3,),IF($F22="11-25hp",VLOOKUP($C22,emission_factors!$L$22:$N$33,3,),IF($F22="Over 25hp",VLOOKUP($C22,emission_factors!$L$36:$N$48,3,)))))*($G22+$H22))) ->  | S22: =IF($E22="YES",((IF($F22="Under 11hp",VLOOKUP($C22+1,emission_factors!$L$5:$N$18,3,),IF($F22="11-25hp",VLOOKUP($C22+1,emission_factors!$L$22:$N$33,3,),IF($F22="Over 25hp",VLOOKUP($C22+1,emission_factors!$L$36:$N$48,3,)))))*($G22)),((IF($F22="Under 11hp",VLOOKUP($C22+1,emission_factors!$L$5:$N$18,3,),IF($F22="11-25hp",VLOOKUP($C22+1,emission_factors!$L$22:$N$33,3,),IF($F22="Over 25hp",VLOOKUP($C22+1,emission_factors!$L$36:$N$48,3,)))))*($G22+$H22))) ->  | T22: =IF($E22="YES",((IF($F22="Under 11hp",VLOOKUP($C22+2,emission_factors!$L$5:$N$18,3,),IF($F22="11-25hp",VLOOKUP($C22+2,emission_factors!$L$22:$N$33,3,),IF($F22="Over 25hp",VLOOKUP($C22+2,emission_factors!$L$36:$N$48,3,)))))*($G22)),((IF($F22="Under 11hp",VLOOKUP($C22+2,emission_factors!$L$5:$N$18,3,),IF($F22="11-25hp",VLOOKUP($C22+2,emission_factors!$L$22:$N$33,3,),IF($F22="Over 25hp",VLOOKUP($C22+2,emission_factors!$L$36:$N$48,3,)))))*($G22+$H22))) ->  | U22: =IF($E22="YES",((IF($F22="Under 11hp",VLOOKUP($C22+3,emission_factors!$L$5:$N$18,3,),IF($F22="11-25hp",VLOOKUP($C22+3,emission_factors!$L$22:$N$33,3,),IF($F22="Over 25hp",VLOOKUP($C22+3,emission_factors!$L$36:$N$48,3,)))))*($G22)),((IF($F22="Under 11hp",VLOOKUP($C22+3,emission_factors!$L$5:$N$18,3,),IF($F22="11-25hp",VLOOKUP($C22+3,emission_factors!$L$22:$N$33,3,),IF($F22="Over 25hp",VLOOKUP($C22+3,emission_factors!$L$36:$N$48,3,)))))*($G22+$H22))) ->  | V22: =IF($E22="YES",((IF($F22="Under 11hp",VLOOKUP($C22+4,emission_factors!$L$5:$N$18,3,),IF($F22="11-25hp",VLOOKUP($C22+4,emission_factors!$L$22:$N$33,3,),IF($F22="Over 25hp",VLOOKUP($C22+4,emission_factors!$L$36:$N$48,3,)))))*($G22)),((IF($F22="Under 11hp",VLOOKUP($C22+4,emission_factors!$L$5:$N$18,3,),IF($F22="11-25hp",VLOOKUP($C22+4,emission_factors!$L$22:$N$33,3,),IF($F22="Over 25hp",VLOOKUP($C22+4,emission_factors!$L$36:$N$48,3,)))))*($G22+$H22))) ->  | W22: 0 | X22: 0 | Y22: 0 | Z22: 0 | AA22: 0 | AB22: 0
A23: =IF(user_input_equipment!A23<>"",user_input_equipment!A23,"") ->  | B23: =IF(user_input_equipment!B23<>"",user_input_equipment!B23,"") ->  | C23: =IF(user_input_equipment!C23<>"",user_input_equipment!C23,"") ->  | D23: =IF(user_input_equipment!D23<>"",user_input_equipment!D23,"") ->  | E23: =IF(user_input_equipment!E23<>"",user_input_equipment!E23,"") ->  | F23: =IF(user_input_equipment!F23<>"",user_input_equipment!F23,"") ->  | G23: =IF(user_input_equipment!G23<>"",user_input_equipment!G23,"") ->  | H23: =IF(user_input_equipment!H23<>"",user_input_equipment!H23,"") ->  | I23: =IF(user_input_equipment!I23<>"",user_input_equipment!I23,"") ->  | J23: =IF(user_input_equipment!J23<>"",user_input_equipment!J23,"") ->  | K23: =IF(user_input_equipment!K23<>"",user_input_equipment!K23,"") ->  | L23: =IF(user_input_equipment!L23<>"",user_input_equipment!L23,"") ->  | M23: =IF($E23="YES",((IF($F23="Under 11hp",VLOOKUP($C23,emission_factors!$L$5:$N$18,2,),IF($F23="11-25hp",VLOOKUP($C23,emission_factors!$L$22:$N$33,2,),IF($F23="Over 25hp",VLOOKUP($C23,emission_factors!$L$36:$N$48,2,)))))*($G23)),((IF($F23="Under 11hp",VLOOKUP($C23,emission_factors!$L$5:$N$18,2,),IF($F23="11-25hp",VLOOKUP($C23,emission_factors!$L$22:$N$33,2,),IF($F23="Over 25hp",VLOOKUP($C23,emission_factors!$L$36:$N$48,2,)))))*($G23+$H23))) ->  | N23: =IF($E23="YES",((IF($F23="Under 11hp",VLOOKUP($C23+1,emission_factors!$L$5:$N$18,2,),IF($F23="11-25hp",VLOOKUP($C23+1,emission_factors!$L$22:$N$33,2,),IF($F23="Over 25hp",VLOOKUP($C23+1,emission_factors!$L$36:$N$48,2,)))))*($G23)),((IF($F23="Under 11hp",VLOOKUP($C23+1,emission_factors!$L$5:$N$18,2,),IF($F23="11-25hp",VLOOKUP($C23+1,emission_factors!$L$22:$N$33,2,),IF($F23="Over 25hp",VLOOKUP($C23+1,emission_factors!$L$36:$N$48,2,)))))*($G23+$H23))) ->  | O23: =IF($E23="YES",((IF($F23="Under 11hp",VLOOKUP($C23+2,emission_factors!$L$5:$N$18,2,),IF($F23="11-25hp",VLOOKUP($C23+2,emission_factors!$L$22:$N$33,2,),IF($F23="Over 25hp",VLOOKUP($C23+2,emission_factors!$L$36:$N$48,2,)))))*($G23)),((IF($F23="Under 11hp",VLOOKUP($C23+2,emission_factors!$L$5:$N$18,2,),IF($F23="11-25hp",VLOOKUP($C23+2,emission_factors!$L$22:$N$33,2,),IF($F23="Over 25hp",VLOOKUP($C23+2,emission_factors!$L$36:$N$48,2,)))))*($G23+$H23))) ->  | P23: =IF($E23="YES",((IF($F23="Under 11hp",VLOOKUP($C23+3,emission_factors!$L$5:$N$18,2,),IF($F23="11-25hp",VLOOKUP($C23+3,emission_factors!$L$22:$N$33,2,),IF($F23="Over 25hp",VLOOKUP($C23+3,emission_factors!$L$36:$N$48,2,)))))*($G23)),((IF($F23="Under 11hp",VLOOKUP($C23+3,emission_factors!$L$5:$N$18,2,),IF($F23="11-25hp",VLOOKUP($C23+3,emission_factors!$L$22:$N$33,2,),IF($F23="Over 25hp",VLOOKUP($C23+3,emission_factors!$L$36:$N$48,2,)))))*($G23+$H23))) ->  | Q23: =IF($E23="YES",((IF($F23="Under 11hp",VLOOKUP($C23+4,emission_factors!$L$5:$N$18,2,),IF($F23="11-25hp",VLOOKUP($C23+4,emission_factors!$L$22:$N$33,2,),IF($F23="Over 25hp",VLOOKUP($C23+4,emission_factors!$L$36:$N$48,2,)))))*($G23)),((IF($F23="Under 11hp",VLOOKUP($C23+4,emission_factors!$L$5:$N$18,2,),IF($F23="11-25hp",VLOOKUP($C23+4,emission_factors!$L$22:$N$33,2,),IF($F23="Over 25hp",VLOOKUP($C23+4,emission_factors!$L$36:$N$48,2,)))))*($G23+$H23))) ->  | R23: =IF($E23="YES",((IF($F23="Under 11hp",VLOOKUP($C23,emission_factors!$L$5:$N$18,3,),IF($F23="11-25hp",VLOOKUP($C23,emission_factors!$L$22:$N$33,3,),IF($F23="Over 25hp",VLOOKUP($C23,emission_factors!$L$36:$N$48,3,)))))*($G23)),((IF($F23="Under 11hp",VLOOKUP($C23,emission_factors!$L$5:$N$18,3,),IF($F23="11-25hp",VLOOKUP($C23,emission_factors!$L$22:$N$33,3,),IF($F23="Over 25hp",VLOOKUP($C23,emission_factors!$L$36:$N$48,3,)))))*($G23+$H23))) ->  | S23: =IF($E23="YES",((IF($F23="Under 11hp",VLOOKUP($C23+1,emission_factors!$L$5:$N$18,3,),IF($F23="11-25hp",VLOOKUP($C23+1,emission_factors!$L$22:$N$33,3,),IF($F23="Over 25hp",VLOOKUP($C23+1,emission_factors!$L$36:$N$48,3,)))))*($G23)),((IF($F23="Under 11hp",VLOOKUP($C23+1,emission_factors!$L$5:$N$18,3,),IF($F23="11-25hp",VLOOKUP($C23+1,emission_factors!$L$22:$N$33,3,),IF($F23="Over 25hp",VLOOKUP($C23+1,emission_factors!$L$36:$N$48,3,)))))*($G23+$H23))) ->  | T23: =IF($E23="YES",((IF($F23="Under 11hp",VLOOKUP($C23+2,emission_factors!$L$5:$N$18,3,),IF($F23="11-25hp",VLOOKUP($C23+2,emission_factors!$L$22:$N$33,3,),IF($F23="Over 25hp",VLOOKUP($C23+2,emission_factors!$L$36:$N$48,3,)))))*($G23)),((IF($F23="Under 11hp",VLOOKUP($C23+2,emission_factors!$L$5:$N$18,3,),IF($F23="11-25hp",VLOOKUP($C23+2,emission_factors!$L$22:$N$33,3,),IF($F23="Over 25hp",VLOOKUP($C23+2,emission_factors!$L$36:$N$48,3,)))))*($G23+$H23))) ->  | U23: =IF($E23="YES",((IF($F23="Under 11hp",VLOOKUP($C23+3,emission_factors!$L$5:$N$18,3,),IF($F23="11-25hp",VLOOKUP($C23+3,emission_factors!$L$22:$N$33,3,),IF($F23="Over 25hp",VLOOKUP($C23+3,emission_factors!$L$36:$N$48,3,)))))*($G23)),((IF($F23="Under 11hp",VLOOKUP($C23+3,emission_factors!$L$5:$N$18,3,),IF($F23="11-25hp",VLOOKUP($C23+3,emission_factors!$L$22:$N$33,3,),IF($F23="Over 25hp",VLOOKUP($C23+3,emission_factors!$L$36:$N$48,3,)))))*($G23+$H23))) ->  | V23: =IF($E23="YES",((IF($F23="Under 11hp",VLOOKUP($C23+4,emission_factors!$L$5:$N$18,3,),IF($F23="11-25hp",VLOOKUP($C23+4,emission_factors!$L$22:$N$33,3,),IF($F23="Over 25hp",VLOOKUP($C23+4,emission_factors!$L$36:$N$48,3,)))))*($G23)),((IF($F23="Under 11hp",VLOOKUP($C23+4,emission_factors!$L$5:$N$18,3,),IF($F23="11-25hp",VLOOKUP($C23+4,emission_factors!$L$22:$N$33,3,),IF($F23="Over 25hp",VLOOKUP($C23+4,emission_factors!$L$36:$N$48,3,)))))*($G23+$H23))) ->  | W23: 0 | X23: 0 | Y23: 0 | Z23: 0 | AA23: 0 | AB23: 0
A24: =IF(user_input_equipment!A24<>"",user_input_equipment!A24,"") ->  | B24: =IF(user_input_equipment!B24<>"",user_input_equipment!B24,"") ->  | C24: =IF(user_input_equipment!C24<>"",user_input_equipment!C24,"") ->  | D24: =IF(user_input_equipment!D24<>"",user_input_equipment!D24,"") ->  | E24: =IF(user_input_equipment!E24<>"",user_input_equipment!E24,"") ->  | F24: =IF(user_input_equipment!F24<>"",user_input_equipment!F24,"") ->  | G24: =IF(user_input_equipment!G24<>"",user_input_equipment!G24,"") ->  | H24: =IF(user_input_equipment!H24<>"",user_input_equipment!H24,"") ->  | I24: =IF(user_input_equipment!I24<>"",user_input_equipment!I24,"") ->  | J24: =IF(user_input_equipment!J24<>"",user_input_equipment!J24,"") ->  | K24: =IF(user_input_equipment!K24<>"",user_input_equipment!K24,"") ->  | L24: =IF(user_input_equipment!L24<>"",user_input_equipment!L24,"") ->  | M24: =IF($E24="YES",((IF($F24="Under 11hp",VLOOKUP($C24,emission_factors!$L$5:$N$18,2,),IF($F24="11-25hp",VLOOKUP($C24,emission_factors!$L$22:$N$33,2,),IF($F24="Over 25hp",VLOOKUP($C24,emission_factors!$L$36:$N$48,2,)))))*($G24)),((IF($F24="Under 11hp",VLOOKUP($C24,emission_factors!$L$5:$N$18,2,),IF($F24="11-25hp",VLOOKUP($C24,emission_factors!$L$22:$N$33,2,),IF($F24="Over 25hp",VLOOKUP($C24,emission_factors!$L$36:$N$48,2,)))))*($G24+$H24))) ->  | N24: =IF($E24="YES",((IF($F24="Under 11hp",VLOOKUP($C24+1,emission_factors!$L$5:$N$18,2,),IF($F24="11-25hp",VLOOKUP($C24+1,emission_factors!$L$22:$N$33,2,),IF($F24="Over 25hp",VLOOKUP($C24+1,emission_factors!$L$36:$N$48,2,)))))*($G24)),((IF($F24="Under 11hp",VLOOKUP($C24+1,emission_factors!$L$5:$N$18,2,),IF($F24="11-25hp",VLOOKUP($C24+1,emission_factors!$L$22:$N$33,2,),IF($F24="Over 25hp",VLOOKUP($C24+1,emission_factors!$L$36:$N$48,2,)))))*($G24+$H24))) ->  | O24: =IF($E24="YES",((IF($F24="Under 11hp",VLOOKUP($C24+2,emission_factors!$L$5:$N$18,2,),IF($F24="11-25hp",VLOOKUP($C24+2,emission_factors!$L$22:$N$33,2,),IF($F24="Over 25hp",VLOOKUP($C24+2,emission_factors!$L$36:$N$48,2,)))))*($G24)),((IF($F24="Under 11hp",VLOOKUP($C24+2,emission_factors!$L$5:$N$18,2,),IF($F24="11-25hp",VLOOKUP($C24+2,emission_factors!$L$22:$N$33,2,),IF($F24="Over 25hp",VLOOKUP($C24+2,emission_factors!$L$36:$N$48,2,)))))*($G24+$H24))) ->  | P24: =IF($E24="YES",((IF($F24="Under 11hp",VLOOKUP($C24+3,emission_factors!$L$5:$N$18,2,),IF($F24="11-25hp",VLOOKUP($C24+3,emission_factors!$L$22:$N$33,2,),IF($F24="Over 25hp",VLOOKUP($C24+3,emission_factors!$L$36:$N$48,2,)))))*($G24)),((IF($F24="Under 11hp",VLOOKUP($C24+3,emission_factors!$L$5:$N$18,2,),IF($F24="11-25hp",VLOOKUP($C24+3,emission_factors!$L$22:$N$33,2,),IF($F24="Over 25hp",VLOOKUP($C24+3,emission_factors!$L$36:$N$48,2,)))))*($G24+$H24))) ->  | Q24: =IF($E24="YES",((IF($F24="Under 11hp",VLOOKUP($C24+4,emission_factors!$L$5:$N$18,2,),IF($F24="11-25hp",VLOOKUP($C24+4,emission_factors!$L$22:$N$33,2,),IF($F24="Over 25hp",VLOOKUP($C24+4,emission_factors!$L$36:$N$48,2,)))))*($G24)),((IF($F24="Under 11hp",VLOOKUP($C24+4,emission_factors!$L$5:$N$18,2,),IF($F24="11-25hp",VLOOKUP($C24+4,emission_factors!$L$22:$N$33,2,),IF($F24="Over 25hp",VLOOKUP($C24+4,emission_factors!$L$36:$N$48,2,)))))*($G24+$H24))) ->  | R24: =IF($E24="YES",((IF($F24="Under 11hp",VLOOKUP($C24,emission_factors!$L$5:$N$18,3,),IF($F24="11-25hp",VLOOKUP($C24,emission_factors!$L$22:$N$33,3,),IF($F24="Over 25hp",VLOOKUP($C24,emission_factors!$L$36:$N$48,3,)))))*($G24)),((IF($F24="Under 11hp",VLOOKUP($C24,emission_factors!$L$5:$N$18,3,),IF($F24="11-25hp",VLOOKUP($C24,emission_factors!$L$22:$N$33,3,),IF($F24="Over 25hp",VLOOKUP($C24,emission_factors!$L$36:$N$48,3,)))))*($G24+$H24))) ->  | S24: =IF($E24="YES",((IF($F24="Under 11hp",VLOOKUP($C24+1,emission_factors!$L$5:$N$18,3,),IF($F24="11-25hp",VLOOKUP($C24+1,emission_factors!$L$22:$N$33,3,),IF($F24="Over 25hp",VLOOKUP($C24+1,emission_factors!$L$36:$N$48,3,)))))*($G24)),((IF($F24="Under 11hp",VLOOKUP($C24+1,emission_factors!$L$5:$N$18,3,),IF($F24="11-25hp",VLOOKUP($C24+1,emission_factors!$L$22:$N$33,3,),IF($F24="Over 25hp",VLOOKUP($C24+1,emission_factors!$L$36:$N$48,3,)))))*($G24+$H24))) ->  | T24: =IF($E24="YES",((IF($F24="Under 11hp",VLOOKUP($C24+2,emission_factors!$L$5:$N$18,3,),IF($F24="11-25hp",VLOOKUP($C24+2,emission_factors!$L$22:$N$33,3,),IF($F24="Over 25hp",VLOOKUP($C24+2,emission_factors!$L$36:$N$48,3,)))))*($G24)),((IF($F24="Under 11hp",VLOOKUP($C24+2,emission_factors!$L$5:$N$18,3,),IF($F24="11-25hp",VLOOKUP($C24+2,emission_factors!$L$22:$N$33,3,),IF($F24="Over 25hp",VLOOKUP($C24+2,emission_factors!$L$36:$N$48,3,)))))*($G24+$H24))) ->  | U24: =IF($E24="YES",((IF($F24="Under 11hp",VLOOKUP($C24+3,emission_factors!$L$5:$N$18,3,),IF($F24="11-25hp",VLOOKUP($C24+3,emission_factors!$L$22:$N$33,3,),IF($F24="Over 25hp",VLOOKUP($C24+3,emission_factors!$L$36:$N$48,3,)))))*($G24)),((IF($F24="Under 11hp",VLOOKUP($C24+3,emission_factors!$L$5:$N$18,3,),IF($F24="11-25hp",VLOOKUP($C24+3,emission_factors!$L$22:$N$33,3,),IF($F24="Over 25hp",VLOOKUP($C24+3,emission_factors!$L$36:$N$48,3,)))))*($G24+$H24))) ->  | V24: =IF($E24="YES",((IF($F24="Under 11hp",VLOOKUP($C24+4,emission_factors!$L$5:$N$18,3,),IF($F24="11-25hp",VLOOKUP($C24+4,emission_factors!$L$22:$N$33,3,),IF($F24="Over 25hp",VLOOKUP($C24+4,emission_factors!$L$36:$N$48,3,)))))*($G24)),((IF($F24="Under 11hp",VLOOKUP($C24+4,emission_factors!$L$5:$N$18,3,),IF($F24="11-25hp",VLOOKUP($C24+4,emission_factors!$L$22:$N$33,3,),IF($F24="Over 25hp",VLOOKUP($C24+4,emission_factors!$L$36:$N$48,3,)))))*($G24+$H24))) ->  | W24: 0 | X24: 0 | Y24: 0 | Z24: 0 | AA24: 0 | AB24: 0
A25: =IF(user_input_equipment!A25<>"",user_input_equipment!A25,"") ->  | B25: =IF(user_input_equipment!B25<>"",user_input_equipment!B25,"") ->  | C25: =IF(user_input_equipment!C25<>"",user_input_equipment!C25,"") ->  | D25: =IF(user_input_equipment!D25<>"",user_input_equipment!D25,"") ->  | E25: =IF(user_input_equipment!E25<>"",user_input_equipment!E25,"") ->  | F25: =IF(user_input_equipment!F25<>"",user_input_equipment!F25,"") ->  | G25: =IF(user_input_equipment!G25<>"",user_input_equipment!G25,"") ->  | H25: =IF(user_input_equipment!H25<>"",user_input_equipment!H25,"") ->  | I25: =IF(user_input_equipment!I25<>"",user_input_equipment!I25,"") ->  | J25: =IF(user_input_equipment!J25<>"",user_input_equipment!J25,"") ->  | K25: =IF(user_input_equipment!K25<>"",user_input_equipment!K25,"") ->  | L25: =IF(user_input_equipment!L25<>"",user_input_equipment!L25,"") ->  | M25: =IF($E25="YES",((IF($F25="Under 11hp",VLOOKUP($C25,emission_factors!$L$5:$N$18,2,),IF($F25="11-25hp",VLOOKUP($C25,emission_factors!$L$22:$N$33,2,),IF($F25="Over 25hp",VLOOKUP($C25,emission_factors!$L$36:$N$48,2,)))))*($G25)),((IF($F25="Under 11hp",VLOOKUP($C25,emission_factors!$L$5:$N$18,2,),IF($F25="11-25hp",VLOOKUP($C25,emission_factors!$L$22:$N$33,2,),IF($F25="Over 25hp",VLOOKUP($C25,emission_factors!$L$36:$N$48,2,)))))*($G25+$H25))) ->  | N25: =IF($E25="YES",((IF($F25="Under 11hp",VLOOKUP($C25+1,emission_factors!$L$5:$N$18,2,),IF($F25="11-25hp",VLOOKUP($C25+1,emission_factors!$L$22:$N$33,2,),IF($F25="Over 25hp",VLOOKUP($C25+1,emission_factors!$L$36:$N$48,2,)))))*($G25)),((IF($F25="Under 11hp",VLOOKUP($C25+1,emission_factors!$L$5:$N$18,2,),IF($F25="11-25hp",VLOOKUP($C25+1,emission_factors!$L$22:$N$33,2,),IF($F25="Over 25hp",VLOOKUP($C25+1,emission_factors!$L$36:$N$48,2,)))))*($G25+$H25))) ->  | O25: =IF($E25="YES",((IF($F25="Under 11hp",VLOOKUP($C25+2,emission_factors!$L$5:$N$18,2,),IF($F25="11-25hp",VLOOKUP($C25+2,emission_factors!$L$22:$N$33,2,),IF($F25="Over 25hp",VLOOKUP($C25+2,emission_factors!$L$36:$N$48,2,)))))*($G25)),((IF($F25="Under 11hp",VLOOKUP($C25+2,emission_factors!$L$5:$N$18,2,),IF($F25="11-25hp",VLOOKUP($C25+2,emission_factors!$L$22:$N$33,2,),IF($F25="Over 25hp",VLOOKUP($C25+2,emission_factors!$L$36:$N$48,2,)))))*($G25+$H25))) ->  | P25: =IF($E25="YES",((IF($F25="Under 11hp",VLOOKUP($C25+3,emission_factors!$L$5:$N$18,2,),IF($F25="11-25hp",VLOOKUP($C25+3,emission_factors!$L$22:$N$33,2,),IF($F25="Over 25hp",VLOOKUP($C25+3,emission_factors!$L$36:$N$48,2,)))))*($G25)),((IF($F25="Under 11hp",VLOOKUP($C25+3,emission_factors!$L$5:$N$18,2,),IF($F25="11-25hp",VLOOKUP($C25+3,emission_factors!$L$22:$N$33,2,),IF($F25="Over 25hp",VLOOKUP($C25+3,emission_factors!$L$36:$N$48,2,)))))*($G25+$H25))) ->  | Q25: =IF($E25="YES",((IF($F25="Under 11hp",VLOOKUP($C25+4,emission_factors!$L$5:$N$18,2,),IF($F25="11-25hp",VLOOKUP($C25+4,emission_factors!$L$22:$N$33,2,),IF($F25="Over 25hp",VLOOKUP($C25+4,emission_factors!$L$36:$N$48,2,)))))*($G25)),((IF($F25="Under 11hp",VLOOKUP($C25+4,emission_factors!$L$5:$N$18,2,),IF($F25="11-25hp",VLOOKUP($C25+4,emission_factors!$L$22:$N$33,2,),IF($F25="Over 25hp",VLOOKUP($C25+4,emission_factors!$L$36:$N$48,2,)))))*($G25+$H25))) ->  | R25: =IF($E25="YES",((IF($F25="Under 11hp",VLOOKUP($C25,emission_factors!$L$5:$N$18,3,),IF($F25="11-25hp",VLOOKUP($C25,emission_factors!$L$22:$N$33,3,),IF($F25="Over 25hp",VLOOKUP($C25,emission_factors!$L$36:$N$48,3,)))))*($G25)),((IF($F25="Under 11hp",VLOOKUP($C25,emission_factors!$L$5:$N$18,3,),IF($F25="11-25hp",VLOOKUP($C25,emission_factors!$L$22:$N$33,3,),IF($F25="Over 25hp",VLOOKUP($C25,emission_factors!$L$36:$N$48,3,)))))*($G25+$H25))) ->  | S25: =IF($E25="YES",((IF($F25="Under 11hp",VLOOKUP($C25+1,emission_factors!$L$5:$N$18,3,),IF($F25="11-25hp",VLOOKUP($C25+1,emission_factors!$L$22:$N$33,3,),IF($F25="Over 25hp",VLOOKUP($C25+1,emission_factors!$L$36:$N$48,3,)))))*($G25)),((IF($F25="Under 11hp",VLOOKUP($C25+1,emission_factors!$L$5:$N$18,3,),IF($F25="11-25hp",VLOOKUP($C25+1,emission_factors!$L$22:$N$33,3,),IF($F25="Over 25hp",VLOOKUP($C25+1,emission_factors!$L$36:$N$48,3,)))))*($G25+$H25))) ->  | T25: =IF($E25="YES",((IF($F25="Under 11hp",VLOOKUP($C25+2,emission_factors!$L$5:$N$18,3,),IF($F25="11-25hp",VLOOKUP($C25+2,emission_factors!$L$22:$N$33,3,),IF($F25="Over 25hp",VLOOKUP($C25+2,emission_factors!$L$36:$N$48,3,)))))*($G25)),((IF($F25="Under 11hp",VLOOKUP($C25+2,emission_factors!$L$5:$N$18,3,),IF($F25="11-25hp",VLOOKUP($C25+2,emission_factors!$L$22:$N$33,3,),IF($F25="Over 25hp",VLOOKUP($C25+2,emission_factors!$L$36:$N$48,3,)))))*($G25+$H25))) ->  | U25: =IF($E25="YES",((IF($F25="Under 11hp",VLOOKUP($C25+3,emission_factors!$L$5:$N$18,3,),IF($F25="11-25hp",VLOOKUP($C25+3,emission_factors!$L$22:$N$33,3,),IF($F25="Over 25hp",VLOOKUP($C25+3,emission_factors!$L$36:$N$48,3,)))))*($G25)),((IF($F25="Under 11hp",VLOOKUP($C25+3,emission_factors!$L$5:$N$18,3,),IF($F25="11-25hp",VLOOKUP($C25+3,emission_factors!$L$22:$N$33,3,),IF($F25="Over 25hp",VLOOKUP($C25+3,emission_factors!$L$36:$N$48,3,)))))*($G25+$H25))) ->  | V25: =IF($E25="YES",((IF($F25="Under 11hp",VLOOKUP($C25+4,emission_factors!$L$5:$N$18,3,),IF($F25="11-25hp",VLOOKUP($C25+4,emission_factors!$L$22:$N$33,3,),IF($F25="Over 25hp",VLOOKUP($C25+4,emission_factors!$L$36:$N$48,3,)))))*($G25)),((IF($F25="Under 11hp",VLOOKUP($C25+4,emission_factors!$L$5:$N$18,3,),IF($F25="11-25hp",VLOOKUP($C25+4,emission_factors!$L$22:$N$33,3,),IF($F25="Over 25hp",VLOOKUP($C25+4,emission_factors!$L$36:$N$48,3,)))))*($G25+$H25))) ->  | W25: 0 | X25: 0 | Y25: 0 | Z25: 0 | AA25: 0 | AB25: 0
A26: =IF(user_input_equipment!A26<>"",user_input_equipment!A26,"") ->  | B26: =IF(user_input_equipment!B26<>"",user_input_equipment!B26,"") ->  | C26: =IF(user_input_equipment!C26<>"",user_input_equipment!C26,"") ->  | D26: =IF(user_input_equipment!D26<>"",user_input_equipment!D26,"") ->  | E26: =IF(user_input_equipment!E26<>"",user_input_equipment!E26,"") ->  | F26: =IF(user_input_equipment!F26<>"",user_input_equipment!F26,"") ->  | G26: =IF(user_input_equipment!G26<>"",user_input_equipment!G26,"") ->  | H26: =IF(user_input_equipment!H26<>"",user_input_equipment!H26,"") ->  | I26: =IF(user_input_equipment!I26<>"",user_input_equipment!I26,"") ->  | J26: =IF(user_input_equipment!J26<>"",user_input_equipment!J26,"") ->  | K26: =IF(user_input_equipment!K26<>"",user_input_equipment!K26,"") ->  | L26: =IF(user_input_equipment!L26<>"",user_input_equipment!L26,"") ->  | M26: =IF($E26="YES",((IF($F26="Under 11hp",VLOOKUP($C26,emission_factors!$L$5:$N$18,2,),IF($F26="11-25hp",VLOOKUP($C26,emission_factors!$L$22:$N$33,2,),IF($F26="Over 25hp",VLOOKUP($C26,emission_factors!$L$36:$N$48,2,)))))*($G26)),((IF($F26="Under 11hp",VLOOKUP($C26,emission_factors!$L$5:$N$18,2,),IF($F26="11-25hp",VLOOKUP($C26,emission_factors!$L$22:$N$33,2,),IF($F26="Over 25hp",VLOOKUP($C26,emission_factors!$L$36:$N$48,2,)))))*($G26+$H26))) ->  | N26: =IF($E26="YES",((IF($F26="Under 11hp",VLOOKUP($C26+1,emission_factors!$L$5:$N$18,2,),IF($F26="11-25hp",VLOOKUP($C26+1,emission_factors!$L$22:$N$33,2,),IF($F26="Over 25hp",VLOOKUP($C26+1,emission_factors!$L$36:$N$48,2,)))))*($G26)),((IF($F26="Under 11hp",VLOOKUP($C26+1,emission_factors!$L$5:$N$18,2,),IF($F26="11-25hp",VLOOKUP($C26+1,emission_factors!$L$22:$N$33,2,),IF($F26="Over 25hp",VLOOKUP($C26+1,emission_factors!$L$36:$N$48,2,)))))*($G26+$H26))) ->  | O26: =IF($E26="YES",((IF($F26="Under 11hp",VLOOKUP($C26+2,emission_factors!$L$5:$N$18,2,),IF($F26="11-25hp",VLOOKUP($C26+2,emission_factors!$L$22:$N$33,2,),IF($F26="Over 25hp",VLOOKUP($C26+2,emission_factors!$L$36:$N$48,2,)))))*($G26)),((IF($F26="Under 11hp",VLOOKUP($C26+2,emission_factors!$L$5:$N$18,2,),IF($F26="11-25hp",VLOOKUP($C26+2,emission_factors!$L$22:$N$33,2,),IF($F26="Over 25hp",VLOOKUP($C26+2,emission_factors!$L$36:$N$48,2,)))))*($G26+$H26))) ->  | P26: =IF($E26="YES",((IF($F26="Under 11hp",VLOOKUP($C26+3,emission_factors!$L$5:$N$18,2,),IF($F26="11-25hp",VLOOKUP($C26+3,emission_factors!$L$22:$N$33,2,),IF($F26="Over 25hp",VLOOKUP($C26+3,emission_factors!$L$36:$N$48,2,)))))*($G26)),((IF($F26="Under 11hp",VLOOKUP($C26+3,emission_factors!$L$5:$N$18,2,),IF($F26="11-25hp",VLOOKUP($C26+3,emission_factors!$L$22:$N$33,2,),IF($F26="Over 25hp",VLOOKUP($C26+3,emission_factors!$L$36:$N$48,2,)))))*($G26+$H26))) ->  | Q26: =IF($E26="YES",((IF($F26="Under 11hp",VLOOKUP($C26+4,emission_factors!$L$5:$N$18,2,),IF($F26="11-25hp",VLOOKUP($C26+4,emission_factors!$L$22:$N$33,2,),IF($F26="Over 25hp",VLOOKUP($C26+4,emission_factors!$L$36:$N$48,2,)))))*($G26)),((IF($F26="Under 11hp",VLOOKUP($C26+4,emission_factors!$L$5:$N$18,2,),IF($F26="11-25hp",VLOOKUP($C26+4,emission_factors!$L$22:$N$33,2,),IF($F26="Over 25hp",VLOOKUP($C26+4,emission_factors!$L$36:$N$48,2,)))))*($G26+$H26))) ->  | R26: =IF($E26="YES",((IF($F26="Under 11hp",VLOOKUP($C26,emission_factors!$L$5:$N$18,3,),IF($F26="11-25hp",VLOOKUP($C26,emission_factors!$L$22:$N$33,3,),IF($F26="Over 25hp",VLOOKUP($C26,emission_factors!$L$36:$N$48,3,)))))*($G26)),((IF($F26="Under 11hp",VLOOKUP($C26,emission_factors!$L$5:$N$18,3,),IF($F26="11-25hp",VLOOKUP($C26,emission_factors!$L$22:$N$33,3,),IF($F26="Over 25hp",VLOOKUP($C26,emission_factors!$L$36:$N$48,3,)))))*($G26+$H26))) ->  | S26: =IF($E26="YES",((IF($F26="Under 11hp",VLOOKUP($C26+1,emission_factors!$L$5:$N$18,3,),IF($F26="11-25hp",VLOOKUP($C26+1,emission_factors!$L$22:$N$33,3,),IF($F26="Over 25hp",VLOOKUP($C26+1,emission_factors!$L$36:$N$48,3,)))))*($G26)),((IF($F26="Under 11hp",VLOOKUP($C26+1,emission_factors!$L$5:$N$18,3,),IF($F26="11-25hp",VLOOKUP($C26+1,emission_factors!$L$22:$N$33,3,),IF($F26="Over 25hp",VLOOKUP($C26+1,emission_factors!$L$36:$N$48,3,)))))*($G26+$H26))) ->  | T26: =IF($E26="YES",((IF($F26="Under 11hp",VLOOKUP($C26+2,emission_factors!$L$5:$N$18,3,),IF($F26="11-25hp",VLOOKUP($C26+2,emission_factors!$L$22:$N$33,3,),IF($F26="Over 25hp",VLOOKUP($C26+2,emission_factors!$L$36:$N$48,3,)))))*($G26)),((IF($F26="Under 11hp",VLOOKUP($C26+2,emission_factors!$L$5:$N$18,3,),IF($F26="11-25hp",VLOOKUP($C26+2,emission_factors!$L$22:$N$33,3,),IF($F26="Over 25hp",VLOOKUP($C26+2,emission_factors!$L$36:$N$48,3,)))))*($G26+$H26))) ->  | U26: =IF($E26="YES",((IF($F26="Under 11hp",VLOOKUP($C26+3,emission_factors!$L$5:$N$18,3,),IF($F26="11-25hp",VLOOKUP($C26+3,emission_factors!$L$22:$N$33,3,),IF($F26="Over 25hp",VLOOKUP($C26+3,emission_factors!$L$36:$N$48,3,)))))*($G26)),((IF($F26="Under 11hp",VLOOKUP($C26+3,emission_factors!$L$5:$N$18,3,),IF($F26="11-25hp",VLOOKUP($C26+3,emission_factors!$L$22:$N$33,3,),IF($F26="Over 25hp",VLOOKUP($C26+3,emission_factors!$L$36:$N$48,3,)))))*($G26+$H26))) ->  | V26: =IF($E26="YES",((IF($F26="Under 11hp",VLOOKUP($C26+4,emission_factors!$L$5:$N$18,3,),IF($F26="11-25hp",VLOOKUP($C26+4,emission_factors!$L$22:$N$33,3,),IF($F26="Over 25hp",VLOOKUP($C26+4,emission_factors!$L$36:$N$48,3,)))))*($G26)),((IF($F26="Under 11hp",VLOOKUP($C26+4,emission_factors!$L$5:$N$18,3,),IF($F26="11-25hp",VLOOKUP($C26+4,emission_factors!$L$22:$N$33,3,),IF($F26="Over 25hp",VLOOKUP($C26+4,emission_factors!$L$36:$N$48,3,)))))*($G26+$H26))) ->  | W26: 0 | X26: 0 | Y26: 0 | Z26: 0 | AA26: 0 | AB26: 0
A27: =IF(user_input_equipment!A27<>"",user_input_equipment!A27,"") ->  | B27: =IF(user_input_equipment!B27<>"",user_input_equipment!B27,"") ->  | C27: =IF(user_input_equipment!C27<>"",user_input_equipment!C27,"") ->  | D27: =IF(user_input_equipment!D27<>"",user_input_equipment!D27,"") ->  | E27: =IF(user_input_equipment!E27<>"",user_input_equipment!E27,"") ->  | F27: =IF(user_input_equipment!F27<>"",user_input_equipment!F27,"") ->  | G27: =IF(user_input_equipment!G27<>"",user_input_equipment!G27,"") ->  | H27: =IF(user_input_equipment!H27<>"",user_input_equipment!H27,"") ->  | I27: =IF(user_input_equipment!I27<>"",user_input_equipment!I27,"") ->  | J27: =IF(user_input_equipment!J27<>"",user_input_equipment!J27,"") ->  | K27: =IF(user_input_equipment!K27<>"",user_input_equipment!K27,"") ->  | L27: =IF(user_input_equipment!L27<>"",user_input_equipment!L27,"") ->  | M27: =IF($E27="YES",((IF($F27="Under 11hp",VLOOKUP($C27,emission_factors!$L$5:$N$18,2,),IF($F27="11-25hp",VLOOKUP($C27,emission_factors!$L$22:$N$33,2,),IF($F27="Over 25hp",VLOOKUP($C27,emission_factors!$L$36:$N$48,2,)))))*($G27)),((IF($F27="Under 11hp",VLOOKUP($C27,emission_factors!$L$5:$N$18,2,),IF($F27="11-25hp",VLOOKUP($C27,emission_factors!$L$22:$N$33,2,),IF($F27="Over 25hp",VLOOKUP($C27,emission_factors!$L$36:$N$48,2,)))))*($G27+$H27))) ->  | N27: =IF($E27="YES",((IF($F27="Under 11hp",VLOOKUP($C27+1,emission_factors!$L$5:$N$18,2,),IF($F27="11-25hp",VLOOKUP($C27+1,emission_factors!$L$22:$N$33,2,),IF($F27="Over 25hp",VLOOKUP($C27+1,emission_factors!$L$36:$N$48,2,)))))*($G27)),((IF($F27="Under 11hp",VLOOKUP($C27+1,emission_factors!$L$5:$N$18,2,),IF($F27="11-25hp",VLOOKUP($C27+1,emission_factors!$L$22:$N$33,2,),IF($F27="Over 25hp",VLOOKUP($C27+1,emission_factors!$L$36:$N$48,2,)))))*($G27+$H27))) ->  | O27: =IF($E27="YES",((IF($F27="Under 11hp",VLOOKUP($C27+2,emission_factors!$L$5:$N$18,2,),IF($F27="11-25hp",VLOOKUP($C27+2,emission_factors!$L$22:$N$33,2,),IF($F27="Over 25hp",VLOOKUP($C27+2,emission_factors!$L$36:$N$48,2,)))))*($G27)),((IF($F27="Under 11hp",VLOOKUP($C27+2,emission_factors!$L$5:$N$18,2,),IF($F27="11-25hp",VLOOKUP($C27+2,emission_factors!$L$22:$N$33,2,),IF($F27="Over 25hp",VLOOKUP($C27+2,emission_factors!$L$36:$N$48,2,)))))*($G27+$H27))) ->  | P27: =IF($E27="YES",((IF($F27="Under 11hp",VLOOKUP($C27+3,emission_factors!$L$5:$N$18,2,),IF($F27="11-25hp",VLOOKUP($C27+3,emission_factors!$L$22:$N$33,2,),IF($F27="Over 25hp",VLOOKUP($C27+3,emission_factors!$L$36:$N$48,2,)))))*($G27)),((IF($F27="Under 11hp",VLOOKUP($C27+3,emission_factors!$L$5:$N$18,2,),IF($F27="11-25hp",VLOOKUP($C27+3,emission_factors!$L$22:$N$33,2,),IF($F27="Over 25hp",VLOOKUP($C27+3,emission_factors!$L$36:$N$48,2,)))))*($G27+$H27))) ->  | Q27: =IF($E27="YES",((IF($F27="Under 11hp",VLOOKUP($C27+4,emission_factors!$L$5:$N$18,2,),IF($F27="11-25hp",VLOOKUP($C27+4,emission_factors!$L$22:$N$33,2,),IF($F27="Over 25hp",VLOOKUP($C27+4,emission_factors!$L$36:$N$48,2,)))))*($G27)),((IF($F27="Under 11hp",VLOOKUP($C27+4,emission_factors!$L$5:$N$18,2,),IF($F27="11-25hp",VLOOKUP($C27+4,emission_factors!$L$22:$N$33,2,),IF($F27="Over 25hp",VLOOKUP($C27+4,emission_factors!$L$36:$N$48,2,)))))*($G27+$H27))) ->  | R27: =IF($E27="YES",((IF($F27="Under 11hp",VLOOKUP($C27,emission_factors!$L$5:$N$18,3,),IF($F27="11-25hp",VLOOKUP($C27,emission_factors!$L$22:$N$33,3,),IF($F27="Over 25hp",VLOOKUP($C27,emission_factors!$L$36:$N$48,3,)))))*($G27)),((IF($F27="Under 11hp",VLOOKUP($C27,emission_factors!$L$5:$N$18,3,),IF($F27="11-25hp",VLOOKUP($C27,emission_factors!$L$22:$N$33,3,),IF($F27="Over 25hp",VLOOKUP($C27,emission_factors!$L$36:$N$48,3,)))))*($G27+$H27))) ->  | S27: =IF($E27="YES",((IF($F27="Under 11hp",VLOOKUP($C27+1,emission_factors!$L$5:$N$18,3,),IF($F27="11-25hp",VLOOKUP($C27+1,emission_factors!$L$22:$N$33,3,),IF($F27="Over 25hp",VLOOKUP($C27+1,emission_factors!$L$36:$N$48,3,)))))*($G27)),((IF($F27="Under 11hp",VLOOKUP($C27+1,emission_factors!$L$5:$N$18,3,),IF($F27="11-25hp",VLOOKUP($C27+1,emission_factors!$L$22:$N$33,3,),IF($F27="Over 25hp",VLOOKUP($C27+1,emission_factors!$L$36:$N$48,3,)))))*($G27+$H27))) ->  | T27: =IF($E27="YES",((IF($F27="Under 11hp",VLOOKUP($C27+2,emission_factors!$L$5:$N$18,3,),IF($F27="11-25hp",VLOOKUP($C27+2,emission_factors!$L$22:$N$33,3,),IF($F27="Over 25hp",VLOOKUP($C27+2,emission_factors!$L$36:$N$48,3,)))))*($G27)),((IF($F27="Under 11hp",VLOOKUP($C27+2,emission_factors!$L$5:$N$18,3,),IF($F27="11-25hp",VLOOKUP($C27+2,emission_factors!$L$22:$N$33,3,),IF($F27="Over 25hp",VLOOKUP($C27+2,emission_factors!$L$36:$N$48,3,)))))*($G27+$H27))) ->  | U27: =IF($E27="YES",((IF($F27="Under 11hp",VLOOKUP($C27+3,emission_factors!$L$5:$N$18,3,),IF($F27="11-25hp",VLOOKUP($C27+3,emission_factors!$L$22:$N$33,3,),IF($F27="Over 25hp",VLOOKUP($C27+3,emission_factors!$L$36:$N$48,3,)))))*($G27)),((IF($F27="Under 11hp",VLOOKUP($C27+3,emission_factors!$L$5:$N$18,3,),IF($F27="11-25hp",VLOOKUP($C27+3,emission_factors!$L$22:$N$33,3,),IF($F27="Over 25hp",VLOOKUP($C27+3,emission_factors!$L$36:$N$48,3,)))))*($G27+$H27))) ->  | V27: =IF($E27="YES",((IF($F27="Under 11hp",VLOOKUP($C27+4,emission_factors!$L$5:$N$18,3,),IF($F27="11-25hp",VLOOKUP($C27+4,emission_factors!$L$22:$N$33,3,),IF($F27="Over 25hp",VLOOKUP($C27+4,emission_factors!$L$36:$N$48,3,)))))*($G27)),((IF($F27="Under 11hp",VLOOKUP($C27+4,emission_factors!$L$5:$N$18,3,),IF($F27="11-25hp",VLOOKUP($C27+4,emission_factors!$L$22:$N$33,3,),IF($F27="Over 25hp",VLOOKUP($C27+4,emission_factors!$L$36:$N$48,3,)))))*($G27+$H27))) ->  | W27: 0 | X27: 0 | Y27: 0 | Z27: 0 | AA27: 0 | AB27: 0
A28: =IF(user_input_equipment!A28<>"",user_input_equipment!A28,"") ->  | B28: =IF(user_input_equipment!B28<>"",user_input_equipment!B28,"") ->  | C28: =IF(user_input_equipment!C28<>"",user_input_equipment!C28,"") ->  | D28: =IF(user_input_equipment!D28<>"",user_input_equipment!D28,"") ->  | E28: =IF(user_input_equipment!E28<>"",user_input_equipment!E28,"") ->  | F28: =IF(user_input_equipment!F28<>"",user_input_equipment!F28,"") ->  | G28: =IF(user_input_equipment!G28<>"",user_input_equipment!G28,"") ->  | H28: =IF(user_input_equipment!H28<>"",user_input_equipment!H28,"") ->  | I28: =IF(user_input_equipment!I28<>"",user_input_equipment!I28,"") ->  | J28: =IF(user_input_equipment!J28<>"",user_input_equipment!J28,"") ->  | K28: =IF(user_input_equipment!K28<>"",user_input_equipment!K28,"") ->  | L28: =IF(user_input_equipment!L28<>"",user_input_equipment!L28,"") ->  | M28: =IF($E28="YES",((IF($F28="Under 11hp",VLOOKUP($C28,emission_factors!$L$5:$N$18,2,),IF($F28="11-25hp",VLOOKUP($C28,emission_factors!$L$22:$N$33,2,),IF($F28="Over 25hp",VLOOKUP($C28,emission_factors!$L$36:$N$48,2,)))))*($G28)),((IF($F28="Under 11hp",VLOOKUP($C28,emission_factors!$L$5:$N$18,2,),IF($F28="11-25hp",VLOOKUP($C28,emission_factors!$L$22:$N$33,2,),IF($F28="Over 25hp",VLOOKUP($C28,emission_factors!$L$36:$N$48,2,)))))*($G28+$H28))) ->  | N28: =IF($E28="YES",((IF($F28="Under 11hp",VLOOKUP($C28+1,emission_factors!$L$5:$N$18,2,),IF($F28="11-25hp",VLOOKUP($C28+1,emission_factors!$L$22:$N$33,2,),IF($F28="Over 25hp",VLOOKUP($C28+1,emission_factors!$L$36:$N$48,2,)))))*($G28)),((IF($F28="Under 11hp",VLOOKUP($C28+1,emission_factors!$L$5:$N$18,2,),IF($F28="11-25hp",VLOOKUP($C28+1,emission_factors!$L$22:$N$33,2,),IF($F28="Over 25hp",VLOOKUP($C28+1,emission_factors!$L$36:$N$48,2,)))))*($G28+$H28))) ->  | O28: =IF($E28="YES",((IF($F28="Under 11hp",VLOOKUP($C28+2,emission_factors!$L$5:$N$18,2,),IF($F28="11-25hp",VLOOKUP($C28+2,emission_factors!$L$22:$N$33,2,),IF($F28="Over 25hp",VLOOKUP($C28+2,emission_factors!$L$36:$N$48,2,)))))*($G28)),((IF($F28="Under 11hp",VLOOKUP($C28+2,emission_factors!$L$5:$N$18,2,),IF($F28="11-25hp",VLOOKUP($C28+2,emission_factors!$L$22:$N$33,2,),IF($F28="Over 25hp",VLOOKUP($C28+2,emission_factors!$L$36:$N$48,2,)))))*($G28+$H28))) ->  | P28: =IF($E28="YES",((IF($F28="Under 11hp",VLOOKUP($C28+3,emission_factors!$L$5:$N$18,2,),IF($F28="11-25hp",VLOOKUP($C28+3,emission_factors!$L$22:$N$33,2,),IF($F28="Over 25hp",VLOOKUP($C28+3,emission_factors!$L$36:$N$48,2,)))))*($G28)),((IF($F28="Under 11hp",VLOOKUP($C28+3,emission_factors!$L$5:$N$18,2,),IF($F28="11-25hp",VLOOKUP($C28+3,emission_factors!$L$22:$N$33,2,),IF($F28="Over 25hp",VLOOKUP($C28+3,emission_factors!$L$36:$N$48,2,)))))*($G28+$H28))) ->  | Q28: =IF($E28="YES",((IF($F28="Under 11hp",VLOOKUP($C28+4,emission_factors!$L$5:$N$18,2,),IF($F28="11-25hp",VLOOKUP($C28+4,emission_factors!$L$22:$N$33,2,),IF($F28="Over 25hp",VLOOKUP($C28+4,emission_factors!$L$36:$N$48,2,)))))*($G28)),((IF($F28="Under 11hp",VLOOKUP($C28+4,emission_factors!$L$5:$N$18,2,),IF($F28="11-25hp",VLOOKUP($C28+4,emission_factors!$L$22:$N$33,2,),IF($F28="Over 25hp",VLOOKUP($C28+4,emission_factors!$L$36:$N$48,2,)))))*($G28+$H28))) ->  | R28: =IF($E28="YES",((IF($F28="Under 11hp",VLOOKUP($C28,emission_factors!$L$5:$N$18,3,),IF($F28="11-25hp",VLOOKUP($C28,emission_factors!$L$22:$N$33,3,),IF($F28="Over 25hp",VLOOKUP($C28,emission_factors!$L$36:$N$48,3,)))))*($G28)),((IF($F28="Under 11hp",VLOOKUP($C28,emission_factors!$L$5:$N$18,3,),IF($F28="11-25hp",VLOOKUP($C28,emission_factors!$L$22:$N$33,3,),IF($F28="Over 25hp",VLOOKUP($C28,emission_factors!$L$36:$N$48,3,)))))*($G28+$H28))) ->  | S28: =IF($E28="YES",((IF($F28="Under 11hp",VLOOKUP($C28+1,emission_factors!$L$5:$N$18,3,),IF($F28="11-25hp",VLOOKUP($C28+1,emission_factors!$L$22:$N$33,3,),IF($F28="Over 25hp",VLOOKUP($C28+1,emission_factors!$L$36:$N$48,3,)))))*($G28)),((IF($F28="Under 11hp",VLOOKUP($C28+1,emission_factors!$L$5:$N$18,3,),IF($F28="11-25hp",VLOOKUP($C28+1,emission_factors!$L$22:$N$33,3,),IF($F28="Over 25hp",VLOOKUP($C28+1,emission_factors!$L$36:$N$48,3,)))))*($G28+$H28))) ->  | T28: =IF($E28="YES",((IF($F28="Under 11hp",VLOOKUP($C28+2,emission_factors!$L$5:$N$18,3,),IF($F28="11-25hp",VLOOKUP($C28+2,emission_factors!$L$22:$N$33,3,),IF($F28="Over 25hp",VLOOKUP($C28+2,emission_factors!$L$36:$N$48,3,)))))*($G28)),((IF($F28="Under 11hp",VLOOKUP($C28+2,emission_factors!$L$5:$N$18,3,),IF($F28="11-25hp",VLOOKUP($C28+2,emission_factors!$L$22:$N$33,3,),IF($F28="Over 25hp",VLOOKUP($C28+2,emission_factors!$L$36:$N$48,3,)))))*($G28+$H28))) ->  | U28: =IF($E28="YES",((IF($F28="Under 11hp",VLOOKUP($C28+3,emission_factors!$L$5:$N$18,3,),IF($F28="11-25hp",VLOOKUP($C28+3,emission_factors!$L$22:$N$33,3,),IF($F28="Over 25hp",VLOOKUP($C28+3,emission_factors!$L$36:$N$48,3,)))))*($G28)),((IF($F28="Under 11hp",VLOOKUP($C28+3,emission_factors!$L$5:$N$18,3,),IF($F28="11-25hp",VLOOKUP($C28+3,emission_factors!$L$22:$N$33,3,),IF($F28="Over 25hp",VLOOKUP($C28+3,emission_factors!$L$36:$N$48,3,)))))*($G28+$H28))) ->  | V28: =IF($E28="YES",((IF($F28="Under 11hp",VLOOKUP($C28+4,emission_factors!$L$5:$N$18,3,),IF($F28="11-25hp",VLOOKUP($C28+4,emission_factors!$L$22:$N$33,3,),IF($F28="Over 25hp",VLOOKUP($C28+4,emission_factors!$L$36:$N$48,3,)))))*($G28)),((IF($F28="Under 11hp",VLOOKUP($C28+4,emission_factors!$L$5:$N$18,3,),IF($F28="11-25hp",VLOOKUP($C28+4,emission_factors!$L$22:$N$33,3,),IF($F28="Over 25hp",VLOOKUP($C28+4,emission_factors!$L$36:$N$48,3,)))))*($G28+$H28))) ->  | W28: 0 | X28: 0 | Y28: 0 | Z28: 0 | AA28: 0 | AB28: 0
A29: =IF(user_input_equipment!A29<>"",user_input_equipment!A29,"") ->  | B29: =IF(user_input_equipment!B29<>"",user_input_equipment!B29,"") ->  | C29: =IF(user_input_equipment!C29<>"",user_input_equipment!C29,"") ->  | D29: =IF(user_input_equipment!D29<>"",user_input_equipment!D29,"") ->  | E29: =IF(user_input_equipment!E29<>"",user_input_equipment!E29,"") ->  | F29: =IF(user_input_equipment!F29<>"",user_input_equipment!F29,"") ->  | G29: =IF(user_input_equipment!G29<>"",user_input_equipment!G29,"") ->  | H29: =IF(user_input_equipment!H29<>"",user_input_equipment!H29,"") ->  | I29: =IF(user_input_equipment!I29<>"",user_input_equipment!I29,"") ->  | J29: =IF(user_input_equipment!J29<>"",user_input_equipment!J29,"") ->  | K29: =IF(user_input_equipment!K29<>"",user_input_equipment!K29,"") ->  | L29: =IF(user_input_equipment!L29<>"",user_input_equipment!L29,"") ->  | M29: =IF($E29="YES",((IF($F29="Under 11hp",VLOOKUP($C29,emission_factors!$L$5:$N$18,2,),IF($F29="11-25hp",VLOOKUP($C29,emission_factors!$L$22:$N$33,2,),IF($F29="Over 25hp",VLOOKUP($C29,emission_factors!$L$36:$N$48,2,)))))*($G29)),((IF($F29="Under 11hp",VLOOKUP($C29,emission_factors!$L$5:$N$18,2,),IF($F29="11-25hp",VLOOKUP($C29,emission_factors!$L$22:$N$33,2,),IF($F29="Over 25hp",VLOOKUP($C29,emission_factors!$L$36:$N$48,2,)))))*($G29+$H29))) ->  | N29: =IF($E29="YES",((IF($F29="Under 11hp",VLOOKUP($C29+1,emission_factors!$L$5:$N$18,2,),IF($F29="11-25hp",VLOOKUP($C29+1,emission_factors!$L$22:$N$33,2,),IF($F29="Over 25hp",VLOOKUP($C29+1,emission_factors!$L$36:$N$48,2,)))))*($G29)),((IF($F29="Under 11hp",VLOOKUP($C29+1,emission_factors!$L$5:$N$18,2,),IF($F29="11-25hp",VLOOKUP($C29+1,emission_factors!$L$22:$N$33,2,),IF($F29="Over 25hp",VLOOKUP($C29+1,emission_factors!$L$36:$N$48,2,)))))*($G29+$H29))) ->  | O29: =IF($E29="YES",((IF($F29="Under 11hp",VLOOKUP($C29+2,emission_factors!$L$5:$N$18,2,),IF($F29="11-25hp",VLOOKUP($C29+2,emission_factors!$L$22:$N$33,2,),IF($F29="Over 25hp",VLOOKUP($C29+2,emission_factors!$L$36:$N$48,2,)))))*($G29)),((IF($F29="Under 11hp",VLOOKUP($C29+2,emission_factors!$L$5:$N$18,2,),IF($F29="11-25hp",VLOOKUP($C29+2,emission_factors!$L$22:$N$33,2,),IF($F29="Over 25hp",VLOOKUP($C29+2,emission_factors!$L$36:$N$48,2,)))))*($G29+$H29))) ->  | P29: =IF($E29="YES",((IF($F29="Under 11hp",VLOOKUP($C29+3,emission_factors!$L$5:$N$18,2,),IF($F29="11-25hp",VLOOKUP($C29+3,emission_factors!$L$22:$N$33,2,),IF($F29="Over 25hp",VLOOKUP($C29+3,emission_factors!$L$36:$N$48,2,)))))*($G29)),((IF($F29="Under 11hp",VLOOKUP($C29+3,emission_factors!$L$5:$N$18,2,),IF($F29="11-25hp",VLOOKUP($C29+3,emission_factors!$L$22:$N$33,2,),IF($F29="Over 25hp",VLOOKUP($C29+3,emission_factors!$L$36:$N$48,2,)))))*($G29+$H29))) ->  | Q29: =IF($E29="YES",((IF($F29="Under 11hp",VLOOKUP($C29+4,emission_factors!$L$5:$N$18,2,),IF($F29="11-25hp",VLOOKUP($C29+4,emission_factors!$L$22:$N$33,2,),IF($F29="Over 25hp",VLOOKUP($C29+4,emission_factors!$L$36:$N$48,2,)))))*($G29)),((IF($F29="Under 11hp",VLOOKUP($C29+4,emission_factors!$L$5:$N$18,2,),IF($F29="11-25hp",VLOOKUP($C29+4,emission_factors!$L$22:$N$33,2,),IF($F29="Over 25hp",VLOOKUP($C29+4,emission_factors!$L$36:$N$48,2,)))))*($G29+$H29))) ->  | R29: =IF($E29="YES",((IF($F29="Under 11hp",VLOOKUP($C29,emission_factors!$L$5:$N$18,3,),IF($F29="11-25hp",VLOOKUP($C29,emission_factors!$L$22:$N$33,3,),IF($F29="Over 25hp",VLOOKUP($C29,emission_factors!$L$36:$N$48,3,)))))*($G29)),((IF($F29="Under 11hp",VLOOKUP($C29,emission_factors!$L$5:$N$18,3,),IF($F29="11-25hp",VLOOKUP($C29,emission_factors!$L$22:$N$33,3,),IF($F29="Over 25hp",VLOOKUP($C29,emission_factors!$L$36:$N$48,3,)))))*($G29+$H29))) ->  | S29: =IF($E29="YES",((IF($F29="Under 11hp",VLOOKUP($C29+1,emission_factors!$L$5:$N$18,3,),IF($F29="11-25hp",VLOOKUP($C29+1,emission_factors!$L$22:$N$33,3,),IF($F29="Over 25hp",VLOOKUP($C29+1,emission_factors!$L$36:$N$48,3,)))))*($G29)),((IF($F29="Under 11hp",VLOOKUP($C29+1,emission_factors!$L$5:$N$18,3,),IF($F29="11-25hp",VLOOKUP($C29+1,emission_factors!$L$22:$N$33,3,),IF($F29="Over 25hp",VLOOKUP($C29+1,emission_factors!$L$36:$N$48,3,)))))*($G29+$H29))) ->  | T29: =IF($E29="YES",((IF($F29="Under 11hp",VLOOKUP($C29+2,emission_factors!$L$5:$N$18,3,),IF($F29="11-25hp",VLOOKUP($C29+2,emission_factors!$L$22:$N$33,3,),IF($F29="Over 25hp",VLOOKUP($C29+2,emission_factors!$L$36:$N$48,3,)))))*($G29)),((IF($F29="Under 11hp",VLOOKUP($C29+2,emission_factors!$L$5:$N$18,3,),IF($F29="11-25hp",VLOOKUP($C29+2,emission_factors!$L$22:$N$33,3,),IF($F29="Over 25hp",VLOOKUP($C29+2,emission_factors!$L$36:$N$48,3,)))))*($G29+$H29))) ->  | U29: =IF($E29="YES",((IF($F29="Under 11hp",VLOOKUP($C29+3,emission_factors!$L$5:$N$18,3,),IF($F29="11-25hp",VLOOKUP($C29+3,emission_factors!$L$22:$N$33,3,),IF($F29="Over 25hp",VLOOKUP($C29+3,emission_factors!$L$36:$N$48,3,)))))*($G29)),((IF($F29="Under 11hp",VLOOKUP($C29+3,emission_factors!$L$5:$N$18,3,),IF($F29="11-25hp",VLOOKUP($C29+3,emission_factors!$L$22:$N$33,3,),IF($F29="Over 25hp",VLOOKUP($C29+3,emission_factors!$L$36:$N$48,3,)))))*($G29+$H29))) ->  | V29: =IF($E29="YES",((IF($F29="Under 11hp",VLOOKUP($C29+4,emission_factors!$L$5:$N$18,3,),IF($F29="11-25hp",VLOOKUP($C29+4,emission_factors!$L$22:$N$33,3,),IF($F29="Over 25hp",VLOOKUP($C29+4,emission_factors!$L$36:$N$48,3,)))))*($G29)),((IF($F29="Under 11hp",VLOOKUP($C29+4,emission_factors!$L$5:$N$18,3,),IF($F29="11-25hp",VLOOKUP($C29+4,emission_factors!$L$22:$N$33,3,),IF($F29="Over 25hp",VLOOKUP($C29+4,emission_factors!$L$36:$N$48,3,)))))*($G29+$H29))) ->  | W29: 0 | X29: 0 | Y29: 0 | Z29: 0 | AA29: 0 | AB29: 0
A30: =IF(user_input_equipment!A30<>"",user_input_equipment!A30,"") ->  | B30: =IF(user_input_equipment!B30<>"",user_input_equipment!B30,"") ->  | C30: =IF(user_input_equipment!C30<>"",user_input_equipment!C30,"") ->  | D30: =IF(user_input_equipment!D30<>"",user_input_equipment!D30,"") ->  | E30: =IF(user_input_equipment!E30<>"",user_input_equipment!E30,"") ->  | F30: =IF(user_input_equipment!F30<>"",user_input_equipment!F30,"") ->  | G30: =IF(user_input_equipment!G30<>"",user_input_equipment!G30,"") ->  | H30: =IF(user_input_equipment!H30<>"",user_input_equipment!H30,"") ->  | I30: =IF(user_input_equipment!I30<>"",user_input_equipment!I30,"") ->  | J30: =IF(user_input_equipment!J30<>"",user_input_equipment!J30,"") ->  | K30: =IF(user_input_equipment!K30<>"",user_input_equipment!K30,"") ->  | L30: =IF(user_input_equipment!L30<>"",user_input_equipment!L30,"") ->  | M30: =IF($E30="YES",((IF($F30="Under 11hp",VLOOKUP($C30,emission_factors!$L$5:$N$18,2,),IF($F30="11-25hp",VLOOKUP($C30,emission_factors!$L$22:$N$33,2,),IF($F30="Over 25hp",VLOOKUP($C30,emission_factors!$L$36:$N$48,2,)))))*($G30)),((IF($F30="Under 11hp",VLOOKUP($C30,emission_factors!$L$5:$N$18,2,),IF($F30="11-25hp",VLOOKUP($C30,emission_factors!$L$22:$N$33,2,),IF($F30="Over 25hp",VLOOKUP($C30,emission_factors!$L$36:$N$48,2,)))))*($G30+$H30))) ->  | N30: =IF($E30="YES",((IF($F30="Under 11hp",VLOOKUP($C30+1,emission_factors!$L$5:$N$18,2,),IF($F30="11-25hp",VLOOKUP($C30+1,emission_factors!$L$22:$N$33,2,),IF($F30="Over 25hp",VLOOKUP($C30+1,emission_factors!$L$36:$N$48,2,)))))*($G30)),((IF($F30="Under 11hp",VLOOKUP($C30+1,emission_factors!$L$5:$N$18,2,),IF($F30="11-25hp",VLOOKUP($C30+1,emission_factors!$L$22:$N$33,2,),IF($F30="Over 25hp",VLOOKUP($C30+1,emission_factors!$L$36:$N$48,2,)))))*($G30+$H30))) ->  | O30: =IF($E30="YES",((IF($F30="Under 11hp",VLOOKUP($C30+2,emission_factors!$L$5:$N$18,2,),IF($F30="11-25hp",VLOOKUP($C30+2,emission_factors!$L$22:$N$33,2,),IF($F30="Over 25hp",VLOOKUP($C30+2,emission_factors!$L$36:$N$48,2,)))))*($G30)),((IF($F30="Under 11hp",VLOOKUP($C30+2,emission_factors!$L$5:$N$18,2,),IF($F30="11-25hp",VLOOKUP($C30+2,emission_factors!$L$22:$N$33,2,),IF($F30="Over 25hp",VLOOKUP($C30+2,emission_factors!$L$36:$N$48,2,)))))*($G30+$H30))) ->  | P30: =IF($E30="YES",((IF($F30="Under 11hp",VLOOKUP($C30+3,emission_factors!$L$5:$N$18,2,),IF($F30="11-25hp",VLOOKUP($C30+3,emission_factors!$L$22:$N$33,2,),IF($F30="Over 25hp",VLOOKUP($C30+3,emission_factors!$L$36:$N$48,2,)))))*($G30)),((IF($F30="Under 11hp",VLOOKUP($C30+3,emission_factors!$L$5:$N$18,2,),IF($F30="11-25hp",VLOOKUP($C30+3,emission_factors!$L$22:$N$33,2,),IF($F30="Over 25hp",VLOOKUP($C30+3,emission_factors!$L$36:$N$48,2,)))))*($G30+$H30))) ->  | Q30: =IF($E30="YES",((IF($F30="Under 11hp",VLOOKUP($C30+4,emission_factors!$L$5:$N$18,2,),IF($F30="11-25hp",VLOOKUP($C30+4,emission_factors!$L$22:$N$33,2,),IF($F30="Over 25hp",VLOOKUP($C30+4,emission_factors!$L$36:$N$48,2,)))))*($G30)),((IF($F30="Under 11hp",VLOOKUP($C30+4,emission_factors!$L$5:$N$18,2,),IF($F30="11-25hp",VLOOKUP($C30+4,emission_factors!$L$22:$N$33,2,),IF($F30="Over 25hp",VLOOKUP($C30+4,emission_factors!$L$36:$N$48,2,)))))*($G30+$H30))) ->  | R30: =IF($E30="YES",((IF($F30="Under 11hp",VLOOKUP($C30,emission_factors!$L$5:$N$18,3,),IF($F30="11-25hp",VLOOKUP($C30,emission_factors!$L$22:$N$33,3,),IF($F30="Over 25hp",VLOOKUP($C30,emission_factors!$L$36:$N$48,3,)))))*($G30)),((IF($F30="Under 11hp",VLOOKUP($C30,emission_factors!$L$5:$N$18,3,),IF($F30="11-25hp",VLOOKUP($C30,emission_factors!$L$22:$N$33,3,),IF($F30="Over 25hp",VLOOKUP($C30,emission_factors!$L$36:$N$48,3,)))))*($G30+$H30))) ->  | S30: =IF($E30="YES",((IF($F30="Under 11hp",VLOOKUP($C30+1,emission_factors!$L$5:$N$18,3,),IF($F30="11-25hp",VLOOKUP($C30+1,emission_factors!$L$22:$N$33,3,),IF($F30="Over 25hp",VLOOKUP($C30+1,emission_factors!$L$36:$N$48,3,)))))*($G30)),((IF($F30="Under 11hp",VLOOKUP($C30+1,emission_factors!$L$5:$N$18,3,),IF($F30="11-25hp",VLOOKUP($C30+1,emission_factors!$L$22:$N$33,3,),IF($F30="Over 25hp",VLOOKUP($C30+1,emission_factors!$L$36:$N$48,3,)))))*($G30+$H30))) ->  | T30: =IF($E30="YES",((IF($F30="Under 11hp",VLOOKUP($C30+2,emission_factors!$L$5:$N$18,3,),IF($F30="11-25hp",VLOOKUP($C30+2,emission_factors!$L$22:$N$33,3,),IF($F30="Over 25hp",VLOOKUP($C30+2,emission_factors!$L$36:$N$48,3,)))))*($G30)),((IF($F30="Under 11hp",VLOOKUP($C30+2,emission_factors!$L$5:$N$18,3,),IF($F30="11-25hp",VLOOKUP($C30+2,emission_factors!$L$22:$N$33,3,),IF($F30="Over 25hp",VLOOKUP($C30+2,emission_factors!$L$36:$N$48,3,)))))*($G30+$H30))) ->  | U30: =IF($E30="YES",((IF($F30="Under 11hp",VLOOKUP($C30+3,emission_factors!$L$5:$N$18,3,),IF($F30="11-25hp",VLOOKUP($C30+3,emission_factors!$L$22:$N$33,3,),IF($F30="Over 25hp",VLOOKUP($C30+3,emission_factors!$L$36:$N$48,3,)))))*($G30)),((IF($F30="Under 11hp",VLOOKUP($C30+3,emission_factors!$L$5:$N$18,3,),IF($F30="11-25hp",VLOOKUP($C30+3,emission_factors!$L$22:$N$33,3,),IF($F30="Over 25hp",VLOOKUP($C30+3,emission_factors!$L$36:$N$48,3,)))))*($G30+$H30))) ->  | V30: =IF($E30="YES",((IF($F30="Under 11hp",VLOOKUP($C30+4,emission_factors!$L$5:$N$18,3,),IF($F30="11-25hp",VLOOKUP($C30+4,emission_factors!$L$22:$N$33,3,),IF($F30="Over 25hp",VLOOKUP($C30+4,emission_factors!$L$36:$N$48,3,)))))*($G30)),((IF($F30="Under 11hp",VLOOKUP($C30+4,emission_factors!$L$5:$N$18,3,),IF($F30="11-25hp",VLOOKUP($C30+4,emission_factors!$L$22:$N$33,3,),IF($F30="Over 25hp",VLOOKUP($C30+4,emission_factors!$L$36:$N$48,3,)))))*($G30+$H30))) ->  | W30: 0 | X30: 0 | Y30: 0 | Z30: 0 | AA30: 0 | AB30: 0
A31: =IF(user_input_equipment!A31<>"",user_input_equipment!A31,"") ->  | B31: =IF(user_input_equipment!B31<>"",user_input_equipment!B31,"") ->  | C31: =IF(user_input_equipment!C31<>"",user_input_equipment!C31,"") ->  | D31: =IF(user_input_equipment!D31<>"",user_input_equipment!D31,"") ->  | E31: =IF(user_input_equipment!E31<>"",user_input_equipment!E31,"") ->  | F31: =IF(user_input_equipment!F31<>"",user_input_equipment!F31,"") ->  | G31: =IF(user_input_equipment!G31<>"",user_input_equipment!G31,"") ->  | H31: =IF(user_input_equipment!H31<>"",user_input_equipment!H31,"") ->  | I31: =IF(user_input_equipment!I31<>"",user_input_equipment!I31,"") ->  | J31: =IF(user_input_equipment!J31<>"",user_input_equipment!J31,"") ->  | K31: =IF(user_input_equipment!K31<>"",user_input_equipment!K31,"") ->  | L31: =IF(user_input_equipment!L31<>"",user_input_equipment!L31,"") ->  | M31: =IF($E31="YES",((IF($F31="Under 11hp",VLOOKUP($C31,emission_factors!$L$5:$N$18,2,),IF($F31="11-25hp",VLOOKUP($C31,emission_factors!$L$22:$N$33,2,),IF($F31="Over 25hp",VLOOKUP($C31,emission_factors!$L$36:$N$48,2,)))))*($G31)),((IF($F31="Under 11hp",VLOOKUP($C31,emission_factors!$L$5:$N$18,2,),IF($F31="11-25hp",VLOOKUP($C31,emission_factors!$L$22:$N$33,2,),IF($F31="Over 25hp",VLOOKUP($C31,emission_factors!$L$36:$N$48,2,)))))*($G31+$H31))) ->  | N31: =IF($E31="YES",((IF($F31="Under 11hp",VLOOKUP($C31+1,emission_factors!$L$5:$N$18,2,),IF($F31="11-25hp",VLOOKUP($C31+1,emission_factors!$L$22:$N$33,2,),IF($F31="Over 25hp",VLOOKUP($C31+1,emission_factors!$L$36:$N$48,2,)))))*($G31)),((IF($F31="Under 11hp",VLOOKUP($C31+1,emission_factors!$L$5:$N$18,2,),IF($F31="11-25hp",VLOOKUP($C31+1,emission_factors!$L$22:$N$33,2,),IF($F31="Over 25hp",VLOOKUP($C31+1,emission_factors!$L$36:$N$48,2,)))))*($G31+$H31))) ->  | O31: =IF($E31="YES",((IF($F31="Under 11hp",VLOOKUP($C31+2,emission_factors!$L$5:$N$18,2,),IF($F31="11-25hp",VLOOKUP($C31+2,emission_factors!$L$22:$N$33,2,),IF($F31="Over 25hp",VLOOKUP($C31+2,emission_factors!$L$36:$N$48,2,)))))*($G31)),((IF($F31="Under 11hp",VLOOKUP($C31+2,emission_factors!$L$5:$N$18,2,),IF($F31="11-25hp",VLOOKUP($C31+2,emission_factors!$L$22:$N$33,2,),IF($F31="Over 25hp",VLOOKUP($C31+2,emission_factors!$L$36:$N$48,2,)))))*($G31+$H31))) ->  | P31: =IF($E31="YES",((IF($F31="Under 11hp",VLOOKUP($C31+3,emission_factors!$L$5:$N$18,2,),IF($F31="11-25hp",VLOOKUP($C31+3,emission_factors!$L$22:$N$33,2,),IF($F31="Over 25hp",VLOOKUP($C31+3,emission_factors!$L$36:$N$48,2,)))))*($G31)),((IF($F31="Under 11hp",VLOOKUP($C31+3,emission_factors!$L$5:$N$18,2,),IF($F31="11-25hp",VLOOKUP($C31+3,emission_factors!$L$22:$N$33,2,),IF($F31="Over 25hp",VLOOKUP($C31+3,emission_factors!$L$36:$N$48,2,)))))*($G31+$H31))) ->  | Q31: =IF($E31="YES",((IF($F31="Under 11hp",VLOOKUP($C31+4,emission_factors!$L$5:$N$18,2,),IF($F31="11-25hp",VLOOKUP($C31+4,emission_factors!$L$22:$N$33,2,),IF($F31="Over 25hp",VLOOKUP($C31+4,emission_factors!$L$36:$N$48,2,)))))*($G31)),((IF($F31="Under 11hp",VLOOKUP($C31+4,emission_factors!$L$5:$N$18,2,),IF($F31="11-25hp",VLOOKUP($C31+4,emission_factors!$L$22:$N$33,2,),IF($F31="Over 25hp",VLOOKUP($C31+4,emission_factors!$L$36:$N$48,2,)))))*($G31+$H31))) ->  | R31: =IF($E31="YES",((IF($F31="Under 11hp",VLOOKUP($C31,emission_factors!$L$5:$N$18,3,),IF($F31="11-25hp",VLOOKUP($C31,emission_factors!$L$22:$N$33,3,),IF($F31="Over 25hp",VLOOKUP($C31,emission_factors!$L$36:$N$48,3,)))))*($G31)),((IF($F31="Under 11hp",VLOOKUP($C31,emission_factors!$L$5:$N$18,3,),IF($F31="11-25hp",VLOOKUP($C31,emission_factors!$L$22:$N$33,3,),IF($F31="Over 25hp",VLOOKUP($C31,emission_factors!$L$36:$N$48,3,)))))*($G31+$H31))) ->  | S31: =IF($E31="YES",((IF($F31="Under 11hp",VLOOKUP($C31+1,emission_factors!$L$5:$N$18,3,),IF($F31="11-25hp",VLOOKUP($C31+1,emission_factors!$L$22:$N$33,3,),IF($F31="Over 25hp",VLOOKUP($C31+1,emission_factors!$L$36:$N$48,3,)))))*($G31)),((IF($F31="Under 11hp",VLOOKUP($C31+1,emission_factors!$L$5:$N$18,3,),IF($F31="11-25hp",VLOOKUP($C31+1,emission_factors!$L$22:$N$33,3,),IF($F31="Over 25hp",VLOOKUP($C31+1,emission_factors!$L$36:$N$48,3,)))))*($G31+$H31))) ->  | T31: =IF($E31="YES",((IF($F31="Under 11hp",VLOOKUP($C31+2,emission_factors!$L$5:$N$18,3,),IF($F31="11-25hp",VLOOKUP($C31+2,emission_factors!$L$22:$N$33,3,),IF($F31="Over 25hp",VLOOKUP($C31+2,emission_factors!$L$36:$N$48,3,)))))*($G31)),((IF($F31="Under 11hp",VLOOKUP($C31+2,emission_factors!$L$5:$N$18,3,),IF($F31="11-25hp",VLOOKUP($C31+2,emission_factors!$L$22:$N$33,3,),IF($F31="Over 25hp",VLOOKUP($C31+2,emission_factors!$L$36:$N$48,3,)))))*($G31+$H31))) ->  | U31: =IF($E31="YES",((IF($F31="Under 11hp",VLOOKUP($C31+3,emission_factors!$L$5:$N$18,3,),IF($F31="11-25hp",VLOOKUP($C31+3,emission_factors!$L$22:$N$33,3,),IF($F31="Over 25hp",VLOOKUP($C31+3,emission_factors!$L$36:$N$48,3,)))))*($G31)),((IF($F31="Under 11hp",VLOOKUP($C31+3,emission_factors!$L$5:$N$18,3,),IF($F31="11-25hp",VLOOKUP($C31+3,emission_factors!$L$22:$N$33,3,),IF($F31="Over 25hp",VLOOKUP($C31+3,emission_factors!$L$36:$N$48,3,)))))*($G31+$H31))) ->  | V31: =IF($E31="YES",((IF($F31="Under 11hp",VLOOKUP($C31+4,emission_factors!$L$5:$N$18,3,),IF($F31="11-25hp",VLOOKUP($C31+4,emission_factors!$L$22:$N$33,3,),IF($F31="Over 25hp",VLOOKUP($C31+4,emission_factors!$L$36:$N$48,3,)))))*($G31)),((IF($F31="Under 11hp",VLOOKUP($C31+4,emission_factors!$L$5:$N$18,3,),IF($F31="11-25hp",VLOOKUP($C31+4,emission_factors!$L$22:$N$33,3,),IF($F31="Over 25hp",VLOOKUP($C31+4,emission_factors!$L$36:$N$48,3,)))))*($G31+$H31))) ->  | W31: 0 | X31: 0 | Y31: 0 | Z31: 0 | AA31: 0 | AB31: 0
A32: =IF(user_input_equipment!A32<>"",user_input_equipment!A32,"") ->  | B32: =IF(user_input_equipment!B32<>"",user_input_equipment!B32,"") ->  | C32: =IF(user_input_equipment!C32<>"",user_input_equipment!C32,"") ->  | D32: =IF(user_input_equipment!D32<>"",user_input_equipment!D32,"") ->  | E32: =IF(user_input_equipment!E32<>"",user_input_equipment!E32,"") ->  | F32: =IF(user_input_equipment!F32<>"",user_input_equipment!F32,"") ->  | G32: =IF(user_input_equipment!G32<>"",user_input_equipment!G32,"") ->  | H32: =IF(user_input_equipment!H32<>"",user_input_equipment!H32,"") ->  | I32: =IF(user_input_equipment!I32<>"",user_input_equipment!I32,"") ->  | J32: =IF(user_input_equipment!J32<>"",user_input_equipment!J32,"") ->  | K32: =IF(user_input_equipment!K32<>"",user_input_equipment!K32,"") ->  | L32: =IF(user_input_equipment!L32<>"",user_input_equipment!L32,"") ->  | M32: =IF($E32="YES",((IF($F32="Under 11hp",VLOOKUP($C32,emission_factors!$L$5:$N$18,2,),IF($F32="11-25hp",VLOOKUP($C32,emission_factors!$L$22:$N$33,2,),IF($F32="Over 25hp",VLOOKUP($C32,emission_factors!$L$36:$N$48,2,)))))*($G32)),((IF($F32="Under 11hp",VLOOKUP($C32,emission_factors!$L$5:$N$18,2,),IF($F32="11-25hp",VLOOKUP($C32,emission_factors!$L$22:$N$33,2,),IF($F32="Over 25hp",VLOOKUP($C32,emission_factors!$L$36:$N$48,2,)))))*($G32+$H32))) ->  | N32: =IF($E32="YES",((IF($F32="Under 11hp",VLOOKUP($C32+1,emission_factors!$L$5:$N$18,2,),IF($F32="11-25hp",VLOOKUP($C32+1,emission_factors!$L$22:$N$33,2,),IF($F32="Over 25hp",VLOOKUP($C32+1,emission_factors!$L$36:$N$48,2,)))))*($G32)),((IF($F32="Under 11hp",VLOOKUP($C32+1,emission_factors!$L$5:$N$18,2,),IF($F32="11-25hp",VLOOKUP($C32+1,emission_factors!$L$22:$N$33,2,),IF($F32="Over 25hp",VLOOKUP($C32+1,emission_factors!$L$36:$N$48,2,)))))*($G32+$H32))) ->  | O32: =IF($E32="YES",((IF($F32="Under 11hp",VLOOKUP($C32+2,emission_factors!$L$5:$N$18,2,),IF($F32="11-25hp",VLOOKUP($C32+2,emission_factors!$L$22:$N$33,2,),IF($F32="Over 25hp",VLOOKUP($C32+2,emission_factors!$L$36:$N$48,2,)))))*($G32)),((IF($F32="Under 11hp",VLOOKUP($C32+2,emission_factors!$L$5:$N$18,2,),IF($F32="11-25hp",VLOOKUP($C32+2,emission_factors!$L$22:$N$33,2,),IF($F32="Over 25hp",VLOOKUP($C32+2,emission_factors!$L$36:$N$48,2,)))))*($G32+$H32))) ->  | P32: =IF($E32="YES",((IF($F32="Under 11hp",VLOOKUP($C32+3,emission_factors!$L$5:$N$18,2,),IF($F32="11-25hp",VLOOKUP($C32+3,emission_factors!$L$22:$N$33,2,),IF($F32="Over 25hp",VLOOKUP($C32+3,emission_factors!$L$36:$N$48,2,)))))*($G32)),((IF($F32="Under 11hp",VLOOKUP($C32+3,emission_factors!$L$5:$N$18,2,),IF($F32="11-25hp",VLOOKUP($C32+3,emission_factors!$L$22:$N$33,2,),IF($F32="Over 25hp",VLOOKUP($C32+3,emission_factors!$L$36:$N$48,2,)))))*($G32+$H32))) ->  | Q32: =IF($E32="YES",((IF($F32="Under 11hp",VLOOKUP($C32+4,emission_factors!$L$5:$N$18,2,),IF($F32="11-25hp",VLOOKUP($C32+4,emission_factors!$L$22:$N$33,2,),IF($F32="Over 25hp",VLOOKUP($C32+4,emission_factors!$L$36:$N$48,2,)))))*($G32)),((IF($F32="Under 11hp",VLOOKUP($C32+4,emission_factors!$L$5:$N$18,2,),IF($F32="11-25hp",VLOOKUP($C32+4,emission_factors!$L$22:$N$33,2,),IF($F32="Over 25hp",VLOOKUP($C32+4,emission_factors!$L$36:$N$48,2,)))))*($G32+$H32))) ->  | R32: =IF($E32="YES",((IF($F32="Under 11hp",VLOOKUP($C32,emission_factors!$L$5:$N$18,3,),IF($F32="11-25hp",VLOOKUP($C32,emission_factors!$L$22:$N$33,3,),IF($F32="Over 25hp",VLOOKUP($C32,emission_factors!$L$36:$N$48,3,)))))*($G32)),((IF($F32="Under 11hp",VLOOKUP($C32,emission_factors!$L$5:$N$18,3,),IF($F32="11-25hp",VLOOKUP($C32,emission_factors!$L$22:$N$33,3,),IF($F32="Over 25hp",VLOOKUP($C32,emission_factors!$L$36:$N$48,3,)))))*($G32+$H32))) ->  | S32: =IF($E32="YES",((IF($F32="Under 11hp",VLOOKUP($C32+1,emission_factors!$L$5:$N$18,3,),IF($F32="11-25hp",VLOOKUP($C32+1,emission_factors!$L$22:$N$33,3,),IF($F32="Over 25hp",VLOOKUP($C32+1,emission_factors!$L$36:$N$48,3,)))))*($G32)),((IF($F32="Under 11hp",VLOOKUP($C32+1,emission_factors!$L$5:$N$18,3,),IF($F32="11-25hp",VLOOKUP($C32+1,emission_factors!$L$22:$N$33,3,),IF($F32="Over 25hp",VLOOKUP($C32+1,emission_factors!$L$36:$N$48,3,)))))*($G32+$H32))) ->  | T32: =IF($E32="YES",((IF($F32="Under 11hp",VLOOKUP($C32+2,emission_factors!$L$5:$N$18,3,),IF($F32="11-25hp",VLOOKUP($C32+2,emission_factors!$L$22:$N$33,3,),IF($F32="Over 25hp",VLOOKUP($C32+2,emission_factors!$L$36:$N$48,3,)))))*($G32)),((IF($F32="Under 11hp",VLOOKUP($C32+2,emission_factors!$L$5:$N$18,3,),IF($F32="11-25hp",VLOOKUP($C32+2,emission_factors!$L$22:$N$33,3,),IF($F32="Over 25hp",VLOOKUP($C32+2,emission_factors!$L$36:$N$48,3,)))))*($G32+$H32))) ->  | U32: =IF($E32="YES",((IF($F32="Under 11hp",VLOOKUP($C32+3,emission_factors!$L$5:$N$18,3,),IF($F32="11-25hp",VLOOKUP($C32+3,emission_factors!$L$22:$N$33,3,),IF($F32="Over 25hp",VLOOKUP($C32+3,emission_factors!$L$36:$N$48,3,)))))*($G32)),((IF($F32="Under 11hp",VLOOKUP($C32+3,emission_factors!$L$5:$N$18,3,),IF($F32="11-25hp",VLOOKUP($C32+3,emission_factors!$L$22:$N$33,3,),IF($F32="Over 25hp",VLOOKUP($C32+3,emission_factors!$L$36:$N$48,3,)))))*($G32+$H32))) ->  | V32: =IF($E32="YES",((IF($F32="Under 11hp",VLOOKUP($C32+4,emission_factors!$L$5:$N$18,3,),IF($F32="11-25hp",VLOOKUP($C32+4,emission_factors!$L$22:$N$33,3,),IF($F32="Over 25hp",VLOOKUP($C32+4,emission_factors!$L$36:$N$48,3,)))))*($G32)),((IF($F32="Under 11hp",VLOOKUP($C32+4,emission_factors!$L$5:$N$18,3,),IF($F32="11-25hp",VLOOKUP($C32+4,emission_factors!$L$22:$N$33,3,),IF($F32="Over 25hp",VLOOKUP($C32+4,emission_factors!$L$36:$N$48,3,)))))*($G32+$H32))) ->  | W32: 0 | X32: 0 | Y32: 0 | Z32: 0 | AA32: 0 | AB32: 0
A33: =IF(user_input_equipment!A33<>"",user_input_equipment!A33,"") ->  | B33: =IF(user_input_equipment!B33<>"",user_input_equipment!B33,"") ->  | C33: =IF(user_input_equipment!C33<>"",user_input_equipment!C33,"") ->  | D33: =IF(user_input_equipment!D33<>"",user_input_equipment!D33,"") ->  | E33: =IF(user_input_equipment!E33<>"",user_input_equipment!E33,"") ->  | F33: =IF(user_input_equipment!F33<>"",user_input_equipment!F33,"") ->  | G33: =IF(user_input_equipment!G33<>"",user_input_equipment!G33,"") ->  | H33: =IF(user_input_equipment!H33<>"",user_input_equipment!H33,"") ->  | I33: =IF(user_input_equipment!I33<>"",user_input_equipment!I33,"") ->  | J33: =IF(user_input_equipment!J33<>"",user_input_equipment!J33,"") ->  | K33: =IF(user_input_equipment!K33<>"",user_input_equipment!K33,"") ->  | L33: =IF(user_input_equipment!L33<>"",user_input_equipment!L33,"") ->  | M33: =IF($E33="YES",((IF($F33="Under 11hp",VLOOKUP($C33,emission_factors!$L$5:$N$18,2,),IF($F33="11-25hp",VLOOKUP($C33,emission_factors!$L$22:$N$33,2,),IF($F33="Over 25hp",VLOOKUP($C33,emission_factors!$L$36:$N$48,2,)))))*($G33)),((IF($F33="Under 11hp",VLOOKUP($C33,emission_factors!$L$5:$N$18,2,),IF($F33="11-25hp",VLOOKUP($C33,emission_factors!$L$22:$N$33,2,),IF($F33="Over 25hp",VLOOKUP($C33,emission_factors!$L$36:$N$48,2,)))))*($G33+$H33))) ->  | N33: =IF($E33="YES",((IF($F33="Under 11hp",VLOOKUP($C33+1,emission_factors!$L$5:$N$18,2,),IF($F33="11-25hp",VLOOKUP($C33+1,emission_factors!$L$22:$N$33,2,),IF($F33="Over 25hp",VLOOKUP($C33+1,emission_factors!$L$36:$N$48,2,)))))*($G33)),((IF($F33="Under 11hp",VLOOKUP($C33+1,emission_factors!$L$5:$N$18,2,),IF($F33="11-25hp",VLOOKUP($C33+1,emission_factors!$L$22:$N$33,2,),IF($F33="Over 25hp",VLOOKUP($C33+1,emission_factors!$L$36:$N$48,2,)))))*($G33+$H33))) ->  | O33: =IF($E33="YES",((IF($F33="Under 11hp",VLOOKUP($C33+2,emission_factors!$L$5:$N$18,2,),IF($F33="11-25hp",VLOOKUP($C33+2,emission_factors!$L$22:$N$33,2,),IF($F33="Over 25hp",VLOOKUP($C33+2,emission_factors!$L$36:$N$48,2,)))))*($G33)),((IF($F33="Under 11hp",VLOOKUP($C33+2,emission_factors!$L$5:$N$18,2,),IF($F33="11-25hp",VLOOKUP($C33+2,emission_factors!$L$22:$N$33,2,),IF($F33="Over 25hp",VLOOKUP($C33+2,emission_factors!$L$36:$N$48,2,)))))*($G33+$H33))) ->  | P33: =IF($E33="YES",((IF($F33="Under 11hp",VLOOKUP($C33+3,emission_factors!$L$5:$N$18,2,),IF($F33="11-25hp",VLOOKUP($C33+3,emission_factors!$L$22:$N$33,2,),IF($F33="Over 25hp",VLOOKUP($C33+3,emission_factors!$L$36:$N$48,2,)))))*($G33)),((IF($F33="Under 11hp",VLOOKUP($C33+3,emission_factors!$L$5:$N$18,2,),IF($F33="11-25hp",VLOOKUP($C33+3,emission_factors!$L$22:$N$33,2,),IF($F33="Over 25hp",VLOOKUP($C33+3,emission_factors!$L$36:$N$48,2,)))))*($G33+$H33))) ->  | Q33: =IF($E33="YES",((IF($F33="Under 11hp",VLOOKUP($C33+4,emission_factors!$L$5:$N$18,2,),IF($F33="11-25hp",VLOOKUP($C33+4,emission_factors!$L$22:$N$33,2,),IF($F33="Over 25hp",VLOOKUP($C33+4,emission_factors!$L$36:$N$48,2,)))))*($G33)),((IF($F33="Under 11hp",VLOOKUP($C33+4,emission_factors!$L$5:$N$18,2,),IF($F33="11-25hp",VLOOKUP($C33+4,emission_factors!$L$22:$N$33,2,),IF($F33="Over 25hp",VLOOKUP($C33+4,emission_factors!$L$36:$N$48,2,)))))*($G33+$H33))) ->  | R33: =IF($E33="YES",((IF($F33="Under 11hp",VLOOKUP($C33,emission_factors!$L$5:$N$18,3,),IF($F33="11-25hp",VLOOKUP($C33,emission_factors!$L$22:$N$33,3,),IF($F33="Over 25hp",VLOOKUP($C33,emission_factors!$L$36:$N$48,3,)))))*($G33)),((IF($F33="Under 11hp",VLOOKUP($C33,emission_factors!$L$5:$N$18,3,),IF($F33="11-25hp",VLOOKUP($C33,emission_factors!$L$22:$N$33,3,),IF($F33="Over 25hp",VLOOKUP($C33,emission_factors!$L$36:$N$48,3,)))))*($G33+$H33))) ->  | S33: =IF($E33="YES",((IF($F33="Under 11hp",VLOOKUP($C33+1,emission_factors!$L$5:$N$18,3,),IF($F33="11-25hp",VLOOKUP($C33+1,emission_factors!$L$22:$N$33,3,),IF($F33="Over 25hp",VLOOKUP($C33+1,emission_factors!$L$36:$N$48,3,)))))*($G33)),((IF($F33="Under 11hp",VLOOKUP($C33+1,emission_factors!$L$5:$N$18,3,),IF($F33="11-25hp",VLOOKUP($C33+1,emission_factors!$L$22:$N$33,3,),IF($F33="Over 25hp",VLOOKUP($C33+1,emission_factors!$L$36:$N$48,3,)))))*($G33+$H33))) ->  | T33: =IF($E33="YES",((IF($F33="Under 11hp",VLOOKUP($C33+2,emission_factors!$L$5:$N$18,3,),IF($F33="11-25hp",VLOOKUP($C33+2,emission_factors!$L$22:$N$33,3,),IF($F33="Over 25hp",VLOOKUP($C33+2,emission_factors!$L$36:$N$48,3,)))))*($G33)),((IF($F33="Under 11hp",VLOOKUP($C33+2,emission_factors!$L$5:$N$18,3,),IF($F33="11-25hp",VLOOKUP($C33+2,emission_factors!$L$22:$N$33,3,),IF($F33="Over 25hp",VLOOKUP($C33+2,emission_factors!$L$36:$N$48,3,)))))*($G33+$H33))) ->  | U33: =IF($E33="YES",((IF($F33="Under 11hp",VLOOKUP($C33+3,emission_factors!$L$5:$N$18,3,),IF($F33="11-25hp",VLOOKUP($C33+3,emission_factors!$L$22:$N$33,3,),IF($F33="Over 25hp",VLOOKUP($C33+3,emission_factors!$L$36:$N$48,3,)))))*($G33)),((IF($F33="Under 11hp",VLOOKUP($C33+3,emission_factors!$L$5:$N$18,3,),IF($F33="11-25hp",VLOOKUP($C33+3,emission_factors!$L$22:$N$33,3,),IF($F33="Over 25hp",VLOOKUP($C33+3,emission_factors!$L$36:$N$48,3,)))))*($G33+$H33))) ->  | V33: =IF($E33="YES",((IF($F33="Under 11hp",VLOOKUP($C33+4,emission_factors!$L$5:$N$18,3,),IF($F33="11-25hp",VLOOKUP($C33+4,emission_factors!$L$22:$N$33,3,),IF($F33="Over 25hp",VLOOKUP($C33+4,emission_factors!$L$36:$N$48,3,)))))*($G33)),((IF($F33="Under 11hp",VLOOKUP($C33+4,emission_factors!$L$5:$N$18,3,),IF($F33="11-25hp",VLOOKUP($C33+4,emission_factors!$L$22:$N$33,3,),IF($F33="Over 25hp",VLOOKUP($C33+4,emission_factors!$L$36:$N$48,3,)))))*($G33+$H33))) ->  | W33: 0 | X33: 0 | Y33: 0 | Z33: 0 | AA33: 0 | AB33: 0
A34: =IF(user_input_equipment!A34<>"",user_input_equipment!A34,"") ->  | B34: =IF(user_input_equipment!B34<>"",user_input_equipment!B34,"") ->  | C34: =IF(user_input_equipment!C34<>"",user_input_equipment!C34,"") ->  | D34: =IF(user_input_equipment!D34<>"",user_input_equipment!D34,"") ->  | E34: =IF(user_input_equipment!E34<>"",user_input_equipment!E34,"") ->  | F34: =IF(user_input_equipment!F34<>"",user_input_equipment!F34,"") ->  | G34: =IF(user_input_equipment!G34<>"",user_input_equipment!G34,"") ->  | H34: =IF(user_input_equipment!H34<>"",user_input_equipment!H34,"") ->  | I34: =IF(user_input_equipment!I34<>"",user_input_equipment!I34,"") ->  | J34: =IF(user_input_equipment!J34<>"",user_input_equipment!J34,"") ->  | K34: =IF(user_input_equipment!K34<>"",user_input_equipment!K34,"") ->  | L34: =IF(user_input_equipment!L34<>"",user_input_equipment!L34,"") ->  | M34: =IF($E34="YES",((IF($F34="Under 11hp",VLOOKUP($C34,emission_factors!$L$5:$N$18,2,),IF($F34="11-25hp",VLOOKUP($C34,emission_factors!$L$22:$N$33,2,),IF($F34="Over 25hp",VLOOKUP($C34,emission_factors!$L$36:$N$48,2,)))))*($G34)),((IF($F34="Under 11hp",VLOOKUP($C34,emission_factors!$L$5:$N$18,2,),IF($F34="11-25hp",VLOOKUP($C34,emission_factors!$L$22:$N$33,2,),IF($F34="Over 25hp",VLOOKUP($C34,emission_factors!$L$36:$N$48,2,)))))*($G34+$H34))) ->  | N34: =IF($E34="YES",((IF($F34="Under 11hp",VLOOKUP($C34+1,emission_factors!$L$5:$N$18,2,),IF($F34="11-25hp",VLOOKUP($C34+1,emission_factors!$L$22:$N$33,2,),IF($F34="Over 25hp",VLOOKUP($C34+1,emission_factors!$L$36:$N$48,2,)))))*($G34)),((IF($F34="Under 11hp",VLOOKUP($C34+1,emission_factors!$L$5:$N$18,2,),IF($F34="11-25hp",VLOOKUP($C34+1,emission_factors!$L$22:$N$33,2,),IF($F34="Over 25hp",VLOOKUP($C34+1,emission_factors!$L$36:$N$48,2,)))))*($G34+$H34))) ->  | O34: =IF($E34="YES",((IF($F34="Under 11hp",VLOOKUP($C34+2,emission_factors!$L$5:$N$18,2,),IF($F34="11-25hp",VLOOKUP($C34+2,emission_factors!$L$22:$N$33,2,),IF($F34="Over 25hp",VLOOKUP($C34+2,emission_factors!$L$36:$N$48,2,)))))*($G34)),((IF($F34="Under 11hp",VLOOKUP($C34+2,emission_factors!$L$5:$N$18,2,),IF($F34="11-25hp",VLOOKUP($C34+2,emission_factors!$L$22:$N$33,2,),IF($F34="Over 25hp",VLOOKUP($C34+2,emission_factors!$L$36:$N$48,2,)))))*($G34+$H34))) ->  | P34: =IF($E34="YES",((IF($F34="Under 11hp",VLOOKUP($C34+3,emission_factors!$L$5:$N$18,2,),IF($F34="11-25hp",VLOOKUP($C34+3,emission_factors!$L$22:$N$33,2,),IF($F34="Over 25hp",VLOOKUP($C34+3,emission_factors!$L$36:$N$48,2,)))))*($G34)),((IF($F34="Under 11hp",VLOOKUP($C34+3,emission_factors!$L$5:$N$18,2,),IF($F34="11-25hp",VLOOKUP($C34+3,emission_factors!$L$22:$N$33,2,),IF($F34="Over 25hp",VLOOKUP($C34+3,emission_factors!$L$36:$N$48,2,)))))*($G34+$H34))) ->  | Q34: =IF($E34="YES",((IF($F34="Under 11hp",VLOOKUP($C34+4,emission_factors!$L$5:$N$18,2,),IF($F34="11-25hp",VLOOKUP($C34+4,emission_factors!$L$22:$N$33,2,),IF($F34="Over 25hp",VLOOKUP($C34+4,emission_factors!$L$36:$N$48,2,)))))*($G34)),((IF($F34="Under 11hp",VLOOKUP($C34+4,emission_factors!$L$5:$N$18,2,),IF($F34="11-25hp",VLOOKUP($C34+4,emission_factors!$L$22:$N$33,2,),IF($F34="Over 25hp",VLOOKUP($C34+4,emission_factors!$L$36:$N$48,2,)))))*($G34+$H34))) ->  | R34: =IF($E34="YES",((IF($F34="Under 11hp",VLOOKUP($C34,emission_factors!$L$5:$N$18,3,),IF($F34="11-25hp",VLOOKUP($C34,emission_factors!$L$22:$N$33,3,),IF($F34="Over 25hp",VLOOKUP($C34,emission_factors!$L$36:$N$48,3,)))))*($G34)),((IF($F34="Under 11hp",VLOOKUP($C34,emission_factors!$L$5:$N$18,3,),IF($F34="11-25hp",VLOOKUP($C34,emission_factors!$L$22:$N$33,3,),IF($F34="Over 25hp",VLOOKUP($C34,emission_factors!$L$36:$N$48,3,)))))*($G34+$H34))) ->  | S34: =IF($E34="YES",((IF($F34="Under 11hp",VLOOKUP($C34+1,emission_factors!$L$5:$N$18,3,),IF($F34="11-25hp",VLOOKUP($C34+1,emission_factors!$L$22:$N$33,3,),IF($F34="Over 25hp",VLOOKUP($C34+1,emission_factors!$L$36:$N$48,3,)))))*($G34)),((IF($F34="Under 11hp",VLOOKUP($C34+1,emission_factors!$L$5:$N$18,3,),IF($F34="11-25hp",VLOOKUP($C34+1,emission_factors!$L$22:$N$33,3,),IF($F34="Over 25hp",VLOOKUP($C34+1,emission_factors!$L$36:$N$48,3,)))))*($G34+$H34))) ->  | T34: =IF($E34="YES",((IF($F34="Under 11hp",VLOOKUP($C34+2,emission_factors!$L$5:$N$18,3,),IF($F34="11-25hp",VLOOKUP($C34+2,emission_factors!$L$22:$N$33,3,),IF($F34="Over 25hp",VLOOKUP($C34+2,emission_factors!$L$36:$N$48,3,)))))*($G34)),((IF($F34="Under 11hp",VLOOKUP($C34+2,emission_factors!$L$5:$N$18,3,),IF($F34="11-25hp",VLOOKUP($C34+2,emission_factors!$L$22:$N$33,3,),IF($F34="Over 25hp",VLOOKUP($C34+2,emission_factors!$L$36:$N$48,3,)))))*($G34+$H34))) ->  | U34: =IF($E34="YES",((IF($F34="Under 11hp",VLOOKUP($C34+3,emission_factors!$L$5:$N$18,3,),IF($F34="11-25hp",VLOOKUP($C34+3,emission_factors!$L$22:$N$33,3,),IF($F34="Over 25hp",VLOOKUP($C34+3,emission_factors!$L$36:$N$48,3,)))))*($G34)),((IF($F34="Under 11hp",VLOOKUP($C34+3,emission_factors!$L$5:$N$18,3,),IF($F34="11-25hp",VLOOKUP($C34+3,emission_factors!$L$22:$N$33,3,),IF($F34="Over 25hp",VLOOKUP($C34+3,emission_factors!$L$36:$N$48,3,)))))*($G34+$H34))) ->  | V34: =IF($E34="YES",((IF($F34="Under 11hp",VLOOKUP($C34+4,emission_factors!$L$5:$N$18,3,),IF($F34="11-25hp",VLOOKUP($C34+4,emission_factors!$L$22:$N$33,3,),IF($F34="Over 25hp",VLOOKUP($C34+4,emission_factors!$L$36:$N$48,3,)))))*($G34)),((IF($F34="Under 11hp",VLOOKUP($C34+4,emission_factors!$L$5:$N$18,3,),IF($F34="11-25hp",VLOOKUP($C34+4,emission_factors!$L$22:$N$33,3,),IF($F34="Over 25hp",VLOOKUP($C34+4,emission_factors!$L$36:$N$48,3,)))))*($G34+$H34))) ->  | W34: 0 | X34: 0 | Y34: 0 | Z34: 0 | AA34: 0 | AB34: 0
A35: =IF(user_input_equipment!A35<>"",user_input_equipment!A35,"") ->  | B35: =IF(user_input_equipment!B35<>"",user_input_equipment!B35,"") ->  | C35: =IF(user_input_equipment!C35<>"",user_input_equipment!C35,"") ->  | D35: =IF(user_input_equipment!D35<>"",user_input_equipment!D35,"") ->  | E35: =IF(user_input_equipment!E35<>"",user_input_equipment!E35,"") ->  | F35: =IF(user_input_equipment!F35<>"",user_input_equipment!F35,"") ->  | G35: =IF(user_input_equipment!G35<>"",user_input_equipment!G35,"") ->  | H35: =IF(user_input_equipment!H35<>"",user_input_equipment!H35,"") ->  | I35: =IF(user_input_equipment!I35<>"",user_input_equipment!I35,"") ->  | J35: =IF(user_input_equipment!J35<>"",user_input_equipment!J35,"") ->  | K35: =IF(user_input_equipment!K35<>"",user_input_equipment!K35,"") ->  | L35: =IF(user_input_equipment!L35<>"",user_input_equipment!L35,"") ->  | M35: =IF($E35="YES",((IF($F35="Under 11hp",VLOOKUP($C35,emission_factors!$L$5:$N$18,2,),IF($F35="11-25hp",VLOOKUP($C35,emission_factors!$L$22:$N$33,2,),IF($F35="Over 25hp",VLOOKUP($C35,emission_factors!$L$36:$N$48,2,)))))*($G35)),((IF($F35="Under 11hp",VLOOKUP($C35,emission_factors!$L$5:$N$18,2,),IF($F35="11-25hp",VLOOKUP($C35,emission_factors!$L$22:$N$33,2,),IF($F35="Over 25hp",VLOOKUP($C35,emission_factors!$L$36:$N$48,2,)))))*($G35+$H35))) ->  | N35: =IF($E35="YES",((IF($F35="Under 11hp",VLOOKUP($C35+1,emission_factors!$L$5:$N$18,2,),IF($F35="11-25hp",VLOOKUP($C35+1,emission_factors!$L$22:$N$33,2,),IF($F35="Over 25hp",VLOOKUP($C35+1,emission_factors!$L$36:$N$48,2,)))))*($G35)),((IF($F35="Under 11hp",VLOOKUP($C35+1,emission_factors!$L$5:$N$18,2,),IF($F35="11-25hp",VLOOKUP($C35+1,emission_factors!$L$22:$N$33,2,),IF($F35="Over 25hp",VLOOKUP($C35+1,emission_factors!$L$36:$N$48,2,)))))*($G35+$H35))) ->  | O35: =IF($E35="YES",((IF($F35="Under 11hp",VLOOKUP($C35+2,emission_factors!$L$5:$N$18,2,),IF($F35="11-25hp",VLOOKUP($C35+2,emission_factors!$L$22:$N$33,2,),IF($F35="Over 25hp",VLOOKUP($C35+2,emission_factors!$L$36:$N$48,2,)))))*($G35)),((IF($F35="Under 11hp",VLOOKUP($C35+2,emission_factors!$L$5:$N$18,2,),IF($F35="11-25hp",VLOOKUP($C35+2,emission_factors!$L$22:$N$33,2,),IF($F35="Over 25hp",VLOOKUP($C35+2,emission_factors!$L$36:$N$48,2,)))))*($G35+$H35))) ->  | P35: =IF($E35="YES",((IF($F35="Under 11hp",VLOOKUP($C35+3,emission_factors!$L$5:$N$18,2,),IF($F35="11-25hp",VLOOKUP($C35+3,emission_factors!$L$22:$N$33,2,),IF($F35="Over 25hp",VLOOKUP($C35+3,emission_factors!$L$36:$N$48,2,)))))*($G35)),((IF($F35="Under 11hp",VLOOKUP($C35+3,emission_factors!$L$5:$N$18,2,),IF($F35="11-25hp",VLOOKUP($C35+3,emission_factors!$L$22:$N$33,2,),IF($F35="Over 25hp",VLOOKUP($C35+3,emission_factors!$L$36:$N$48,2,)))))*($G35+$H35))) ->  | Q35: =IF($E35="YES",((IF($F35="Under 11hp",VLOOKUP($C35+4,emission_factors!$L$5:$N$18,2,),IF($F35="11-25hp",VLOOKUP($C35+4,emission_factors!$L$22:$N$33,2,),IF($F35="Over 25hp",VLOOKUP($C35+4,emission_factors!$L$36:$N$48,2,)))))*($G35)),((IF($F35="Under 11hp",VLOOKUP($C35+4,emission_factors!$L$5:$N$18,2,),IF($F35="11-25hp",VLOOKUP($C35+4,emission_factors!$L$22:$N$33,2,),IF($F35="Over 25hp",VLOOKUP($C35+4,emission_factors!$L$36:$N$48,2,)))))*($G35+$H35))) ->  | R35: =IF($E35="YES",((IF($F35="Under 11hp",VLOOKUP($C35,emission_factors!$L$5:$N$18,3,),IF($F35="11-25hp",VLOOKUP($C35,emission_factors!$L$22:$N$33,3,),IF($F35="Over 25hp",VLOOKUP($C35,emission_factors!$L$36:$N$48,3,)))))*($G35)),((IF($F35="Under 11hp",VLOOKUP($C35,emission_factors!$L$5:$N$18,3,),IF($F35="11-25hp",VLOOKUP($C35,emission_factors!$L$22:$N$33,3,),IF($F35="Over 25hp",VLOOKUP($C35,emission_factors!$L$36:$N$48,3,)))))*($G35+$H35))) ->  | S35: =IF($E35="YES",((IF($F35="Under 11hp",VLOOKUP($C35+1,emission_factors!$L$5:$N$18,3,),IF($F35="11-25hp",VLOOKUP($C35+1,emission_factors!$L$22:$N$33,3,),IF($F35="Over 25hp",VLOOKUP($C35+1,emission_factors!$L$36:$N$48,3,)))))*($G35)),((IF($F35="Under 11hp",VLOOKUP($C35+1,emission_factors!$L$5:$N$18,3,),IF($F35="11-25hp",VLOOKUP($C35+1,emission_factors!$L$22:$N$33,3,),IF($F35="Over 25hp",VLOOKUP($C35+1,emission_factors!$L$36:$N$48,3,)))))*($G35+$H35))) ->  | T35: =IF($E35="YES",((IF($F35="Under 11hp",VLOOKUP($C35+2,emission_factors!$L$5:$N$18,3,),IF($F35="11-25hp",VLOOKUP($C35+2,emission_factors!$L$22:$N$33,3,),IF($F35="Over 25hp",VLOOKUP($C35+2,emission_factors!$L$36:$N$48,3,)))))*($G35)),((IF($F35="Under 11hp",VLOOKUP($C35+2,emission_factors!$L$5:$N$18,3,),IF($F35="11-25hp",VLOOKUP($C35+2,emission_factors!$L$22:$N$33,3,),IF($F35="Over 25hp",VLOOKUP($C35+2,emission_factors!$L$36:$N$48,3,)))))*($G35+$H35))) ->  | U35: =IF($E35="YES",((IF($F35="Under 11hp",VLOOKUP($C35+3,emission_factors!$L$5:$N$18,3,),IF($F35="11-25hp",VLOOKUP($C35+3,emission_factors!$L$22:$N$33,3,),IF($F35="Over 25hp",VLOOKUP($C35+3,emission_factors!$L$36:$N$48,3,)))))*($G35)),((IF($F35="Under 11hp",VLOOKUP($C35+3,emission_factors!$L$5:$N$18,3,),IF($F35="11-25hp",VLOOKUP($C35+3,emission_factors!$L$22:$N$33,3,),IF($F35="Over 25hp",VLOOKUP($C35+3,emission_factors!$L$36:$N$48,3,)))))*($G35+$H35))) ->  | V35: =IF($E35="YES",((IF($F35="Under 11hp",VLOOKUP($C35+4,emission_factors!$L$5:$N$18,3,),IF($F35="11-25hp",VLOOKUP($C35+4,emission_factors!$L$22:$N$33,3,),IF($F35="Over 25hp",VLOOKUP($C35+4,emission_factors!$L$36:$N$48,3,)))))*($G35)),((IF($F35="Under 11hp",VLOOKUP($C35+4,emission_factors!$L$5:$N$18,3,),IF($F35="11-25hp",VLOOKUP($C35+4,emission_factors!$L$22:$N$33,3,),IF($F35="Over 25hp",VLOOKUP($C35+4,emission_factors!$L$36:$N$48,3,)))))*($G35+$H35))) ->  | W35: 0 | X35: 0 | Y35: 0 | Z35: 0 | AA35: 0 | AB35: 0
A36: =IF(user_input_equipment!A36<>"",user_input_equipment!A36,"") ->  | B36: =IF(user_input_equipment!B36<>"",user_input_equipment!B36,"") ->  | C36: =IF(user_input_equipment!C36<>"",user_input_equipment!C36,"") ->  | D36: =IF(user_input_equipment!D36<>"",user_input_equipment!D36,"") ->  | E36: =IF(user_input_equipment!E36<>"",user_input_equipment!E36,"") ->  | F36: =IF(user_input_equipment!F36<>"",user_input_equipment!F36,"") ->  | G36: =IF(user_input_equipment!G36<>"",user_input_equipment!G36,"") ->  | H36: =IF(user_input_equipment!H36<>"",user_input_equipment!H36,"") ->  | I36: =IF(user_input_equipment!I36<>"",user_input_equipment!I36,"") ->  | J36: =IF(user_input_equipment!J36<>"",user_input_equipment!J36,"") ->  | K36: =IF(user_input_equipment!K36<>"",user_input_equipment!K36,"") ->  | L36: =IF(user_input_equipment!L36<>"",user_input_equipment!L36,"") ->  | M36: =IF($E36="YES",((IF($F36="Under 11hp",VLOOKUP($C36,emission_factors!$L$5:$N$18,2,),IF($F36="11-25hp",VLOOKUP($C36,emission_factors!$L$22:$N$33,2,),IF($F36="Over 25hp",VLOOKUP($C36,emission_factors!$L$36:$N$48,2,)))))*($G36)),((IF($F36="Under 11hp",VLOOKUP($C36,emission_factors!$L$5:$N$18,2,),IF($F36="11-25hp",VLOOKUP($C36,emission_factors!$L$22:$N$33,2,),IF($F36="Over 25hp",VLOOKUP($C36,emission_factors!$L$36:$N$48,2,)))))*($G36+$H36))) ->  | N36: =IF($E36="YES",((IF($F36="Under 11hp",VLOOKUP($C36+1,emission_factors!$L$5:$N$18,2,),IF($F36="11-25hp",VLOOKUP($C36+1,emission_factors!$L$22:$N$33,2,),IF($F36="Over 25hp",VLOOKUP($C36+1,emission_factors!$L$36:$N$48,2,)))))*($G36)),((IF($F36="Under 11hp",VLOOKUP($C36+1,emission_factors!$L$5:$N$18,2,),IF($F36="11-25hp",VLOOKUP($C36+1,emission_factors!$L$22:$N$33,2,),IF($F36="Over 25hp",VLOOKUP($C36+1,emission_factors!$L$36:$N$48,2,)))))*($G36+$H36))) ->  | O36: =IF($E36="YES",((IF($F36="Under 11hp",VLOOKUP($C36+2,emission_factors!$L$5:$N$18,2,),IF($F36="11-25hp",VLOOKUP($C36+2,emission_factors!$L$22:$N$33,2,),IF($F36="Over 25hp",VLOOKUP($C36+2,emission_factors!$L$36:$N$48,2,)))))*($G36)),((IF($F36="Under 11hp",VLOOKUP($C36+2,emission_factors!$L$5:$N$18,2,),IF($F36="11-25hp",VLOOKUP($C36+2,emission_factors!$L$22:$N$33,2,),IF($F36="Over 25hp",VLOOKUP($C36+2,emission_factors!$L$36:$N$48,2,)))))*($G36+$H36))) ->  | P36: =IF($E36="YES",((IF($F36="Under 11hp",VLOOKUP($C36+3,emission_factors!$L$5:$N$18,2,),IF($F36="11-25hp",VLOOKUP($C36+3,emission_factors!$L$22:$N$33,2,),IF($F36="Over 25hp",VLOOKUP($C36+3,emission_factors!$L$36:$N$48,2,)))))*($G36)),((IF($F36="Under 11hp",VLOOKUP($C36+3,emission_factors!$L$5:$N$18,2,),IF($F36="11-25hp",VLOOKUP($C36+3,emission_factors!$L$22:$N$33,2,),IF($F36="Over 25hp",VLOOKUP($C36+3,emission_factors!$L$36:$N$48,2,)))))*($G36+$H36))) ->  | Q36: =IF($E36="YES",((IF($F36="Under 11hp",VLOOKUP($C36+4,emission_factors!$L$5:$N$18,2,),IF($F36="11-25hp",VLOOKUP($C36+4,emission_factors!$L$22:$N$33,2,),IF($F36="Over 25hp",VLOOKUP($C36+4,emission_factors!$L$36:$N$48,2,)))))*($G36)),((IF($F36="Under 11hp",VLOOKUP($C36+4,emission_factors!$L$5:$N$18,2,),IF($F36="11-25hp",VLOOKUP($C36+4,emission_factors!$L$22:$N$33,2,),IF($F36="Over 25hp",VLOOKUP($C36+4,emission_factors!$L$36:$N$48,2,)))))*($G36+$H36))) ->  | R36: =IF($E36="YES",((IF($F36="Under 11hp",VLOOKUP($C36,emission_factors!$L$5:$N$18,3,),IF($F36="11-25hp",VLOOKUP($C36,emission_factors!$L$22:$N$33,3,),IF($F36="Over 25hp",VLOOKUP($C36,emission_factors!$L$36:$N$48,3,)))))*($G36)),((IF($F36="Under 11hp",VLOOKUP($C36,emission_factors!$L$5:$N$18,3,),IF($F36="11-25hp",VLOOKUP($C36,emission_factors!$L$22:$N$33,3,),IF($F36="Over 25hp",VLOOKUP($C36,emission_factors!$L$36:$N$48,3,)))))*($G36+$H36))) ->  | S36: =IF($E36="YES",((IF($F36="Under 11hp",VLOOKUP($C36+1,emission_factors!$L$5:$N$18,3,),IF($F36="11-25hp",VLOOKUP($C36+1,emission_factors!$L$22:$N$33,3,),IF($F36="Over 25hp",VLOOKUP($C36+1,emission_factors!$L$36:$N$48,3,)))))*($G36)),((IF($F36="Under 11hp",VLOOKUP($C36+1,emission_factors!$L$5:$N$18,3,),IF($F36="11-25hp",VLOOKUP($C36+1,emission_factors!$L$22:$N$33,3,),IF($F36="Over 25hp",VLOOKUP($C36+1,emission_factors!$L$36:$N$48,3,)))))*($G36+$H36))) ->  | T36: =IF($E36="YES",((IF($F36="Under 11hp",VLOOKUP($C36+2,emission_factors!$L$5:$N$18,3,),IF($F36="11-25hp",VLOOKUP($C36+2,emission_factors!$L$22:$N$33,3,),IF($F36="Over 25hp",VLOOKUP($C36+2,emission_factors!$L$36:$N$48,3,)))))*($G36)),((IF($F36="Under 11hp",VLOOKUP($C36+2,emission_factors!$L$5:$N$18,3,),IF($F36="11-25hp",VLOOKUP($C36+2,emission_factors!$L$22:$N$33,3,),IF($F36="Over 25hp",VLOOKUP($C36+2,emission_factors!$L$36:$N$48,3,)))))*($G36+$H36))) ->  | U36: =IF($E36="YES",((IF($F36="Under 11hp",VLOOKUP($C36+3,emission_factors!$L$5:$N$18,3,),IF($F36="11-25hp",VLOOKUP($C36+3,emission_factors!$L$22:$N$33,3,),IF($F36="Over 25hp",VLOOKUP($C36+3,emission_factors!$L$36:$N$48,3,)))))*($G36)),((IF($F36="Under 11hp",VLOOKUP($C36+3,emission_factors!$L$5:$N$18,3,),IF($F36="11-25hp",VLOOKUP($C36+3,emission_factors!$L$22:$N$33,3,),IF($F36="Over 25hp",VLOOKUP($C36+3,emission_factors!$L$36:$N$48,3,)))))*($G36+$H36))) ->  | V36: =IF($E36="YES",((IF($F36="Under 11hp",VLOOKUP($C36+4,emission_factors!$L$5:$N$18,3,),IF($F36="11-25hp",VLOOKUP($C36+4,emission_factors!$L$22:$N$33,3,),IF($F36="Over 25hp",VLOOKUP($C36+4,emission_factors!$L$36:$N$48,3,)))))*($G36)),((IF($F36="Under 11hp",VLOOKUP($C36+4,emission_factors!$L$5:$N$18,3,),IF($F36="11-25hp",VLOOKUP($C36+4,emission_factors!$L$22:$N$33,3,),IF($F36="Over 25hp",VLOOKUP($C36+4,emission_factors!$L$36:$N$48,3,)))))*($G36+$H36))) ->  | W36: 0 | X36: 0 | Y36: 0 | Z36: 0 | AA36: 0 | AB36: 0
A37: =IF(user_input_equipment!A37<>"",user_input_equipment!A37,"") ->  | B37: =IF(user_input_equipment!B37<>"",user_input_equipment!B37,"") ->  | C37: =IF(user_input_equipment!C37<>"",user_input_equipment!C37,"") ->  | D37: =IF(user_input_equipment!D37<>"",user_input_equipment!D37,"") ->  | E37: =IF(user_input_equipment!E37<>"",user_input_equipment!E37,"") ->  | F37: =IF(user_input_equipment!F37<>"",user_input_equipment!F37,"") ->  | G37: =IF(user_input_equipment!G37<>"",user_input_equipment!G37,"") ->  | H37: =IF(user_input_equipment!H37<>"",user_input_equipment!H37,"") ->  | I37: =IF(user_input_equipment!I37<>"",user_input_equipment!I37,"") ->  | J37: =IF(user_input_equipment!J37<>"",user_input_equipment!J37,"") ->  | K37: =IF(user_input_equipment!K37<>"",user_input_equipment!K37,"") ->  | L37: =IF(user_input_equipment!L37<>"",user_input_equipment!L37,"") ->  | M37: =IF($E37="YES",((IF($F37="Under 11hp",VLOOKUP($C37,emission_factors!$L$5:$N$18,2,),IF($F37="11-25hp",VLOOKUP($C37,emission_factors!$L$22:$N$33,2,),IF($F37="Over 25hp",VLOOKUP($C37,emission_factors!$L$36:$N$48,2,)))))*($G37)),((IF($F37="Under 11hp",VLOOKUP($C37,emission_factors!$L$5:$N$18,2,),IF($F37="11-25hp",VLOOKUP($C37,emission_factors!$L$22:$N$33,2,),IF($F37="Over 25hp",VLOOKUP($C37,emission_factors!$L$36:$N$48,2,)))))*($G37+$H37))) ->  | N37: =IF($E37="YES",((IF($F37="Under 11hp",VLOOKUP($C37+1,emission_factors!$L$5:$N$18,2,),IF($F37="11-25hp",VLOOKUP($C37+1,emission_factors!$L$22:$N$33,2,),IF($F37="Over 25hp",VLOOKUP($C37+1,emission_factors!$L$36:$N$48,2,)))))*($G37)),((IF($F37="Under 11hp",VLOOKUP($C37+1,emission_factors!$L$5:$N$18,2,),IF($F37="11-25hp",VLOOKUP($C37+1,emission_factors!$L$22:$N$33,2,),IF($F37="Over 25hp",VLOOKUP($C37+1,emission_factors!$L$36:$N$48,2,)))))*($G37+$H37))) ->  | O37: =IF($E37="YES",((IF($F37="Under 11hp",VLOOKUP($C37+2,emission_factors!$L$5:$N$18,2,),IF($F37="11-25hp",VLOOKUP($C37+2,emission_factors!$L$22:$N$33,2,),IF($F37="Over 25hp",VLOOKUP($C37+2,emission_factors!$L$36:$N$48,2,)))))*($G37)),((IF($F37="Under 11hp",VLOOKUP($C37+2,emission_factors!$L$5:$N$18,2,),IF($F37="11-25hp",VLOOKUP($C37+2,emission_factors!$L$22:$N$33,2,),IF($F37="Over 25hp",VLOOKUP($C37+2,emission_factors!$L$36:$N$48,2,)))))*($G37+$H37))) ->  | P37: =IF($E37="YES",((IF($F37="Under 11hp",VLOOKUP($C37+3,emission_factors!$L$5:$N$18,2,),IF($F37="11-25hp",VLOOKUP($C37+3,emission_factors!$L$22:$N$33,2,),IF($F37="Over 25hp",VLOOKUP($C37+3,emission_factors!$L$36:$N$48,2,)))))*($G37)),((IF($F37="Under 11hp",VLOOKUP($C37+3,emission_factors!$L$5:$N$18,2,),IF($F37="11-25hp",VLOOKUP($C37+3,emission_factors!$L$22:$N$33,2,),IF($F37="Over 25hp",VLOOKUP($C37+3,emission_factors!$L$36:$N$48,2,)))))*($G37+$H37))) ->  | Q37: =IF($E37="YES",((IF($F37="Under 11hp",VLOOKUP($C37+4,emission_factors!$L$5:$N$18,2,),IF($F37="11-25hp",VLOOKUP($C37+4,emission_factors!$L$22:$N$33,2,),IF($F37="Over 25hp",VLOOKUP($C37+4,emission_factors!$L$36:$N$48,2,)))))*($G37)),((IF($F37="Under 11hp",VLOOKUP($C37+4,emission_factors!$L$5:$N$18,2,),IF($F37="11-25hp",VLOOKUP($C37+4,emission_factors!$L$22:$N$33,2,),IF($F37="Over 25hp",VLOOKUP($C37+4,emission_factors!$L$36:$N$48,2,)))))*($G37+$H37))) ->  | R37: =IF($E37="YES",((IF($F37="Under 11hp",VLOOKUP($C37,emission_factors!$L$5:$N$18,3,),IF($F37="11-25hp",VLOOKUP($C37,emission_factors!$L$22:$N$33,3,),IF($F37="Over 25hp",VLOOKUP($C37,emission_factors!$L$36:$N$48,3,)))))*($G37)),((IF($F37="Under 11hp",VLOOKUP($C37,emission_factors!$L$5:$N$18,3,),IF($F37="11-25hp",VLOOKUP($C37,emission_factors!$L$22:$N$33,3,),IF($F37="Over 25hp",VLOOKUP($C37,emission_factors!$L$36:$N$48,3,)))))*($G37+$H37))) ->  | S37: =IF($E37="YES",((IF($F37="Under 11hp",VLOOKUP($C37+1,emission_factors!$L$5:$N$18,3,),IF($F37="11-25hp",VLOOKUP($C37+1,emission_factors!$L$22:$N$33,3,),IF($F37="Over 25hp",VLOOKUP($C37+1,emission_factors!$L$36:$N$48,3,)))))*($G37)),((IF($F37="Under 11hp",VLOOKUP($C37+1,emission_factors!$L$5:$N$18,3,),IF($F37="11-25hp",VLOOKUP($C37+1,emission_factors!$L$22:$N$33,3,),IF($F37="Over 25hp",VLOOKUP($C37+1,emission_factors!$L$36:$N$48,3,)))))*($G37+$H37))) ->  | T37: =IF($E37="YES",((IF($F37="Under 11hp",VLOOKUP($C37+2,emission_factors!$L$5:$N$18,3,),IF($F37="11-25hp",VLOOKUP($C37+2,emission_factors!$L$22:$N$33,3,),IF($F37="Over 25hp",VLOOKUP($C37+2,emission_factors!$L$36:$N$48,3,)))))*($G37)),((IF($F37="Under 11hp",VLOOKUP($C37+2,emission_factors!$L$5:$N$18,3,),IF($F37="11-25hp",VLOOKUP($C37+2,emission_factors!$L$22:$N$33,3,),IF($F37="Over 25hp",VLOOKUP($C37+2,emission_factors!$L$36:$N$48,3,)))))*($G37+$H37))) ->  | U37: =IF($E37="YES",((IF($F37="Under 11hp",VLOOKUP($C37+3,emission_factors!$L$5:$N$18,3,),IF($F37="11-25hp",VLOOKUP($C37+3,emission_factors!$L$22:$N$33,3,),IF($F37="Over 25hp",VLOOKUP($C37+3,emission_factors!$L$36:$N$48,3,)))))*($G37)),((IF($F37="Under 11hp",VLOOKUP($C37+3,emission_factors!$L$5:$N$18,3,),IF($F37="11-25hp",VLOOKUP($C37+3,emission_factors!$L$22:$N$33,3,),IF($F37="Over 25hp",VLOOKUP($C37+3,emission_factors!$L$36:$N$48,3,)))))*($G37+$H37))) ->  | V37: =IF($E37="YES",((IF($F37="Under 11hp",VLOOKUP($C37+4,emission_factors!$L$5:$N$18,3,),IF($F37="11-25hp",VLOOKUP($C37+4,emission_factors!$L$22:$N$33,3,),IF($F37="Over 25hp",VLOOKUP($C37+4,emission_factors!$L$36:$N$48,3,)))))*($G37)),((IF($F37="Under 11hp",VLOOKUP($C37+4,emission_factors!$L$5:$N$18,3,),IF($F37="11-25hp",VLOOKUP($C37+4,emission_factors!$L$22:$N$33,3,),IF($F37="Over 25hp",VLOOKUP($C37+4,emission_factors!$L$36:$N$48,3,)))))*($G37+$H37))) ->  | W37: 0 | X37: 0 | Y37: 0 | Z37: 0 | AA37: 0 | AB37: 0
A38: =IF(user_input_equipment!A38<>"",user_input_equipment!A38,"") ->  | B38: =IF(user_input_equipment!B38<>"",user_input_equipment!B38,"") ->  | C38: =IF(user_input_equipment!C38<>"",user_input_equipment!C38,"") ->  | D38: =IF(user_input_equipment!D38<>"",user_input_equipment!D38,"") ->  | E38: =IF(user_input_equipment!E38<>"",user_input_equipment!E38,"") ->  | F38: =IF(user_input_equipment!F38<>"",user_input_equipment!F38,"") ->  | G38: =IF(user_input_equipment!G38<>"",user_input_equipment!G38,"") ->  | H38: =IF(user_input_equipment!H38<>"",user_input_equipment!H38,"") ->  | I38: =IF(user_input_equipment!I38<>"",user_input_equipment!I38,"") ->  | J38: =IF(user_input_equipment!J38<>"",user_input_equipment!J38,"") ->  | K38: =IF(user_input_equipment!K38<>"",user_input_equipment!K38,"") ->  | L38: =IF(user_input_equipment!L38<>"",user_input_equipment!L38,"") ->  | M38: =IF($E38="YES",((IF($F38="Under 11hp",VLOOKUP($C38,emission_factors!$L$5:$N$18,2,),IF($F38="11-25hp",VLOOKUP($C38,emission_factors!$L$22:$N$33,2,),IF($F38="Over 25hp",VLOOKUP($C38,emission_factors!$L$36:$N$48,2,)))))*($G38)),((IF($F38="Under 11hp",VLOOKUP($C38,emission_factors!$L$5:$N$18,2,),IF($F38="11-25hp",VLOOKUP($C38,emission_factors!$L$22:$N$33,2,),IF($F38="Over 25hp",VLOOKUP($C38,emission_factors!$L$36:$N$48,2,)))))*($G38+$H38))) ->  | N38: =IF($E38="YES",((IF($F38="Under 11hp",VLOOKUP($C38+1,emission_factors!$L$5:$N$18,2,),IF($F38="11-25hp",VLOOKUP($C38+1,emission_factors!$L$22:$N$33,2,),IF($F38="Over 25hp",VLOOKUP($C38+1,emission_factors!$L$36:$N$48,2,)))))*($G38)),((IF($F38="Under 11hp",VLOOKUP($C38+1,emission_factors!$L$5:$N$18,2,),IF($F38="11-25hp",VLOOKUP($C38+1,emission_factors!$L$22:$N$33,2,),IF($F38="Over 25hp",VLOOKUP($C38+1,emission_factors!$L$36:$N$48,2,)))))*($G38+$H38))) ->  | O38: =IF($E38="YES",((IF($F38="Under 11hp",VLOOKUP($C38+2,emission_factors!$L$5:$N$18,2,),IF($F38="11-25hp",VLOOKUP($C38+2,emission_factors!$L$22:$N$33,2,),IF($F38="Over 25hp",VLOOKUP($C38+2,emission_factors!$L$36:$N$48,2,)))))*($G38)),((IF($F38="Under 11hp",VLOOKUP($C38+2,emission_factors!$L$5:$N$18,2,),IF($F38="11-25hp",VLOOKUP($C38+2,emission_factors!$L$22:$N$33,2,),IF($F38="Over 25hp",VLOOKUP($C38+2,emission_factors!$L$36:$N$48,2,)))))*($G38+$H38))) ->  | P38: =IF($E38="YES",((IF($F38="Under 11hp",VLOOKUP($C38+3,emission_factors!$L$5:$N$18,2,),IF($F38="11-25hp",VLOOKUP($C38+3,emission_factors!$L$22:$N$33,2,),IF($F38="Over 25hp",VLOOKUP($C38+3,emission_factors!$L$36:$N$48,2,)))))*($G38)),((IF($F38="Under 11hp",VLOOKUP($C38+3,emission_factors!$L$5:$N$18,2,),IF($F38="11-25hp",VLOOKUP($C38+3,emission_factors!$L$22:$N$33,2,),IF($F38="Over 25hp",VLOOKUP($C38+3,emission_factors!$L$36:$N$48,2,)))))*($G38+$H38))) ->  | Q38: =IF($E38="YES",((IF($F38="Under 11hp",VLOOKUP($C38+4,emission_factors!$L$5:$N$18,2,),IF($F38="11-25hp",VLOOKUP($C38+4,emission_factors!$L$22:$N$33,2,),IF($F38="Over 25hp",VLOOKUP($C38+4,emission_factors!$L$36:$N$48,2,)))))*($G38)),((IF($F38="Under 11hp",VLOOKUP($C38+4,emission_factors!$L$5:$N$18,2,),IF($F38="11-25hp",VLOOKUP($C38+4,emission_factors!$L$22:$N$33,2,),IF($F38="Over 25hp",VLOOKUP($C38+4,emission_factors!$L$36:$N$48,2,)))))*($G38+$H38))) ->  | R38: =IF($E38="YES",((IF($F38="Under 11hp",VLOOKUP($C38,emission_factors!$L$5:$N$18,3,),IF($F38="11-25hp",VLOOKUP($C38,emission_factors!$L$22:$N$33,3,),IF($F38="Over 25hp",VLOOKUP($C38,emission_factors!$L$36:$N$48,3,)))))*($G38)),((IF($F38="Under 11hp",VLOOKUP($C38,emission_factors!$L$5:$N$18,3,),IF($F38="11-25hp",VLOOKUP($C38,emission_factors!$L$22:$N$33,3,),IF($F38="Over 25hp",VLOOKUP($C38,emission_factors!$L$36:$N$48,3,)))))*($G38+$H38))) ->  | S38: =IF($E38="YES",((IF($F38="Under 11hp",VLOOKUP($C38+1,emission_factors!$L$5:$N$18,3,),IF($F38="11-25hp",VLOOKUP($C38+1,emission_factors!$L$22:$N$33,3,),IF($F38="Over 25hp",VLOOKUP($C38+1,emission_factors!$L$36:$N$48,3,)))))*($G38)),((IF($F38="Under 11hp",VLOOKUP($C38+1,emission_factors!$L$5:$N$18,3,),IF($F38="11-25hp",VLOOKUP($C38+1,emission_factors!$L$22:$N$33,3,),IF($F38="Over 25hp",VLOOKUP($C38+1,emission_factors!$L$36:$N$48,3,)))))*($G38+$H38))) ->  | T38: =IF($E38="YES",((IF($F38="Under 11hp",VLOOKUP($C38+2,emission_factors!$L$5:$N$18,3,),IF($F38="11-25hp",VLOOKUP($C38+2,emission_factors!$L$22:$N$33,3,),IF($F38="Over 25hp",VLOOKUP($C38+2,emission_factors!$L$36:$N$48,3,)))))*($G38)),((IF($F38="Under 11hp",VLOOKUP($C38+2,emission_factors!$L$5:$N$18,3,),IF($F38="11-25hp",VLOOKUP($C38+2,emission_factors!$L$22:$N$33,3,),IF($F38="Over 25hp",VLOOKUP($C38+2,emission_factors!$L$36:$N$48,3,)))))*($G38+$H38))) ->  | U38: =IF($E38="YES",((IF($F38="Under 11hp",VLOOKUP($C38+3,emission_factors!$L$5:$N$18,3,),IF($F38="11-25hp",VLOOKUP($C38+3,emission_factors!$L$22:$N$33,3,),IF($F38="Over 25hp",VLOOKUP($C38+3,emission_factors!$L$36:$N$48,3,)))))*($G38)),((IF($F38="Under 11hp",VLOOKUP($C38+3,emission_factors!$L$5:$N$18,3,),IF($F38="11-25hp",VLOOKUP($C38+3,emission_factors!$L$22:$N$33,3,),IF($F38="Over 25hp",VLOOKUP($C38+3,emission_factors!$L$36:$N$48,3,)))))*($G38+$H38))) ->  | V38: =IF($E38="YES",((IF($F38="Under 11hp",VLOOKUP($C38+4,emission_factors!$L$5:$N$18,3,),IF($F38="11-25hp",VLOOKUP($C38+4,emission_factors!$L$22:$N$33,3,),IF($F38="Over 25hp",VLOOKUP($C38+4,emission_factors!$L$36:$N$48,3,)))))*($G38)),((IF($F38="Under 11hp",VLOOKUP($C38+4,emission_factors!$L$5:$N$18,3,),IF($F38="11-25hp",VLOOKUP($C38+4,emission_factors!$L$22:$N$33,3,),IF($F38="Over 25hp",VLOOKUP($C38+4,emission_factors!$L$36:$N$48,3,)))))*($G38+$H38))) ->  | W38: 0 | X38: 0 | Y38: 0 | Z38: 0 | AA38: 0 | AB38: 0
A39: =IF(user_input_equipment!A39<>"",user_input_equipment!A39,"") ->  | B39: =IF(user_input_equipment!B39<>"",user_input_equipment!B39,"") ->  | C39: =IF(user_input_equipment!C39<>"",user_input_equipment!C39,"") ->  | D39: =IF(user_input_equipment!D39<>"",user_input_equipment!D39,"") ->  | E39: =IF(user_input_equipment!E39<>"",user_input_equipment!E39,"") ->  | F39: =IF(user_input_equipment!F39<>"",user_input_equipment!F39,"") ->  | G39: =IF(user_input_equipment!G39<>"",user_input_equipment!G39,"") ->  | H39: =IF(user_input_equipment!H39<>"",user_input_equipment!H39,"") ->  | I39: =IF(user_input_equipment!I39<>"",user_input_equipment!I39,"") ->  | J39: =IF(user_input_equipment!J39<>"",user_input_equipment!J39,"") ->  | K39: =IF(user_input_equipment!K39<>"",user_input_equipment!K39,"") ->  | L39: =IF(user_input_equipment!L39<>"",user_input_equipment!L39,"") ->  | M39: =IF($E39="YES",((IF($F39="Under 11hp",VLOOKUP($C39,emission_factors!$L$5:$N$18,2,),IF($F39="11-25hp",VLOOKUP($C39,emission_factors!$L$22:$N$33,2,),IF($F39="Over 25hp",VLOOKUP($C39,emission_factors!$L$36:$N$48,2,)))))*($G39)),((IF($F39="Under 11hp",VLOOKUP($C39,emission_factors!$L$5:$N$18,2,),IF($F39="11-25hp",VLOOKUP($C39,emission_factors!$L$22:$N$33,2,),IF($F39="Over 25hp",VLOOKUP($C39,emission_factors!$L$36:$N$48,2,)))))*($G39+$H39))) ->  | N39: =IF($E39="YES",((IF($F39="Under 11hp",VLOOKUP($C39+1,emission_factors!$L$5:$N$18,2,),IF($F39="11-25hp",VLOOKUP($C39+1,emission_factors!$L$22:$N$33,2,),IF($F39="Over 25hp",VLOOKUP($C39+1,emission_factors!$L$36:$N$48,2,)))))*($G39)),((IF($F39="Under 11hp",VLOOKUP($C39+1,emission_factors!$L$5:$N$18,2,),IF($F39="11-25hp",VLOOKUP($C39+1,emission_factors!$L$22:$N$33,2,),IF($F39="Over 25hp",VLOOKUP($C39+1,emission_factors!$L$36:$N$48,2,)))))*($G39+$H39))) ->  | O39: =IF($E39="YES",((IF($F39="Under 11hp",VLOOKUP($C39+2,emission_factors!$L$5:$N$18,2,),IF($F39="11-25hp",VLOOKUP($C39+2,emission_factors!$L$22:$N$33,2,),IF($F39="Over 25hp",VLOOKUP($C39+2,emission_factors!$L$36:$N$48,2,)))))*($G39)),((IF($F39="Under 11hp",VLOOKUP($C39+2,emission_factors!$L$5:$N$18,2,),IF($F39="11-25hp",VLOOKUP($C39+2,emission_factors!$L$22:$N$33,2,),IF($F39="Over 25hp",VLOOKUP($C39+2,emission_factors!$L$36:$N$48,2,)))))*($G39+$H39))) ->  | P39: =IF($E39="YES",((IF($F39="Under 11hp",VLOOKUP($C39+3,emission_factors!$L$5:$N$18,2,),IF($F39="11-25hp",VLOOKUP($C39+3,emission_factors!$L$22:$N$33,2,),IF($F39="Over 25hp",VLOOKUP($C39+3,emission_factors!$L$36:$N$48,2,)))))*($G39)),((IF($F39="Under 11hp",VLOOKUP($C39+3,emission_factors!$L$5:$N$18,2,),IF($F39="11-25hp",VLOOKUP($C39+3,emission_factors!$L$22:$N$33,2,),IF($F39="Over 25hp",VLOOKUP($C39+3,emission_factors!$L$36:$N$48,2,)))))*($G39+$H39))) ->  | Q39: =IF($E39="YES",((IF($F39="Under 11hp",VLOOKUP($C39+4,emission_factors!$L$5:$N$18,2,),IF($F39="11-25hp",VLOOKUP($C39+4,emission_factors!$L$22:$N$33,2,),IF($F39="Over 25hp",VLOOKUP($C39+4,emission_factors!$L$36:$N$48,2,)))))*($G39)),((IF($F39="Under 11hp",VLOOKUP($C39+4,emission_factors!$L$5:$N$18,2,),IF($F39="11-25hp",VLOOKUP($C39+4,emission_factors!$L$22:$N$33,2,),IF($F39="Over 25hp",VLOOKUP($C39+4,emission_factors!$L$36:$N$48,2,)))))*($G39+$H39))) ->  | R39: =IF($E39="YES",((IF($F39="Under 11hp",VLOOKUP($C39,emission_factors!$L$5:$N$18,3,),IF($F39="11-25hp",VLOOKUP($C39,emission_factors!$L$22:$N$33,3,),IF($F39="Over 25hp",VLOOKUP($C39,emission_factors!$L$36:$N$48,3,)))))*($G39)),((IF($F39="Under 11hp",VLOOKUP($C39,emission_factors!$L$5:$N$18,3,),IF($F39="11-25hp",VLOOKUP($C39,emission_factors!$L$22:$N$33,3,),IF($F39="Over 25hp",VLOOKUP($C39,emission_factors!$L$36:$N$48,3,)))))*($G39+$H39))) ->  | S39: =IF($E39="YES",((IF($F39="Under 11hp",VLOOKUP($C39+1,emission_factors!$L$5:$N$18,3,),IF($F39="11-25hp",VLOOKUP($C39+1,emission_factors!$L$22:$N$33,3,),IF($F39="Over 25hp",VLOOKUP($C39+1,emission_factors!$L$36:$N$48,3,)))))*($G39)),((IF($F39="Under 11hp",VLOOKUP($C39+1,emission_factors!$L$5:$N$18,3,),IF($F39="11-25hp",VLOOKUP($C39+1,emission_factors!$L$22:$N$33,3,),IF($F39="Over 25hp",VLOOKUP($C39+1,emission_factors!$L$36:$N$48,3,)))))*($G39+$H39))) ->  | T39: =IF($E39="YES",((IF($F39="Under 11hp",VLOOKUP($C39+2,emission_factors!$L$5:$N$18,3,),IF($F39="11-25hp",VLOOKUP($C39+2,emission_factors!$L$22:$N$33,3,),IF($F39="Over 25hp",VLOOKUP($C39+2,emission_factors!$L$36:$N$48,3,)))))*($G39)),((IF($F39="Under 11hp",VLOOKUP($C39+2,emission_factors!$L$5:$N$18,3,),IF($F39="11-25hp",VLOOKUP($C39+2,emission_factors!$L$22:$N$33,3,),IF($F39="Over 25hp",VLOOKUP($C39+2,emission_factors!$L$36:$N$48,3,)))))*($G39+$H39))) ->  | U39: =IF($E39="YES",((IF($F39="Under 11hp",VLOOKUP($C39+3,emission_factors!$L$5:$N$18,3,),IF($F39="11-25hp",VLOOKUP($C39+3,emission_factors!$L$22:$N$33,3,),IF($F39="Over 25hp",VLOOKUP($C39+3,emission_factors!$L$36:$N$48,3,)))))*($G39)),((IF($F39="Under 11hp",VLOOKUP($C39+3,emission_factors!$L$5:$N$18,3,),IF($F39="11-25hp",VLOOKUP($C39+3,emission_factors!$L$22:$N$33,3,),IF($F39="Over 25hp",VLOOKUP($C39+3,emission_factors!$L$36:$N$48,3,)))))*($G39+$H39))) ->  | V39: =IF($E39="YES",((IF($F39="Under 11hp",VLOOKUP($C39+4,emission_factors!$L$5:$N$18,3,),IF($F39="11-25hp",VLOOKUP($C39+4,emission_factors!$L$22:$N$33,3,),IF($F39="Over 25hp",VLOOKUP($C39+4,emission_factors!$L$36:$N$48,3,)))))*($G39)),((IF($F39="Under 11hp",VLOOKUP($C39+4,emission_factors!$L$5:$N$18,3,),IF($F39="11-25hp",VLOOKUP($C39+4,emission_factors!$L$22:$N$33,3,),IF($F39="Over 25hp",VLOOKUP($C39+4,emission_factors!$L$36:$N$48,3,)))))*($G39+$H39))) ->  | W39: 0 | X39: 0 | Y39: 0 | Z39: 0 | AA39: 0 | AB39: 0
A40: =IF(user_input_equipment!A40<>"",user_input_equipment!A40,"") ->  | B40: =IF(user_input_equipment!B40<>"",user_input_equipment!B40,"") ->  | C40: =IF(user_input_equipment!C40<>"",user_input_equipment!C40,"") ->  | D40: =IF(user_input_equipment!D40<>"",user_input_equipment!D40,"") ->  | E40: =IF(user_input_equipment!E40<>"",user_input_equipment!E40,"") ->  | F40: =IF(user_input_equipment!F40<>"",user_input_equipment!F40,"") ->  | G40: =IF(user_input_equipment!G40<>"",user_input_equipment!G40,"") ->  | H40: =IF(user_input_equipment!H40<>"",user_input_equipment!H40,"") ->  | I40: =IF(user_input_equipment!I40<>"",user_input_equipment!I40,"") ->  | J40: =IF(user_input_equipment!J40<>"",user_input_equipment!J40,"") ->  | K40: =IF(user_input_equipment!K40<>"",user_input_equipment!K40,"") ->  | L40: =IF(user_input_equipment!L40<>"",user_input_equipment!L40,"") ->  | M40: =IF($E40="YES",((IF($F40="Under 11hp",VLOOKUP($C40,emission_factors!$L$5:$N$18,2,),IF($F40="11-25hp",VLOOKUP($C40,emission_factors!$L$22:$N$33,2,),IF($F40="Over 25hp",VLOOKUP($C40,emission_factors!$L$36:$N$48,2,)))))*($G40)),((IF($F40="Under 11hp",VLOOKUP($C40,emission_factors!$L$5:$N$18,2,),IF($F40="11-25hp",VLOOKUP($C40,emission_factors!$L$22:$N$33,2,),IF($F40="Over 25hp",VLOOKUP($C40,emission_factors!$L$36:$N$48,2,)))))*($G40+$H40))) ->  | N40: =IF($E40="YES",((IF($F40="Under 11hp",VLOOKUP($C40+1,emission_factors!$L$5:$N$18,2,),IF($F40="11-25hp",VLOOKUP($C40+1,emission_factors!$L$22:$N$33,2,),IF($F40="Over 25hp",VLOOKUP($C40+1,emission_factors!$L$36:$N$48,2,)))))*($G40)),((IF($F40="Under 11hp",VLOOKUP($C40+1,emission_factors!$L$5:$N$18,2,),IF($F40="11-25hp",VLOOKUP($C40+1,emission_factors!$L$22:$N$33,2,),IF($F40="Over 25hp",VLOOKUP($C40+1,emission_factors!$L$36:$N$48,2,)))))*($G40+$H40))) ->  | O40: =IF($E40="YES",((IF($F40="Under 11hp",VLOOKUP($C40+2,emission_factors!$L$5:$N$18,2,),IF($F40="11-25hp",VLOOKUP($C40+2,emission_factors!$L$22:$N$33,2,),IF($F40="Over 25hp",VLOOKUP($C40+2,emission_factors!$L$36:$N$48,2,)))))*($G40)),((IF($F40="Under 11hp",VLOOKUP($C40+2,emission_factors!$L$5:$N$18,2,),IF($F40="11-25hp",VLOOKUP($C40+2,emission_factors!$L$22:$N$33,2,),IF($F40="Over 25hp",VLOOKUP($C40+2,emission_factors!$L$36:$N$48,2,)))))*($G40+$H40))) ->  | P40: =IF($E40="YES",((IF($F40="Under 11hp",VLOOKUP($C40+3,emission_factors!$L$5:$N$18,2,),IF($F40="11-25hp",VLOOKUP($C40+3,emission_factors!$L$22:$N$33,2,),IF($F40="Over 25hp",VLOOKUP($C40+3,emission_factors!$L$36:$N$48,2,)))))*($G40)),((IF($F40="Under 11hp",VLOOKUP($C40+3,emission_factors!$L$5:$N$18,2,),IF($F40="11-25hp",VLOOKUP($C40+3,emission_factors!$L$22:$N$33,2,),IF($F40="Over 25hp",VLOOKUP($C40+3,emission_factors!$L$36:$N$48,2,)))))*($G40+$H40))) ->  | Q40: =IF($E40="YES",((IF($F40="Under 11hp",VLOOKUP($C40+4,emission_factors!$L$5:$N$18,2,),IF($F40="11-25hp",VLOOKUP($C40+4,emission_factors!$L$22:$N$33,2,),IF($F40="Over 25hp",VLOOKUP($C40+4,emission_factors!$L$36:$N$48,2,)))))*($G40)),((IF($F40="Under 11hp",VLOOKUP($C40+4,emission_factors!$L$5:$N$18,2,),IF($F40="11-25hp",VLOOKUP($C40+4,emission_factors!$L$22:$N$33,2,),IF($F40="Over 25hp",VLOOKUP($C40+4,emission_factors!$L$36:$N$48,2,)))))*($G40+$H40))) ->  | R40: =IF($E40="YES",((IF($F40="Under 11hp",VLOOKUP($C40,emission_factors!$L$5:$N$18,3,),IF($F40="11-25hp",VLOOKUP($C40,emission_factors!$L$22:$N$33,3,),IF($F40="Over 25hp",VLOOKUP($C40,emission_factors!$L$36:$N$48,3,)))))*($G40)),((IF($F40="Under 11hp",VLOOKUP($C40,emission_factors!$L$5:$N$18,3,),IF($F40="11-25hp",VLOOKUP($C40,emission_factors!$L$22:$N$33,3,),IF($F40="Over 25hp",VLOOKUP($C40,emission_factors!$L$36:$N$48,3,)))))*($G40+$H40))) ->  | S40: =IF($E40="YES",((IF($F40="Under 11hp",VLOOKUP($C40+1,emission_factors!$L$5:$N$18,3,),IF($F40="11-25hp",VLOOKUP($C40+1,emission_factors!$L$22:$N$33,3,),IF($F40="Over 25hp",VLOOKUP($C40+1,emission_factors!$L$36:$N$48,3,)))))*($G40)),((IF($F40="Under 11hp",VLOOKUP($C40+1,emission_factors!$L$5:$N$18,3,),IF($F40="11-25hp",VLOOKUP($C40+1,emission_factors!$L$22:$N$33,3,),IF($F40="Over 25hp",VLOOKUP($C40+1,emission_factors!$L$36:$N$48,3,)))))*($G40+$H40))) ->  | T40: =IF($E40="YES",((IF($F40="Under 11hp",VLOOKUP($C40+2,emission_factors!$L$5:$N$18,3,),IF($F40="11-25hp",VLOOKUP($C40+2,emission_factors!$L$22:$N$33,3,),IF($F40="Over 25hp",VLOOKUP($C40+2,emission_factors!$L$36:$N$48,3,)))))*($G40)),((IF($F40="Under 11hp",VLOOKUP($C40+2,emission_factors!$L$5:$N$18,3,),IF($F40="11-25hp",VLOOKUP($C40+2,emission_factors!$L$22:$N$33,3,),IF($F40="Over 25hp",VLOOKUP($C40+2,emission_factors!$L$36:$N$48,3,)))))*($G40+$H40))) ->  | U40: =IF($E40="YES",((IF($F40="Under 11hp",VLOOKUP($C40+3,emission_factors!$L$5:$N$18,3,),IF($F40="11-25hp",VLOOKUP($C40+3,emission_factors!$L$22:$N$33,3,),IF($F40="Over 25hp",VLOOKUP($C40+3,emission_factors!$L$36:$N$48,3,)))))*($G40)),((IF($F40="Under 11hp",VLOOKUP($C40+3,emission_factors!$L$5:$N$18,3,),IF($F40="11-25hp",VLOOKUP($C40+3,emission_factors!$L$22:$N$33,3,),IF($F40="Over 25hp",VLOOKUP($C40+3,emission_factors!$L$36:$N$48,3,)))))*($G40+$H40))) ->  | V40: =IF($E40="YES",((IF($F40="Under 11hp",VLOOKUP($C40+4,emission_factors!$L$5:$N$18,3,),IF($F40="11-25hp",VLOOKUP($C40+4,emission_factors!$L$22:$N$33,3,),IF($F40="Over 25hp",VLOOKUP($C40+4,emission_factors!$L$36:$N$48,3,)))))*($G40)),((IF($F40="Under 11hp",VLOOKUP($C40+4,emission_factors!$L$5:$N$18,3,),IF($F40="11-25hp",VLOOKUP($C40+4,emission_factors!$L$22:$N$33,3,),IF($F40="Over 25hp",VLOOKUP($C40+4,emission_factors!$L$36:$N$48,3,)))))*($G40+$H40))) ->  | W40: 0 | X40: 0 | Y40: 0 | Z40: 0 | AA40: 0 | AB40: 0
A41: =IF(user_input_equipment!A41<>"",user_input_equipment!A41,"") ->  | B41: =IF(user_input_equipment!B41<>"",user_input_equipment!B41,"") ->  | C41: =IF(user_input_equipment!C41<>"",user_input_equipment!C41,"") ->  | D41: =IF(user_input_equipment!D41<>"",user_input_equipment!D41,"") ->  | E41: =IF(user_input_equipment!E41<>"",user_input_equipment!E41,"") ->  | F41: =IF(user_input_equipment!F41<>"",user_input_equipment!F41,"") ->  | G41: =IF(user_input_equipment!G41<>"",user_input_equipment!G41,"") ->  | H41: =IF(user_input_equipment!H41<>"",user_input_equipment!H41,"") ->  | I41: =IF(user_input_equipment!I41<>"",user_input_equipment!I41,"") ->  | J41: =IF(user_input_equipment!J41<>"",user_input_equipment!J41,"") ->  | K41: =IF(user_input_equipment!K41<>"",user_input_equipment!K41,"") ->  | L41: =IF(user_input_equipment!L41<>"",user_input_equipment!L41,"") ->  | M41: =IF($E41="YES",((IF($F41="Under 11hp",VLOOKUP($C41,emission_factors!$L$5:$N$18,2,),IF($F41="11-25hp",VLOOKUP($C41,emission_factors!$L$22:$N$33,2,),IF($F41="Over 25hp",VLOOKUP($C41,emission_factors!$L$36:$N$48,2,)))))*($G41)),((IF($F41="Under 11hp",VLOOKUP($C41,emission_factors!$L$5:$N$18,2,),IF($F41="11-25hp",VLOOKUP($C41,emission_factors!$L$22:$N$33,2,),IF($F41="Over 25hp",VLOOKUP($C41,emission_factors!$L$36:$N$48,2,)))))*($G41+$H41))) ->  | N41: =IF($E41="YES",((IF($F41="Under 11hp",VLOOKUP($C41+1,emission_factors!$L$5:$N$18,2,),IF($F41="11-25hp",VLOOKUP($C41+1,emission_factors!$L$22:$N$33,2,),IF($F41="Over 25hp",VLOOKUP($C41+1,emission_factors!$L$36:$N$48,2,)))))*($G41)),((IF($F41="Under 11hp",VLOOKUP($C41+1,emission_factors!$L$5:$N$18,2,),IF($F41="11-25hp",VLOOKUP($C41+1,emission_factors!$L$22:$N$33,2,),IF($F41="Over 25hp",VLOOKUP($C41+1,emission_factors!$L$36:$N$48,2,)))))*($G41+$H41))) ->  | O41: =IF($E41="YES",((IF($F41="Under 11hp",VLOOKUP($C41+2,emission_factors!$L$5:$N$18,2,),IF($F41="11-25hp",VLOOKUP($C41+2,emission_factors!$L$22:$N$33,2,),IF($F41="Over 25hp",VLOOKUP($C41+2,emission_factors!$L$36:$N$48,2,)))))*($G41)),((IF($F41="Under 11hp",VLOOKUP($C41+2,emission_factors!$L$5:$N$18,2,),IF($F41="11-25hp",VLOOKUP($C41+2,emission_factors!$L$22:$N$33,2,),IF($F41="Over 25hp",VLOOKUP($C41+2,emission_factors!$L$36:$N$48,2,)))))*($G41+$H41))) ->  | P41: =IF($E41="YES",((IF($F41="Under 11hp",VLOOKUP($C41+3,emission_factors!$L$5:$N$18,2,),IF($F41="11-25hp",VLOOKUP($C41+3,emission_factors!$L$22:$N$33,2,),IF($F41="Over 25hp",VLOOKUP($C41+3,emission_factors!$L$36:$N$48,2,)))))*($G41)),((IF($F41="Under 11hp",VLOOKUP($C41+3,emission_factors!$L$5:$N$18,2,),IF($F41="11-25hp",VLOOKUP($C41+3,emission_factors!$L$22:$N$33,2,),IF($F41="Over 25hp",VLOOKUP($C41+3,emission_factors!$L$36:$N$48,2,)))))*($G41+$H41))) ->  | Q41: =IF($E41="YES",((IF($F41="Under 11hp",VLOOKUP($C41+4,emission_factors!$L$5:$N$18,2,),IF($F41="11-25hp",VLOOKUP($C41+4,emission_factors!$L$22:$N$33,2,),IF($F41="Over 25hp",VLOOKUP($C41+4,emission_factors!$L$36:$N$48,2,)))))*($G41)),((IF($F41="Under 11hp",VLOOKUP($C41+4,emission_factors!$L$5:$N$18,2,),IF($F41="11-25hp",VLOOKUP($C41+4,emission_factors!$L$22:$N$33,2,),IF($F41="Over 25hp",VLOOKUP($C41+4,emission_factors!$L$36:$N$48,2,)))))*($G41+$H41))) ->  | R41: =IF($E41="YES",((IF($F41="Under 11hp",VLOOKUP($C41,emission_factors!$L$5:$N$18,3,),IF($F41="11-25hp",VLOOKUP($C41,emission_factors!$L$22:$N$33,3,),IF($F41="Over 25hp",VLOOKUP($C41,emission_factors!$L$36:$N$48,3,)))))*($G41)),((IF($F41="Under 11hp",VLOOKUP($C41,emission_factors!$L$5:$N$18,3,),IF($F41="11-25hp",VLOOKUP($C41,emission_factors!$L$22:$N$33,3,),IF($F41="Over 25hp",VLOOKUP($C41,emission_factors!$L$36:$N$48,3,)))))*($G41+$H41))) ->  | S41: =IF($E41="YES",((IF($F41="Under 11hp",VLOOKUP($C41+1,emission_factors!$L$5:$N$18,3,),IF($F41="11-25hp",VLOOKUP($C41+1,emission_factors!$L$22:$N$33,3,),IF($F41="Over 25hp",VLOOKUP($C41+1,emission_factors!$L$36:$N$48,3,)))))*($G41)),((IF($F41="Under 11hp",VLOOKUP($C41+1,emission_factors!$L$5:$N$18,3,),IF($F41="11-25hp",VLOOKUP($C41+1,emission_factors!$L$22:$N$33,3,),IF($F41="Over 25hp",VLOOKUP($C41+1,emission_factors!$L$36:$N$48,3,)))))*($G41+$H41))) ->  | T41: =IF($E41="YES",((IF($F41="Under 11hp",VLOOKUP($C41+2,emission_factors!$L$5:$N$18,3,),IF($F41="11-25hp",VLOOKUP($C41+2,emission_factors!$L$22:$N$33,3,),IF($F41="Over 25hp",VLOOKUP($C41+2,emission_factors!$L$36:$N$48,3,)))))*($G41)),((IF($F41="Under 11hp",VLOOKUP($C41+2,emission_factors!$L$5:$N$18,3,),IF($F41="11-25hp",VLOOKUP($C41+2,emission_factors!$L$22:$N$33,3,),IF($F41="Over 25hp",VLOOKUP($C41+2,emission_factors!$L$36:$N$48,3,)))))*($G41+$H41))) ->  | U41: =IF($E41="YES",((IF($F41="Under 11hp",VLOOKUP($C41+3,emission_factors!$L$5:$N$18,3,),IF($F41="11-25hp",VLOOKUP($C41+3,emission_factors!$L$22:$N$33,3,),IF($F41="Over 25hp",VLOOKUP($C41+3,emission_factors!$L$36:$N$48,3,)))))*($G41)),((IF($F41="Under 11hp",VLOOKUP($C41+3,emission_factors!$L$5:$N$18,3,),IF($F41="11-25hp",VLOOKUP($C41+3,emission_factors!$L$22:$N$33,3,),IF($F41="Over 25hp",VLOOKUP($C41+3,emission_factors!$L$36:$N$48,3,)))))*($G41+$H41))) ->  | V41: =IF($E41="YES",((IF($F41="Under 11hp",VLOOKUP($C41+4,emission_factors!$L$5:$N$18,3,),IF($F41="11-25hp",VLOOKUP($C41+4,emission_factors!$L$22:$N$33,3,),IF($F41="Over 25hp",VLOOKUP($C41+4,emission_factors!$L$36:$N$48,3,)))))*($G41)),((IF($F41="Under 11hp",VLOOKUP($C41+4,emission_factors!$L$5:$N$18,3,),IF($F41="11-25hp",VLOOKUP($C41+4,emission_factors!$L$22:$N$33,3,),IF($F41="Over 25hp",VLOOKUP($C41+4,emission_factors!$L$36:$N$48,3,)))))*($G41+$H41))) ->  | W41: 0 | X41: 0 | Y41: 0 | Z41: 0 | AA41: 0 | AB41: 0
A42: =IF(user_input_equipment!A42<>"",user_input_equipment!A42,"") ->  | B42: =IF(user_input_equipment!B42<>"",user_input_equipment!B42,"") ->  | C42: =IF(user_input_equipment!C42<>"",user_input_equipment!C42,"") ->  | D42: =IF(user_input_equipment!D42<>"",user_input_equipment!D42,"") ->  | E42: =IF(user_input_equipment!E42<>"",user_input_equipment!E42,"") ->  | F42: =IF(user_input_equipment!F42<>"",user_input_equipment!F42,"") ->  | G42: =IF(user_input_equipment!G42<>"",user_input_equipment!G42,"") ->  | H42: =IF(user_input_equipment!H42<>"",user_input_equipment!H42,"") ->  | I42: =IF(user_input_equipment!I42<>"",user_input_equipment!I42,"") ->  | J42: =IF(user_input_equipment!J42<>"",user_input_equipment!J42,"") ->  | K42: =IF(user_input_equipment!K42<>"",user_input_equipment!K42,"") ->  | L42: =IF(user_input_equipment!L42<>"",user_input_equipment!L42,"") ->  | M42: =IF($E42="YES",((IF($F42="Under 11hp",VLOOKUP($C42,emission_factors!$L$5:$N$18,2,),IF($F42="11-25hp",VLOOKUP($C42,emission_factors!$L$22:$N$33,2,),IF($F42="Over 25hp",VLOOKUP($C42,emission_factors!$L$36:$N$48,2,)))))*($G42)),((IF($F42="Under 11hp",VLOOKUP($C42,emission_factors!$L$5:$N$18,2,),IF($F42="11-25hp",VLOOKUP($C42,emission_factors!$L$22:$N$33,2,),IF($F42="Over 25hp",VLOOKUP($C42,emission_factors!$L$36:$N$48,2,)))))*($G42+$H42))) ->  | N42: =IF($E42="YES",((IF($F42="Under 11hp",VLOOKUP($C42+1,emission_factors!$L$5:$N$18,2,),IF($F42="11-25hp",VLOOKUP($C42+1,emission_factors!$L$22:$N$33,2,),IF($F42="Over 25hp",VLOOKUP($C42+1,emission_factors!$L$36:$N$48,2,)))))*($G42)),((IF($F42="Under 11hp",VLOOKUP($C42+1,emission_factors!$L$5:$N$18,2,),IF($F42="11-25hp",VLOOKUP($C42+1,emission_factors!$L$22:$N$33,2,),IF($F42="Over 25hp",VLOOKUP($C42+1,emission_factors!$L$36:$N$48,2,)))))*($G42+$H42))) ->  | O42: =IF($E42="YES",((IF($F42="Under 11hp",VLOOKUP($C42+2,emission_factors!$L$5:$N$18,2,),IF($F42="11-25hp",VLOOKUP($C42+2,emission_factors!$L$22:$N$33,2,),IF($F42="Over 25hp",VLOOKUP($C42+2,emission_factors!$L$36:$N$48,2,)))))*($G42)),((IF($F42="Under 11hp",VLOOKUP($C42+2,emission_factors!$L$5:$N$18,2,),IF($F42="11-25hp",VLOOKUP($C42+2,emission_factors!$L$22:$N$33,2,),IF($F42="Over 25hp",VLOOKUP($C42+2,emission_factors!$L$36:$N$48,2,)))))*($G42+$H42))) ->  | P42: =IF($E42="YES",((IF($F42="Under 11hp",VLOOKUP($C42+3,emission_factors!$L$5:$N$18,2,),IF($F42="11-25hp",VLOOKUP($C42+3,emission_factors!$L$22:$N$33,2,),IF($F42="Over 25hp",VLOOKUP($C42+3,emission_factors!$L$36:$N$48,2,)))))*($G42)),((IF($F42="Under 11hp",VLOOKUP($C42+3,emission_factors!$L$5:$N$18,2,),IF($F42="11-25hp",VLOOKUP($C42+3,emission_factors!$L$22:$N$33,2,),IF($F42="Over 25hp",VLOOKUP($C42+3,emission_factors!$L$36:$N$48,2,)))))*($G42+$H42))) ->  | Q42: =IF($E42="YES",((IF($F42="Under 11hp",VLOOKUP($C42+4,emission_factors!$L$5:$N$18,2,),IF($F42="11-25hp",VLOOKUP($C42+4,emission_factors!$L$22:$N$33,2,),IF($F42="Over 25hp",VLOOKUP($C42+4,emission_factors!$L$36:$N$48,2,)))))*($G42)),((IF($F42="Under 11hp",VLOOKUP($C42+4,emission_factors!$L$5:$N$18,2,),IF($F42="11-25hp",VLOOKUP($C42+4,emission_factors!$L$22:$N$33,2,),IF($F42="Over 25hp",VLOOKUP($C42+4,emission_factors!$L$36:$N$48,2,)))))*($G42+$H42))) ->  | R42: =IF($E42="YES",((IF($F42="Under 11hp",VLOOKUP($C42,emission_factors!$L$5:$N$18,3,),IF($F42="11-25hp",VLOOKUP($C42,emission_factors!$L$22:$N$33,3,),IF($F42="Over 25hp",VLOOKUP($C42,emission_factors!$L$36:$N$48,3,)))))*($G42)),((IF($F42="Under 11hp",VLOOKUP($C42,emission_factors!$L$5:$N$18,3,),IF($F42="11-25hp",VLOOKUP($C42,emission_factors!$L$22:$N$33,3,),IF($F42="Over 25hp",VLOOKUP($C42,emission_factors!$L$36:$N$48,3,)))))*($G42+$H42))) ->  | S42: =IF($E42="YES",((IF($F42="Under 11hp",VLOOKUP($C42+1,emission_factors!$L$5:$N$18,3,),IF($F42="11-25hp",VLOOKUP($C42+1,emission_factors!$L$22:$N$33,3,),IF($F42="Over 25hp",VLOOKUP($C42+1,emission_factors!$L$36:$N$48,3,)))))*($G42)),((IF($F42="Under 11hp",VLOOKUP($C42+1,emission_factors!$L$5:$N$18,3,),IF($F42="11-25hp",VLOOKUP($C42+1,emission_factors!$L$22:$N$33,3,),IF($F42="Over 25hp",VLOOKUP($C42+1,emission_factors!$L$36:$N$48,3,)))))*($G42+$H42))) ->  | T42: =IF($E42="YES",((IF($F42="Under 11hp",VLOOKUP($C42+2,emission_factors!$L$5:$N$18,3,),IF($F42="11-25hp",VLOOKUP($C42+2,emission_factors!$L$22:$N$33,3,),IF($F42="Over 25hp",VLOOKUP($C42+2,emission_factors!$L$36:$N$48,3,)))))*($G42)),((IF($F42="Under 11hp",VLOOKUP($C42+2,emission_factors!$L$5:$N$18,3,),IF($F42="11-25hp",VLOOKUP($C42+2,emission_factors!$L$22:$N$33,3,),IF($F42="Over 25hp",VLOOKUP($C42+2,emission_factors!$L$36:$N$48,3,)))))*($G42+$H42))) ->  | U42: =IF($E42="YES",((IF($F42="Under 11hp",VLOOKUP($C42+3,emission_factors!$L$5:$N$18,3,),IF($F42="11-25hp",VLOOKUP($C42+3,emission_factors!$L$22:$N$33,3,),IF($F42="Over 25hp",VLOOKUP($C42+3,emission_factors!$L$36:$N$48,3,)))))*($G42)),((IF($F42="Under 11hp",VLOOKUP($C42+3,emission_factors!$L$5:$N$18,3,),IF($F42="11-25hp",VLOOKUP($C42+3,emission_factors!$L$22:$N$33,3,),IF($F42="Over 25hp",VLOOKUP($C42+3,emission_factors!$L$36:$N$48,3,)))))*($G42+$H42))) ->  | V42: =IF($E42="YES",((IF($F42="Under 11hp",VLOOKUP($C42+4,emission_factors!$L$5:$N$18,3,),IF($F42="11-25hp",VLOOKUP($C42+4,emission_factors!$L$22:$N$33,3,),IF($F42="Over 25hp",VLOOKUP($C42+4,emission_factors!$L$36:$N$48,3,)))))*($G42)),((IF($F42="Under 11hp",VLOOKUP($C42+4,emission_factors!$L$5:$N$18,3,),IF($F42="11-25hp",VLOOKUP($C42+4,emission_factors!$L$22:$N$33,3,),IF($F42="Over 25hp",VLOOKUP($C42+4,emission_factors!$L$36:$N$48,3,)))))*($G42+$H42))) ->  | W42: 0 | X42: 0 | Y42: 0 | Z42: 0 | AA42: 0 | AB42: 0
A43: =IF(user_input_equipment!A43<>"",user_input_equipment!A43,"") ->  | B43: =IF(user_input_equipment!B43<>"",user_input_equipment!B43,"") ->  | C43: =IF(user_input_equipment!C43<>"",user_input_equipment!C43,"") ->  | D43: =IF(user_input_equipment!D43<>"",user_input_equipment!D43,"") ->  | E43: =IF(user_input_equipment!E43<>"",user_input_equipment!E43,"") ->  | F43: =IF(user_input_equipment!F43<>"",user_input_equipment!F43,"") ->  | G43: =IF(user_input_equipment!G43<>"",user_input_equipment!G43,"") ->  | H43: =IF(user_input_equipment!H43<>"",user_input_equipment!H43,"") ->  | I43: =IF(user_input_equipment!I43<>"",user_input_equipment!I43,"") ->  | J43: =IF(user_input_equipment!J43<>"",user_input_equipment!J43,"") ->  | K43: =IF(user_input_equipment!K43<>"",user_input_equipment!K43,"") ->  | L43: =IF(user_input_equipment!L43<>"",user_input_equipment!L43,"") ->  | M43: =IF($E43="YES",((IF($F43="Under 11hp",VLOOKUP($C43,emission_factors!$L$5:$N$18,2,),IF($F43="11-25hp",VLOOKUP($C43,emission_factors!$L$22:$N$33,2,),IF($F43="Over 25hp",VLOOKUP($C43,emission_factors!$L$36:$N$48,2,)))))*($G43)),((IF($F43="Under 11hp",VLOOKUP($C43,emission_factors!$L$5:$N$18,2,),IF($F43="11-25hp",VLOOKUP($C43,emission_factors!$L$22:$N$33,2,),IF($F43="Over 25hp",VLOOKUP($C43,emission_factors!$L$36:$N$48,2,)))))*($G43+$H43))) ->  | N43: =IF($E43="YES",((IF($F43="Under 11hp",VLOOKUP($C43+1,emission_factors!$L$5:$N$18,2,),IF($F43="11-25hp",VLOOKUP($C43+1,emission_factors!$L$22:$N$33,2,),IF($F43="Over 25hp",VLOOKUP($C43+1,emission_factors!$L$36:$N$48,2,)))))*($G43)),((IF($F43="Under 11hp",VLOOKUP($C43+1,emission_factors!$L$5:$N$18,2,),IF($F43="11-25hp",VLOOKUP($C43+1,emission_factors!$L$22:$N$33,2,),IF($F43="Over 25hp",VLOOKUP($C43+1,emission_factors!$L$36:$N$48,2,)))))*($G43+$H43))) ->  | O43: =IF($E43="YES",((IF($F43="Under 11hp",VLOOKUP($C43+2,emission_factors!$L$5:$N$18,2,),IF($F43="11-25hp",VLOOKUP($C43+2,emission_factors!$L$22:$N$33,2,),IF($F43="Over 25hp",VLOOKUP($C43+2,emission_factors!$L$36:$N$48,2,)))))*($G43)),((IF($F43="Under 11hp",VLOOKUP($C43+2,emission_factors!$L$5:$N$18,2,),IF($F43="11-25hp",VLOOKUP($C43+2,emission_factors!$L$22:$N$33,2,),IF($F43="Over 25hp",VLOOKUP($C43+2,emission_factors!$L$36:$N$48,2,)))))*($G43+$H43))) ->  | P43: =IF($E43="YES",((IF($F43="Under 11hp",VLOOKUP($C43+3,emission_factors!$L$5:$N$18,2,),IF($F43="11-25hp",VLOOKUP($C43+3,emission_factors!$L$22:$N$33,2,),IF($F43="Over 25hp",VLOOKUP($C43+3,emission_factors!$L$36:$N$48,2,)))))*($G43)),((IF($F43="Under 11hp",VLOOKUP($C43+3,emission_factors!$L$5:$N$18,2,),IF($F43="11-25hp",VLOOKUP($C43+3,emission_factors!$L$22:$N$33,2,),IF($F43="Over 25hp",VLOOKUP($C43+3,emission_factors!$L$36:$N$48,2,)))))*($G43+$H43))) ->  | Q43: =IF($E43="YES",((IF($F43="Under 11hp",VLOOKUP($C43+4,emission_factors!$L$5:$N$18,2,),IF($F43="11-25hp",VLOOKUP($C43+4,emission_factors!$L$22:$N$33,2,),IF($F43="Over 25hp",VLOOKUP($C43+4,emission_factors!$L$36:$N$48,2,)))))*($G43)),((IF($F43="Under 11hp",VLOOKUP($C43+4,emission_factors!$L$5:$N$18,2,),IF($F43="11-25hp",VLOOKUP($C43+4,emission_factors!$L$22:$N$33,2,),IF($F43="Over 25hp",VLOOKUP($C43+4,emission_factors!$L$36:$N$48,2,)))))*($G43+$H43))) ->  | R43: =IF($E43="YES",((IF($F43="Under 11hp",VLOOKUP($C43,emission_factors!$L$5:$N$18,3,),IF($F43="11-25hp",VLOOKUP($C43,emission_factors!$L$22:$N$33,3,),IF($F43="Over 25hp",VLOOKUP($C43,emission_factors!$L$36:$N$48,3,)))))*($G43)),((IF($F43="Under 11hp",VLOOKUP($C43,emission_factors!$L$5:$N$18,3,),IF($F43="11-25hp",VLOOKUP($C43,emission_factors!$L$22:$N$33,3,),IF($F43="Over 25hp",VLOOKUP($C43,emission_factors!$L$36:$N$48,3,)))))*($G43+$H43))) ->  | S43: =IF($E43="YES",((IF($F43="Under 11hp",VLOOKUP($C43+1,emission_factors!$L$5:$N$18,3,),IF($F43="11-25hp",VLOOKUP($C43+1,emission_factors!$L$22:$N$33,3,),IF($F43="Over 25hp",VLOOKUP($C43+1,emission_factors!$L$36:$N$48,3,)))))*($G43)),((IF($F43="Under 11hp",VLOOKUP($C43+1,emission_factors!$L$5:$N$18,3,),IF($F43="11-25hp",VLOOKUP($C43+1,emission_factors!$L$22:$N$33,3,),IF($F43="Over 25hp",VLOOKUP($C43+1,emission_factors!$L$36:$N$48,3,)))))*($G43+$H43))) ->  | T43: =IF($E43="YES",((IF($F43="Under 11hp",VLOOKUP($C43+2,emission_factors!$L$5:$N$18,3,),IF($F43="11-25hp",VLOOKUP($C43+2,emission_factors!$L$22:$N$33,3,),IF($F43="Over 25hp",VLOOKUP($C43+2,emission_factors!$L$36:$N$48,3,)))))*($G43)),((IF($F43="Under 11hp",VLOOKUP($C43+2,emission_factors!$L$5:$N$18,3,),IF($F43="11-25hp",VLOOKUP($C43+2,emission_factors!$L$22:$N$33,3,),IF($F43="Over 25hp",VLOOKUP($C43+2,emission_factors!$L$36:$N$48,3,)))))*($G43+$H43))) ->  | U43: =IF($E43="YES",((IF($F43="Under 11hp",VLOOKUP($C43+3,emission_factors!$L$5:$N$18,3,),IF($F43="11-25hp",VLOOKUP($C43+3,emission_factors!$L$22:$N$33,3,),IF($F43="Over 25hp",VLOOKUP($C43+3,emission_factors!$L$36:$N$48,3,)))))*($G43)),((IF($F43="Under 11hp",VLOOKUP($C43+3,emission_factors!$L$5:$N$18,3,),IF($F43="11-25hp",VLOOKUP($C43+3,emission_factors!$L$22:$N$33,3,),IF($F43="Over 25hp",VLOOKUP($C43+3,emission_factors!$L$36:$N$48,3,)))))*($G43+$H43))) ->  | V43: =IF($E43="YES",((IF($F43="Under 11hp",VLOOKUP($C43+4,emission_factors!$L$5:$N$18,3,),IF($F43="11-25hp",VLOOKUP($C43+4,emission_factors!$L$22:$N$33,3,),IF($F43="Over 25hp",VLOOKUP($C43+4,emission_factors!$L$36:$N$48,3,)))))*($G43)),((IF($F43="Under 11hp",VLOOKUP($C43+4,emission_factors!$L$5:$N$18,3,),IF($F43="11-25hp",VLOOKUP($C43+4,emission_factors!$L$22:$N$33,3,),IF($F43="Over 25hp",VLOOKUP($C43+4,emission_factors!$L$36:$N$48,3,)))))*($G43+$H43))) ->  | W43: 0 | X43: 0 | Y43: 0 | Z43: 0 | AA43: 0 | AB43: 0
A44: =IF(user_input_equipment!A44<>"",user_input_equipment!A44,"") ->  | B44: =IF(user_input_equipment!B44<>"",user_input_equipment!B44,"") ->  | C44: =IF(user_input_equipment!C44<>"",user_input_equipment!C44,"") ->  | D44: =IF(user_input_equipment!D44<>"",user_input_equipment!D44,"") ->  | E44: =IF(user_input_equipment!E44<>"",user_input_equipment!E44,"") ->  | F44: =IF(user_input_equipment!F44<>"",user_input_equipment!F44,"") ->  | G44: =IF(user_input_equipment!G44<>"",user_input_equipment!G44,"") ->  | H44: =IF(user_input_equipment!H44<>"",user_input_equipment!H44,"") ->  | I44: =IF(user_input_equipment!I44<>"",user_input_equipment!I44,"") ->  | J44: =IF(user_input_equipment!J44<>"",user_input_equipment!J44,"") ->  | K44: =IF(user_input_equipment!K44<>"",user_input_equipment!K44,"") ->  | L44: =IF(user_input_equipment!L44<>"",user_input_equipment!L44,"") ->  | M44: =IF($E44="YES",((IF($F44="Under 11hp",VLOOKUP($C44,emission_factors!$L$5:$N$18,2,),IF($F44="11-25hp",VLOOKUP($C44,emission_factors!$L$22:$N$33,2,),IF($F44="Over 25hp",VLOOKUP($C44,emission_factors!$L$36:$N$48,2,)))))*($G44)),((IF($F44="Under 11hp",VLOOKUP($C44,emission_factors!$L$5:$N$18,2,),IF($F44="11-25hp",VLOOKUP($C44,emission_factors!$L$22:$N$33,2,),IF($F44="Over 25hp",VLOOKUP($C44,emission_factors!$L$36:$N$48,2,)))))*($G44+$H44))) ->  | N44: =IF($E44="YES",((IF($F44="Under 11hp",VLOOKUP($C44+1,emission_factors!$L$5:$N$18,2,),IF($F44="11-25hp",VLOOKUP($C44+1,emission_factors!$L$22:$N$33,2,),IF($F44="Over 25hp",VLOOKUP($C44+1,emission_factors!$L$36:$N$48,2,)))))*($G44)),((IF($F44="Under 11hp",VLOOKUP($C44+1,emission_factors!$L$5:$N$18,2,),IF($F44="11-25hp",VLOOKUP($C44+1,emission_factors!$L$22:$N$33,2,),IF($F44="Over 25hp",VLOOKUP($C44+1,emission_factors!$L$36:$N$48,2,)))))*($G44+$H44))) ->  | O44: =IF($E44="YES",((IF($F44="Under 11hp",VLOOKUP($C44+2,emission_factors!$L$5:$N$18,2,),IF($F44="11-25hp",VLOOKUP($C44+2,emission_factors!$L$22:$N$33,2,),IF($F44="Over 25hp",VLOOKUP($C44+2,emission_factors!$L$36:$N$48,2,)))))*($G44)),((IF($F44="Under 11hp",VLOOKUP($C44+2,emission_factors!$L$5:$N$18,2,),IF($F44="11-25hp",VLOOKUP($C44+2,emission_factors!$L$22:$N$33,2,),IF($F44="Over 25hp",VLOOKUP($C44+2,emission_factors!$L$36:$N$48,2,)))))*($G44+$H44))) ->  | P44: =IF($E44="YES",((IF($F44="Under 11hp",VLOOKUP($C44+3,emission_factors!$L$5:$N$18,2,),IF($F44="11-25hp",VLOOKUP($C44+3,emission_factors!$L$22:$N$33,2,),IF($F44="Over 25hp",VLOOKUP($C44+3,emission_factors!$L$36:$N$48,2,)))))*($G44)),((IF($F44="Under 11hp",VLOOKUP($C44+3,emission_factors!$L$5:$N$18,2,),IF($F44="11-25hp",VLOOKUP($C44+3,emission_factors!$L$22:$N$33,2,),IF($F44="Over 25hp",VLOOKUP($C44+3,emission_factors!$L$36:$N$48,2,)))))*($G44+$H44))) ->  | Q44: =IF($E44="YES",((IF($F44="Under 11hp",VLOOKUP($C44+4,emission_factors!$L$5:$N$18,2,),IF($F44="11-25hp",VLOOKUP($C44+4,emission_factors!$L$22:$N$33,2,),IF($F44="Over 25hp",VLOOKUP($C44+4,emission_factors!$L$36:$N$48,2,)))))*($G44)),((IF($F44="Under 11hp",VLOOKUP($C44+4,emission_factors!$L$5:$N$18,2,),IF($F44="11-25hp",VLOOKUP($C44+4,emission_factors!$L$22:$N$33,2,),IF($F44="Over 25hp",VLOOKUP($C44+4,emission_factors!$L$36:$N$48,2,)))))*($G44+$H44))) ->  | R44: =IF($E44="YES",((IF($F44="Under 11hp",VLOOKUP($C44,emission_factors!$L$5:$N$18,3,),IF($F44="11-25hp",VLOOKUP($C44,emission_factors!$L$22:$N$33,3,),IF($F44="Over 25hp",VLOOKUP($C44,emission_factors!$L$36:$N$48,3,)))))*($G44)),((IF($F44="Under 11hp",VLOOKUP($C44,emission_factors!$L$5:$N$18,3,),IF($F44="11-25hp",VLOOKUP($C44,emission_factors!$L$22:$N$33,3,),IF($F44="Over 25hp",VLOOKUP($C44,emission_factors!$L$36:$N$48,3,)))))*($G44+$H44))) ->  | S44: =IF($E44="YES",((IF($F44="Under 11hp",VLOOKUP($C44+1,emission_factors!$L$5:$N$18,3,),IF($F44="11-25hp",VLOOKUP($C44+1,emission_factors!$L$22:$N$33,3,),IF($F44="Over 25hp",VLOOKUP($C44+1,emission_factors!$L$36:$N$48,3,)))))*($G44)),((IF($F44="Under 11hp",VLOOKUP($C44+1,emission_factors!$L$5:$N$18,3,),IF($F44="11-25hp",VLOOKUP($C44+1,emission_factors!$L$22:$N$33,3,),IF($F44="Over 25hp",VLOOKUP($C44+1,emission_factors!$L$36:$N$48,3,)))))*($G44+$H44))) ->  | T44: =IF($E44="YES",((IF($F44="Under 11hp",VLOOKUP($C44+2,emission_factors!$L$5:$N$18,3,),IF($F44="11-25hp",VLOOKUP($C44+2,emission_factors!$L$22:$N$33,3,),IF($F44="Over 25hp",VLOOKUP($C44+2,emission_factors!$L$36:$N$48,3,)))))*($G44)),((IF($F44="Under 11hp",VLOOKUP($C44+2,emission_factors!$L$5:$N$18,3,),IF($F44="11-25hp",VLOOKUP($C44+2,emission_factors!$L$22:$N$33,3,),IF($F44="Over 25hp",VLOOKUP($C44+2,emission_factors!$L$36:$N$48,3,)))))*($G44+$H44))) ->  | U44: =IF($E44="YES",((IF($F44="Under 11hp",VLOOKUP($C44+3,emission_factors!$L$5:$N$18,3,),IF($F44="11-25hp",VLOOKUP($C44+3,emission_factors!$L$22:$N$33,3,),IF($F44="Over 25hp",VLOOKUP($C44+3,emission_factors!$L$36:$N$48,3,)))))*($G44)),((IF($F44="Under 11hp",VLOOKUP($C44+3,emission_factors!$L$5:$N$18,3,),IF($F44="11-25hp",VLOOKUP($C44+3,emission_factors!$L$22:$N$33,3,),IF($F44="Over 25hp",VLOOKUP($C44+3,emission_factors!$L$36:$N$48,3,)))))*($G44+$H44))) ->  | V44: =IF($E44="YES",((IF($F44="Under 11hp",VLOOKUP($C44+4,emission_factors!$L$5:$N$18,3,),IF($F44="11-25hp",VLOOKUP($C44+4,emission_factors!$L$22:$N$33,3,),IF($F44="Over 25hp",VLOOKUP($C44+4,emission_factors!$L$36:$N$48,3,)))))*($G44)),((IF($F44="Under 11hp",VLOOKUP($C44+4,emission_factors!$L$5:$N$18,3,),IF($F44="11-25hp",VLOOKUP($C44+4,emission_factors!$L$22:$N$33,3,),IF($F44="Over 25hp",VLOOKUP($C44+4,emission_factors!$L$36:$N$48,3,)))))*($G44+$H44))) ->  | W44: 0 | X44: 0 | Y44: 0 | Z44: 0 | AA44: 0 | AB44: 0
A45: =IF(user_input_equipment!A45<>"",user_input_equipment!A45,"") ->  | B45: =IF(user_input_equipment!B45<>"",user_input_equipment!B45,"") ->  | C45: =IF(user_input_equipment!C45<>"",user_input_equipment!C45,"") ->  | D45: =IF(user_input_equipment!D45<>"",user_input_equipment!D45,"") ->  | E45: =IF(user_input_equipment!E45<>"",user_input_equipment!E45,"") ->  | F45: =IF(user_input_equipment!F45<>"",user_input_equipment!F45,"") ->  | G45: =IF(user_input_equipment!G45<>"",user_input_equipment!G45,"") ->  | H45: =IF(user_input_equipment!H45<>"",user_input_equipment!H45,"") ->  | I45: =IF(user_input_equipment!I45<>"",user_input_equipment!I45,"") ->  | J45: =IF(user_input_equipment!J45<>"",user_input_equipment!J45,"") ->  | K45: =IF(user_input_equipment!K45<>"",user_input_equipment!K45,"") ->  | L45: =IF(user_input_equipment!L45<>"",user_input_equipment!L45,"") ->  | M45: =IF($E45="YES",((IF($F45="Under 11hp",VLOOKUP($C45,emission_factors!$L$5:$N$18,2,),IF($F45="11-25hp",VLOOKUP($C45,emission_factors!$L$22:$N$33,2,),IF($F45="Over 25hp",VLOOKUP($C45,emission_factors!$L$36:$N$48,2,)))))*($G45)),((IF($F45="Under 11hp",VLOOKUP($C45,emission_factors!$L$5:$N$18,2,),IF($F45="11-25hp",VLOOKUP($C45,emission_factors!$L$22:$N$33,2,),IF($F45="Over 25hp",VLOOKUP($C45,emission_factors!$L$36:$N$48,2,)))))*($G45+$H45))) ->  | N45: =IF($E45="YES",((IF($F45="Under 11hp",VLOOKUP($C45+1,emission_factors!$L$5:$N$18,2,),IF($F45="11-25hp",VLOOKUP($C45+1,emission_factors!$L$22:$N$33,2,),IF($F45="Over 25hp",VLOOKUP($C45+1,emission_factors!$L$36:$N$48,2,)))))*($G45)),((IF($F45="Under 11hp",VLOOKUP($C45+1,emission_factors!$L$5:$N$18,2,),IF($F45="11-25hp",VLOOKUP($C45+1,emission_factors!$L$22:$N$33,2,),IF($F45="Over 25hp",VLOOKUP($C45+1,emission_factors!$L$36:$N$48,2,)))))*($G45+$H45))) ->  | O45: =IF($E45="YES",((IF($F45="Under 11hp",VLOOKUP($C45+2,emission_factors!$L$5:$N$18,2,),IF($F45="11-25hp",VLOOKUP($C45+2,emission_factors!$L$22:$N$33,2,),IF($F45="Over 25hp",VLOOKUP($C45+2,emission_factors!$L$36:$N$48,2,)))))*($G45)),((IF($F45="Under 11hp",VLOOKUP($C45+2,emission_factors!$L$5:$N$18,2,),IF($F45="11-25hp",VLOOKUP($C45+2,emission_factors!$L$22:$N$33,2,),IF($F45="Over 25hp",VLOOKUP($C45+2,emission_factors!$L$36:$N$48,2,)))))*($G45+$H45))) ->  | P45: =IF($E45="YES",((IF($F45="Under 11hp",VLOOKUP($C45+3,emission_factors!$L$5:$N$18,2,),IF($F45="11-25hp",VLOOKUP($C45+3,emission_factors!$L$22:$N$33,2,),IF($F45="Over 25hp",VLOOKUP($C45+3,emission_factors!$L$36:$N$48,2,)))))*($G45)),((IF($F45="Under 11hp",VLOOKUP($C45+3,emission_factors!$L$5:$N$18,2,),IF($F45="11-25hp",VLOOKUP($C45+3,emission_factors!$L$22:$N$33,2,),IF($F45="Over 25hp",VLOOKUP($C45+3,emission_factors!$L$36:$N$48,2,)))))*($G45+$H45))) ->  | Q45: =IF($E45="YES",((IF($F45="Under 11hp",VLOOKUP($C45+4,emission_factors!$L$5:$N$18,2,),IF($F45="11-25hp",VLOOKUP($C45+4,emission_factors!$L$22:$N$33,2,),IF($F45="Over 25hp",VLOOKUP($C45+4,emission_factors!$L$36:$N$48,2,)))))*($G45)),((IF($F45="Under 11hp",VLOOKUP($C45+4,emission_factors!$L$5:$N$18,2,),IF($F45="11-25hp",VLOOKUP($C45+4,emission_factors!$L$22:$N$33,2,),IF($F45="Over 25hp",VLOOKUP($C45+4,emission_factors!$L$36:$N$48,2,)))))*($G45+$H45))) ->  | R45: =IF($E45="YES",((IF($F45="Under 11hp",VLOOKUP($C45,emission_factors!$L$5:$N$18,3,),IF($F45="11-25hp",VLOOKUP($C45,emission_factors!$L$22:$N$33,3,),IF($F45="Over 25hp",VLOOKUP($C45,emission_factors!$L$36:$N$48,3,)))))*($G45)),((IF($F45="Under 11hp",VLOOKUP($C45,emission_factors!$L$5:$N$18,3,),IF($F45="11-25hp",VLOOKUP($C45,emission_factors!$L$22:$N$33,3,),IF($F45="Over 25hp",VLOOKUP($C45,emission_factors!$L$36:$N$48,3,)))))*($G45+$H45))) ->  | S45: =IF($E45="YES",((IF($F45="Under 11hp",VLOOKUP($C45+1,emission_factors!$L$5:$N$18,3,),IF($F45="11-25hp",VLOOKUP($C45+1,emission_factors!$L$22:$N$33,3,),IF($F45="Over 25hp",VLOOKUP($C45+1,emission_factors!$L$36:$N$48,3,)))))*($G45)),((IF($F45="Under 11hp",VLOOKUP($C45+1,emission_factors!$L$5:$N$18,3,),IF($F45="11-25hp",VLOOKUP($C45+1,emission_factors!$L$22:$N$33,3,),IF($F45="Over 25hp",VLOOKUP($C45+1,emission_factors!$L$36:$N$48,3,)))))*($G45+$H45))) ->  | T45: =IF($E45="YES",((IF($F45="Under 11hp",VLOOKUP($C45+2,emission_factors!$L$5:$N$18,3,),IF($F45="11-25hp",VLOOKUP($C45+2,emission_factors!$L$22:$N$33,3,),IF($F45="Over 25hp",VLOOKUP($C45+2,emission_factors!$L$36:$N$48,3,)))))*($G45)),((IF($F45="Under 11hp",VLOOKUP($C45+2,emission_factors!$L$5:$N$18,3,),IF($F45="11-25hp",VLOOKUP($C45+2,emission_factors!$L$22:$N$33,3,),IF($F45="Over 25hp",VLOOKUP($C45+2,emission_factors!$L$36:$N$48,3,)))))*($G45+$H45))) ->  | U45: =IF($E45="YES",((IF($F45="Under 11hp",VLOOKUP($C45+3,emission_factors!$L$5:$N$18,3,),IF($F45="11-25hp",VLOOKUP($C45+3,emission_factors!$L$22:$N$33,3,),IF($F45="Over 25hp",VLOOKUP($C45+3,emission_factors!$L$36:$N$48,3,)))))*($G45)),((IF($F45="Under 11hp",VLOOKUP($C45+3,emission_factors!$L$5:$N$18,3,),IF($F45="11-25hp",VLOOKUP($C45+3,emission_factors!$L$22:$N$33,3,),IF($F45="Over 25hp",VLOOKUP($C45+3,emission_factors!$L$36:$N$48,3,)))))*($G45+$H45))) ->  | V45: =IF($E45="YES",((IF($F45="Under 11hp",VLOOKUP($C45+4,emission_factors!$L$5:$N$18,3,),IF($F45="11-25hp",VLOOKUP($C45+4,emission_factors!$L$22:$N$33,3,),IF($F45="Over 25hp",VLOOKUP($C45+4,emission_factors!$L$36:$N$48,3,)))))*($G45)),((IF($F45="Under 11hp",VLOOKUP($C45+4,emission_factors!$L$5:$N$18,3,),IF($F45="11-25hp",VLOOKUP($C45+4,emission_factors!$L$22:$N$33,3,),IF($F45="Over 25hp",VLOOKUP($C45+4,emission_factors!$L$36:$N$48,3,)))))*($G45+$H45))) ->  | W45: 0 | X45: 0 | Y45: 0 | Z45: 0 | AA45: 0 | AB45: 0
A46: =IF(user_input_equipment!A46<>"",user_input_equipment!A46,"") ->  | B46: =IF(user_input_equipment!B46<>"",user_input_equipment!B46,"") ->  | C46: =IF(user_input_equipment!C46<>"",user_input_equipment!C46,"") ->  | D46: =IF(user_input_equipment!D46<>"",user_input_equipment!D46,"") ->  | E46: =IF(user_input_equipment!E46<>"",user_input_equipment!E46,"") ->  | F46: =IF(user_input_equipment!F46<>"",user_input_equipment!F46,"") ->  | G46: =IF(user_input_equipment!G46<>"",user_input_equipment!G46,"") ->  | H46: =IF(user_input_equipment!H46<>"",user_input_equipment!H46,"") ->  | I46: =IF(user_input_equipment!I46<>"",user_input_equipment!I46,"") ->  | J46: =IF(user_input_equipment!J46<>"",user_input_equipment!J46,"") ->  | K46: =IF(user_input_equipment!K46<>"",user_input_equipment!K46,"") ->  | L46: =IF(user_input_equipment!L46<>"",user_input_equipment!L46,"") ->  | M46: =IF($E46="YES",((IF($F46="Under 11hp",VLOOKUP($C46,emission_factors!$L$5:$N$18,2,),IF($F46="11-25hp",VLOOKUP($C46,emission_factors!$L$22:$N$33,2,),IF($F46="Over 25hp",VLOOKUP($C46,emission_factors!$L$36:$N$48,2,)))))*($G46)),((IF($F46="Under 11hp",VLOOKUP($C46,emission_factors!$L$5:$N$18,2,),IF($F46="11-25hp",VLOOKUP($C46,emission_factors!$L$22:$N$33,2,),IF($F46="Over 25hp",VLOOKUP($C46,emission_factors!$L$36:$N$48,2,)))))*($G46+$H46))) ->  | N46: =IF($E46="YES",((IF($F46="Under 11hp",VLOOKUP($C46+1,emission_factors!$L$5:$N$18,2,),IF($F46="11-25hp",VLOOKUP($C46+1,emission_factors!$L$22:$N$33,2,),IF($F46="Over 25hp",VLOOKUP($C46+1,emission_factors!$L$36:$N$48,2,)))))*($G46)),((IF($F46="Under 11hp",VLOOKUP($C46+1,emission_factors!$L$5:$N$18,2,),IF($F46="11-25hp",VLOOKUP($C46+1,emission_factors!$L$22:$N$33,2,),IF($F46="Over 25hp",VLOOKUP($C46+1,emission_factors!$L$36:$N$48,2,)))))*($G46+$H46))) ->  | O46: =IF($E46="YES",((IF($F46="Under 11hp",VLOOKUP($C46+2,emission_factors!$L$5:$N$18,2,),IF($F46="11-25hp",VLOOKUP($C46+2,emission_factors!$L$22:$N$33,2,),IF($F46="Over 25hp",VLOOKUP($C46+2,emission_factors!$L$36:$N$48,2,)))))*($G46)),((IF($F46="Under 11hp",VLOOKUP($C46+2,emission_factors!$L$5:$N$18,2,),IF($F46="11-25hp",VLOOKUP($C46+2,emission_factors!$L$22:$N$33,2,),IF($F46="Over 25hp",VLOOKUP($C46+2,emission_factors!$L$36:$N$48,2,)))))*($G46+$H46))) ->  | P46: =IF($E46="YES",((IF($F46="Under 11hp",VLOOKUP($C46+3,emission_factors!$L$5:$N$18,2,),IF($F46="11-25hp",VLOOKUP($C46+3,emission_factors!$L$22:$N$33,2,),IF($F46="Over 25hp",VLOOKUP($C46+3,emission_factors!$L$36:$N$48,2,)))))*($G46)),((IF($F46="Under 11hp",VLOOKUP($C46+3,emission_factors!$L$5:$N$18,2,),IF($F46="11-25hp",VLOOKUP($C46+3,emission_factors!$L$22:$N$33,2,),IF($F46="Over 25hp",VLOOKUP($C46+3,emission_factors!$L$36:$N$48,2,)))))*($G46+$H46))) ->  | Q46: =IF($E46="YES",((IF($F46="Under 11hp",VLOOKUP($C46+4,emission_factors!$L$5:$N$18,2,),IF($F46="11-25hp",VLOOKUP($C46+4,emission_factors!$L$22:$N$33,2,),IF($F46="Over 25hp",VLOOKUP($C46+4,emission_factors!$L$36:$N$48,2,)))))*($G46)),((IF($F46="Under 11hp",VLOOKUP($C46+4,emission_factors!$L$5:$N$18,2,),IF($F46="11-25hp",VLOOKUP($C46+4,emission_factors!$L$22:$N$33,2,),IF($F46="Over 25hp",VLOOKUP($C46+4,emission_factors!$L$36:$N$48,2,)))))*($G46+$H46))) ->  | R46: =IF($E46="YES",((IF($F46="Under 11hp",VLOOKUP($C46,emission_factors!$L$5:$N$18,3,),IF($F46="11-25hp",VLOOKUP($C46,emission_factors!$L$22:$N$33,3,),IF($F46="Over 25hp",VLOOKUP($C46,emission_factors!$L$36:$N$48,3,)))))*($G46)),((IF($F46="Under 11hp",VLOOKUP($C46,emission_factors!$L$5:$N$18,3,),IF($F46="11-25hp",VLOOKUP($C46,emission_factors!$L$22:$N$33,3,),IF($F46="Over 25hp",VLOOKUP($C46,emission_factors!$L$36:$N$48,3,)))))*($G46+$H46))) ->  | S46: =IF($E46="YES",((IF($F46="Under 11hp",VLOOKUP($C46+1,emission_factors!$L$5:$N$18,3,),IF($F46="11-25hp",VLOOKUP($C46+1,emission_factors!$L$22:$N$33,3,),IF($F46="Over 25hp",VLOOKUP($C46+1,emission_factors!$L$36:$N$48,3,)))))*($G46)),((IF($F46="Under 11hp",VLOOKUP($C46+1,emission_factors!$L$5:$N$18,3,),IF($F46="11-25hp",VLOOKUP($C46+1,emission_factors!$L$22:$N$33,3,),IF($F46="Over 25hp",VLOOKUP($C46+1,emission_factors!$L$36:$N$48,3,)))))*($G46+$H46))) ->  | T46: =IF($E46="YES",((IF($F46="Under 11hp",VLOOKUP($C46+2,emission_factors!$L$5:$N$18,3,),IF($F46="11-25hp",VLOOKUP($C46+2,emission_factors!$L$22:$N$33,3,),IF($F46="Over 25hp",VLOOKUP($C46+2,emission_factors!$L$36:$N$48,3,)))))*($G46)),((IF($F46="Under 11hp",VLOOKUP($C46+2,emission_factors!$L$5:$N$18,3,),IF($F46="11-25hp",VLOOKUP($C46+2,emission_factors!$L$22:$N$33,3,),IF($F46="Over 25hp",VLOOKUP($C46+2,emission_factors!$L$36:$N$48,3,)))))*($G46+$H46))) ->  | U46: =IF($E46="YES",((IF($F46="Under 11hp",VLOOKUP($C46+3,emission_factors!$L$5:$N$18,3,),IF($F46="11-25hp",VLOOKUP($C46+3,emission_factors!$L$22:$N$33,3,),IF($F46="Over 25hp",VLOOKUP($C46+3,emission_factors!$L$36:$N$48,3,)))))*($G46)),((IF($F46="Under 11hp",VLOOKUP($C46+3,emission_factors!$L$5:$N$18,3,),IF($F46="11-25hp",VLOOKUP($C46+3,emission_factors!$L$22:$N$33,3,),IF($F46="Over 25hp",VLOOKUP($C46+3,emission_factors!$L$36:$N$48,3,)))))*($G46+$H46))) ->  | V46: =IF($E46="YES",((IF($F46="Under 11hp",VLOOKUP($C46+4,emission_factors!$L$5:$N$18,3,),IF($F46="11-25hp",VLOOKUP($C46+4,emission_factors!$L$22:$N$33,3,),IF($F46="Over 25hp",VLOOKUP($C46+4,emission_factors!$L$36:$N$48,3,)))))*($G46)),((IF($F46="Under 11hp",VLOOKUP($C46+4,emission_factors!$L$5:$N$18,3,),IF($F46="11-25hp",VLOOKUP($C46+4,emission_factors!$L$22:$N$33,3,),IF($F46="Over 25hp",VLOOKUP($C46+4,emission_factors!$L$36:$N$48,3,)))))*($G46+$H46))) ->  | W46: 0 | X46: 0 | Y46: 0 | Z46: 0 | AA46: 0 | AB46: 0
A47: =IF(user_input_equipment!A47<>"",user_input_equipment!A47,"") ->  | B47: =IF(user_input_equipment!B47<>"",user_input_equipment!B47,"") ->  | C47: =IF(user_input_equipment!C47<>"",user_input_equipment!C47,"") ->  | D47: =IF(user_input_equipment!D47<>"",user_input_equipment!D47,"") ->  | E47: =IF(user_input_equipment!E47<>"",user_input_equipment!E47,"") ->  | F47: =IF(user_input_equipment!F47<>"",user_input_equipment!F47,"") ->  | G47: =IF(user_input_equipment!G47<>"",user_input_equipment!G47,"") ->  | H47: =IF(user_input_equipment!H47<>"",user_input_equipment!H47,"") ->  | I47: =IF(user_input_equipment!I47<>"",user_input_equipment!I47,"") ->  | J47: =IF(user_input_equipment!J47<>"",user_input_equipment!J47,"") ->  | K47: =IF(user_input_equipment!K47<>"",user_input_equipment!K47,"") ->  | L47: =IF(user_input_equipment!L47<>"",user_input_equipment!L47,"") ->  | M47: =IF($E47="YES",((IF($F47="Under 11hp",VLOOKUP($C47,emission_factors!$L$5:$N$18,2,),IF($F47="11-25hp",VLOOKUP($C47,emission_factors!$L$22:$N$33,2,),IF($F47="Over 25hp",VLOOKUP($C47,emission_factors!$L$36:$N$48,2,)))))*($G47)),((IF($F47="Under 11hp",VLOOKUP($C47,emission_factors!$L$5:$N$18,2,),IF($F47="11-25hp",VLOOKUP($C47,emission_factors!$L$22:$N$33,2,),IF($F47="Over 25hp",VLOOKUP($C47,emission_factors!$L$36:$N$48,2,)))))*($G47+$H47))) ->  | N47: =IF($E47="YES",((IF($F47="Under 11hp",VLOOKUP($C47+1,emission_factors!$L$5:$N$18,2,),IF($F47="11-25hp",VLOOKUP($C47+1,emission_factors!$L$22:$N$33,2,),IF($F47="Over 25hp",VLOOKUP($C47+1,emission_factors!$L$36:$N$48,2,)))))*($G47)),((IF($F47="Under 11hp",VLOOKUP($C47+1,emission_factors!$L$5:$N$18,2,),IF($F47="11-25hp",VLOOKUP($C47+1,emission_factors!$L$22:$N$33,2,),IF($F47="Over 25hp",VLOOKUP($C47+1,emission_factors!$L$36:$N$48,2,)))))*($G47+$H47))) ->  | O47: =IF($E47="YES",((IF($F47="Under 11hp",VLOOKUP($C47+2,emission_factors!$L$5:$N$18,2,),IF($F47="11-25hp",VLOOKUP($C47+2,emission_factors!$L$22:$N$33,2,),IF($F47="Over 25hp",VLOOKUP($C47+2,emission_factors!$L$36:$N$48,2,)))))*($G47)),((IF($F47="Under 11hp",VLOOKUP($C47+2,emission_factors!$L$5:$N$18,2,),IF($F47="11-25hp",VLOOKUP($C47+2,emission_factors!$L$22:$N$33,2,),IF($F47="Over 25hp",VLOOKUP($C47+2,emission_factors!$L$36:$N$48,2,)))))*($G47+$H47))) ->  | P47: =IF($E47="YES",((IF($F47="Under 11hp",VLOOKUP($C47+3,emission_factors!$L$5:$N$18,2,),IF($F47="11-25hp",VLOOKUP($C47+3,emission_factors!$L$22:$N$33,2,),IF($F47="Over 25hp",VLOOKUP($C47+3,emission_factors!$L$36:$N$48,2,)))))*($G47)),((IF($F47="Under 11hp",VLOOKUP($C47+3,emission_factors!$L$5:$N$18,2,),IF($F47="11-25hp",VLOOKUP($C47+3,emission_factors!$L$22:$N$33,2,),IF($F47="Over 25hp",VLOOKUP($C47+3,emission_factors!$L$36:$N$48,2,)))))*($G47+$H47))) ->  | Q47: =IF($E47="YES",((IF($F47="Under 11hp",VLOOKUP($C47+4,emission_factors!$L$5:$N$18,2,),IF($F47="11-25hp",VLOOKUP($C47+4,emission_factors!$L$22:$N$33,2,),IF($F47="Over 25hp",VLOOKUP($C47+4,emission_factors!$L$36:$N$48,2,)))))*($G47)),((IF($F47="Under 11hp",VLOOKUP($C47+4,emission_factors!$L$5:$N$18,2,),IF($F47="11-25hp",VLOOKUP($C47+4,emission_factors!$L$22:$N$33,2,),IF($F47="Over 25hp",VLOOKUP($C47+4,emission_factors!$L$36:$N$48,2,)))))*($G47+$H47))) ->  | R47: =IF($E47="YES",((IF($F47="Under 11hp",VLOOKUP($C47,emission_factors!$L$5:$N$18,3,),IF($F47="11-25hp",VLOOKUP($C47,emission_factors!$L$22:$N$33,3,),IF($F47="Over 25hp",VLOOKUP($C47,emission_factors!$L$36:$N$48,3,)))))*($G47)),((IF($F47="Under 11hp",VLOOKUP($C47,emission_factors!$L$5:$N$18,3,),IF($F47="11-25hp",VLOOKUP($C47,emission_factors!$L$22:$N$33,3,),IF($F47="Over 25hp",VLOOKUP($C47,emission_factors!$L$36:$N$48,3,)))))*($G47+$H47))) ->  | S47: =IF($E47="YES",((IF($F47="Under 11hp",VLOOKUP($C47+1,emission_factors!$L$5:$N$18,3,),IF($F47="11-25hp",VLOOKUP($C47+1,emission_factors!$L$22:$N$33,3,),IF($F47="Over 25hp",VLOOKUP($C47+1,emission_factors!$L$36:$N$48,3,)))))*($G47)),((IF($F47="Under 11hp",VLOOKUP($C47+1,emission_factors!$L$5:$N$18,3,),IF($F47="11-25hp",VLOOKUP($C47+1,emission_factors!$L$22:$N$33,3,),IF($F47="Over 25hp",VLOOKUP($C47+1,emission_factors!$L$36:$N$48,3,)))))*($G47+$H47))) ->  | T47: =IF($E47="YES",((IF($F47="Under 11hp",VLOOKUP($C47+2,emission_factors!$L$5:$N$18,3,),IF($F47="11-25hp",VLOOKUP($C47+2,emission_factors!$L$22:$N$33,3,),IF($F47="Over 25hp",VLOOKUP($C47+2,emission_factors!$L$36:$N$48,3,)))))*($G47)),((IF($F47="Under 11hp",VLOOKUP($C47+2,emission_factors!$L$5:$N$18,3,),IF($F47="11-25hp",VLOOKUP($C47+2,emission_factors!$L$22:$N$33,3,),IF($F47="Over 25hp",VLOOKUP($C47+2,emission_factors!$L$36:$N$48,3,)))))*($G47+$H47))) ->  | U47: =IF($E47="YES",((IF($F47="Under 11hp",VLOOKUP($C47+3,emission_factors!$L$5:$N$18,3,),IF($F47="11-25hp",VLOOKUP($C47+3,emission_factors!$L$22:$N$33,3,),IF($F47="Over 25hp",VLOOKUP($C47+3,emission_factors!$L$36:$N$48,3,)))))*($G47)),((IF($F47="Under 11hp",VLOOKUP($C47+3,emission_factors!$L$5:$N$18,3,),IF($F47="11-25hp",VLOOKUP($C47+3,emission_factors!$L$22:$N$33,3,),IF($F47="Over 25hp",VLOOKUP($C47+3,emission_factors!$L$36:$N$48,3,)))))*($G47+$H47))) ->  | V47: =IF($E47="YES",((IF($F47="Under 11hp",VLOOKUP($C47+4,emission_factors!$L$5:$N$18,3,),IF($F47="11-25hp",VLOOKUP($C47+4,emission_factors!$L$22:$N$33,3,),IF($F47="Over 25hp",VLOOKUP($C47+4,emission_factors!$L$36:$N$48,3,)))))*($G47)),((IF($F47="Under 11hp",VLOOKUP($C47+4,emission_factors!$L$5:$N$18,3,),IF($F47="11-25hp",VLOOKUP($C47+4,emission_factors!$L$22:$N$33,3,),IF($F47="Over 25hp",VLOOKUP($C47+4,emission_factors!$L$36:$N$48,3,)))))*($G47+$H47))) ->  | W47: 0 | X47: 0 | Y47: 0 | Z47: 0 | AA47: 0 | AB47: 0
A48: =IF(user_input_equipment!A48<>"",user_input_equipment!A48,"") ->  | B48: =IF(user_input_equipment!B48<>"",user_input_equipment!B48,"") ->  | C48: =IF(user_input_equipment!C48<>"",user_input_equipment!C48,"") ->  | D48: =IF(user_input_equipment!D48<>"",user_input_equipment!D48,"") ->  | E48: =IF(user_input_equipment!E48<>"",user_input_equipment!E48,"") ->  | F48: =IF(user_input_equipment!F48<>"",user_input_equipment!F48,"") ->  | G48: =IF(user_input_equipment!G48<>"",user_input_equipment!G48,"") ->  | H48: =IF(user_input_equipment!H48<>"",user_input_equipment!H48,"") ->  | I48: =IF(user_input_equipment!I48<>"",user_input_equipment!I48,"") ->  | J48: =IF(user_input_equipment!J48<>"",user_input_equipment!J48,"") ->  | K48: =IF(user_input_equipment!K48<>"",user_input_equipment!K48,"") ->  | L48: =IF(user_input_equipment!L48<>"",user_input_equipment!L48,"") ->  | M48: =IF($E48="YES",((IF($F48="Under 11hp",VLOOKUP($C48,emission_factors!$L$5:$N$18,2,),IF($F48="11-25hp",VLOOKUP($C48,emission_factors!$L$22:$N$33,2,),IF($F48="Over 25hp",VLOOKUP($C48,emission_factors!$L$36:$N$48,2,)))))*($G48)),((IF($F48="Under 11hp",VLOOKUP($C48,emission_factors!$L$5:$N$18,2,),IF($F48="11-25hp",VLOOKUP($C48,emission_factors!$L$22:$N$33,2,),IF($F48="Over 25hp",VLOOKUP($C48,emission_factors!$L$36:$N$48,2,)))))*($G48+$H48))) ->  | N48: =IF($E48="YES",((IF($F48="Under 11hp",VLOOKUP($C48+1,emission_factors!$L$5:$N$18,2,),IF($F48="11-25hp",VLOOKUP($C48+1,emission_factors!$L$22:$N$33,2,),IF($F48="Over 25hp",VLOOKUP($C48+1,emission_factors!$L$36:$N$48,2,)))))*($G48)),((IF($F48="Under 11hp",VLOOKUP($C48+1,emission_factors!$L$5:$N$18,2,),IF($F48="11-25hp",VLOOKUP($C48+1,emission_factors!$L$22:$N$33,2,),IF($F48="Over 25hp",VLOOKUP($C48+1,emission_factors!$L$36:$N$48,2,)))))*($G48+$H48))) ->  | O48: =IF($E48="YES",((IF($F48="Under 11hp",VLOOKUP($C48+2,emission_factors!$L$5:$N$18,2,),IF($F48="11-25hp",VLOOKUP($C48+2,emission_factors!$L$22:$N$33,2,),IF($F48="Over 25hp",VLOOKUP($C48+2,emission_factors!$L$36:$N$48,2,)))))*($G48)),((IF($F48="Under 11hp",VLOOKUP($C48+2,emission_factors!$L$5:$N$18,2,),IF($F48="11-25hp",VLOOKUP($C48+2,emission_factors!$L$22:$N$33,2,),IF($F48="Over 25hp",VLOOKUP($C48+2,emission_factors!$L$36:$N$48,2,)))))*($G48+$H48))) ->  | P48: =IF($E48="YES",((IF($F48="Under 11hp",VLOOKUP($C48+3,emission_factors!$L$5:$N$18,2,),IF($F48="11-25hp",VLOOKUP($C48+3,emission_factors!$L$22:$N$33,2,),IF($F48="Over 25hp",VLOOKUP($C48+3,emission_factors!$L$36:$N$48,2,)))))*($G48)),((IF($F48="Under 11hp",VLOOKUP($C48+3,emission_factors!$L$5:$N$18,2,),IF($F48="11-25hp",VLOOKUP($C48+3,emission_factors!$L$22:$N$33,2,),IF($F48="Over 25hp",VLOOKUP($C48+3,emission_factors!$L$36:$N$48,2,)))))*($G48+$H48))) ->  | Q48: =IF($E48="YES",((IF($F48="Under 11hp",VLOOKUP($C48+4,emission_factors!$L$5:$N$18,2,),IF($F48="11-25hp",VLOOKUP($C48+4,emission_factors!$L$22:$N$33,2,),IF($F48="Over 25hp",VLOOKUP($C48+4,emission_factors!$L$36:$N$48,2,)))))*($G48)),((IF($F48="Under 11hp",VLOOKUP($C48+4,emission_factors!$L$5:$N$18,2,),IF($F48="11-25hp",VLOOKUP($C48+4,emission_factors!$L$22:$N$33,2,),IF($F48="Over 25hp",VLOOKUP($C48+4,emission_factors!$L$36:$N$48,2,)))))*($G48+$H48))) ->  | R48: =IF($E48="YES",((IF($F48="Under 11hp",VLOOKUP($C48,emission_factors!$L$5:$N$18,3,),IF($F48="11-25hp",VLOOKUP($C48,emission_factors!$L$22:$N$33,3,),IF($F48="Over 25hp",VLOOKUP($C48,emission_factors!$L$36:$N$48,3,)))))*($G48)),((IF($F48="Under 11hp",VLOOKUP($C48,emission_factors!$L$5:$N$18,3,),IF($F48="11-25hp",VLOOKUP($C48,emission_factors!$L$22:$N$33,3,),IF($F48="Over 25hp",VLOOKUP($C48,emission_factors!$L$36:$N$48,3,)))))*($G48+$H48))) ->  | S48: =IF($E48="YES",((IF($F48="Under 11hp",VLOOKUP($C48+1,emission_factors!$L$5:$N$18,3,),IF($F48="11-25hp",VLOOKUP($C48+1,emission_factors!$L$22:$N$33,3,),IF($F48="Over 25hp",VLOOKUP($C48+1,emission_factors!$L$36:$N$48,3,)))))*($G48)),((IF($F48="Under 11hp",VLOOKUP($C48+1,emission_factors!$L$5:$N$18,3,),IF($F48="11-25hp",VLOOKUP($C48+1,emission_factors!$L$22:$N$33,3,),IF($F48="Over 25hp",VLOOKUP($C48+1,emission_factors!$L$36:$N$48,3,)))))*($G48+$H48))) ->  | T48: =IF($E48="YES",((IF($F48="Under 11hp",VLOOKUP($C48+2,emission_factors!$L$5:$N$18,3,),IF($F48="11-25hp",VLOOKUP($C48+2,emission_factors!$L$22:$N$33,3,),IF($F48="Over 25hp",VLOOKUP($C48+2,emission_factors!$L$36:$N$48,3,)))))*($G48)),((IF($F48="Under 11hp",VLOOKUP($C48+2,emission_factors!$L$5:$N$18,3,),IF($F48="11-25hp",VLOOKUP($C48+2,emission_factors!$L$22:$N$33,3,),IF($F48="Over 25hp",VLOOKUP($C48+2,emission_factors!$L$36:$N$48,3,)))))*($G48+$H48))) ->  | U48: =IF($E48="YES",((IF($F48="Under 11hp",VLOOKUP($C48+3,emission_factors!$L$5:$N$18,3,),IF($F48="11-25hp",VLOOKUP($C48+3,emission_factors!$L$22:$N$33,3,),IF($F48="Over 25hp",VLOOKUP($C48+3,emission_factors!$L$36:$N$48,3,)))))*($G48)),((IF($F48="Under 11hp",VLOOKUP($C48+3,emission_factors!$L$5:$N$18,3,),IF($F48="11-25hp",VLOOKUP($C48+3,emission_factors!$L$22:$N$33,3,),IF($F48="Over 25hp",VLOOKUP($C48+3,emission_factors!$L$36:$N$48,3,)))))*($G48+$H48))) ->  | V48: =IF($E48="YES",((IF($F48="Under 11hp",VLOOKUP($C48+4,emission_factors!$L$5:$N$18,3,),IF($F48="11-25hp",VLOOKUP($C48+4,emission_factors!$L$22:$N$33,3,),IF($F48="Over 25hp",VLOOKUP($C48+4,emission_factors!$L$36:$N$48,3,)))))*($G48)),((IF($F48="Under 11hp",VLOOKUP($C48+4,emission_factors!$L$5:$N$18,3,),IF($F48="11-25hp",VLOOKUP($C48+4,emission_factors!$L$22:$N$33,3,),IF($F48="Over 25hp",VLOOKUP($C48+4,emission_factors!$L$36:$N$48,3,)))))*($G48+$H48))) ->  | W48: 0 | X48: 0 | Y48: 0 | Z48: 0 | AA48: 0 | AB48: 0
A49: =IF(user_input_equipment!A49<>"",user_input_equipment!A49,"") ->  | B49: =IF(user_input_equipment!B49<>"",user_input_equipment!B49,"") ->  | C49: =IF(user_input_equipment!C49<>"",user_input_equipment!C49,"") ->  | D49: =IF(user_input_equipment!D49<>"",user_input_equipment!D49,"") ->  | E49: =IF(user_input_equipment!E49<>"",user_input_equipment!E49,"") ->  | F49: =IF(user_input_equipment!F49<>"",user_input_equipment!F49,"") ->  | G49: =IF(user_input_equipment!G49<>"",user_input_equipment!G49,"") ->  | H49: =IF(user_input_equipment!H49<>"",user_input_equipment!H49,"") ->  | I49: =IF(user_input_equipment!I49<>"",user_input_equipment!I49,"") ->  | J49: =IF(user_input_equipment!J49<>"",user_input_equipment!J49,"") ->  | K49: =IF(user_input_equipment!K49<>"",user_input_equipment!K49,"") ->  | L49: =IF(user_input_equipment!L49<>"",user_input_equipment!L49,"") ->  | M49: =IF($E49="YES",((IF($F49="Under 11hp",VLOOKUP($C49,emission_factors!$L$5:$N$18,2,),IF($F49="11-25hp",VLOOKUP($C49,emission_factors!$L$22:$N$33,2,),IF($F49="Over 25hp",VLOOKUP($C49,emission_factors!$L$36:$N$48,2,)))))*($G49)),((IF($F49="Under 11hp",VLOOKUP($C49,emission_factors!$L$5:$N$18,2,),IF($F49="11-25hp",VLOOKUP($C49,emission_factors!$L$22:$N$33,2,),IF($F49="Over 25hp",VLOOKUP($C49,emission_factors!$L$36:$N$48,2,)))))*($G49+$H49))) ->  | N49: =IF($E49="YES",((IF($F49="Under 11hp",VLOOKUP($C49+1,emission_factors!$L$5:$N$18,2,),IF($F49="11-25hp",VLOOKUP($C49+1,emission_factors!$L$22:$N$33,2,),IF($F49="Over 25hp",VLOOKUP($C49+1,emission_factors!$L$36:$N$48,2,)))))*($G49)),((IF($F49="Under 11hp",VLOOKUP($C49+1,emission_factors!$L$5:$N$18,2,),IF($F49="11-25hp",VLOOKUP($C49+1,emission_factors!$L$22:$N$33,2,),IF($F49="Over 25hp",VLOOKUP($C49+1,emission_factors!$L$36:$N$48,2,)))))*($G49+$H49))) ->  | O49: =IF($E49="YES",((IF($F49="Under 11hp",VLOOKUP($C49+2,emission_factors!$L$5:$N$18,2,),IF($F49="11-25hp",VLOOKUP($C49+2,emission_factors!$L$22:$N$33,2,),IF($F49="Over 25hp",VLOOKUP($C49+2,emission_factors!$L$36:$N$48,2,)))))*($G49)),((IF($F49="Under 11hp",VLOOKUP($C49+2,emission_factors!$L$5:$N$18,2,),IF($F49="11-25hp",VLOOKUP($C49+2,emission_factors!$L$22:$N$33,2,),IF($F49="Over 25hp",VLOOKUP($C49+2,emission_factors!$L$36:$N$48,2,)))))*($G49+$H49))) ->  | P49: =IF($E49="YES",((IF($F49="Under 11hp",VLOOKUP($C49+3,emission_factors!$L$5:$N$18,2,),IF($F49="11-25hp",VLOOKUP($C49+3,emission_factors!$L$22:$N$33,2,),IF($F49="Over 25hp",VLOOKUP($C49+3,emission_factors!$L$36:$N$48,2,)))))*($G49)),((IF($F49="Under 11hp",VLOOKUP($C49+3,emission_factors!$L$5:$N$18,2,),IF($F49="11-25hp",VLOOKUP($C49+3,emission_factors!$L$22:$N$33,2,),IF($F49="Over 25hp",VLOOKUP($C49+3,emission_factors!$L$36:$N$48,2,)))))*($G49+$H49))) ->  | Q49: =IF($E49="YES",((IF($F49="Under 11hp",VLOOKUP($C49+4,emission_factors!$L$5:$N$18,2,),IF($F49="11-25hp",VLOOKUP($C49+4,emission_factors!$L$22:$N$33,2,),IF($F49="Over 25hp",VLOOKUP($C49+4,emission_factors!$L$36:$N$48,2,)))))*($G49)),((IF($F49="Under 11hp",VLOOKUP($C49+4,emission_factors!$L$5:$N$18,2,),IF($F49="11-25hp",VLOOKUP($C49+4,emission_factors!$L$22:$N$33,2,),IF($F49="Over 25hp",VLOOKUP($C49+4,emission_factors!$L$36:$N$48,2,)))))*($G49+$H49))) ->  | R49: =IF($E49="YES",((IF($F49="Under 11hp",VLOOKUP($C49,emission_factors!$L$5:$N$18,3,),IF($F49="11-25hp",VLOOKUP($C49,emission_factors!$L$22:$N$33,3,),IF($F49="Over 25hp",VLOOKUP($C49,emission_factors!$L$36:$N$48,3,)))))*($G49)),((IF($F49="Under 11hp",VLOOKUP($C49,emission_factors!$L$5:$N$18,3,),IF($F49="11-25hp",VLOOKUP($C49,emission_factors!$L$22:$N$33,3,),IF($F49="Over 25hp",VLOOKUP($C49,emission_factors!$L$36:$N$48,3,)))))*($G49+$H49))) ->  | S49: =IF($E49="YES",((IF($F49="Under 11hp",VLOOKUP($C49+1,emission_factors!$L$5:$N$18,3,),IF($F49="11-25hp",VLOOKUP($C49+1,emission_factors!$L$22:$N$33,3,),IF($F49="Over 25hp",VLOOKUP($C49+1,emission_factors!$L$36:$N$48,3,)))))*($G49)),((IF($F49="Under 11hp",VLOOKUP($C49+1,emission_factors!$L$5:$N$18,3,),IF($F49="11-25hp",VLOOKUP($C49+1,emission_factors!$L$22:$N$33,3,),IF($F49="Over 25hp",VLOOKUP($C49+1,emission_factors!$L$36:$N$48,3,)))))*($G49+$H49))) ->  | T49: =IF($E49="YES",((IF($F49="Under 11hp",VLOOKUP($C49+2,emission_factors!$L$5:$N$18,3,),IF($F49="11-25hp",VLOOKUP($C49+2,emission_factors!$L$22:$N$33,3,),IF($F49="Over 25hp",VLOOKUP($C49+2,emission_factors!$L$36:$N$48,3,)))))*($G49)),((IF($F49="Under 11hp",VLOOKUP($C49+2,emission_factors!$L$5:$N$18,3,),IF($F49="11-25hp",VLOOKUP($C49+2,emission_factors!$L$22:$N$33,3,),IF($F49="Over 25hp",VLOOKUP($C49+2,emission_factors!$L$36:$N$48,3,)))))*($G49+$H49))) ->  | U49: =IF($E49="YES",((IF($F49="Under 11hp",VLOOKUP($C49+3,emission_factors!$L$5:$N$18,3,),IF($F49="11-25hp",VLOOKUP($C49+3,emission_factors!$L$22:$N$33,3,),IF($F49="Over 25hp",VLOOKUP($C49+3,emission_factors!$L$36:$N$48,3,)))))*($G49)),((IF($F49="Under 11hp",VLOOKUP($C49+3,emission_factors!$L$5:$N$18,3,),IF($F49="11-25hp",VLOOKUP($C49+3,emission_factors!$L$22:$N$33,3,),IF($F49="Over 25hp",VLOOKUP($C49+3,emission_factors!$L$36:$N$48,3,)))))*($G49+$H49))) ->  | V49: =IF($E49="YES",((IF($F49="Under 11hp",VLOOKUP($C49+4,emission_factors!$L$5:$N$18,3,),IF($F49="11-25hp",VLOOKUP($C49+4,emission_factors!$L$22:$N$33,3,),IF($F49="Over 25hp",VLOOKUP($C49+4,emission_factors!$L$36:$N$48,3,)))))*($G49)),((IF($F49="Under 11hp",VLOOKUP($C49+4,emission_factors!$L$5:$N$18,3,),IF($F49="11-25hp",VLOOKUP($C49+4,emission_factors!$L$22:$N$33,3,),IF($F49="Over 25hp",VLOOKUP($C49+4,emission_factors!$L$36:$N$48,3,)))))*($G49+$H49))) ->  | W49: 0 | X49: 0 | Y49: 0 | Z49: 0 | AA49: 0 | AB49: 0
A50: =IF(user_input_equipment!A50<>"",user_input_equipment!A50,"") ->  | B50: =IF(user_input_equipment!B50<>"",user_input_equipment!B50,"") ->  | C50: =IF(user_input_equipment!C50<>"",user_input_equipment!C50,"") ->  | D50: =IF(user_input_equipment!D50<>"",user_input_equipment!D50,"") ->  | E50: =IF(user_input_equipment!E50<>"",user_input_equipment!E50,"") ->  | F50: =IF(user_input_equipment!F50<>"",user_input_equipment!F50,"") ->  | G50: =IF(user_input_equipment!G50<>"",user_input_equipment!G50,"") ->  | H50: =IF(user_input_equipment!H50<>"",user_input_equipment!H50,"") ->  | I50: =IF(user_input_equipment!I50<>"",user_input_equipment!I50,"") ->  | J50: =IF(user_input_equipment!J50<>"",user_input_equipment!J50,"") ->  | K50: =IF(user_input_equipment!K50<>"",user_input_equipment!K50,"") ->  | L50: =IF(user_input_equipment!L50<>"",user_input_equipment!L50,"") ->  | M50: =IF($E50="YES",((IF($F50="Under 11hp",VLOOKUP($C50,emission_factors!$L$5:$N$18,2,),IF($F50="11-25hp",VLOOKUP($C50,emission_factors!$L$22:$N$33,2,),IF($F50="Over 25hp",VLOOKUP($C50,emission_factors!$L$36:$N$48,2,)))))*($G50)),((IF($F50="Under 11hp",VLOOKUP($C50,emission_factors!$L$5:$N$18,2,),IF($F50="11-25hp",VLOOKUP($C50,emission_factors!$L$22:$N$33,2,),IF($F50="Over 25hp",VLOOKUP($C50,emission_factors!$L$36:$N$48,2,)))))*($G50+$H50))) ->  | N50: =IF($E50="YES",((IF($F50="Under 11hp",VLOOKUP($C50+1,emission_factors!$L$5:$N$18,2,),IF($F50="11-25hp",VLOOKUP($C50+1,emission_factors!$L$22:$N$33,2,),IF($F50="Over 25hp",VLOOKUP($C50+1,emission_factors!$L$36:$N$48,2,)))))*($G50)),((IF($F50="Under 11hp",VLOOKUP($C50+1,emission_factors!$L$5:$N$18,2,),IF($F50="11-25hp",VLOOKUP($C50+1,emission_factors!$L$22:$N$33,2,),IF($F50="Over 25hp",VLOOKUP($C50+1,emission_factors!$L$36:$N$48,2,)))))*($G50+$H50))) ->  | O50: =IF($E50="YES",((IF($F50="Under 11hp",VLOOKUP($C50+2,emission_factors!$L$5:$N$18,2,),IF($F50="11-25hp",VLOOKUP($C50+2,emission_factors!$L$22:$N$33,2,),IF($F50="Over 25hp",VLOOKUP($C50+2,emission_factors!$L$36:$N$48,2,)))))*($G50)),((IF($F50="Under 11hp",VLOOKUP($C50+2,emission_factors!$L$5:$N$18,2,),IF($F50="11-25hp",VLOOKUP($C50+2,emission_factors!$L$22:$N$33,2,),IF($F50="Over 25hp",VLOOKUP($C50+2,emission_factors!$L$36:$N$48,2,)))))*($G50+$H50))) ->  | P50: =IF($E50="YES",((IF($F50="Under 11hp",VLOOKUP($C50+3,emission_factors!$L$5:$N$18,2,),IF($F50="11-25hp",VLOOKUP($C50+3,emission_factors!$L$22:$N$33,2,),IF($F50="Over 25hp",VLOOKUP($C50+3,emission_factors!$L$36:$N$48,2,)))))*($G50)),((IF($F50="Under 11hp",VLOOKUP($C50+3,emission_factors!$L$5:$N$18,2,),IF($F50="11-25hp",VLOOKUP($C50+3,emission_factors!$L$22:$N$33,2,),IF($F50="Over 25hp",VLOOKUP($C50+3,emission_factors!$L$36:$N$48,2,)))))*($G50+$H50))) ->  | Q50: =IF($E50="YES",((IF($F50="Under 11hp",VLOOKUP($C50+4,emission_factors!$L$5:$N$18,2,),IF($F50="11-25hp",VLOOKUP($C50+4,emission_factors!$L$22:$N$33,2,),IF($F50="Over 25hp",VLOOKUP($C50+4,emission_factors!$L$36:$N$48,2,)))))*($G50)),((IF($F50="Under 11hp",VLOOKUP($C50+4,emission_factors!$L$5:$N$18,2,),IF($F50="11-25hp",VLOOKUP($C50+4,emission_factors!$L$22:$N$33,2,),IF($F50="Over 25hp",VLOOKUP($C50+4,emission_factors!$L$36:$N$48,2,)))))*($G50+$H50))) ->  | R50: =IF($E50="YES",((IF($F50="Under 11hp",VLOOKUP($C50,emission_factors!$L$5:$N$18,3,),IF($F50="11-25hp",VLOOKUP($C50,emission_factors!$L$22:$N$33,3,),IF($F50="Over 25hp",VLOOKUP($C50,emission_factors!$L$36:$N$48,3,)))))*($G50)),((IF($F50="Under 11hp",VLOOKUP($C50,emission_factors!$L$5:$N$18,3,),IF($F50="11-25hp",VLOOKUP($C50,emission_factors!$L$22:$N$33,3,),IF($F50="Over 25hp",VLOOKUP($C50,emission_factors!$L$36:$N$48,3,)))))*($G50+$H50))) ->  | S50: =IF($E50="YES",((IF($F50="Under 11hp",VLOOKUP($C50+1,emission_factors!$L$5:$N$18,3,),IF($F50="11-25hp",VLOOKUP($C50+1,emission_factors!$L$22:$N$33,3,),IF($F50="Over 25hp",VLOOKUP($C50+1,emission_factors!$L$36:$N$48,3,)))))*($G50)),((IF($F50="Under 11hp",VLOOKUP($C50+1,emission_factors!$L$5:$N$18,3,),IF($F50="11-25hp",VLOOKUP($C50+1,emission_factors!$L$22:$N$33,3,),IF($F50="Over 25hp",VLOOKUP($C50+1,emission_factors!$L$36:$N$48,3,)))))*($G50+$H50))) ->  | T50: =IF($E50="YES",((IF($F50="Under 11hp",VLOOKUP($C50+2,emission_factors!$L$5:$N$18,3,),IF($F50="11-25hp",VLOOKUP($C50+2,emission_factors!$L$22:$N$33,3,),IF($F50="Over 25hp",VLOOKUP($C50+2,emission_factors!$L$36:$N$48,3,)))))*($G50)),((IF($F50="Under 11hp",VLOOKUP($C50+2,emission_factors!$L$5:$N$18,3,),IF($F50="11-25hp",VLOOKUP($C50+2,emission_factors!$L$22:$N$33,3,),IF($F50="Over 25hp",VLOOKUP($C50+2,emission_factors!$L$36:$N$48,3,)))))*($G50+$H50))) ->  | U50: =IF($E50="YES",((IF($F50="Under 11hp",VLOOKUP($C50+3,emission_factors!$L$5:$N$18,3,),IF($F50="11-25hp",VLOOKUP($C50+3,emission_factors!$L$22:$N$33,3,),IF($F50="Over 25hp",VLOOKUP($C50+3,emission_factors!$L$36:$N$48,3,)))))*($G50)),((IF($F50="Under 11hp",VLOOKUP($C50+3,emission_factors!$L$5:$N$18,3,),IF($F50="11-25hp",VLOOKUP($C50+3,emission_factors!$L$22:$N$33,3,),IF($F50="Over 25hp",VLOOKUP($C50+3,emission_factors!$L$36:$N$48,3,)))))*($G50+$H50))) ->  | V50: =IF($E50="YES",((IF($F50="Under 11hp",VLOOKUP($C50+4,emission_factors!$L$5:$N$18,3,),IF($F50="11-25hp",VLOOKUP($C50+4,emission_factors!$L$22:$N$33,3,),IF($F50="Over 25hp",VLOOKUP($C50+4,emission_factors!$L$36:$N$48,3,)))))*($G50)),((IF($F50="Under 11hp",VLOOKUP($C50+4,emission_factors!$L$5:$N$18,3,),IF($F50="11-25hp",VLOOKUP($C50+4,emission_factors!$L$22:$N$33,3,),IF($F50="Over 25hp",VLOOKUP($C50+4,emission_factors!$L$36:$N$48,3,)))))*($G50+$H50))) ->  | W50: 0 | X50: 0 | Y50: 0 | Z50: 0 | AA50: 0 | AB50: 0
A51: =IF(user_input_equipment!A51<>"",user_input_equipment!A51,"") ->  | B51: =IF(user_input_equipment!B51<>"",user_input_equipment!B51,"") ->  | C51: =IF(user_input_equipment!C51<>"",user_input_equipment!C51,"") ->  | D51: =IF(user_input_equipment!D51<>"",user_input_equipment!D51,"") ->  | E51: =IF(user_input_equipment!E51<>"",user_input_equipment!E51,"") ->  | F51: =IF(user_input_equipment!F51<>"",user_input_equipment!F51,"") ->  | G51: =IF(user_input_equipment!G51<>"",user_input_equipment!G51,"") ->  | H51: =IF(user_input_equipment!H51<>"",user_input_equipment!H51,"") ->  | I51: =IF(user_input_equipment!I51<>"",user_input_equipment!I51,"") ->  | J51: =IF(user_input_equipment!J51<>"",user_input_equipment!J51,"") ->  | K51: =IF(user_input_equipment!K51<>"",user_input_equipment!K51,"") ->  | L51: =IF(user_input_equipment!L51<>"",user_input_equipment!L51,"") ->  | M51: =IF($E51="YES",((IF($F51="Under 11hp",VLOOKUP($C51,emission_factors!$L$5:$N$18,2,),IF($F51="11-25hp",VLOOKUP($C51,emission_factors!$L$22:$N$33,2,),IF($F51="Over 25hp",VLOOKUP($C51,emission_factors!$L$36:$N$48,2,)))))*($G51)),((IF($F51="Under 11hp",VLOOKUP($C51,emission_factors!$L$5:$N$18,2,),IF($F51="11-25hp",VLOOKUP($C51,emission_factors!$L$22:$N$33,2,),IF($F51="Over 25hp",VLOOKUP($C51,emission_factors!$L$36:$N$48,2,)))))*($G51+$H51))) ->  | N51: =IF($E51="YES",((IF($F51="Under 11hp",VLOOKUP($C51+1,emission_factors!$L$5:$N$18,2,),IF($F51="11-25hp",VLOOKUP($C51+1,emission_factors!$L$22:$N$33,2,),IF($F51="Over 25hp",VLOOKUP($C51+1,emission_factors!$L$36:$N$48,2,)))))*($G51)),((IF($F51="Under 11hp",VLOOKUP($C51+1,emission_factors!$L$5:$N$18,2,),IF($F51="11-25hp",VLOOKUP($C51+1,emission_factors!$L$22:$N$33,2,),IF($F51="Over 25hp",VLOOKUP($C51+1,emission_factors!$L$36:$N$48,2,)))))*($G51+$H51))) ->  | O51: =IF($E51="YES",((IF($F51="Under 11hp",VLOOKUP($C51+2,emission_factors!$L$5:$N$18,2,),IF($F51="11-25hp",VLOOKUP($C51+2,emission_factors!$L$22:$N$33,2,),IF($F51="Over 25hp",VLOOKUP($C51+2,emission_factors!$L$36:$N$48,2,)))))*($G51)),((IF($F51="Under 11hp",VLOOKUP($C51+2,emission_factors!$L$5:$N$18,2,),IF($F51="11-25hp",VLOOKUP($C51+2,emission_factors!$L$22:$N$33,2,),IF($F51="Over 25hp",VLOOKUP($C51+2,emission_factors!$L$36:$N$48,2,)))))*($G51+$H51))) ->  | P51: =IF($E51="YES",((IF($F51="Under 11hp",VLOOKUP($C51+3,emission_factors!$L$5:$N$18,2,),IF($F51="11-25hp",VLOOKUP($C51+3,emission_factors!$L$22:$N$33,2,),IF($F51="Over 25hp",VLOOKUP($C51+3,emission_factors!$L$36:$N$48,2,)))))*($G51)),((IF($F51="Under 11hp",VLOOKUP($C51+3,emission_factors!$L$5:$N$18,2,),IF($F51="11-25hp",VLOOKUP($C51+3,emission_factors!$L$22:$N$33,2,),IF($F51="Over 25hp",VLOOKUP($C51+3,emission_factors!$L$36:$N$48,2,)))))*($G51+$H51))) ->  | Q51: =IF($E51="YES",((IF($F51="Under 11hp",VLOOKUP($C51+4,emission_factors!$L$5:$N$18,2,),IF($F51="11-25hp",VLOOKUP($C51+4,emission_factors!$L$22:$N$33,2,),IF($F51="Over 25hp",VLOOKUP($C51+4,emission_factors!$L$36:$N$48,2,)))))*($G51)),((IF($F51="Under 11hp",VLOOKUP($C51+4,emission_factors!$L$5:$N$18,2,),IF($F51="11-25hp",VLOOKUP($C51+4,emission_factors!$L$22:$N$33,2,),IF($F51="Over 25hp",VLOOKUP($C51+4,emission_factors!$L$36:$N$48,2,)))))*($G51+$H51))) ->  | R51: =IF($E51="YES",((IF($F51="Under 11hp",VLOOKUP($C51,emission_factors!$L$5:$N$18,3,),IF($F51="11-25hp",VLOOKUP($C51,emission_factors!$L$22:$N$33,3,),IF($F51="Over 25hp",VLOOKUP($C51,emission_factors!$L$36:$N$48,3,)))))*($G51)),((IF($F51="Under 11hp",VLOOKUP($C51,emission_factors!$L$5:$N$18,3,),IF($F51="11-25hp",VLOOKUP($C51,emission_factors!$L$22:$N$33,3,),IF($F51="Over 25hp",VLOOKUP($C51,emission_factors!$L$36:$N$48,3,)))))*($G51+$H51))) ->  | S51: =IF($E51="YES",((IF($F51="Under 11hp",VLOOKUP($C51+1,emission_factors!$L$5:$N$18,3,),IF($F51="11-25hp",VLOOKUP($C51+1,emission_factors!$L$22:$N$33,3,),IF($F51="Over 25hp",VLOOKUP($C51+1,emission_factors!$L$36:$N$48,3,)))))*($G51)),((IF($F51="Under 11hp",VLOOKUP($C51+1,emission_factors!$L$5:$N$18,3,),IF($F51="11-25hp",VLOOKUP($C51+1,emission_factors!$L$22:$N$33,3,),IF($F51="Over 25hp",VLOOKUP($C51+1,emission_factors!$L$36:$N$48,3,)))))*($G51+$H51))) ->  | T51: =IF($E51="YES",((IF($F51="Under 11hp",VLOOKUP($C51+2,emission_factors!$L$5:$N$18,3,),IF($F51="11-25hp",VLOOKUP($C51+2,emission_factors!$L$22:$N$33,3,),IF($F51="Over 25hp",VLOOKUP($C51+2,emission_factors!$L$36:$N$48,3,)))))*($G51)),((IF($F51="Under 11hp",VLOOKUP($C51+2,emission_factors!$L$5:$N$18,3,),IF($F51="11-25hp",VLOOKUP($C51+2,emission_factors!$L$22:$N$33,3,),IF($F51="Over 25hp",VLOOKUP($C51+2,emission_factors!$L$36:$N$48,3,)))))*($G51+$H51))) ->  | U51: =IF($E51="YES",((IF($F51="Under 11hp",VLOOKUP($C51+3,emission_factors!$L$5:$N$18,3,),IF($F51="11-25hp",VLOOKUP($C51+3,emission_factors!$L$22:$N$33,3,),IF($F51="Over 25hp",VLOOKUP($C51+3,emission_factors!$L$36:$N$48,3,)))))*($G51)),((IF($F51="Under 11hp",VLOOKUP($C51+3,emission_factors!$L$5:$N$18,3,),IF($F51="11-25hp",VLOOKUP($C51+3,emission_factors!$L$22:$N$33,3,),IF($F51="Over 25hp",VLOOKUP($C51+3,emission_factors!$L$36:$N$48,3,)))))*($G51+$H51))) ->  | V51: =IF($E51="YES",((IF($F51="Under 11hp",VLOOKUP($C51+4,emission_factors!$L$5:$N$18,3,),IF($F51="11-25hp",VLOOKUP($C51+4,emission_factors!$L$22:$N$33,3,),IF($F51="Over 25hp",VLOOKUP($C51+4,emission_factors!$L$36:$N$48,3,)))))*($G51)),((IF($F51="Under 11hp",VLOOKUP($C51+4,emission_factors!$L$5:$N$18,3,),IF($F51="11-25hp",VLOOKUP($C51+4,emission_factors!$L$22:$N$33,3,),IF($F51="Over 25hp",VLOOKUP($C51+4,emission_factors!$L$36:$N$48,3,)))))*($G51+$H51))) ->  | W51: 0 | X51: 0 | Y51: 0 | Z51: 0 | AA51: 0 | AB51: 0
A52: =IF(user_input_equipment!A52<>"",user_input_equipment!A52,"") ->  | B52: =IF(user_input_equipment!B52<>"",user_input_equipment!B52,"") ->  | C52: =IF(user_input_equipment!C52<>"",user_input_equipment!C52,"") ->  | D52: =IF(user_input_equipment!D52<>"",user_input_equipment!D52,"") ->  | E52: =IF(user_input_equipment!E52<>"",user_input_equipment!E52,"") ->  | F52: =IF(user_input_equipment!F52<>"",user_input_equipment!F52,"") ->  | G52: =IF(user_input_equipment!G52<>"",user_input_equipment!G52,"") ->  | H52: =IF(user_input_equipment!H52<>"",user_input_equipment!H52,"") ->  | I52: =IF(user_input_equipment!I52<>"",user_input_equipment!I52,"") ->  | J52: =IF(user_input_equipment!J52<>"",user_input_equipment!J52,"") ->  | K52: =IF(user_input_equipment!K52<>"",user_input_equipment!K52,"") ->  | L52: =IF(user_input_equipment!L52<>"",user_input_equipment!L52,"") ->  | M52: =IF($E52="YES",((IF($F52="Under 11hp",VLOOKUP($C52,emission_factors!$L$5:$N$18,2,),IF($F52="11-25hp",VLOOKUP($C52,emission_factors!$L$22:$N$33,2,),IF($F52="Over 25hp",VLOOKUP($C52,emission_factors!$L$36:$N$48,2,)))))*($G52)),((IF($F52="Under 11hp",VLOOKUP($C52,emission_factors!$L$5:$N$18,2,),IF($F52="11-25hp",VLOOKUP($C52,emission_factors!$L$22:$N$33,2,),IF($F52="Over 25hp",VLOOKUP($C52,emission_factors!$L$36:$N$48,2,)))))*($G52+$H52))) ->  | N52: =IF($E52="YES",((IF($F52="Under 11hp",VLOOKUP($C52+1,emission_factors!$L$5:$N$18,2,),IF($F52="11-25hp",VLOOKUP($C52+1,emission_factors!$L$22:$N$33,2,),IF($F52="Over 25hp",VLOOKUP($C52+1,emission_factors!$L$36:$N$48,2,)))))*($G52)),((IF($F52="Under 11hp",VLOOKUP($C52+1,emission_factors!$L$5:$N$18,2,),IF($F52="11-25hp",VLOOKUP($C52+1,emission_factors!$L$22:$N$33,2,),IF($F52="Over 25hp",VLOOKUP($C52+1,emission_factors!$L$36:$N$48,2,)))))*($G52+$H52))) ->  | O52: =IF($E52="YES",((IF($F52="Under 11hp",VLOOKUP($C52+2,emission_factors!$L$5:$N$18,2,),IF($F52="11-25hp",VLOOKUP($C52+2,emission_factors!$L$22:$N$33,2,),IF($F52="Over 25hp",VLOOKUP($C52+2,emission_factors!$L$36:$N$48,2,)))))*($G52)),((IF($F52="Under 11hp",VLOOKUP($C52+2,emission_factors!$L$5:$N$18,2,),IF($F52="11-25hp",VLOOKUP($C52+2,emission_factors!$L$22:$N$33,2,),IF($F52="Over 25hp",VLOOKUP($C52+2,emission_factors!$L$36:$N$48,2,)))))*($G52+$H52))) ->  | P52: =IF($E52="YES",((IF($F52="Under 11hp",VLOOKUP($C52+3,emission_factors!$L$5:$N$18,2,),IF($F52="11-25hp",VLOOKUP($C52+3,emission_factors!$L$22:$N$33,2,),IF($F52="Over 25hp",VLOOKUP($C52+3,emission_factors!$L$36:$N$48,2,)))))*($G52)),((IF($F52="Under 11hp",VLOOKUP($C52+3,emission_factors!$L$5:$N$18,2,),IF($F52="11-25hp",VLOOKUP($C52+3,emission_factors!$L$22:$N$33,2,),IF($F52="Over 25hp",VLOOKUP($C52+3,emission_factors!$L$36:$N$48,2,)))))*($G52+$H52))) ->  | Q52: =IF($E52="YES",((IF($F52="Under 11hp",VLOOKUP($C52+4,emission_factors!$L$5:$N$18,2,),IF($F52="11-25hp",VLOOKUP($C52+4,emission_factors!$L$22:$N$33,2,),IF($F52="Over 25hp",VLOOKUP($C52+4,emission_factors!$L$36:$N$48,2,)))))*($G52)),((IF($F52="Under 11hp",VLOOKUP($C52+4,emission_factors!$L$5:$N$18,2,),IF($F52="11-25hp",VLOOKUP($C52+4,emission_factors!$L$22:$N$33,2,),IF($F52="Over 25hp",VLOOKUP($C52+4,emission_factors!$L$36:$N$48,2,)))))*($G52+$H52))) ->  | R52: =IF($E52="YES",((IF($F52="Under 11hp",VLOOKUP($C52,emission_factors!$L$5:$N$18,3,),IF($F52="11-25hp",VLOOKUP($C52,emission_factors!$L$22:$N$33,3,),IF($F52="Over 25hp",VLOOKUP($C52,emission_factors!$L$36:$N$48,3,)))))*($G52)),((IF($F52="Under 11hp",VLOOKUP($C52,emission_factors!$L$5:$N$18,3,),IF($F52="11-25hp",VLOOKUP($C52,emission_factors!$L$22:$N$33,3,),IF($F52="Over 25hp",VLOOKUP($C52,emission_factors!$L$36:$N$48,3,)))))*($G52+$H52))) ->  | S52: =IF($E52="YES",((IF($F52="Under 11hp",VLOOKUP($C52+1,emission_factors!$L$5:$N$18,3,),IF($F52="11-25hp",VLOOKUP($C52+1,emission_factors!$L$22:$N$33,3,),IF($F52="Over 25hp",VLOOKUP($C52+1,emission_factors!$L$36:$N$48,3,)))))*($G52)),((IF($F52="Under 11hp",VLOOKUP($C52+1,emission_factors!$L$5:$N$18,3,),IF($F52="11-25hp",VLOOKUP($C52+1,emission_factors!$L$22:$N$33,3,),IF($F52="Over 25hp",VLOOKUP($C52+1,emission_factors!$L$36:$N$48,3,)))))*($G52+$H52))) ->  | T52: =IF($E52="YES",((IF($F52="Under 11hp",VLOOKUP($C52+2,emission_factors!$L$5:$N$18,3,),IF($F52="11-25hp",VLOOKUP($C52+2,emission_factors!$L$22:$N$33,3,),IF($F52="Over 25hp",VLOOKUP($C52+2,emission_factors!$L$36:$N$48,3,)))))*($G52)),((IF($F52="Under 11hp",VLOOKUP($C52+2,emission_factors!$L$5:$N$18,3,),IF($F52="11-25hp",VLOOKUP($C52+2,emission_factors!$L$22:$N$33,3,),IF($F52="Over 25hp",VLOOKUP($C52+2,emission_factors!$L$36:$N$48,3,)))))*($G52+$H52))) ->  | U52: =IF($E52="YES",((IF($F52="Under 11hp",VLOOKUP($C52+3,emission_factors!$L$5:$N$18,3,),IF($F52="11-25hp",VLOOKUP($C52+3,emission_factors!$L$22:$N$33,3,),IF($F52="Over 25hp",VLOOKUP($C52+3,emission_factors!$L$36:$N$48,3,)))))*($G52)),((IF($F52="Under 11hp",VLOOKUP($C52+3,emission_factors!$L$5:$N$18,3,),IF($F52="11-25hp",VLOOKUP($C52+3,emission_factors!$L$22:$N$33,3,),IF($F52="Over 25hp",VLOOKUP($C52+3,emission_factors!$L$36:$N$48,3,)))))*($G52+$H52))) ->  | V52: =IF($E52="YES",((IF($F52="Under 11hp",VLOOKUP($C52+4,emission_factors!$L$5:$N$18,3,),IF($F52="11-25hp",VLOOKUP($C52+4,emission_factors!$L$22:$N$33,3,),IF($F52="Over 25hp",VLOOKUP($C52+4,emission_factors!$L$36:$N$48,3,)))))*($G52)),((IF($F52="Under 11hp",VLOOKUP($C52+4,emission_factors!$L$5:$N$18,3,),IF($F52="11-25hp",VLOOKUP($C52+4,emission_factors!$L$22:$N$33,3,),IF($F52="Over 25hp",VLOOKUP($C52+4,emission_factors!$L$36:$N$48,3,)))))*($G52+$H52))) ->  | W52: 0 | X52: 0 | Y52: 0 | Z52: 0 | AA52: 0 | AB52: 0
A53: =IF(user_input_equipment!A53<>"",user_input_equipment!A53,"") ->  | B53: =IF(user_input_equipment!B53<>"",user_input_equipment!B53,"") ->  | C53: =IF(user_input_equipment!C53<>"",user_input_equipment!C53,"") ->  | D53: =IF(user_input_equipment!D53<>"",user_input_equipment!D53,"") ->  | E53: =IF(user_input_equipment!E53<>"",user_input_equipment!E53,"") ->  | F53: =IF(user_input_equipment!F53<>"",user_input_equipment!F53,"") ->  | G53: =IF(user_input_equipment!G53<>"",user_input_equipment!G53,"") ->  | H53: =IF(user_input_equipment!H53<>"",user_input_equipment!H53,"") ->  | I53: =IF(user_input_equipment!I53<>"",user_input_equipment!I53,"") ->  | J53: =IF(user_input_equipment!J53<>"",user_input_equipment!J53,"") ->  | K53: =IF(user_input_equipment!K53<>"",user_input_equipment!K53,"") ->  | L53: =IF(user_input_equipment!L53<>"",user_input_equipment!L53,"") ->  | M53: =IF($E53="YES",((IF($F53="Under 11hp",VLOOKUP($C53,emission_factors!$L$5:$N$18,2,),IF($F53="11-25hp",VLOOKUP($C53,emission_factors!$L$22:$N$33,2,),IF($F53="Over 25hp",VLOOKUP($C53,emission_factors!$L$36:$N$48,2,)))))*($G53)),((IF($F53="Under 11hp",VLOOKUP($C53,emission_factors!$L$5:$N$18,2,),IF($F53="11-25hp",VLOOKUP($C53,emission_factors!$L$22:$N$33,2,),IF($F53="Over 25hp",VLOOKUP($C53,emission_factors!$L$36:$N$48,2,)))))*($G53+$H53))) ->  | N53: =IF($E53="YES",((IF($F53="Under 11hp",VLOOKUP($C53+1,emission_factors!$L$5:$N$18,2,),IF($F53="11-25hp",VLOOKUP($C53+1,emission_factors!$L$22:$N$33,2,),IF($F53="Over 25hp",VLOOKUP($C53+1,emission_factors!$L$36:$N$48,2,)))))*($G53)),((IF($F53="Under 11hp",VLOOKUP($C53+1,emission_factors!$L$5:$N$18,2,),IF($F53="11-25hp",VLOOKUP($C53+1,emission_factors!$L$22:$N$33,2,),IF($F53="Over 25hp",VLOOKUP($C53+1,emission_factors!$L$36:$N$48,2,)))))*($G53+$H53))) ->  | O53: =IF($E53="YES",((IF($F53="Under 11hp",VLOOKUP($C53+2,emission_factors!$L$5:$N$18,2,),IF($F53="11-25hp",VLOOKUP($C53+2,emission_factors!$L$22:$N$33,2,),IF($F53="Over 25hp",VLOOKUP($C53+2,emission_factors!$L$36:$N$48,2,)))))*($G53)),((IF($F53="Under 11hp",VLOOKUP($C53+2,emission_factors!$L$5:$N$18,2,),IF($F53="11-25hp",VLOOKUP($C53+2,emission_factors!$L$22:$N$33,2,),IF($F53="Over 25hp",VLOOKUP($C53+2,emission_factors!$L$36:$N$48,2,)))))*($G53+$H53))) ->  | P53: =IF($E53="YES",((IF($F53="Under 11hp",VLOOKUP($C53+3,emission_factors!$L$5:$N$18,2,),IF($F53="11-25hp",VLOOKUP($C53+3,emission_factors!$L$22:$N$33,2,),IF($F53="Over 25hp",VLOOKUP($C53+3,emission_factors!$L$36:$N$48,2,)))))*($G53)),((IF($F53="Under 11hp",VLOOKUP($C53+3,emission_factors!$L$5:$N$18,2,),IF($F53="11-25hp",VLOOKUP($C53+3,emission_factors!$L$22:$N$33,2,),IF($F53="Over 25hp",VLOOKUP($C53+3,emission_factors!$L$36:$N$48,2,)))))*($G53+$H53))) ->  | Q53: =IF($E53="YES",((IF($F53="Under 11hp",VLOOKUP($C53+4,emission_factors!$L$5:$N$18,2,),IF($F53="11-25hp",VLOOKUP($C53+4,emission_factors!$L$22:$N$33,2,),IF($F53="Over 25hp",VLOOKUP($C53+4,emission_factors!$L$36:$N$48,2,)))))*($G53)),((IF($F53="Under 11hp",VLOOKUP($C53+4,emission_factors!$L$5:$N$18,2,),IF($F53="11-25hp",VLOOKUP($C53+4,emission_factors!$L$22:$N$33,2,),IF($F53="Over 25hp",VLOOKUP($C53+4,emission_factors!$L$36:$N$48,2,)))))*($G53+$H53))) ->  | R53: =IF($E53="YES",((IF($F53="Under 11hp",VLOOKUP($C53,emission_factors!$L$5:$N$18,3,),IF($F53="11-25hp",VLOOKUP($C53,emission_factors!$L$22:$N$33,3,),IF($F53="Over 25hp",VLOOKUP($C53,emission_factors!$L$36:$N$48,3,)))))*($G53)),((IF($F53="Under 11hp",VLOOKUP($C53,emission_factors!$L$5:$N$18,3,),IF($F53="11-25hp",VLOOKUP($C53,emission_factors!$L$22:$N$33,3,),IF($F53="Over 25hp",VLOOKUP($C53,emission_factors!$L$36:$N$48,3,)))))*($G53+$H53))) ->  | S53: =IF($E53="YES",((IF($F53="Under 11hp",VLOOKUP($C53+1,emission_factors!$L$5:$N$18,3,),IF($F53="11-25hp",VLOOKUP($C53+1,emission_factors!$L$22:$N$33,3,),IF($F53="Over 25hp",VLOOKUP($C53+1,emission_factors!$L$36:$N$48,3,)))))*($G53)),((IF($F53="Under 11hp",VLOOKUP($C53+1,emission_factors!$L$5:$N$18,3,),IF($F53="11-25hp",VLOOKUP($C53+1,emission_factors!$L$22:$N$33,3,),IF($F53="Over 25hp",VLOOKUP($C53+1,emission_factors!$L$36:$N$48,3,)))))*($G53+$H53))) ->  | T53: =IF($E53="YES",((IF($F53="Under 11hp",VLOOKUP($C53+2,emission_factors!$L$5:$N$18,3,),IF($F53="11-25hp",VLOOKUP($C53+2,emission_factors!$L$22:$N$33,3,),IF($F53="Over 25hp",VLOOKUP($C53+2,emission_factors!$L$36:$N$48,3,)))))*($G53)),((IF($F53="Under 11hp",VLOOKUP($C53+2,emission_factors!$L$5:$N$18,3,),IF($F53="11-25hp",VLOOKUP($C53+2,emission_factors!$L$22:$N$33,3,),IF($F53="Over 25hp",VLOOKUP($C53+2,emission_factors!$L$36:$N$48,3,)))))*($G53+$H53))) ->  | U53: =IF($E53="YES",((IF($F53="Under 11hp",VLOOKUP($C53+3,emission_factors!$L$5:$N$18,3,),IF($F53="11-25hp",VLOOKUP($C53+3,emission_factors!$L$22:$N$33,3,),IF($F53="Over 25hp",VLOOKUP($C53+3,emission_factors!$L$36:$N$48,3,)))))*($G53)),((IF($F53="Under 11hp",VLOOKUP($C53+3,emission_factors!$L$5:$N$18,3,),IF($F53="11-25hp",VLOOKUP($C53+3,emission_factors!$L$22:$N$33,3,),IF($F53="Over 25hp",VLOOKUP($C53+3,emission_factors!$L$36:$N$48,3,)))))*($G53+$H53))) ->  | V53: =IF($E53="YES",((IF($F53="Under 11hp",VLOOKUP($C53+4,emission_factors!$L$5:$N$18,3,),IF($F53="11-25hp",VLOOKUP($C53+4,emission_factors!$L$22:$N$33,3,),IF($F53="Over 25hp",VLOOKUP($C53+4,emission_factors!$L$36:$N$48,3,)))))*($G53)),((IF($F53="Under 11hp",VLOOKUP($C53+4,emission_factors!$L$5:$N$18,3,),IF($F53="11-25hp",VLOOKUP($C53+4,emission_factors!$L$22:$N$33,3,),IF($F53="Over 25hp",VLOOKUP($C53+4,emission_factors!$L$36:$N$48,3,)))))*($G53+$H53))) ->  | W53: 0 | X53: 0 | Y53: 0 | Z53: 0 | AA53: 0 | AB53: 0
A54: =IF(user_input_equipment!A54<>"",user_input_equipment!A54,"") ->  | B54: =IF(user_input_equipment!B54<>"",user_input_equipment!B54,"") ->  | C54: =IF(user_input_equipment!C54<>"",user_input_equipment!C54,"") ->  | D54: =IF(user_input_equipment!D54<>"",user_input_equipment!D54,"") ->  | E54: =IF(user_input_equipment!E54<>"",user_input_equipment!E54,"") ->  | F54: =IF(user_input_equipment!F54<>"",user_input_equipment!F54,"") ->  | G54: =IF(user_input_equipment!G54<>"",user_input_equipment!G54,"") ->  | H54: =IF(user_input_equipment!H54<>"",user_input_equipment!H54,"") ->  | I54: =IF(user_input_equipment!I54<>"",user_input_equipment!I54,"") ->  | J54: =IF(user_input_equipment!J54<>"",user_input_equipment!J54,"") ->  | K54: =IF(user_input_equipment!K54<>"",user_input_equipment!K54,"") ->  | L54: =IF(user_input_equipment!L54<>"",user_input_equipment!L54,"") ->  | M54: =IF($E54="YES",((IF($F54="Under 11hp",VLOOKUP($C54,emission_factors!$L$5:$N$18,2,),IF($F54="11-25hp",VLOOKUP($C54,emission_factors!$L$22:$N$33,2,),IF($F54="Over 25hp",VLOOKUP($C54,emission_factors!$L$36:$N$48,2,)))))*($G54)),((IF($F54="Under 11hp",VLOOKUP($C54,emission_factors!$L$5:$N$18,2,),IF($F54="11-25hp",VLOOKUP($C54,emission_factors!$L$22:$N$33,2,),IF($F54="Over 25hp",VLOOKUP($C54,emission_factors!$L$36:$N$48,2,)))))*($G54+$H54))) ->  | N54: =IF($E54="YES",((IF($F54="Under 11hp",VLOOKUP($C54+1,emission_factors!$L$5:$N$18,2,),IF($F54="11-25hp",VLOOKUP($C54+1,emission_factors!$L$22:$N$33,2,),IF($F54="Over 25hp",VLOOKUP($C54+1,emission_factors!$L$36:$N$48,2,)))))*($G54)),((IF($F54="Under 11hp",VLOOKUP($C54+1,emission_factors!$L$5:$N$18,2,),IF($F54="11-25hp",VLOOKUP($C54+1,emission_factors!$L$22:$N$33,2,),IF($F54="Over 25hp",VLOOKUP($C54+1,emission_factors!$L$36:$N$48,2,)))))*($G54+$H54))) ->  | O54: =IF($E54="YES",((IF($F54="Under 11hp",VLOOKUP($C54+2,emission_factors!$L$5:$N$18,2,),IF($F54="11-25hp",VLOOKUP($C54+2,emission_factors!$L$22:$N$33,2,),IF($F54="Over 25hp",VLOOKUP($C54+2,emission_factors!$L$36:$N$48,2,)))))*($G54)),((IF($F54="Under 11hp",VLOOKUP($C54+2,emission_factors!$L$5:$N$18,2,),IF($F54="11-25hp",VLOOKUP($C54+2,emission_factors!$L$22:$N$33,2,),IF($F54="Over 25hp",VLOOKUP($C54+2,emission_factors!$L$36:$N$48,2,)))))*($G54+$H54))) ->  | P54: =IF($E54="YES",((IF($F54="Under 11hp",VLOOKUP($C54+3,emission_factors!$L$5:$N$18,2,),IF($F54="11-25hp",VLOOKUP($C54+3,emission_factors!$L$22:$N$33,2,),IF($F54="Over 25hp",VLOOKUP($C54+3,emission_factors!$L$36:$N$48,2,)))))*($G54)),((IF($F54="Under 11hp",VLOOKUP($C54+3,emission_factors!$L$5:$N$18,2,),IF($F54="11-25hp",VLOOKUP($C54+3,emission_factors!$L$22:$N$33,2,),IF($F54="Over 25hp",VLOOKUP($C54+3,emission_factors!$L$36:$N$48,2,)))))*($G54+$H54))) ->  | Q54: =IF($E54="YES",((IF($F54="Under 11hp",VLOOKUP($C54+4,emission_factors!$L$5:$N$18,2,),IF($F54="11-25hp",VLOOKUP($C54+4,emission_factors!$L$22:$N$33,2,),IF($F54="Over 25hp",VLOOKUP($C54+4,emission_factors!$L$36:$N$48,2,)))))*($G54)),((IF($F54="Under 11hp",VLOOKUP($C54+4,emission_factors!$L$5:$N$18,2,),IF($F54="11-25hp",VLOOKUP($C54+4,emission_factors!$L$22:$N$33,2,),IF($F54="Over 25hp",VLOOKUP($C54+4,emission_factors!$L$36:$N$48,2,)))))*($G54+$H54))) ->  | R54: =IF($E54="YES",((IF($F54="Under 11hp",VLOOKUP($C54,emission_factors!$L$5:$N$18,3,),IF($F54="11-25hp",VLOOKUP($C54,emission_factors!$L$22:$N$33,3,),IF($F54="Over 25hp",VLOOKUP($C54,emission_factors!$L$36:$N$48,3,)))))*($G54)),((IF($F54="Under 11hp",VLOOKUP($C54,emission_factors!$L$5:$N$18,3,),IF($F54="11-25hp",VLOOKUP($C54,emission_factors!$L$22:$N$33,3,),IF($F54="Over 25hp",VLOOKUP($C54,emission_factors!$L$36:$N$48,3,)))))*($G54+$H54))) ->  | S54: =IF($E54="YES",((IF($F54="Under 11hp",VLOOKUP($C54+1,emission_factors!$L$5:$N$18,3,),IF($F54="11-25hp",VLOOKUP($C54+1,emission_factors!$L$22:$N$33,3,),IF($F54="Over 25hp",VLOOKUP($C54+1,emission_factors!$L$36:$N$48,3,)))))*($G54)),((IF($F54="Under 11hp",VLOOKUP($C54+1,emission_factors!$L$5:$N$18,3,),IF($F54="11-25hp",VLOOKUP($C54+1,emission_factors!$L$22:$N$33,3,),IF($F54="Over 25hp",VLOOKUP($C54+1,emission_factors!$L$36:$N$48,3,)))))*($G54+$H54))) ->  | T54: =IF($E54="YES",((IF($F54="Under 11hp",VLOOKUP($C54+2,emission_factors!$L$5:$N$18,3,),IF($F54="11-25hp",VLOOKUP($C54+2,emission_factors!$L$22:$N$33,3,),IF($F54="Over 25hp",VLOOKUP($C54+2,emission_factors!$L$36:$N$48,3,)))))*($G54)),((IF($F54="Under 11hp",VLOOKUP($C54+2,emission_factors!$L$5:$N$18,3,),IF($F54="11-25hp",VLOOKUP($C54+2,emission_factors!$L$22:$N$33,3,),IF($F54="Over 25hp",VLOOKUP($C54+2,emission_factors!$L$36:$N$48,3,)))))*($G54+$H54))) ->  | U54: =IF($E54="YES",((IF($F54="Under 11hp",VLOOKUP($C54+3,emission_factors!$L$5:$N$18,3,),IF($F54="11-25hp",VLOOKUP($C54+3,emission_factors!$L$22:$N$33,3,),IF($F54="Over 25hp",VLOOKUP($C54+3,emission_factors!$L$36:$N$48,3,)))))*($G54)),((IF($F54="Under 11hp",VLOOKUP($C54+3,emission_factors!$L$5:$N$18,3,),IF($F54="11-25hp",VLOOKUP($C54+3,emission_factors!$L$22:$N$33,3,),IF($F54="Over 25hp",VLOOKUP($C54+3,emission_factors!$L$36:$N$48,3,)))))*($G54+$H54))) ->  | V54: =IF($E54="YES",((IF($F54="Under 11hp",VLOOKUP($C54+4,emission_factors!$L$5:$N$18,3,),IF($F54="11-25hp",VLOOKUP($C54+4,emission_factors!$L$22:$N$33,3,),IF($F54="Over 25hp",VLOOKUP($C54+4,emission_factors!$L$36:$N$48,3,)))))*($G54)),((IF($F54="Under 11hp",VLOOKUP($C54+4,emission_factors!$L$5:$N$18,3,),IF($F54="11-25hp",VLOOKUP($C54+4,emission_factors!$L$22:$N$33,3,),IF($F54="Over 25hp",VLOOKUP($C54+4,emission_factors!$L$36:$N$48,3,)))))*($G54+$H54))) ->  | W54: 0 | X54: 0 | Y54: 0 | Z54: 0 | AA54: 0 | AB54: 0
A55: =IF(user_input_equipment!A55<>"",user_input_equipment!A55,"") ->  | B55: =IF(user_input_equipment!B55<>"",user_input_equipment!B55,"") ->  | C55: =IF(user_input_equipment!C55<>"",user_input_equipment!C55,"") ->  | D55: =IF(user_input_equipment!D55<>"",user_input_equipment!D55,"") ->  | E55: =IF(user_input_equipment!E55<>"",user_input_equipment!E55,"") ->  | F55: =IF(user_input_equipment!F55<>"",user_input_equipment!F55,"") ->  | G55: =IF(user_input_equipment!G55<>"",user_input_equipment!G55,"") ->  | H55: =IF(user_input_equipment!H55<>"",user_input_equipment!H55,"") ->  | I55: =IF(user_input_equipment!I55<>"",user_input_equipment!I55,"") ->  | J55: =IF(user_input_equipment!J55<>"",user_input_equipment!J55,"") ->  | K55: =IF(user_input_equipment!K55<>"",user_input_equipment!K55,"") ->  | L55: =IF(user_input_equipment!L55<>"",user_input_equipment!L55,"") ->  | M55: =IF($E55="YES",((IF($F55="Under 11hp",VLOOKUP($C55,emission_factors!$L$5:$N$18,2,),IF($F55="11-25hp",VLOOKUP($C55,emission_factors!$L$22:$N$33,2,),IF($F55="Over 25hp",VLOOKUP($C55,emission_factors!$L$36:$N$48,2,)))))*($G55)),((IF($F55="Under 11hp",VLOOKUP($C55,emission_factors!$L$5:$N$18,2,),IF($F55="11-25hp",VLOOKUP($C55,emission_factors!$L$22:$N$33,2,),IF($F55="Over 25hp",VLOOKUP($C55,emission_factors!$L$36:$N$48,2,)))))*($G55+$H55))) ->  | N55: =IF($E55="YES",((IF($F55="Under 11hp",VLOOKUP($C55+1,emission_factors!$L$5:$N$18,2,),IF($F55="11-25hp",VLOOKUP($C55+1,emission_factors!$L$22:$N$33,2,),IF($F55="Over 25hp",VLOOKUP($C55+1,emission_factors!$L$36:$N$48,2,)))))*($G55)),((IF($F55="Under 11hp",VLOOKUP($C55+1,emission_factors!$L$5:$N$18,2,),IF($F55="11-25hp",VLOOKUP($C55+1,emission_factors!$L$22:$N$33,2,),IF($F55="Over 25hp",VLOOKUP($C55+1,emission_factors!$L$36:$N$48,2,)))))*($G55+$H55))) ->  | O55: =IF($E55="YES",((IF($F55="Under 11hp",VLOOKUP($C55+2,emission_factors!$L$5:$N$18,2,),IF($F55="11-25hp",VLOOKUP($C55+2,emission_factors!$L$22:$N$33,2,),IF($F55="Over 25hp",VLOOKUP($C55+2,emission_factors!$L$36:$N$48,2,)))))*($G55)),((IF($F55="Under 11hp",VLOOKUP($C55+2,emission_factors!$L$5:$N$18,2,),IF($F55="11-25hp",VLOOKUP($C55+2,emission_factors!$L$22:$N$33,2,),IF($F55="Over 25hp",VLOOKUP($C55+2,emission_factors!$L$36:$N$48,2,)))))*($G55+$H55))) ->  | P55: =IF($E55="YES",((IF($F55="Under 11hp",VLOOKUP($C55+3,emission_factors!$L$5:$N$18,2,),IF($F55="11-25hp",VLOOKUP($C55+3,emission_factors!$L$22:$N$33,2,),IF($F55="Over 25hp",VLOOKUP($C55+3,emission_factors!$L$36:$N$48,2,)))))*($G55)),((IF($F55="Under 11hp",VLOOKUP($C55+3,emission_factors!$L$5:$N$18,2,),IF($F55="11-25hp",VLOOKUP($C55+3,emission_factors!$L$22:$N$33,2,),IF($F55="Over 25hp",VLOOKUP($C55+3,emission_factors!$L$36:$N$48,2,)))))*($G55+$H55))) ->  | Q55: =IF($E55="YES",((IF($F55="Under 11hp",VLOOKUP($C55+4,emission_factors!$L$5:$N$18,2,),IF($F55="11-25hp",VLOOKUP($C55+4,emission_factors!$L$22:$N$33,2,),IF($F55="Over 25hp",VLOOKUP($C55+4,emission_factors!$L$36:$N$48,2,)))))*($G55)),((IF($F55="Under 11hp",VLOOKUP($C55+4,emission_factors!$L$5:$N$18,2,),IF($F55="11-25hp",VLOOKUP($C55+4,emission_factors!$L$22:$N$33,2,),IF($F55="Over 25hp",VLOOKUP($C55+4,emission_factors!$L$36:$N$48,2,)))))*($G55+$H55))) ->  | R55: =IF($E55="YES",((IF($F55="Under 11hp",VLOOKUP($C55,emission_factors!$L$5:$N$18,3,),IF($F55="11-25hp",VLOOKUP($C55,emission_factors!$L$22:$N$33,3,),IF($F55="Over 25hp",VLOOKUP($C55,emission_factors!$L$36:$N$48,3,)))))*($G55)),((IF($F55="Under 11hp",VLOOKUP($C55,emission_factors!$L$5:$N$18,3,),IF($F55="11-25hp",VLOOKUP($C55,emission_factors!$L$22:$N$33,3,),IF($F55="Over 25hp",VLOOKUP($C55,emission_factors!$L$36:$N$48,3,)))))*($G55+$H55))) ->  | S55: =IF($E55="YES",((IF($F55="Under 11hp",VLOOKUP($C55+1,emission_factors!$L$5:$N$18,3,),IF($F55="11-25hp",VLOOKUP($C55+1,emission_factors!$L$22:$N$33,3,),IF($F55="Over 25hp",VLOOKUP($C55+1,emission_factors!$L$36:$N$48,3,)))))*($G55)),((IF($F55="Under 11hp",VLOOKUP($C55+1,emission_factors!$L$5:$N$18,3,),IF($F55="11-25hp",VLOOKUP($C55+1,emission_factors!$L$22:$N$33,3,),IF($F55="Over 25hp",VLOOKUP($C55+1,emission_factors!$L$36:$N$48,3,)))))*($G55+$H55))) ->  | T55: =IF($E55="YES",((IF($F55="Under 11hp",VLOOKUP($C55+2,emission_factors!$L$5:$N$18,3,),IF($F55="11-25hp",VLOOKUP($C55+2,emission_factors!$L$22:$N$33,3,),IF($F55="Over 25hp",VLOOKUP($C55+2,emission_factors!$L$36:$N$48,3,)))))*($G55)),((IF($F55="Under 11hp",VLOOKUP($C55+2,emission_factors!$L$5:$N$18,3,),IF($F55="11-25hp",VLOOKUP($C55+2,emission_factors!$L$22:$N$33,3,),IF($F55="Over 25hp",VLOOKUP($C55+2,emission_factors!$L$36:$N$48,3,)))))*($G55+$H55))) ->  | U55: =IF($E55="YES",((IF($F55="Under 11hp",VLOOKUP($C55+3,emission_factors!$L$5:$N$18,3,),IF($F55="11-25hp",VLOOKUP($C55+3,emission_factors!$L$22:$N$33,3,),IF($F55="Over 25hp",VLOOKUP($C55+3,emission_factors!$L$36:$N$48,3,)))))*($G55)),((IF($F55="Under 11hp",VLOOKUP($C55+3,emission_factors!$L$5:$N$18,3,),IF($F55="11-25hp",VLOOKUP($C55+3,emission_factors!$L$22:$N$33,3,),IF($F55="Over 25hp",VLOOKUP($C55+3,emission_factors!$L$36:$N$48,3,)))))*($G55+$H55))) ->  | V55: =IF($E55="YES",((IF($F55="Under 11hp",VLOOKUP($C55+4,emission_factors!$L$5:$N$18,3,),IF($F55="11-25hp",VLOOKUP($C55+4,emission_factors!$L$22:$N$33,3,),IF($F55="Over 25hp",VLOOKUP($C55+4,emission_factors!$L$36:$N$48,3,)))))*($G55)),((IF($F55="Under 11hp",VLOOKUP($C55+4,emission_factors!$L$5:$N$18,3,),IF($F55="11-25hp",VLOOKUP($C55+4,emission_factors!$L$22:$N$33,3,),IF($F55="Over 25hp",VLOOKUP($C55+4,emission_factors!$L$36:$N$48,3,)))))*($G55+$H55))) ->  | W55: 0 | X55: 0 | Y55: 0 | Z55: 0 | AA55: 0 | AB55: 0
A56: =IF(user_input_equipment!A56<>"",user_input_equipment!A56,"") ->  | B56: =IF(user_input_equipment!B56<>"",user_input_equipment!B56,"") ->  | C56: =IF(user_input_equipment!C56<>"",user_input_equipment!C56,"") ->  | D56: =IF(user_input_equipment!D56<>"",user_input_equipment!D56,"") ->  | E56: =IF(user_input_equipment!E56<>"",user_input_equipment!E56,"") ->  | F56: =IF(user_input_equipment!F56<>"",user_input_equipment!F56,"") ->  | G56: =IF(user_input_equipment!G56<>"",user_input_equipment!G56,"") ->  | H56: =IF(user_input_equipment!H56<>"",user_input_equipment!H56,"") ->  | I56: =IF(user_input_equipment!I56<>"",user_input_equipment!I56,"") ->  | J56: =IF(user_input_equipment!J56<>"",user_input_equipment!J56,"") ->  | K56: =IF(user_input_equipment!K56<>"",user_input_equipment!K56,"") ->  | L56: =IF(user_input_equipment!L56<>"",user_input_equipment!L56,"") ->  | M56: =IF($E56="YES",((IF($F56="Under 11hp",VLOOKUP($C56,emission_factors!$L$5:$N$18,2,),IF($F56="11-25hp",VLOOKUP($C56,emission_factors!$L$22:$N$33,2,),IF($F56="Over 25hp",VLOOKUP($C56,emission_factors!$L$36:$N$48,2,)))))*($G56)),((IF($F56="Under 11hp",VLOOKUP($C56,emission_factors!$L$5:$N$18,2,),IF($F56="11-25hp",VLOOKUP($C56,emission_factors!$L$22:$N$33,2,),IF($F56="Over 25hp",VLOOKUP($C56,emission_factors!$L$36:$N$48,2,)))))*($G56+$H56))) ->  | N56: =IF($E56="YES",((IF($F56="Under 11hp",VLOOKUP($C56+1,emission_factors!$L$5:$N$18,2,),IF($F56="11-25hp",VLOOKUP($C56+1,emission_factors!$L$22:$N$33,2,),IF($F56="Over 25hp",VLOOKUP($C56+1,emission_factors!$L$36:$N$48,2,)))))*($G56)),((IF($F56="Under 11hp",VLOOKUP($C56+1,emission_factors!$L$5:$N$18,2,),IF($F56="11-25hp",VLOOKUP($C56+1,emission_factors!$L$22:$N$33,2,),IF($F56="Over 25hp",VLOOKUP($C56+1,emission_factors!$L$36:$N$48,2,)))))*($G56+$H56))) ->  | O56: =IF($E56="YES",((IF($F56="Under 11hp",VLOOKUP($C56+2,emission_factors!$L$5:$N$18,2,),IF($F56="11-25hp",VLOOKUP($C56+2,emission_factors!$L$22:$N$33,2,),IF($F56="Over 25hp",VLOOKUP($C56+2,emission_factors!$L$36:$N$48,2,)))))*($G56)),((IF($F56="Under 11hp",VLOOKUP($C56+2,emission_factors!$L$5:$N$18,2,),IF($F56="11-25hp",VLOOKUP($C56+2,emission_factors!$L$22:$N$33,2,),IF($F56="Over 25hp",VLOOKUP($C56+2,emission_factors!$L$36:$N$48,2,)))))*($G56+$H56))) ->  | P56: =IF($E56="YES",((IF($F56="Under 11hp",VLOOKUP($C56+3,emission_factors!$L$5:$N$18,2,),IF($F56="11-25hp",VLOOKUP($C56+3,emission_factors!$L$22:$N$33,2,),IF($F56="Over 25hp",VLOOKUP($C56+3,emission_factors!$L$36:$N$48,2,)))))*($G56)),((IF($F56="Under 11hp",VLOOKUP($C56+3,emission_factors!$L$5:$N$18,2,),IF($F56="11-25hp",VLOOKUP($C56+3,emission_factors!$L$22:$N$33,2,),IF($F56="Over 25hp",VLOOKUP($C56+3,emission_factors!$L$36:$N$48,2,)))))*($G56+$H56))) ->  | Q56: =IF($E56="YES",((IF($F56="Under 11hp",VLOOKUP($C56+4,emission_factors!$L$5:$N$18,2,),IF($F56="11-25hp",VLOOKUP($C56+4,emission_factors!$L$22:$N$33,2,),IF($F56="Over 25hp",VLOOKUP($C56+4,emission_factors!$L$36:$N$48,2,)))))*($G56)),((IF($F56="Under 11hp",VLOOKUP($C56+4,emission_factors!$L$5:$N$18,2,),IF($F56="11-25hp",VLOOKUP($C56+4,emission_factors!$L$22:$N$33,2,),IF($F56="Over 25hp",VLOOKUP($C56+4,emission_factors!$L$36:$N$48,2,)))))*($G56+$H56))) ->  | R56: =IF($E56="YES",((IF($F56="Under 11hp",VLOOKUP($C56,emission_factors!$L$5:$N$18,3,),IF($F56="11-25hp",VLOOKUP($C56,emission_factors!$L$22:$N$33,3,),IF($F56="Over 25hp",VLOOKUP($C56,emission_factors!$L$36:$N$48,3,)))))*($G56)),((IF($F56="Under 11hp",VLOOKUP($C56,emission_factors!$L$5:$N$18,3,),IF($F56="11-25hp",VLOOKUP($C56,emission_factors!$L$22:$N$33,3,),IF($F56="Over 25hp",VLOOKUP($C56,emission_factors!$L$36:$N$48,3,)))))*($G56+$H56))) ->  | S56: =IF($E56="YES",((IF($F56="Under 11hp",VLOOKUP($C56+1,emission_factors!$L$5:$N$18,3,),IF($F56="11-25hp",VLOOKUP($C56+1,emission_factors!$L$22:$N$33,3,),IF($F56="Over 25hp",VLOOKUP($C56+1,emission_factors!$L$36:$N$48,3,)))))*($G56)),((IF($F56="Under 11hp",VLOOKUP($C56+1,emission_factors!$L$5:$N$18,3,),IF($F56="11-25hp",VLOOKUP($C56+1,emission_factors!$L$22:$N$33,3,),IF($F56="Over 25hp",VLOOKUP($C56+1,emission_factors!$L$36:$N$48,3,)))))*($G56+$H56))) ->  | T56: =IF($E56="YES",((IF($F56="Under 11hp",VLOOKUP($C56+2,emission_factors!$L$5:$N$18,3,),IF($F56="11-25hp",VLOOKUP($C56+2,emission_factors!$L$22:$N$33,3,),IF($F56="Over 25hp",VLOOKUP($C56+2,emission_factors!$L$36:$N$48,3,)))))*($G56)),((IF($F56="Under 11hp",VLOOKUP($C56+2,emission_factors!$L$5:$N$18,3,),IF($F56="11-25hp",VLOOKUP($C56+2,emission_factors!$L$22:$N$33,3,),IF($F56="Over 25hp",VLOOKUP($C56+2,emission_factors!$L$36:$N$48,3,)))))*($G56+$H56))) ->  | U56: =IF($E56="YES",((IF($F56="Under 11hp",VLOOKUP($C56+3,emission_factors!$L$5:$N$18,3,),IF($F56="11-25hp",VLOOKUP($C56+3,emission_factors!$L$22:$N$33,3,),IF($F56="Over 25hp",VLOOKUP($C56+3,emission_factors!$L$36:$N$48,3,)))))*($G56)),((IF($F56="Under 11hp",VLOOKUP($C56+3,emission_factors!$L$5:$N$18,3,),IF($F56="11-25hp",VLOOKUP($C56+3,emission_factors!$L$22:$N$33,3,),IF($F56="Over 25hp",VLOOKUP($C56+3,emission_factors!$L$36:$N$48,3,)))))*($G56+$H56))) ->  | V56: =IF($E56="YES",((IF($F56="Under 11hp",VLOOKUP($C56+4,emission_factors!$L$5:$N$18,3,),IF($F56="11-25hp",VLOOKUP($C56+4,emission_factors!$L$22:$N$33,3,),IF($F56="Over 25hp",VLOOKUP($C56+4,emission_factors!$L$36:$N$48,3,)))))*($G56)),((IF($F56="Under 11hp",VLOOKUP($C56+4,emission_factors!$L$5:$N$18,3,),IF($F56="11-25hp",VLOOKUP($C56+4,emission_factors!$L$22:$N$33,3,),IF($F56="Over 25hp",VLOOKUP($C56+4,emission_factors!$L$36:$N$48,3,)))))*($G56+$H56))) ->  | W56: 0 | X56: 0 | Y56: 0 | Z56: 0 | AA56: 0 | AB56: 0
A57: =IF(user_input_equipment!A57<>"",user_input_equipment!A57,"") ->  | B57: =IF(user_input_equipment!B57<>"",user_input_equipment!B57,"") ->  | C57: =IF(user_input_equipment!C57<>"",user_input_equipment!C57,"") ->  | D57: =IF(user_input_equipment!D57<>"",user_input_equipment!D57,"") ->  | E57: =IF(user_input_equipment!E57<>"",user_input_equipment!E57,"") ->  | F57: =IF(user_input_equipment!F57<>"",user_input_equipment!F57,"") ->  | G57: =IF(user_input_equipment!G57<>"",user_input_equipment!G57,"") ->  | H57: =IF(user_input_equipment!H57<>"",user_input_equipment!H57,"") ->  | I57: =IF(user_input_equipment!I57<>"",user_input_equipment!I57,"") ->  | J57: =IF(user_input_equipment!J57<>"",user_input_equipment!J57,"") ->  | K57: =IF(user_input_equipment!K57<>"",user_input_equipment!K57,"") ->  | L57: =IF(user_input_equipment!L57<>"",user_input_equipment!L57,"") ->  | M57: =IF($E57="YES",((IF($F57="Under 11hp",VLOOKUP($C57,emission_factors!$L$5:$N$18,2,),IF($F57="11-25hp",VLOOKUP($C57,emission_factors!$L$22:$N$33,2,),IF($F57="Over 25hp",VLOOKUP($C57,emission_factors!$L$36:$N$48,2,)))))*($G57)),((IF($F57="Under 11hp",VLOOKUP($C57,emission_factors!$L$5:$N$18,2,),IF($F57="11-25hp",VLOOKUP($C57,emission_factors!$L$22:$N$33,2,),IF($F57="Over 25hp",VLOOKUP($C57,emission_factors!$L$36:$N$48,2,)))))*($G57+$H57))) ->  | N57: =IF($E57="YES",((IF($F57="Under 11hp",VLOOKUP($C57+1,emission_factors!$L$5:$N$18,2,),IF($F57="11-25hp",VLOOKUP($C57+1,emission_factors!$L$22:$N$33,2,),IF($F57="Over 25hp",VLOOKUP($C57+1,emission_factors!$L$36:$N$48,2,)))))*($G57)),((IF($F57="Under 11hp",VLOOKUP($C57+1,emission_factors!$L$5:$N$18,2,),IF($F57="11-25hp",VLOOKUP($C57+1,emission_factors!$L$22:$N$33,2,),IF($F57="Over 25hp",VLOOKUP($C57+1,emission_factors!$L$36:$N$48,2,)))))*($G57+$H57))) ->  | O57: =IF($E57="YES",((IF($F57="Under 11hp",VLOOKUP($C57+2,emission_factors!$L$5:$N$18,2,),IF($F57="11-25hp",VLOOKUP($C57+2,emission_factors!$L$22:$N$33,2,),IF($F57="Over 25hp",VLOOKUP($C57+2,emission_factors!$L$36:$N$48,2,)))))*($G57)),((IF($F57="Under 11hp",VLOOKUP($C57+2,emission_factors!$L$5:$N$18,2,),IF($F57="11-25hp",VLOOKUP($C57+2,emission_factors!$L$22:$N$33,2,),IF($F57="Over 25hp",VLOOKUP($C57+2,emission_factors!$L$36:$N$48,2,)))))*($G57+$H57))) ->  | P57: =IF($E57="YES",((IF($F57="Under 11hp",VLOOKUP($C57+3,emission_factors!$L$5:$N$18,2,),IF($F57="11-25hp",VLOOKUP($C57+3,emission_factors!$L$22:$N$33,2,),IF($F57="Over 25hp",VLOOKUP($C57+3,emission_factors!$L$36:$N$48,2,)))))*($G57)),((IF($F57="Under 11hp",VLOOKUP($C57+3,emission_factors!$L$5:$N$18,2,),IF($F57="11-25hp",VLOOKUP($C57+3,emission_factors!$L$22:$N$33,2,),IF($F57="Over 25hp",VLOOKUP($C57+3,emission_factors!$L$36:$N$48,2,)))))*($G57+$H57))) ->  | Q57: =IF($E57="YES",((IF($F57="Under 11hp",VLOOKUP($C57+4,emission_factors!$L$5:$N$18,2,),IF($F57="11-25hp",VLOOKUP($C57+4,emission_factors!$L$22:$N$33,2,),IF($F57="Over 25hp",VLOOKUP($C57+4,emission_factors!$L$36:$N$48,2,)))))*($G57)),((IF($F57="Under 11hp",VLOOKUP($C57+4,emission_factors!$L$5:$N$18,2,),IF($F57="11-25hp",VLOOKUP($C57+4,emission_factors!$L$22:$N$33,2,),IF($F57="Over 25hp",VLOOKUP($C57+4,emission_factors!$L$36:$N$48,2,)))))*($G57+$H57))) ->  | R57: =IF($E57="YES",((IF($F57="Under 11hp",VLOOKUP($C57,emission_factors!$L$5:$N$18,3,),IF($F57="11-25hp",VLOOKUP($C57,emission_factors!$L$22:$N$33,3,),IF($F57="Over 25hp",VLOOKUP($C57,emission_factors!$L$36:$N$48,3,)))))*($G57)),((IF($F57="Under 11hp",VLOOKUP($C57,emission_factors!$L$5:$N$18,3,),IF($F57="11-25hp",VLOOKUP($C57,emission_factors!$L$22:$N$33,3,),IF($F57="Over 25hp",VLOOKUP($C57,emission_factors!$L$36:$N$48,3,)))))*($G57+$H57))) ->  | S57: =IF($E57="YES",((IF($F57="Under 11hp",VLOOKUP($C57+1,emission_factors!$L$5:$N$18,3,),IF($F57="11-25hp",VLOOKUP($C57+1,emission_factors!$L$22:$N$33,3,),IF($F57="Over 25hp",VLOOKUP($C57+1,emission_factors!$L$36:$N$48,3,)))))*($G57)),((IF($F57="Under 11hp",VLOOKUP($C57+1,emission_factors!$L$5:$N$18,3,),IF($F57="11-25hp",VLOOKUP($C57+1,emission_factors!$L$22:$N$33,3,),IF($F57="Over 25hp",VLOOKUP($C57+1,emission_factors!$L$36:$N$48,3,)))))*($G57+$H57))) ->  | T57: =IF($E57="YES",((IF($F57="Under 11hp",VLOOKUP($C57+2,emission_factors!$L$5:$N$18,3,),IF($F57="11-25hp",VLOOKUP($C57+2,emission_factors!$L$22:$N$33,3,),IF($F57="Over 25hp",VLOOKUP($C57+2,emission_factors!$L$36:$N$48,3,)))))*($G57)),((IF($F57="Under 11hp",VLOOKUP($C57+2,emission_factors!$L$5:$N$18,3,),IF($F57="11-25hp",VLOOKUP($C57+2,emission_factors!$L$22:$N$33,3,),IF($F57="Over 25hp",VLOOKUP($C57+2,emission_factors!$L$36:$N$48,3,)))))*($G57+$H57))) ->  | U57: =IF($E57="YES",((IF($F57="Under 11hp",VLOOKUP($C57+3,emission_factors!$L$5:$N$18,3,),IF($F57="11-25hp",VLOOKUP($C57+3,emission_factors!$L$22:$N$33,3,),IF($F57="Over 25hp",VLOOKUP($C57+3,emission_factors!$L$36:$N$48,3,)))))*($G57)),((IF($F57="Under 11hp",VLOOKUP($C57+3,emission_factors!$L$5:$N$18,3,),IF($F57="11-25hp",VLOOKUP($C57+3,emission_factors!$L$22:$N$33,3,),IF($F57="Over 25hp",VLOOKUP($C57+3,emission_factors!$L$36:$N$48,3,)))))*($G57+$H57))) ->  | V57: =IF($E57="YES",((IF($F57="Under 11hp",VLOOKUP($C57+4,emission_factors!$L$5:$N$18,3,),IF($F57="11-25hp",VLOOKUP($C57+4,emission_factors!$L$22:$N$33,3,),IF($F57="Over 25hp",VLOOKUP($C57+4,emission_factors!$L$36:$N$48,3,)))))*($G57)),((IF($F57="Under 11hp",VLOOKUP($C57+4,emission_factors!$L$5:$N$18,3,),IF($F57="11-25hp",VLOOKUP($C57+4,emission_factors!$L$22:$N$33,3,),IF($F57="Over 25hp",VLOOKUP($C57+4,emission_factors!$L$36:$N$48,3,)))))*($G57+$H57))) ->  | W57: 0 | X57: 0 | Y57: 0 | Z57: 0 | AA57: 0 | AB57: 0
